Workbook

Sheet Start1 (hidden)
C1: POSEIDON - The Water Reuse Magic Box
B4: COROADO Stage II Assessment - Select and Assess Water Reuse Options | J4: © Emmanuel Oertlé, 2014
B6: This Excel worksheet allows to identify and analyse different water reuse options based on your local data and requirements. It provides a basket of options and several analysis for water reuse in your case study.
F9: Getting started | G9: Ask Poseidon | I9: Results
E10: Data entry | F10: Influent quality and quantity | H10: Results | I10: Basket of possible options
F11: Indicate here the quality and quantity of effluent | I11: Individual treatment trains detailed results
F12: End-use of reclaimed water
F13: Enter what you want to do with the treated water | H13: Charts | I13: Select 3 treatment trains below:
F14: Create your treatment trains | I14: Constructed Wetland
F15: Here you can create 3 own trains of unit processes. | I15: Case study Parrow
E16: Information | F16: Single technologies factsheets | I16: Test 1
F17: Selected treatment trains | I17: Removal effiency
F18: References | I18: Evaluation criteria, requirments and impacts

Sheet Stakeholder,country list (hidden)
B1: USA
B2: Argentina
B3: Australia
B4: Brazil
B5: Chile
B6: Egypt
B7: Mexico
B8: Morocco
B9: Tunisia
B10: Thailand
B11: Vietnam

Sheet WELCOME
B1: POSEIDON 2.0 - A Tool to Promote and Assess Water Reuse
B7: Information This decision support tool (DST) is intended to assist you in determining possible options for your personal water reuse purpose. The flowchart below describes the four essential steps to reach a solution. | L7: Who are you? | T7: Standard USD
L8: Select your country: | T8: Argentina - A-Peso
L9: Egypt | T9: Argentina - USD
T10: Brazil - REALS
L11: Select currency: | T11: Brazil - USD
L12: Egypt - USD | T12: Chile - C-PESO
T13: Chile - USD
T14: Egypt - EGP
T15: Egypt - USD
T16: Mexico - M-PESO
T17: Mexico - USD
T18: Morocco - MAD
T19: Morocco - USD
T20: Tunisia - TND
T21: Tunisia - USD
T22: Vietnam- VND
T23: Vietnam - USD
T24: Your case
B28: Input or selection | D28: Link / Options | M28: © 2019
M29: Legal notice
D30: Back/Forward!
B34: Publication: Oertlé, E.; Hugi, C.; Wintgens, T.; Karavitis, C.A. Poseidon—Decision Support Tool for Water Reuse. Water 2019, 11, 153.
E35: Link: https://www.mdpi.com/2073-4441/11/1/153
B36: Publication: Oertlé, E.; Mueller, S.R.; Choukr-Allah, R.; Jaouani, A. - Decision Support Tool for Water Reclamation beyond Technical Considerations—Egyptian, Moroccan and Tunisian Case Studies. IEAM (Submitted 2019 and under review)
B39: Legal Notice
B40: Disclaimer: The objective of this tool is to promote water reuse technology and to build capacities in the field of water treatment technology. This tool is under continuous improvement and is not designed for feasibility studies nor commercial purposes. By using this tool, the user has acknowledged and agreed that this tool shall only be used as reference purpose and the user uses this tool at his own risk, the author shall never be held liable in any form for results that this tool delivers. © 2019- All rights reserved. This tool shall never be used for commercial purposes without prior written consent from the copyright owner (Contact Information: Emmanuel Oertlé, emmanuel.oertle@gmail.com). Within the scope of European Coroado project related and non-commercial activities, a license to use this tool for free of charge may be granted. However, any use in such regard shall reference the ownership of this tool citing the following language: "Emmanuel Oertlé, Poseidon - A tool to Promote and Assess Water Reuse, 2015". This project has received funding from the European Union’s Seventh Programme for research, technological development and demonstration under grant agreement No 2830. The University of Applied Sciences Northwestern Switzerland (FHNW) can also use this tool for educational and non-commercial purposes. This tool is published in Basel, Switzerland. Any controversy or claim arising out of or relating to this tool shall be determined by arbitration administered by the International Centre for Dispute Resolution in accordance with its International Arbitration Rules. The number of arbitrators shall be one, the place of arbitration shall be New York City, USA, the language of the arbitration shall be English. The governing law shall be the US copyright law and the relevant New York State laws.

Sheet ASKP (hidden)
A1: Back to start | F1: Information - Selected Treatment Trains (TT)
D3: Question | E3: Answer | F3: Figure
D4: What is water reuse & recycling (WR&R)? | E4: The objective of wastewater recycling and reuse is the cleaning of wastewater to a stage of purity that can directly be used for specific purposes. Wastewater collection and treatment in wastewater treatment plants (WWTPs) helps keeping pollutions away from human settlements and the treated effluent water should be treated to a stage that it can be discharged into receiving water bodies without damaging their ecological quality. Water reuse has received growing attention with regard to mitigation of water scarcity, added value through the use of reclaimed water (e.g. partial fertilizer substitute in agricultural irrigation), and as an opportunity to avoid high first-use water prices. Wastewater reuse can be classified as direct or indirect reuse. | F4: Also known as Reclamation or Reuse, water recycling is an umbrella term encompassing the process of treating wastewater, storing, distributing, and using the recycled water.(source: californian department of water resources, US, 2013)
D5: What is direct and indirect water reuse? | E5: Direct reuse refers to the undiluted usage of effluent water from wastewater treatment plant and in most cases additional treatment. Unintentional indirect reuse refers to the use of water downstream of a discharge of (treated or untreated) wastewater into a receiving water body. The effluent from WWTPs is mixed, diluted and further cleaned by naturally occurring chemical and biological processes in the receiving water body, which is the most common practice worldwide. Intentional indirect reuse is the planned linkage between the discharge of treated wastewater into an environmental water body with further usage (Levine & Asano, 2004). An example of intentional indirect reuse is groundwater (aquifer) recharge of effluents for further reuse. Both for direct and indirect reuse, the specific reuse application (purpose) together with the relevant legislation determine the level of purity which needs to be achieved. | F5: The anthropogenic water cycle with direct and indirect reuse (Wintgens et al., 2006)
D6: What do all these acronyms stand for? | E6: The basic acronyms used within POSEIDON are described in this figure.
D7: What about the wastewater consitutents of concern for WR&R? | E7: In order to decide on the level of treatment required to clean wastewater of a sufficient quality for specific reuse, it is important to identify constituents of concern and their concentration. In untreated wastewater a range of constituents (Table 1) can be found which can negatively affect public health, the environment and infrastructure (e.g., corrosion). According to EPA, 2012, all reuse systems should at least have secondary treatment, which addresses suspended solids, most dissolved organic matter, some nutrients and other inorganics. The specific reuse will determine, whether secondary treatment is sufficient or if more stringent cleaning of the wastewater is necessary. This section provides an overview of the most commonly found wastewater constituents. Table 1 also provides an overview of measured parameters with a focus on those included in this technology catalogue.
D8: What is Turbidity? | E8: Turbidity is the measure of relative clarity of a liquid. The more total suspended solids in the water, the murkier it seems and the higher the turbidity. | F8: Turbidity color chart (source: learnnc, 2013)
D9: What is TSS? | E9: Total suspended solids. Organic contaminants, heavy metals, etc. are absorbed on particles. Suspended matter can shield microorganisms from disinfectants. Excessive amounts of suspended solids cause plugging in irrigation systems. | F9: TSS before and after the use of a clarification polymer for flocculation (source: cfmwi, 2013)
D10: What is BOD and COD? | E10: Organic chemicals. Aesthetic and nuisance problems. Organics provide food for microorganisms, adversely affect disinfection processes, make water unsuitable for some industrial or other uses, consume oxygen, and may result in acute or chronic effects if reclaimed water is used. | F10: Organic pollution originates from faecal matter, kitchen wastes, detergents, oil, industrial wastes etc. Both chemical and biological processes acting on organic chemicals in the wastewater stream require oxygen and the level of organic pollution can be determined through BOD (Biological Oxygen Demand) and COD (Chemical Oxygen Demand). Also TOC (Total Organic Carbon), and indirectly TSS and turbidity, are commonly used measures of organic pollution in the wastewater stream. BOD refers to the amount of dissolved oxygen (usually mg O2 per L wastewater) required to degrade organic material by aerobic organisms in a given wastewater at a standard temperature over a standard time (e.g. BOD5 over five days at 20°C). The COD uses strong oxidizing agents instead of aerobic microorganisms and is thus a measure for the overall content or organic chemical compounds. Also COD is usually measured in mg O2 per L wastewater.
D11: What are inorganic chemicals and persistent organic chemicals? | E11: Inorganic chemicals and persistent organic chemicals. Some of these organics tend to resist conventional methods of wastewater treatment. Some organic compounds are toxic in the environment, and their presence may limit the suitability of reclaimed water for irrigation or other uses. | F11: Heavy metals. Heavy metals are metals with densities higher than 5 g cm-3 (Ravazini et al., 2006) and include for instance Copper, Nickel, Zinc and others. They may accumulate in soils, later into plants and consequently the human food chain. In wastewater from certain industries, especially mining, heavy metals can be an issue. Treatment options to remove heavy metals from wastewater include for instance reverse osmosis (RO, T6) and ion exchange (T9). POPs, micropollutants. Typical examples of contaminations which have only recently re-ceived growing attention in wastewater treatment, drinking water production and water reuse are residues of pharmaceuticals, hormone active substances, pesticides and personal care products. Most of these contaminations are not removed by conventional water treatment and more advanced treatment is required. Advanced methods include Advanced Oxidation Processes (AOPs, T10) and Soil-Aquifer Treatment (SAT, T11).
D12: What are Nutrients? | E12: Nutrients. Nitrogen, phosphorus, and potassium are essential nutrients for plant growth and their presence normally enhances the value of the water for irrigation. When discharged to the aquatic environment, nitrogen and phosphorus can lead to the growth of undesired algae (eutrophication). | F12: The need to remove nutrients during treatment for reuse therefore depends on the intended use of the reclaimed water. Conventional secondary (activated sludge) treatment processes do not significantly remove phosphorus and nitrogen compounds. Since activated sludge treatment is based on microbial degradation of organic substances, nutrients may even be released in more plant available forms (EPA, 2004b). Treatment options to nutrients from wastewater include for example enhanced biological phosphorus removal (EBPR, S10), P-precipitation (S11), ion exchange (T9) and others.
D13: What are pathogens? | E13: Pathogens. Infectious microorganisms and viruses (pathogens) are present in untreated wastewater according to the prevalence in population and animals connected to the sewer system. Various disinfection methods exist to reduce pathogen loads. | F13: Microorganisms such as bacteria and protozoa are omnipresent in nature and urban environments. In the environment microorganisms are important decomposers of organic matter and therewith provide nutrients for primary production. Most microorganisms are not dangerous to humans and some are even directly beneficial (e.g., intestinal ‘flora’). In wastewater engineering, microorganisms help to decompose organic matter and are essential in most secondary water treatment unit trains (S1 – S10, Appendix), such as for instance activated sludge, trickling filters etc. Apart from harmless microorganisms, raw wastewater can contain high concentrations of infectious microorganisms or pathogens, which originate primarily from faeces of infected humans. Pathogens that can be present in urine include those causing schistosomiasis, typhoid fever, leptospirosis and some sexually transmitted infections (however, latter do not survive for long in wastewater) (EPA, 2012). Waterborne diseases can be transmitted by various pathways, which include the consumption of contaminated water or food via hand-to-mouth contact and the breathing in mist or aerosols from water containing suspended pathogens (e.g., during irrigation).
D14: Why do Poseidon want to know where I want to reuse my water? | E14: Water can be reclaimed for different reuse applications including agricultural, industrial, urban, groundwater recharge, environmental and recreational reuse (Table 2). The level of treatment required to produce usable water from wastewater depends on the specific type of reuse application and the quality of input water (i.e., effluent from a certain user or wastewater treatment plant) available.
D15: What is a treatment train? | E15: In order to decide which treatment is required in order to produce water that fits a specific application from a given effluent, water quality of the effluent and water quality needed by the application have to be known. Based on the removal efficiencies of single treatment unit processes, treatment trains can be proposed. The available water quality and the required water quality for a reuse application is the key to propose applicable unit processes described in chapter 5and design appropriate treatment from purely technology driven perspective, which in a next step will be further analysed regarding socio-economic and ecological considerations (chapter 3.3.).
D16: What is primary treatment? | E16: Primary treatment involves unit processes which involve quiescent temporary storage tanks where heavier solids settle to the bottom and lighter wastewater constituents (e.g., oil, grease and solids with a low specific weight) float to the surface. Settled and floating wastewater constituents are removed and the remaining primary effluent either discharged or input into secondary treatment.
D17: What is secondary treatment? | E17: Secondary treatment focuses on the removal of biological matter through degradation by microorganisms which are normally present in wastewater. The microorganisms can either grow suspended in the treatment tank (‘suspended growth’ such as activated sludge processes, S1-S3; and membrane bioreactor, S9) or attached to a medium (‘attached growth’ such as trickling filter, S4; rotating biological contactor, S5; and submerged aerated filter, S6). Prior to discharge or tertiary treatment, microorganisms are usually removed from the treated wastewater.
D18: What is tertiary / advanced treatment? | E18: Tertiary treatment can focus on different aspects depending on constituents in the wastewater stream, the intended discharge area in wastewater treatment (e.g. nutrient sensitive areas) and intended reuse application for reuse schemes.
D19: What about disinfection? | E19: Disinfection. Depending on the discharge or specific reuse application, treated wastewater can be chemically (e.g. by chlorine: D3-4) or physically (e.g., UV radiation: D5) disinfected. | F19: Selected disinfectant properties, adapted from (EPA, 1999a)
D20: How to create my own treatment train? | E20: Every treatment train depends on many factors and it is therefore difficult or impossible to automatically define a treatment train that works for your situation. The creation of an efficient and adapted treatment train to your situation needs expert knowledge and eventually feasibility studies. However, Poseidon helps before that by alllowing you to test several typical treatment trains to your situation and also to create your own, ideally together with an expert from the field. | F20: Possible starting unit processes (with unit process code) depending on influent water quality (adapted from Joksimovic 2005)
D21: What evaluation criteria is using POSEIDON? | E21: Evaluation criteria refer to desired effects by the installation of a certain process. Important factors include the reliability of the process, the east to upgrade if wastewater stream increases (e.g. population growth), the adaptability to varying wastewater flows (e.g. seasonal differences), the adaptability to varying influent wastewater quality, the ease of operation and management (e.g. requirements for specially trained personnel, dosing of certain substances), the ease of construction (overall estimate of the ease to install a unit process based on additional installations required, human resources and specialists needed etc.) and ease of demonstration.
D22: What are the requirements and impacts presented in the results? | E22: Requirements and impacts (Table 6). Here significant operational requirements and environmental impacts are evaluated for each unit process. This includes energy demand (which is often the most important operational cost), chemical demand (e.g. chloride), land requirement (area needed to install a certain unit process), impact on groundwater, odour generation and quantity of sludge production (depending on available area and transport infrastructure, generated sludge can lead to significant cost for transport and disposal).
D23: What is a treatment with activated sludge? | E23: A variety of processes, designs and mechanisms exist for wastewater treatment using activated sludge. The processes use dissolved oxygen to promote the growth of microorganisms that substantially remove organic material (EPA, 2004b). Activated sludge treatment refers to the suspension of microorganisms in the wastewater, which accelerates natural biological oxidation processes and effectively removes soluble and also some insoluble pollutants from the water (Holt & James, 2006). The wastewater is supplied with air, providing oxygen for microbial degradation of wastewater organics (Figure 9). Anoxic zones can be added, in which nitrate (instead of oxygen) is used to oxidise organic matter. In this case, nitrogen gas (N2) is produced. Activated sludge has primarily been used to reduce the Biological Oxygen Demand (BOD) and suspended solids (TSS) from wastewaters. There is a high number of different designs, which may in addition provide reduction of total nitrogen and other variables. Settling tanks following biological treatment (secondary sedimentation) are similar to primary clarifiers (P3). | F23: Simplified process flow schematic of an activated sludge system (source: www. waterfacts.net)
D24: What is the log removal rate? | E24: The log removal was developed to express the decrease of biological contamination because microorganisms are mostly found in very large numbers. The log removal rate is defined with the following formula : Log removal = -log⁡(〖conc〗_out/〖conc〗_in ) concout: Concentration of the effluent concin: Concentration of the influent For better understanding the log rates can be transferred in to percentage with the following formula: % removal = 100-〖10〗^((2-x)) x = Log removal

Sheet LEARN_old (hidden)
D1: POSEIDON - A tool to promote and assess water reuse
C6: 1. Learn | G6: 2. Define your Case | K6: 3. Analyze Solutions | N6: End-Use A | O6: End-Use B | P6: End-Use C
C10: Ask Poseidon | F10: Unit Processes (UP) | I10: Treatment Trains (TT) | L10: Water Quality (WQ) | O10: Limitations and References

Sheet S5 (hidden)
D1: POSEIDON - A tool to promote and assess water reuse
D4: This Excel worksheet allows to identify and analyse different water reuse options based on your local data and requirements. It provides a basket of options and several analysis for water reuse in your case study.
B8: 1. Learn about water reuse and Poseidon | D8: 2. Influent characteristics and personalisation | F8: 3. Select end-uses | H8: 4. Analyse results | L8: 5. Select treatment trains (TT) and evaluation
B10: 1.1 Ask Poseidon | D10: 2.1 Define water quality classes | F10: 3.1 - Select your end-use A | G10: A | H10: 4.1 Results for individual TT selected | J10: 4.2 Basket of options | K10: A | L10: 5.1 Select 3 adequate TTs | N10: 5.2 Evaluate the 3 selected TT | O10: END
B12: 1.2 Unit processes descriptions | D12: 2.2 Define your influent water quality | F12: 3.2 Select your end-use B | G12: B | H12: 4.3 Results for individual TT selected | J12: 4.4 Basket of options | K12: B | L12: 5.3 Select 3 adequate TTs | N12: 5.4 Evaluate the 3 selected TT
B14: 1.3 Learn about selected treatment trains (TT) | D14: 2.3 Create your 3 own treatment trains (TT) | F14: 3.3 Select your end-use C | G14: C | H14: 4.5 Results for individual TT selected | J14: 4.6 Basket of options | K14: C | L14: 5.5 Select 3 adequate TTs | N14: 5.6 Evaluate the 3 selected TT
B16: 1.4 References | O16: © Emmanuel Oertlé, 2014

Sheet END (hidden)
A1: Back to start | F1: Results - Overview of the 3 selected TT for end uses A, B and C
A10: A | B10: ='A5.1'!F4 -> Lagooning: Australia I | AX10: Distibution required (pipes and pumps): | AZ10: ='A3.1'!N27 -> 4 | BF10: A
B13: ='A5.1'!L4 -> Lagooning: Australia II
B16: ='A5.1'!R4 -> Only disinfection: Brazil
B19: ='A3.1'!D4 -> NT 106.03 standard: irrigation
A20: B | B20: ='B5.3'!F4 -> Lagooning: Australia I | AZ20: ='B3.2'!N27 -> 1 | BF20: B
B23: ='B5.3'!L4 -> Only disinfection: Brazil
B26: ='B5.3'!R4 -> Wetlands: USA
B29: ='B3.2'!D4 -> Cat. C: Agricultural irrigation of non-food crops
A30: C | B30: ='C5.5'!F4 -> Title 22: Belgium | AZ30: ='C3.3'!N27 -> 4 | BF30: C
B33: ='C5.5'!L4 -> Soil treatment: Israel
B36: ='C5.5'!R4 -> Only disinfection Benchmark Technology
B39: ='C3.3'!D4 -> Cat. A: Unrestricted urban irrigation and agricultural irrigation of food crops consumed raw

Sheet EU1 (hidden)
A1: Back to start | F1: Results - Comparision of possible options
B2: Select the treatment train here: --------------> | F2: =F72 -> Title 22: Belgium | P2: Data for the charts
H3: Min | I3: Average | J3: Max | Q3: Min 1 | R3: POS | S3: =F2 -> Title 22: Belgium | T3: NEG | U3: Max 1 | V3: Min 2 | W3: POS | X3: =F16 -> Soil treatment: Israel | Y3: NEG | Z3: Max 2 | AA3: Min 3 | AB3: POS | AC3: =F30 -> Only disinfection: Brazil | AD3: NEG | AE3: Max 3 | AF3: Limit | AG3: XMin 1 | AH3: POS | AI3: =F2 -> Title 22: Belgium | AJ3: NEG | AK3: XMax 1 | AL3: XMin 2 | AM3: POS | AN3: =F16 -> Soil treatment: Israel | AO3: NEG | AP3: XMax 2 | AQ3: XMin 3 | AR3: POS | AS3: =F30 -> Only disinfection: Brazil | AT3: NEG | AU3: XMax 3 | AV3: XLimit
B4: =OFFSET(Results!$B$5,MATCH(F2,Results!$B$5:$B$70,0)-1,1) -> A pharmaceutical company (Tienen) makes use of treated municipal wastewater for cooling water. Secondary treated effluent is ozonated for disinfection. If the amount of reclaimed wastewater is too low or temperature too high, it is mixed with groundwater before usage. The WWTP consists of low loaded activated sludge system with enhanced biological phosphorus removal (AQUAREC, 2006). | G4: Turb | H4: =OFFSET(Results!$B$5,MATCH(F2,Results!$B$5:$B$70,0)-1,2) -> 7 | I4: =OFFSET(Results!$B$5,MATCH(F2,Results!$B$5:$B$70,0)-1,3) -> 2 | J4: =OFFSET(Results!$B$5,MATCH(F2,Results!$B$5:$B$70,0)-1,4) -> 1 | K4: Reliability | L4: =OFFSET(Results!$B$5,MATCH(F2,Results!$B$5:$B$35,0)-1,39) -> 2.666666667 | M4: Power demand | N4: =OFFSET(Results!$B$5,MATCH(F2,Results!$B$5:$B$35,0)-1,46) -> 1.655701044 | P4: =IF(Q20=-1,"",Q19) ->  | Q4: =OFFSET($G$4,MATCH(P4,$G$4:$G$15,0)-1,1) ->  | R4: =Q4-S4 ->  | S4: =OFFSET($G$4,MATCH(P4,$G$4:$G$15,0)-1,2) ->  | T4: =S4-U4 ->  | U4: =OFFSET($G$4,MATCH(P4,$G$4:$G$15,0)-1,3) ->  | V4: =OFFSET($G$18,MATCH(P4,$G$18:$G$29,0)-1,1) ->  | W4: =V4-X4 ->  | X4: =OFFSET($G$18,MATCH(P4,$G$18:$G$29,0)-1,2) ->  | Y4: =X4-Z4 ->  | Z4: =OFFSET($G$18,MATCH(P4,$G$18:$G$29,0)-1,3) ->  | AA4: =OFFSET($G$32,MATCH(P4,$G$32:$G$43,0)-1,1) ->  | AB4: =AA4-AC4 ->  | AC4: =OFFSET($G$32,MATCH(P4,$G$32:$G$43,0)-1,2) ->  | AD4: =AC4-AE4 ->  | AE4: =OFFSET($G$32,MATCH(P4,$G$32:$G$43,0)-1,3) ->  | AF4: =H45 -> -1
G5: TSS | H5: =OFFSET(Results!$B$5,MATCH(F2,Results!$B$5:$B$70,0)-1,5) -> 21 | I5: =OFFSET(Results!$B$5,MATCH(F2,Results!$B$5:$B$70,0)-1,6) -> 6.3 | J5: =OFFSET(Results!$B$5,MATCH(F2,Results!$B$5:$B$70,0)-1,7) -> 2.1 | K5: Ease to upgrade | L5: =OFFSET(Results!$B$5,MATCH(F2,Results!$B$5:$B$35,0)-1,40) -> 3 | M5: Chemical demand | N5: =OFFSET(Results!$B$5,MATCH(F2,Results!$B$5:$B$35,0)-1,47) -> 1 | P5: =IF($R$20=-1,"",$R$19) -> TSS | Q5: =OFFSET($G$4,MATCH(P5,$G$4:$G$15,0)-1,1) -> 21 | R5: =Q5-S5 -> 14.7 | S5: =OFFSET($G$4,MATCH(P5,$G$4:$G$15,0)-1,2) -> 6.3 | T5: =S5-U5 -> 4.2 | U5: =OFFSET($G$4,MATCH(P5,$G$4:$G$15,0)-1,3) -> 2.1 | V5: =OFFSET($G$18,MATCH(P5,$G$18:$G$29,0)-1,1) -> 4.158 | W5: =V5-X5 -> 3.552948 | X5: =OFFSET($G$18,MATCH(P5,$G$18:$G$29,0)-1,2) -> 0.605052 | Y5: =X5-Z5 -> 0.5082945 | Z5: =OFFSET($G$18,MATCH(P5,$G$18:$G$29,0)-1,3) -> 0.0967575 | AA5: =OFFSET($G$32,MATCH(P5,$G$32:$G$43,0)-1,1) -> 29.4 | AB5: =AA5-AC5 -> 18.9 | AC5: =OFFSET($G$32,MATCH(P5,$G$32:$G$43,0)-1,2) -> 10.5 | AD5: =AC5-AE5 -> 6.3 | AE5: =OFFSET($G$32,MATCH(P5,$G$32:$G$43,0)-1,3) -> 4.2 | AF5: 30
G6: BOD | H6: =OFFSET(Results!$B$5,MATCH(F2,Results!$B$5:$B$70,0)-1,8) -> 11.97 | I6: =OFFSET(Results!$B$5,MATCH(F2,Results!$B$5:$B$70,0)-1,9) -> 3.23 | J6: =OFFSET(Results!$B$5,MATCH(F2,Results!$B$5:$B$70,0)-1,10) -> 1.52 | K6: Adaptability to varying flow | L6: =OFFSET(Results!$B$5,MATCH(F2,Results!$B$5:$B$35,0)-1,41) -> 2.666666667 | M6: Odor generation | N6: =OFFSET(Results!$B$5,MATCH(F2,Results!$B$5:$B$35,0)-1,48) -> 3 | P6: =IF($S$20=-1,"",$S$19) -> BOD | Q6: 11.97 | R6: 8.74 | S6: 3.23 | T6: 1.71 | U6: 1.52 | V6: 1.995 | W6: 1.447572 | X6: 0.547428 | Y6: 0.28344675 | Z6: 0.26398125 | AA6: 51.072 | AB6: 19.722 | AC6: 31.35 | AD6: 8.74 | AE6: 22.61 | AF6: 30
G7: COD | H7: =OFFSET(Results!$B$5,MATCH(F2,Results!$B$5:$B$70,0)-1,11) -> 50.31 | I7: =OFFSET(Results!$B$5,MATCH(F2,Results!$B$5:$B$70,0)-1,12) -> 36.55 | J7: =OFFSET(Results!$B$5,MATCH(F2,Results!$B$5:$B$70,0)-1,13) -> 20.64 | K7: Adaptability to varying quality | L7: =OFFSET(Results!$B$5,MATCH(F2,Results!$B$5:$B$35,0)-1,42) -> 2.666666667 | M7: Impact on ground water | N7: =OFFSET(Results!$B$5,MATCH(F2,Results!$B$5:$B$35,0)-1,49) -> 0 | P7: =IF($T$20=-1,"",$T$19) -> COD | Q7: 50.31 | R7: 13.76 | S7: 36.55 | T7: 15.91 | U7: 20.64 | V7: 8.385 | W7: 2.146173 | X7: 6.238827 | Y7: 2.6174745 | Z7: 3.6213525 | AA7: 132.096 | AB7: 46.956 | AC7: 85.14 | AD7: 21.1775 | AE7: 63.9625 | AF7: 90
G8: TN | H8: =OFFSET(Results!$B$5,MATCH(F2,Results!$B$5:$B$70,0)-1,14) -> 12.8 | I8: =OFFSET(Results!$B$5,MATCH(F2,Results!$B$5:$B$70,0)-1,15) -> 5.2 | J8: =OFFSET(Results!$B$5,MATCH(F2,Results!$B$5:$B$70,0)-1,16) -> 1.6 | K8: Ease of O & M | L8: =OFFSET(Results!$B$5,MATCH(F2,Results!$B$5:$B$35,0)-1,43) -> 2 | M8: Land requirment | N8: =OFFSET(Results!$B$5,MATCH(F2,Results!$B$5:$B$35,0)-1,50) -> 4.722121114e-07 | P8: =IF($U$20=-1,"",$U$19) ->  | AF8: -1
G9: TP | H9: =OFFSET(Results!$B$5,MATCH(F2,Results!$B$5:$B$70,0)-1,17) -> 3.15 | I9: =OFFSET(Results!$B$5,MATCH(F2,Results!$B$5:$B$70,0)-1,18) -> 0.25375 | J9: =OFFSET(Results!$B$5,MATCH(F2,Results!$B$5:$B$70,0)-1,19) -> 0.077 | K9: Ease of construction | L9: =OFFSET(Results!$B$5,MATCH(F2,Results!$B$5:$B$35,0)-1,44) -> 2.333333333 | M9: Cost of treatment | N9: =OFFSET(Results!$B$5,MATCH(F2,Results!$B$5:$B$35,0)-1,51) -> 7 | P9: =IF($V$20=-1,"",$V$19) ->  | AF9: -1
G10: FC | H10: =OFFSET(Results!$B$5,MATCH(F2,Results!$B$5:$B$70,0)-1,20) -> 5 | I10: =OFFSET(Results!$B$5,MATCH(F2,Results!$B$5:$B$70,0)-1,35) -> 0.01 | J10: =OFFSET(Results!$B$5,MATCH(F2,Results!$B$5:$B$70,0)-1,22) -> 0.16 | K10: Ease of demonstration | L10: =OFFSET(Results!$B$5,MATCH(F2,Results!$B$5:$B$35,0)-1,45) -> 1.666666667 | M10: Quantity of sludge production | N10: =OFFSET(Results!$B$5,MATCH(F2,Results!$B$5:$B$35,0)-1,52) -> 0.001272943394 | P10: =IF($W$20=-1,"",$W$19) ->  | AG10: =OFFSET($G$4,MATCH(P10,$G$4:$G$15,0)-1,1) ->  | AH10: =AG10-AI10 ->  | AI10: =OFFSET($G$4,MATCH(P10,$G$4:$G$15,0)-1,2) ->  | AJ10: =AI10-AK10 ->  | AK10: =OFFSET($G$4,MATCH(P10,$G$4:$G$15,0)-1,3) ->  | AL10: =OFFSET($G$18,MATCH(P10,$G$18:$G$29,0)-1,1) ->  | AM10: =AL10-AN10 ->  | AN10: =OFFSET($G$18,MATCH(P10,$G$18:$G$29,0)-1,2) ->  | AO10: =AN10-AP10 ->  | AP10: =OFFSET($G$18,MATCH(P10,$G$18:$G$29,0)-1,3) ->  | AQ10: =OFFSET($G$32,MATCH(P10,$G$32:$G$43,0)-1,1) ->  | AR10: =AQ10-AS10 ->  | AS10: =OFFSET($G$32,MATCH(P10,$G$32:$G$43,0)-1,2) ->  | AT10: =AS10-AU10 ->  | AU10: =OFFSET($G$32,MATCH(P10,$G$32:$G$43,0)-1,3) ->  | AV10: =H51 -> -1
G11: TC | H11: =OFFSET(Results!$B$5,MATCH(F2,Results!$B$5:$B$70,0)-1,23) -> 1000 | I11: =OFFSET(Results!$B$5,MATCH(F2,Results!$B$5:$B$70,0)-1,24) -> 440 | J11: =OFFSET(Results!$B$5,MATCH(F2,Results!$B$5:$B$70,0)-1,25) -> 50 | P11: =IF($X$20=-1,"",$X$19) ->  | AV11: =H52 -> -1
G12: TDS | H12: =OFFSET(Results!$B$5,MATCH(F2,Results!$B$5:$B$70,0)-1,26) -> 720 | I12: =OFFSET(Results!$B$5,MATCH(F2,Results!$B$5:$B$70,0)-1,27) -> 720 | J12: =OFFSET(Results!$B$5,MATCH(F2,Results!$B$5:$B$70,0)-1,28) -> 720 | P12: =IF($Y$20=-1,"",$Y$19) ->  | AF12: =H53 -> -1
G13: Nitrate | H13: =OFFSET(Results!$B$5,MATCH(F2,Results!$B$5:$B$70,0)-1,29) -> 0 | I13: =OFFSET(Results!$B$5,MATCH(F2,Results!$B$5:$B$70,0)-1,30) -> 0 | J13: =OFFSET(Results!$B$5,MATCH(F2,Results!$B$5:$B$70,0)-1,31) -> 0 | P13: =IF($Z$20=-1,"",$Z$19) -> Nitrate | Q13: 0 | R13: 0 | S13: 0 | T13: 0 | U13: 0 | V13: 0 | W13: 0 | X13: 0 | Y13: 0 | Z13: =OFFSET($G$18,MATCH(P13,$G$18:$G$29,0)-1,3) -> 0 | AA13: 0 | AB13: 0 | AC13: 0 | AD13: 0 | AE13: 0 | AF13: =H54 -> 1
G14: TOC | H14: =OFFSET(Results!$B$5,MATCH(F2,Results!$B$5:$B$70,0)-1,32) -> 16.38 | I14: =OFFSET(Results!$B$5,MATCH(F2,Results!$B$5:$B$70,0)-1,33) -> 11.9 | J14: =OFFSET(Results!$B$5,MATCH(F2,Results!$B$5:$B$70,0)-1,34) -> 6.72 | P14: =IF($AA$20=-1,"",$AA$19) ->  | AF14: =H55 -> -1
G15: Virus | H15: =OFFSET(Results!$B$5,MATCH(F2,Results!$B$5:$B$70,0)-1,35) -> 0.01 | I15: =OFFSET(Results!$B$5,MATCH(F2,Results!$B$5:$B$70,0)-1,36) -> 3.16227766e-05 | J15: =OFFSET(Results!$B$5,MATCH(F2,Results!$B$5:$B$70,0)-1,37) -> 1e-06 | P15: =IF($AB$20=-1,"",$AB$19) ->  | AV15: =H56 -> -1
B16: Select the treatment train here: --------------> | F16: =L72 -> Soil treatment: Israel
H17: Min | I17: Average | J17: Max
B18: =OFFSET(Results!$B$5,MATCH(F16,Results!$B$5:$B$70,0)-1,1) -> Effluent from the Dan region WWTP is conveyed to four recharge basins covering a total area of 80 ha. The infiltration into the groundwater is carried out by alternate flooding and drying. After the SAT system the reclaimed water has to be chlorinated to maintain bacteriological quality the long distribution lines. Approx. 200 recovery wells, located 300 to 1500 m from the recharge basins, pump the recharged water from a depth of 100 to 200 m. Water recovered from the SAT system is of extremely high quality and can be used for unrestricted agricultural irrigation (AQUAREC, 2006). | G18: Turb | H18: =OFFSET(Results!$B$5,MATCH(F16,Results!$B$5:$B$70,0)-1,2) -> 1.0395 | I18: =OFFSET(Results!$B$5,MATCH(F16,Results!$B$5:$B$70,0)-1,3) -> 0.294 | J18: =OFFSET(Results!$B$5,MATCH(F16,Results!$B$5:$B$70,0)-1,4) -> 0.1455 | K18: Reliability | L18: =OFFSET(Results!$B$5,MATCH(F16,Results!$B$5:$B$35,0)-1,39) -> 3 | M18: Power demand | N18: =OFFSET(Results!$B$5,MATCH(F16,Results!$B$5:$B$35,0)-1,46) -> 1.236286335
G19: TSS | H19: =OFFSET(Results!$B$5,MATCH(F16,Results!$B$5:$B$70,0)-1,5) -> 4.158 | I19: =OFFSET(Results!$B$5,MATCH(F16,Results!$B$5:$B$70,0)-1,6) -> 0.605052 | J19: =OFFSET(Results!$B$5,MATCH(F16,Results!$B$5:$B$70,0)-1,7) -> 0.0967575 | K19: Ease to upgrade | L19: =OFFSET(Results!$B$5,MATCH(F16,Results!$B$5:$B$35,0)-1,40) -> 1.8 | M19: Chemical demand | N19: =OFFSET(Results!$B$5,MATCH(F16,Results!$B$5:$B$35,0)-1,47) -> 4 | Q19: Turb | R19: TSS | S19: BOD | T19: COD | U19: TN | V19: TP | W19: FC | X19: TC | Y19: TDS | Z19: Nitrate | AA19: TOC | AB19: Virus
G20: BOD | H20: =OFFSET(Results!$B$5,MATCH(F16,Results!$B$5:$B$70,0)-1,8) -> 1.995 | I20: =OFFSET(Results!$B$5,MATCH(F16,Results!$B$5:$B$70,0)-1,9) -> 0.547428 | J20: =OFFSET(Results!$B$5,MATCH(F16,Results!$B$5:$B$70,0)-1,10) -> 0.26398125 | K20: Adaptability to varying flow | L20: =OFFSET(Results!$B$5,MATCH(F16,Results!$B$5:$B$35,0)-1,41) -> 3 | M20: Odor generation | N20: =OFFSET(Results!$B$5,MATCH(F16,Results!$B$5:$B$35,0)-1,48) -> 8 | P20: ='A3.1'!D4 -> NT 106.03 standard: irrigation | Q20: =OFFSET($P$86,MATCH($P$20,$P$86:$P$380,0)-1,1) -> -1 | R20: =OFFSET($P$86,MATCH($P$20,$P$86:$P$380,0)-1,2) -> 30 | S20: =OFFSET($P$86,MATCH($P$20,$P$86:$P$380,0)-1,3) -> 30 | T20: =OFFSET($P$86,MATCH($P$20,$P$86:$P$380,0)-1,4) -> 90 | U20: =OFFSET($P$86,MATCH($P$20,$P$86:$P$380,0)-1,5) -> -1 | V20: =OFFSET($P$86,MATCH($P$20,$P$86:$P$380,0)-1,6) -> -1 | W20: =OFFSET($P$86,MATCH($P$20,$P$86:$P$380,0)-1,7) -> -1 | X20: =OFFSET($P$86,MATCH($P$20,$P$86:$P$380,0)-1,8) -> -1 | Y20: =OFFSET($P$86,MATCH($P$20,$P$86:$P$380,0)-1,9) -> -1 | Z20: =OFFSET($P$86,MATCH($P$20,$P$86:$P$380,0)-1,10) -> 1 | AA20: =OFFSET($P$86,MATCH($P$20,$P$86:$P$380,0)-1,11) -> -1 | AB20: =OFFSET($P$86,MATCH($P$20,$P$86:$P$380,0)-1,12) -> -1
G21: COD | H21: =OFFSET(Results!$B$5,MATCH(F16,Results!$B$5:$B$70,0)-1,11) -> 8.385 | I21: =OFFSET(Results!$B$5,MATCH(F16,Results!$B$5:$B$70,0)-1,12) -> 6.238827 | J21: =OFFSET(Results!$B$5,MATCH(F16,Results!$B$5:$B$70,0)-1,13) -> 3.6213525 | K21: Adaptability to varying quality | L21: =OFFSET(Results!$B$5,MATCH(F16,Results!$B$5:$B$35,0)-1,42) -> 2.6 | M21: Impact on ground water | N21: =OFFSET(Results!$B$5,MATCH(F16,Results!$B$5:$B$35,0)-1,49) -> 3
G22: TN | H22: =OFFSET(Results!$B$5,MATCH(F16,Results!$B$5:$B$70,0)-1,14) -> 1.92 | I22: =OFFSET(Results!$B$5,MATCH(F16,Results!$B$5:$B$70,0)-1,15) -> 0.78 | J22: =OFFSET(Results!$B$5,MATCH(F16,Results!$B$5:$B$70,0)-1,16) -> 0.24 | K22: Ease of O & M | L22: =OFFSET(Results!$B$5,MATCH(F16,Results!$B$5:$B$35,0)-1,43) -> 2.2 | M22: Land requirment | N22: =OFFSET(Results!$B$5,MATCH(F16,Results!$B$5:$B$35,0)-1,50) -> 6.200081328e-07
G23: TP | H23: =OFFSET(Results!$B$5,MATCH(F16,Results!$B$5:$B$70,0)-1,17) -> 1.26 | I23: =OFFSET(Results!$B$5,MATCH(F16,Results!$B$5:$B$70,0)-1,18) -> 0.5075 | J23: =OFFSET(Results!$B$5,MATCH(F16,Results!$B$5:$B$70,0)-1,19) -> 0.1925 | K23: Ease of construction | L23: =OFFSET(Results!$B$5,MATCH(F16,Results!$B$5:$B$35,0)-1,44) -> 2 | M23: Cost of treatment | N23: =OFFSET(Results!$B$5,MATCH(F16,Results!$B$5:$B$35,0)-1,51) -> 8
G24: FC | H24: =OFFSET(Results!$B$5,MATCH(F16,Results!$B$5:$B$70,0)-1,20) -> 1.5 | I24: =OFFSET(Results!$B$5,MATCH(F16,Results!$B$5:$B$70,0)-1,35) -> 0.07079457844 | J24: =OFFSET(Results!$B$5,MATCH(F16,Results!$B$5:$B$70,0)-1,22) -> 0 | K24: Ease of demonstration | L24: =OFFSET(Results!$B$5,MATCH(F16,Results!$B$5:$B$35,0)-1,45) -> 2.6 | M24: Quantity of sludge production | N24: =OFFSET(Results!$B$5,MATCH(F16,Results!$B$5:$B$35,0)-1,52) -> 0.001133479396
G25: TC | H25: =OFFSET(Results!$B$5,MATCH(F16,Results!$B$5:$B$70,0)-1,23) -> 0 | I25: =OFFSET(Results!$B$5,MATCH(F16,Results!$B$5:$B$70,0)-1,24) -> 0 | J25: =OFFSET(Results!$B$5,MATCH(F16,Results!$B$5:$B$70,0)-1,25) -> 0
G26: TDS | H26: =OFFSET(Results!$B$5,MATCH(F16,Results!$B$5:$B$70,0)-1,26) -> 720 | I26: =OFFSET(Results!$B$5,MATCH(F16,Results!$B$5:$B$70,0)-1,27) -> 720 | J26: =OFFSET(Results!$B$5,MATCH(F16,Results!$B$5:$B$70,0)-1,28) -> 720
G27: Nitrate | H27: =OFFSET(Results!$B$5,MATCH(F16,Results!$B$5:$B$70,0)-1,29) -> 0 | I27: =OFFSET(Results!$B$5,MATCH(F16,Results!$B$5:$B$70,0)-1,30) -> 0 | J27: =OFFSET(Results!$B$5,MATCH(F16,Results!$B$5:$B$70,0)-1,31) -> 0
G28: TOC | H28: =OFFSET(Results!$B$5,MATCH(F16,Results!$B$5:$B$70,0)-1,32) -> 2.73 | I28: =OFFSET(Results!$B$5,MATCH(F16,Results!$B$5:$B$70,0)-1,33) -> 2.031246 | J28: =OFFSET(Results!$B$5,MATCH(F16,Results!$B$5:$B$70,0)-1,34) -> 1.179045
G29: Virus | H29: =OFFSET(Results!$B$5,MATCH(F16,Results!$B$5:$B$70,0)-1,35) -> 0.07079457844 | I29: =OFFSET(Results!$B$5,MATCH(F16,Results!$B$5:$B$70,0)-1,36) -> 8.413951416e-05 | J29: =OFFSET(Results!$B$5,MATCH(F16,Results!$B$5:$B$70,0)-1,37) -> 1e-08
B30: Select the treatment train here: --------------> | F30: =S72 -> Only disinfection: Brazil
H31: Min | I31: Average | J31: Max
B32: =OFFSET(Results!$B$5,MATCH(F30,Results!$B$5:$B$70,0)-1,1) -> The reuse water is applied for toilet flushing, irrigation, and floor cleaning. This water reuse scheme was installed in, at least, five apartment buildings at the SPMR. This water reuse scheme was originally designed with a rotating biological contactor for BOD removal and a filtration system. However, the entrepreneur, based on the investment costs, decided to buy and install the specific treatment train. Because of this decision, the treated water cannot be stored for more than one day before being reused, because odours problems (Mierzwa, 2014). | G32: Turb | H32: =OFFSET(Results!$B$5,MATCH(F30,Results!$B$5:$B$70,0)-1,2) -> 20 | I32: =OFFSET(Results!$B$5,MATCH(F30,Results!$B$5:$B$70,0)-1,3) -> 10 | J32: =OFFSET(Results!$B$5,MATCH(F30,Results!$B$5:$B$70,0)-1,4) -> 5 | K32: Reliability | L32: =OFFSET(Results!$B$5,MATCH(F30,Results!$B$5:$B$35,0)-1,39) ->  | M32: Power demand | N32: =OFFSET(Results!$B$5,MATCH(F30,Results!$B$5:$B$35,0)-1,46) -> 
G33: TSS | H33: =OFFSET(Results!$B$5,MATCH(F30,Results!$B$5:$B$70,0)-1,5) -> 29.4 | I33: =OFFSET(Results!$B$5,MATCH(F30,Results!$B$5:$B$70,0)-1,6) -> 10.5 | J33: =OFFSET(Results!$B$5,MATCH(F30,Results!$B$5:$B$70,0)-1,7) -> 4.2 | K33: Ease to upgrade | L33: =OFFSET(Results!$B$5,MATCH(F30,Results!$B$5:$B$35,0)-1,40) ->  | M33: Chemical demand | N33: =OFFSET(Results!$B$5,MATCH(F30,Results!$B$5:$B$35,0)-1,47) -> 
G34: BOD | H34: =OFFSET(Results!$B$5,MATCH(F30,Results!$B$5:$B$70,0)-1,8) -> 51.072 | I34: =OFFSET(Results!$B$5,MATCH(F30,Results!$B$5:$B$70,0)-1,9) -> 31.35 | J34: =OFFSET(Results!$B$5,MATCH(F30,Results!$B$5:$B$70,0)-1,10) -> 22.61 | K34: Adaptability to varying flow | L34: =OFFSET(Results!$B$5,MATCH(F30,Results!$B$5:$B$35,0)-1,41) ->  | M34: Odor generation | N34: =OFFSET(Results!$B$5,MATCH(F30,Results!$B$5:$B$35,0)-1,48) -> 
G35: COD | H35: =OFFSET(Results!$B$5,MATCH(F30,Results!$B$5:$B$70,0)-1,11) -> 132.096 | I35: =OFFSET(Results!$B$5,MATCH(F30,Results!$B$5:$B$70,0)-1,12) -> 85.14 | J35: =OFFSET(Results!$B$5,MATCH(F30,Results!$B$5:$B$70,0)-1,13) -> 63.9625 | K35: Adaptability to varying quality | L35: =OFFSET(Results!$B$5,MATCH(F30,Results!$B$5:$B$35,0)-1,42) ->  | M35: Impact on ground water | N35: =OFFSET(Results!$B$5,MATCH(F30,Results!$B$5:$B$35,0)-1,49) -> 
G36: TN | H36: =OFFSET(Results!$B$5,MATCH(F30,Results!$B$5:$B$70,0)-1,14) -> 36.1 | I36: =OFFSET(Results!$B$5,MATCH(F30,Results!$B$5:$B$70,0)-1,15) -> 33.48 | J36: =OFFSET(Results!$B$5,MATCH(F30,Results!$B$5:$B$70,0)-1,16) -> 32.032 | K36: Ease of O & M | L36: =OFFSET(Results!$B$5,MATCH(F30,Results!$B$5:$B$35,0)-1,43) ->  | M36: Land requirment | N36: =OFFSET(Results!$B$5,MATCH(F30,Results!$B$5:$B$35,0)-1,50) -> 
G37: TP | H37: =OFFSET(Results!$B$5,MATCH(F30,Results!$B$5:$B$70,0)-1,17) -> 6.251 | I37: =OFFSET(Results!$B$5,MATCH(F30,Results!$B$5:$B$70,0)-1,18) -> 5.859 | J37: =OFFSET(Results!$B$5,MATCH(F30,Results!$B$5:$B$70,0)-1,19) -> 5.6056 | K37: Ease of construction | L37: =OFFSET(Results!$B$5,MATCH(F30,Results!$B$5:$B$35,0)-1,44) ->  | M37: Cost of treatment | N37: =OFFSET(Results!$B$5,MATCH(F30,Results!$B$5:$B$35,0)-1,51) -> 
G38: FC | H38: =OFFSET(Results!$B$5,MATCH(F30,Results!$B$5:$B$70,0)-1,20) -> 200 | I38: =OFFSET(Results!$B$5,MATCH(F30,Results!$B$5:$B$70,0)-1,35) -> 0.01 | J38: =OFFSET(Results!$B$5,MATCH(F30,Results!$B$5:$B$70,0)-1,22) -> 0 | K38: Ease of demonstration | L38: =OFFSET(Results!$B$5,MATCH(F30,Results!$B$5:$B$35,0)-1,45) ->  | M38: Quantity of sludge production | N38: =OFFSET(Results!$B$5,MATCH(F30,Results!$B$5:$B$35,0)-1,52) -> 
G39: TC | H39: =OFFSET(Results!$B$5,MATCH(F30,Results!$B$5:$B$70,0)-1,23) -> 0 | I39: =OFFSET(Results!$B$5,MATCH(F30,Results!$B$5:$B$70,0)-1,24) -> 0 | J39: =OFFSET(Results!$B$5,MATCH(F30,Results!$B$5:$B$70,0)-1,25) -> 0
G40: TDS | H40: =OFFSET(Results!$B$5,MATCH(F30,Results!$B$5:$B$70,0)-1,26) -> 720 | I40: =OFFSET(Results!$B$5,MATCH(F30,Results!$B$5:$B$70,0)-1,27) -> 720 | J40: =OFFSET(Results!$B$5,MATCH(F30,Results!$B$5:$B$70,0)-1,28) -> 720
G41: Nitrate | H41: =OFFSET(Results!$B$5,MATCH(F30,Results!$B$5:$B$70,0)-1,29) -> 0 | I41: =OFFSET(Results!$B$5,MATCH(F30,Results!$B$5:$B$70,0)-1,30) -> 0 | J41: =OFFSET(Results!$B$5,MATCH(F30,Results!$B$5:$B$70,0)-1,31) -> 0
G42: TOC | H42: =OFFSET(Results!$B$5,MATCH(F30,Results!$B$5:$B$70,0)-1,32) -> 43.008 | I42: =OFFSET(Results!$B$5,MATCH(F30,Results!$B$5:$B$70,0)-1,33) -> 27.72 | J42: =OFFSET(Results!$B$5,MATCH(F30,Results!$B$5:$B$70,0)-1,34) -> 20.825
G43: Virus | H43: =OFFSET(Results!$B$5,MATCH(F30,Results!$B$5:$B$70,0)-1,35) -> 0.01 | I43: =OFFSET(Results!$B$5,MATCH(F30,Results!$B$5:$B$70,0)-1,36) -> 3.16227766e-05 | J43: =OFFSET(Results!$B$5,MATCH(F30,Results!$B$5:$B$70,0)-1,37) -> 1e-09
F44: ='A3.1'!D4 -> NT 106.03 standard: irrigation
F45: Limit from End-Use | G45: Turb | H45: ='A3.1'!D14 -> -1
G46: TSS | H46: ='A3.1'!E14 -> 30
G47: BOD | H47: ='A3.1'!F14 -> 30
G48: COD | H48: ='A3.1'!G14 -> 90
G49: TN | H49: ='A3.1'!H14 -> -1
G50: TP | H50: ='A3.1'!I14 -> -1
G51: FC | H51: ='A3.1'!J14 -> -1
G52: TC | H52: ='A3.1'!K14 -> -1
G53: TDS | H53: ='A3.1'!L14 -> -1
G54: Nitrate | H54: ='A3.1'!M14 -> 1
G55: TOC | H55: ='A3.1'!N14 -> -1
G56: Virus | H56: ='A3.1'!O14 -> -1
B70: Treatment train option 1 | H70: Treatment train option 2 | O70: Treatment train option 3
B72: Select the treatment train here: --------------> | F72: ='A1'!A12 -> Title 22: Belgium | H72: Select the treatment train here: --------------> | L72: ='A1'!A17 -> Soil treatment: Israel | O72: Select the treatment train here: --------------> | S72: ='A1'!A22 -> Only disinfection: Brazil
P84: ='Quality Standards'!B7 -> 0 | Q84: ='Quality Standards'!C7 -> Turb | R84: ='Quality Standards'!D7 -> TSS | S84: ='Quality Standards'!E7 -> BOD | T84: ='Quality Standards'!F7 -> COD | U84: ='Quality Standards'!G7 -> TN | V84: ='Quality Standards'!H7 -> TP | W84: ='Quality Standards'!I7 -> FC | X84: ='Quality Standards'!J7 -> TC | Y84: ='Quality Standards'!K7 -> TDS | Z84: ='Quality Standards'!L7 -> Nitrate | AA84: ='Quality Standards'!M7 -> TOC | AB84: ='Quality Standards'!N7 -> Virus
P85: ='Quality Standards'!B8 -> End-use: | Q85: ='Quality Standards'!C8 -> NTU | R85: ='Quality Standards'!D8 -> mg/L | S85: ='Quality Standards'!E8 -> mg/L | T85: ='Quality Standards'!F8 -> mg/L | U85: ='Quality Standards'!G8 -> mg/L | V85: ='Quality Standards'!H8 -> mg/L | W85: ='Quality Standards'!I8 -> CFU/100ml | X85: ='Quality Standards'!J8 -> CFU/100ml | Y85: ='Quality Standards'!K8 -> mg/L | Z85: ='Quality Standards'!L8 -> mg N/L | AA85: ='Quality Standards'!M8 -> mg/L | AB85: ='Quality Standards'!N8 -> PFU/100ml
P86: ='Quality Standards'!B9 -> Manual Entry | Q86: ='Quality Standards'!C9 -> 0 | R86: ='Quality Standards'!D9 -> 0 | S86: ='Quality Standards'!E9 -> 0 | T86: ='Quality Standards'!F9 -> 0 | U86: ='Quality Standards'!G9 -> 0 | V86: ='Quality Standards'!H9 -> 0 | W86: ='Quality Standards'!I9 -> 0 | X86: ='Quality Standards'!J9 -> 0 | Y86: ='Quality Standards'!K9 -> 0 | Z86: ='Quality Standards'!L9 -> 0 | AA86: ='Quality Standards'!M9 -> 0 | AB86: ='Quality Standards'!N9 -> 0 | AD86: Turb | AE86: TSS | AF86: BOD | AG86: COD | AH86: TN | AI86: TP | AJ86: FC | AK86: TC | AL86: TDS | AM86: Nitrate | AN86: TOC | AO86: Virus
P87: ='Quality Standards'!B10 -> Manual Entry A | Q87: ='Quality Standards'!C10 -> -1 | R87: ='Quality Standards'!D10 -> -1 | S87: ='Quality Standards'!E10 -> -1 | T87: ='Quality Standards'!F10 -> -1 | U87: ='Quality Standards'!G10 -> -1 | V87: ='Quality Standards'!H10 -> -1 | W87: ='Quality Standards'!I10 -> -1 | X87: ='Quality Standards'!J10 -> -1 | Y87: ='Quality Standards'!K10 -> -1 | Z87: ='Quality Standards'!L10 -> -1 | AA87: ='Quality Standards'!M10 -> -1 | AB87: ='Quality Standards'!N10 -> -1
P88: ='Quality Standards'!B11 -> Manual Entry B | Q88: ='Quality Standards'!C11 -> -1 | R88: ='Quality Standards'!D11 -> -1 | S88: ='Quality Standards'!E11 -> -1 | T88: ='Quality Standards'!F11 -> -1 | U88: ='Quality Standards'!G11 -> -1 | V88: ='Quality Standards'!H11 -> -1 | W88: ='Quality Standards'!I11 -> -1 | X88: ='Quality Standards'!J11 -> -1 | Y88: ='Quality Standards'!K11 -> -1 | Z88: ='Quality Standards'!L11 -> -1 | AA88: ='Quality Standards'!M11 -> -1 | AB88: ='Quality Standards'!N11 -> -1
P89: ='Quality Standards'!B12 -> Manual Entry C | Q89: ='Quality Standards'!C12 -> -1 | R89: ='Quality Standards'!D12 -> -1 | S89: ='Quality Standards'!E12 -> -1 | T89: ='Quality Standards'!F12 -> -1 | U89: ='Quality Standards'!G12 -> -1 | V89: ='Quality Standards'!H12 -> -1 | W89: ='Quality Standards'!I12 -> -1 | X89: ='Quality Standards'!J12 -> -1 | Y89: ='Quality Standards'!K12 -> -1 | Z89: ='Quality Standards'!L12 -> -1 | AA89: ='Quality Standards'!M12 -> -1 | AB89: ='Quality Standards'!N12 -> -1
P90: ='Quality Standards'!B13 -> Municipal wastewater - typical input for reuse | Q90: ='Quality Standards'!C13 -> 0 | R90: ='Quality Standards'!D13 -> 0 | S90: ='Quality Standards'!E13 -> 0 | T90: ='Quality Standards'!F13 -> 0 | U90: ='Quality Standards'!G13 -> 0 | V90: ='Quality Standards'!H13 -> 0 | W90: ='Quality Standards'!I13 -> 0 | X90: ='Quality Standards'!J13 -> 0 | Y90: ='Quality Standards'!K13 -> 0 | Z90: ='Quality Standards'!L13 -> 0 | AA90: ='Quality Standards'!M13 -> 0 | AB90: ='Quality Standards'!N13 -> 0
P91: ='Quality Standards'!B14 -> Typical untreated domestic wastewater | Q91: ='Quality Standards'!C14 -> 100 | R91: ='Quality Standards'!D14 -> 210 | S91: ='Quality Standards'!E14 -> 190 | T91: ='Quality Standards'!F14 -> 430 | U91: ='Quality Standards'!G14 -> 40 | V91: ='Quality Standards'!H14 -> 7 | W91: ='Quality Standards'!I14 -> 10000 | X91: ='Quality Standards'!J14 -> 10000000 | Y91: ='Quality Standards'!K14 -> 720 | Z91: ='Quality Standards'!L14 -> 0 | AA91: ='Quality Standards'!M14 -> 140 | AB91: ='Quality Standards'!N14 -> 10
P92: ='Quality Standards'!B15 -> Untreated domestic wastewater (ranges) | Q92: ='Quality Standards'!C15 -> -1 | R92: ='Quality Standards'!D15 -> 120 | S92: ='Quality Standards'!E15 -> 110 | T92: ='Quality Standards'!F15 -> 250 | U92: ='Quality Standards'!G15 -> 20 | V92: ='Quality Standards'!H15 -> 4 | W92: ='Quality Standards'!I15 -> 1000 | X92: ='Quality Standards'!J15 -> 1000000 | Y92: ='Quality Standards'!K15 -> 270 | Z92: ='Quality Standards'!L15 -> 0 | AA92: ='Quality Standards'!M15 -> 80 | AB92: ='Quality Standards'!N15 -> -1
P93: ='Quality Standards'!B16 -> Primary effluent | Q93: ='Quality Standards'!C16 -> 88 | R93: ='Quality Standards'!D16 -> 131 | S93: ='Quality Standards'!E16 -> 149 | T93: ='Quality Standards'!F16 -> -1 | U93: ='Quality Standards'!G16 -> -1 | V93: ='Quality Standards'!H16 -> 5.1 | W93: ='Quality Standards'!I16 -> -1 | X93: ='Quality Standards'!J16 -> -1 | Y93: ='Quality Standards'!K16 -> -1 | Z93: ='Quality Standards'!L16 -> 0.1 | AA93: ='Quality Standards'!M16 -> 72 | AB93: ='Quality Standards'!N16 -> -1
P94: ='Quality Standards'!B17 -> Secondary effluent- water hyacinths | Q94: ='Quality Standards'!C17 -> 14 | R94: ='Quality Standards'!D17 -> 9.8 | S94: ='Quality Standards'!E17 -> 13 | T94: ='Quality Standards'!F17 -> -1 | U94: ='Quality Standards'!G17 -> -1 | V94: ='Quality Standards'!H17 -> 3.4 | W94: ='Quality Standards'!I17 -> -1 | X94: ='Quality Standards'!J17 -> -1 | Y94: ='Quality Standards'!K17 -> -1 | Z94: ='Quality Standards'!L17 -> 1.4 | AA94: ='Quality Standards'!M17 -> 14 | AB94: ='Quality Standards'!N17 -> -1
P95: ='Quality Standards'!#REF! ->  | Q95: ='Quality Standards'!#REF! ->  | R95: ='Quality Standards'!#REF! ->  | S95: ='Quality Standards'!#REF! ->  | T95: ='Quality Standards'!#REF! ->  | U95: ='Quality Standards'!#REF! ->  | V95: ='Quality Standards'!#REF! ->  | W95: ='Quality Standards'!#REF! ->  | X95: ='Quality Standards'!#REF! ->  | Y95: ='Quality Standards'!#REF! ->  | Z95: ='Quality Standards'!#REF! ->  | AA95: ='Quality Standards'!#REF! ->  | AB95: ='Quality Standards'!#REF! -> 
P96: ='Quality Standards'!B18 -> Secondary effluent- CAS | Q96: ='Quality Standards'!C18 -> 2 | R96: ='Quality Standards'!D18 -> 5 | S96: ='Quality Standards'!E18 -> 5.25 | T96: ='Quality Standards'!F18 -> 40 | U96: ='Quality Standards'!G18 -> 15 | V96: ='Quality Standards'!H18 -> 4 | W96: ='Quality Standards'!I18 -> -1 | X96: ='Quality Standards'!J18 -> 10000 | Y96: ='Quality Standards'!K18 -> 500 | Z96: ='Quality Standards'!L18 -> 10 | AA96: ='Quality Standards'!M18 -> 10 | AB96: ='Quality Standards'!N18 -> 10
P97: ='Quality Standards'!B19 -> Secondary effluent- CAS + filtration | Q97: ='Quality Standards'!C19 -> 0.5 | R97: ='Quality Standards'!D19 -> 2 | S97: ='Quality Standards'!E19 -> 5 | T97: ='Quality Standards'!F19 -> 30 | U97: ='Quality Standards'!G19 -> 15 | V97: ='Quality Standards'!H19 -> 4 | W97: ='Quality Standards'!I19 -> -1 | X97: ='Quality Standards'!J19 -> 1000 | Y97: ='Quality Standards'!K19 -> 500 | Z97: ='Quality Standards'!L19 -> 10 | AA97: ='Quality Standards'!M19 -> 8 | AB97: ='Quality Standards'!N19 -> 10
P98: ='Quality Standards'!B20 -> Secondary effluent- activated sludge + BNR | Q98: ='Quality Standards'!C20 -> 2 | R98: ='Quality Standards'!D20 -> 5 | S98: ='Quality Standards'!E20 -> 5 | T98: ='Quality Standards'!F20 -> 20 | U98: ='Quality Standards'!G20 -> 3 | V98: ='Quality Standards'!H20 -> 1 | W98: ='Quality Standards'!I20 -> -1 | X98: ='Quality Standards'!J20 -> 10000 | Y98: ='Quality Standards'!K20 -> 500 | Z98: ='Quality Standards'!L20 -> 2 | AA98: ='Quality Standards'!M20 -> 8 | AB98: ='Quality Standards'!N20 -> 10
P99: ='Quality Standards'!B21 -> Secondary effluent- activated sludge + BR+ filtration | Q99: ='Quality Standards'!C21 -> 0.3 | R99: ='Quality Standards'!D21 -> 1-4 | S99: ='Quality Standards'!E21 -> 1 | T99: ='Quality Standards'!F21 -> 20 | U99: ='Quality Standards'!G21 -> 2 | V99: ='Quality Standards'!H21 -> 2 | W99: ='Quality Standards'!I21 -> -1 | X99: ='Quality Standards'!J21 -> 10000 | Y99: ='Quality Standards'!K21 -> 500 | Z99: ='Quality Standards'!L21 -> 1 | AA99: ='Quality Standards'!M21 -> 1 | AB99: ='Quality Standards'!N21 -> 10
P100: ='Quality Standards'!B22 -> Secondary effluent- membrane bioreactor | Q100: ='Quality Standards'!C22 -> 1 | R100: ='Quality Standards'!D22 -> 2 | S100: ='Quality Standards'!E22 -> 1 | T100: ='Quality Standards'!F22 -> 10 | U100: ='Quality Standards'!G22 -> 10 | V100: ='Quality Standards'!H22 -> 0.3 | W100: ='Quality Standards'!I22 -> -1 | X100: ='Quality Standards'!J22 -> 100 | Y100: ='Quality Standards'!K22 -> 500 | Z100: ='Quality Standards'!L22 -> 10 | AA100: ='Quality Standards'!M22 -> 0.5 | AB100: ='Quality Standards'!N22 -> 1
P101: ='Quality Standards'!B23 -> Secondary effluent- activated sludge + MF + RO | Q101: ='Quality Standards'!C23 -> 0.01 | R101: ='Quality Standards'!D23 -> 1 | S101: ='Quality Standards'!E23 -> 1 | T101: ='Quality Standards'!F23 -> 2 | U101: ='Quality Standards'!G23 -> 1 | V101: ='Quality Standards'!H23 -> 0.5 | W101: ='Quality Standards'!I23 -> -1 | X101: ='Quality Standards'!J23 -> 0 | Y101: ='Quality Standards'!K23 -> 5 | Z101: ='Quality Standards'!L23 -> 1 | AA101: ='Quality Standards'!M23 -> 0.1 | AB101: ='Quality Standards'!N23 -> 0
P102: ='Quality Standards'!B24 -> Tertiary effluent | Q102: ='Quality Standards'!C24 -> 0.5 | R102: ='Quality Standards'!D24 -> 1.3 | S102: ='Quality Standards'!E24 -> 4.3 | T102: ='Quality Standards'!F24 -> -1 | U102: ='Quality Standards'!G24 -> -1 | V102: ='Quality Standards'!H24 -> 0.1 | W102: ='Quality Standards'!I24 -> -1 | X102: ='Quality Standards'!J24 -> -1 | Y102: ='Quality Standards'!K24 -> -1 | Z102: ='Quality Standards'!L24 -> 1.7 | AA102: ='Quality Standards'!M24 -> 7.1 | AB102: ='Quality Standards'!N24 -> -1
P103: ='Quality Standards'!B25 -> AWT effluent | Q103: ='Quality Standards'!C25 -> 0.27 | R103: ='Quality Standards'!D25 -> -1 | S103: ='Quality Standards'!E25 -> -1 | T103: ='Quality Standards'!F25 -> -1 | U103: ='Quality Standards'!G25 -> -1 | V103: ='Quality Standards'!H25 -> 0.1 | W103: ='Quality Standards'!I25 -> -1 | X103: ='Quality Standards'!J25 -> -1 | Y103: ='Quality Standards'!K25 -> -1 | Z103: ='Quality Standards'!L25 -> 0.7 | AA103: ='Quality Standards'!M25 -> 0.6 | AB103: ='Quality Standards'!N25 -> -1
P104: ='Quality Standards'!B26 -> Textile industry | Q104: ='Quality Standards'!C26 -> 0 | R104: ='Quality Standards'!D26 -> 0 | S104: ='Quality Standards'!E26 -> 0 | T104: ='Quality Standards'!F26 -> 0 | U104: ='Quality Standards'!G26 -> 0 | V104: ='Quality Standards'!H26 -> 0 | W104: ='Quality Standards'!I26 -> 0 | X104: ='Quality Standards'!J26 -> 0 | Y104: ='Quality Standards'!K26 -> 0 | Z104: ='Quality Standards'!L26 -> 0 | AA104: ='Quality Standards'!M26 -> 0 | AB104: ='Quality Standards'!N26 -> 0
P105: ='Quality Standards'!B27 -> Textile Industry-India | Q105: ='Quality Standards'!C27 -> -1 | R105: ='Quality Standards'!D27 -> -1 | S105: ='Quality Standards'!E27 -> 713 | T105: ='Quality Standards'!F27 -> 2125 | U105: ='Quality Standards'!G27 -> -1 | V105: ='Quality Standards'!H27 -> -1 | W105: ='Quality Standards'!I27 -> -1 | X105: ='Quality Standards'!J27 -> -1 | Y105: ='Quality Standards'!K27 -> 5738 | Z105: ='Quality Standards'!L27 -> 354 | AA105: ='Quality Standards'!M27 -> -1 | AB105: ='Quality Standards'!N27 -> -1
P106: ='Quality Standards'!B28 -> Textile Industry- Nigeria | Q106: ='Quality Standards'!C28 -> -1 | R106: ='Quality Standards'!D28 -> 400 | S106: ='Quality Standards'!E28 -> 332 | T106: ='Quality Standards'!F28 -> 1891 | U106: ='Quality Standards'!G28 -> -1 | V106: ='Quality Standards'!H28 -> -1 | W106: ='Quality Standards'!I28 -> -1 | X106: ='Quality Standards'!J28 -> -1 | Y106: ='Quality Standards'!K28 -> 1181 | Z106: ='Quality Standards'!L28 -> 4.4 | AA106: ='Quality Standards'!M28 -> -1 | AB106: ='Quality Standards'!N28 -> -1
P107: ='Quality Standards'!B29 -> Dairy industry | Q107: ='Quality Standards'!C29 -> 0 | R107: ='Quality Standards'!D29 -> 0 | S107: ='Quality Standards'!E29 -> 0 | T107: ='Quality Standards'!F29 -> 0 | U107: ='Quality Standards'!G29 -> 0 | V107: ='Quality Standards'!H29 -> 0 | W107: ='Quality Standards'!I29 -> 0 | X107: ='Quality Standards'!J29 -> 0 | Y107: ='Quality Standards'!K29 -> 0 | Z107: ='Quality Standards'!L29 -> 0 | AA107: ='Quality Standards'!M29 -> 0 | AB107: ='Quality Standards'!N29 -> 0
P108: ='Quality Standards'!B30 -> Dairy- Industry India | Q108: ='Quality Standards'!C30 -> 15 | R108: ='Quality Standards'!D30 -> 250 | S108: ='Quality Standards'!E30 -> 350 | T108: ='Quality Standards'!F30 -> 1500 | U108: ='Quality Standards'!G30 -> -1 | V108: ='Quality Standards'!H30 -> -1 | W108: ='Quality Standards'!I30 -> -1 | X108: ='Quality Standards'!J30 -> -1 | Y108: ='Quality Standards'!K30 -> 800 | Z108: ='Quality Standards'!L30 -> -1 | AA108: ='Quality Standards'!M30 -> -1 | AB108: ='Quality Standards'!N30 -> -1
P109: ='Quality Standards'!B31 -> Dairy Industry- Cheese | Q109: ='Quality Standards'!C31 -> -1 | R109: ='Quality Standards'!D31 -> 500 | S109: ='Quality Standards'!E31 -> 588 | T109: ='Quality Standards'!F31 -> 1000 | U109: ='Quality Standards'!G31 -> 830 | V109: ='Quality Standards'!H31 -> 280 | W109: ='Quality Standards'!I31 -> -1 | X109: ='Quality Standards'!J31 -> -1 | Y109: ='Quality Standards'!K31 -> -1 | Z109: ='Quality Standards'!L31 -> -1 | AA109: ='Quality Standards'!M31 -> -1 | AB109: ='Quality Standards'!N31 -> -1
P110: ='Quality Standards'!B32 -> Dairy Industry- Cheese whey | Q110: ='Quality Standards'!C32 -> -1 | R110: ='Quality Standards'!D32 -> 1780 | S110: ='Quality Standards'!E32 -> -1 | T110: ='Quality Standards'!F32 -> 61000 | U110: ='Quality Standards'!G32 -> 980 | V110: ='Quality Standards'!H32 -> 510 | W110: ='Quality Standards'!I32 -> -1 | X110: ='Quality Standards'!J32 -> -1 | Y110: ='Quality Standards'!K32 -> -1 | Z110: ='Quality Standards'!L32 -> -1 | AA110: ='Quality Standards'!M32 -> -1 | AB110: ='Quality Standards'!N32 -> -1
P111: ='Quality Standards'!B33 -> Dairy Industry- Mixed processing | Q111: ='Quality Standards'!C33 -> -1 | R111: ='Quality Standards'!D33 -> 340 | S111: ='Quality Standards'!E33 -> -1 | T111: ='Quality Standards'!F33 -> 1150 | U111: ='Quality Standards'!G33 -> 14 | V111: ='Quality Standards'!H33 -> 25051 | W111: ='Quality Standards'!I33 -> -1 | X111: ='Quality Standards'!J33 -> -1 | Y111: ='Quality Standards'!K33 -> -1 | Z111: ='Quality Standards'!L33 -> -1 | AA111: ='Quality Standards'!M33 -> -1 | AB111: ='Quality Standards'!N33 -> -1
P112: ='Quality Standards'!B34 -> Pulp & paper industry | Q112: ='Quality Standards'!C34 -> 0 | R112: ='Quality Standards'!D34 -> 0 | S112: ='Quality Standards'!E34 -> 0 | T112: ='Quality Standards'!F34 -> 0 | U112: ='Quality Standards'!G34 -> 0 | V112: ='Quality Standards'!H34 -> 0 | W112: ='Quality Standards'!I34 -> 0 | X112: ='Quality Standards'!J34 -> 0 | Y112: ='Quality Standards'!K34 -> 0 | Z112: ='Quality Standards'!L34 -> 0 | AA112: ='Quality Standards'!M34 -> 0 | AB112: ='Quality Standards'!N34 -> 0
P113: ='Quality Standards'!B35 -> Paper mill | Q113: ='Quality Standards'!C35 -> -1 | R113: ='Quality Standards'!D35 -> 800 | S113: ='Quality Standards'!E35 -> 1600 | T113: ='Quality Standards'!F35 -> 5020 | U113: ='Quality Standards'!G35 -> 11 | V113: ='Quality Standards'!H35 -> 0.6 | W113: ='Quality Standards'!I35 -> -1 | X113: ='Quality Standards'!J35 -> -1 | Y113: ='Quality Standards'!K35 -> -1 | Z113: ='Quality Standards'!L35 -> -1 | AA113: ='Quality Standards'!M35 -> -1 | AB113: ='Quality Standards'!N35 -> -1
P114: ='Quality Standards'!B36 -> Beverage industry | Q114: ='Quality Standards'!C36 -> 0 | R114: ='Quality Standards'!D36 -> 0 | S114: ='Quality Standards'!E36 -> 0 | T114: ='Quality Standards'!F36 -> 0 | U114: ='Quality Standards'!G36 -> 0 | V114: ='Quality Standards'!H36 -> 0 | W114: ='Quality Standards'!I36 -> 0 | X114: ='Quality Standards'!J36 -> 0 | Y114: ='Quality Standards'!K36 -> 0 | Z114: ='Quality Standards'!L36 -> 0 | AA114: ='Quality Standards'!M36 -> 0 | AB114: ='Quality Standards'!N36 -> 0
P115: ='Quality Standards'!B37 -> Brewery (Beer), Typical ranges | Q115: ='Quality Standards'!C37 -> -1 | R115: ='Quality Standards'!D37 -> 200 | S115: ='Quality Standards'!E37 -> 1200 | T115: ='Quality Standards'!F37 -> 2000 | U115: ='Quality Standards'!G37 -> 25 | V115: ='Quality Standards'!H37 -> 18537 | W115: ='Quality Standards'!I37 -> -1 | X115: ='Quality Standards'!J37 -> -1 | Y115: ='Quality Standards'!K37 -> -1 | Z115: ='Quality Standards'!L37 -> -1 | AA115: ='Quality Standards'!M37 -> -1 | AB115: ='Quality Standards'!N37 -> -1
P116: ='Quality Standards'!#REF! ->  | Q116: ='Quality Standards'!#REF! ->  | R116: ='Quality Standards'!#REF! ->  | S116: ='Quality Standards'!#REF! ->  | T116: ='Quality Standards'!#REF! ->  | U116: ='Quality Standards'!#REF! ->  | V116: ='Quality Standards'!#REF! ->  | W116: ='Quality Standards'!#REF! ->  | X116: ='Quality Standards'!#REF! ->  | Y116: ='Quality Standards'!#REF! ->  | Z116: ='Quality Standards'!#REF! ->  | AA116: ='Quality Standards'!#REF! ->  | AB116: ='Quality Standards'!#REF! -> 
P117: ='Quality Standards'!B38 -> Winery (Production: 3000 m3/year) | Q117: ='Quality Standards'!C38 -> -1 | R117: ='Quality Standards'!D38 -> 1060 | S117: ='Quality Standards'!E38 -> 8100 | T117: ='Quality Standards'!F38 -> 14150 | U117: ='Quality Standards'!G38 -> 48.2 | V117: ='Quality Standards'!H38 -> 5.5 | W117: ='Quality Standards'!I38 -> -1 | X117: ='Quality Standards'!J38 -> -1 | Y117: ='Quality Standards'!K38 -> -1 | Z117: ='Quality Standards'!L38 -> -1 | AA117: ='Quality Standards'!M38 -> -1 | AB117: ='Quality Standards'!N38 -> -1
P118: ='Quality Standards'!#REF! ->  | Q118: ='Quality Standards'!#REF! ->  | R118: ='Quality Standards'!#REF! ->  | S118: ='Quality Standards'!#REF! ->  | T118: ='Quality Standards'!#REF! ->  | U118: ='Quality Standards'!#REF! ->  | V118: ='Quality Standards'!#REF! ->  | W118: ='Quality Standards'!#REF! ->  | X118: ='Quality Standards'!#REF! ->  | Y118: ='Quality Standards'!#REF! ->  | Z118: ='Quality Standards'!#REF! ->  | AA118: ='Quality Standards'!#REF! ->  | AB118: ='Quality Standards'!#REF! -> 
P119: ='Quality Standards'!B39 -> Winery (Production: 6000 m3/year) | Q119: ='Quality Standards'!C39 -> -1 | R119: ='Quality Standards'!D39 -> 1960 | S119: ='Quality Standards'!E39 -> 5540 | T119: ='Quality Standards'!F39 -> 9240 | U119: ='Quality Standards'!G39 -> 74 | V119: ='Quality Standards'!H39 -> 16 | W119: ='Quality Standards'!I39 -> -1 | X119: ='Quality Standards'!J39 -> -1 | Y119: ='Quality Standards'!K39 -> -1 | Z119: ='Quality Standards'!L39 -> -1 | AA119: ='Quality Standards'!M39 -> -1 | AB119: ='Quality Standards'!N39 -> -1
P120: ='Quality Standards'!B40 -> US EPA guidelines, 2012 | Q120: ='Quality Standards'!C40 -> 0 | R120: ='Quality Standards'!D40 -> 0 | S120: ='Quality Standards'!E40 -> 0 | T120: ='Quality Standards'!F40 -> 0 | U120: ='Quality Standards'!G40 -> 0 | V120: ='Quality Standards'!H40 -> 0 | W120: ='Quality Standards'!I40 -> 0 | X120: ='Quality Standards'!J40 -> 0 | Y120: ='Quality Standards'!K40 -> 0 | Z120: ='Quality Standards'!L40 -> 0 | AA120: ='Quality Standards'!M40 -> 0 | AB120: ='Quality Standards'!N40 -> 0
P121: ='Quality Standards'!B41 -> EPA: Urban Reuse- unrestricted | Q121: ='Quality Standards'!C41 -> 2 | R121: ='Quality Standards'!D41 -> -1 | S121: ='Quality Standards'!E41 -> 10 | T121: ='Quality Standards'!F41 -> -1 | U121: ='Quality Standards'!G41 -> -1 | V121: ='Quality Standards'!H41 -> -1 | W121: ='Quality Standards'!I41 -> 0 | X121: ='Quality Standards'!J41 -> -1 | Y121: ='Quality Standards'!K41 -> -1 | Z121: ='Quality Standards'!L41 -> -1 | AA121: ='Quality Standards'!M41 -> -1 | AB121: ='Quality Standards'!N41 -> -1
P122: ='Quality Standards'!B42 -> EPA: Urban Reuse-restricted | Q122: ='Quality Standards'!C42 -> -1 | R122: ='Quality Standards'!D42 -> 30 | S122: ='Quality Standards'!E42 -> 30 | T122: ='Quality Standards'!F42 -> -1 | U122: ='Quality Standards'!G42 -> -1 | V122: ='Quality Standards'!H42 -> -1 | W122: ='Quality Standards'!I42 -> 200 | X122: ='Quality Standards'!J42 -> -1 | Y122: ='Quality Standards'!K42 -> -1 | Z122: ='Quality Standards'!L42 -> -1 | AA122: ='Quality Standards'!M42 -> -1 | AB122: ='Quality Standards'!N42 -> -1
P123: ='Quality Standards'!B43 -> EPA: Agricultural Reuse-Food Crops | Q123: ='Quality Standards'!C43 -> 2 | R123: ='Quality Standards'!D43 -> -1 | S123: ='Quality Standards'!E43 -> 10 | T123: ='Quality Standards'!F43 -> -1 | U123: ='Quality Standards'!G43 -> -1 | V123: ='Quality Standards'!H43 -> -1 | W123: ='Quality Standards'!I43 -> 0 | X123: ='Quality Standards'!J43 -> -1 | Y123: ='Quality Standards'!K43 -> -1 | Z123: ='Quality Standards'!L43 -> -1 | AA123: ='Quality Standards'!M43 -> -1 | AB123: ='Quality Standards'!N43 -> -1
P124: ='Quality Standards'!B44 -> EPA: Agricultural Reuse-Processed food crops and Non-food crops | Q124: ='Quality Standards'!C44 -> -1 | R124: ='Quality Standards'!D44 -> 30 | S124: ='Quality Standards'!E44 -> 30 | T124: ='Quality Standards'!F44 -> -1 | U124: ='Quality Standards'!G44 -> -1 | V124: ='Quality Standards'!H44 -> -1 | W124: ='Quality Standards'!I44 -> 200 | X124: ='Quality Standards'!J44 -> -1 | Y124: ='Quality Standards'!K44 -> -1 | Z124: ='Quality Standards'!L44 -> -1 | AA124: ='Quality Standards'!M44 -> -1 | AB124: ='Quality Standards'!N44 -> -1
P125: ='Quality Standards'!B45 -> EPA: Impoundments-unrestricted | Q125: ='Quality Standards'!C45 -> 2 | R125: ='Quality Standards'!D45 -> -1 | S125: ='Quality Standards'!E45 -> 10 | T125: ='Quality Standards'!F45 -> -1 | U125: ='Quality Standards'!G45 -> -1 | V125: ='Quality Standards'!H45 -> -1 | W125: ='Quality Standards'!I45 -> 0 | X125: ='Quality Standards'!J45 -> -1 | Y125: ='Quality Standards'!K45 -> -1 | Z125: ='Quality Standards'!L45 -> -1 | AA125: ='Quality Standards'!M45 -> -1 | AB125: ='Quality Standards'!N45 -> -1
P126: ='Quality Standards'!B46 -> EPA: Impoundments-restricted | Q126: ='Quality Standards'!C46 -> -1 | R126: ='Quality Standards'!D46 -> 30 | S126: ='Quality Standards'!E46 -> 30 | T126: ='Quality Standards'!F46 -> -1 | U126: ='Quality Standards'!G46 -> -1 | V126: ='Quality Standards'!H46 -> -1 | W126: ='Quality Standards'!I46 -> 200 | X126: ='Quality Standards'!J46 -> -1 | Y126: ='Quality Standards'!K46 -> -1 | Z126: ='Quality Standards'!L46 -> -1 | AA126: ='Quality Standards'!M46 -> -1 | AB126: ='Quality Standards'!N46 -> -1
P127: ='Quality Standards'!B47 -> EPA: Environmental Reuse | Q127: ='Quality Standards'!C47 -> -1 | R127: ='Quality Standards'!D47 -> 30 | S127: ='Quality Standards'!E47 -> 30 | T127: ='Quality Standards'!F47 -> -1 | U127: ='Quality Standards'!G47 -> -1 | V127: ='Quality Standards'!H47 -> -1 | W127: ='Quality Standards'!I47 -> 200 | X127: ='Quality Standards'!J47 -> -1 | Y127: ='Quality Standards'!K47 -> -1 | Z127: ='Quality Standards'!L47 -> -1 | AA127: ='Quality Standards'!M47 -> -1 | AB127: ='Quality Standards'!N47 -> -1
P128: ='Quality Standards'!B48 -> EPA: Industrial Reuse- Once-through cooling | Q128: ='Quality Standards'!C48 -> -1 | R128: ='Quality Standards'!D48 -> 30 | S128: ='Quality Standards'!E48 -> 30 | T128: ='Quality Standards'!F48 -> -1 | U128: ='Quality Standards'!G48 -> -1 | V128: ='Quality Standards'!H48 -> -1 | W128: ='Quality Standards'!I48 -> 200 | X128: ='Quality Standards'!J48 -> -1 | Y128: ='Quality Standards'!K48 -> -1 | Z128: ='Quality Standards'!L48 -> -1 | AA128: ='Quality Standards'!M48 -> -1 | AB128: ='Quality Standards'!N48 -> -1
P129: ='Quality Standards'!B49 -> EPA: Industrial Reuse- Recirculating Cooling Towers | Q129: ='Quality Standards'!C49 -> -1 | R129: ='Quality Standards'!D49 -> 30 | S129: ='Quality Standards'!E49 -> 30 | T129: ='Quality Standards'!F49 -> -1 | U129: ='Quality Standards'!G49 -> -1 | V129: ='Quality Standards'!H49 -> -1 | W129: ='Quality Standards'!I49 -> 200 | X129: ='Quality Standards'!J49 -> -1 | Y129: ='Quality Standards'!K49 -> -1 | Z129: ='Quality Standards'!L49 -> -1 | AA129: ='Quality Standards'!M49 -> -1 | AB129: ='Quality Standards'!N49 -> -1
P130: ='Quality Standards'!B50 -> EPA: Groundwater Recharge-Indirect potable re-use | Q130: ='Quality Standards'!C50 -> 2 | R130: ='Quality Standards'!D50 -> -1 | S130: ='Quality Standards'!E50 -> -1 | T130: ='Quality Standards'!F50 -> -1 | U130: ='Quality Standards'!G50 -> -1 | V130: ='Quality Standards'!H50 -> -1 | W130: ='Quality Standards'!I50 -> 0 | X130: ='Quality Standards'!J50 -> -1 | Y130: ='Quality Standards'!K50 -> -1 | Z130: ='Quality Standards'!L50 -> -1 | AA130: ='Quality Standards'!M50 -> 2 | AB130: ='Quality Standards'!N50 -> -1
P131: ='Quality Standards'!B51 -> Texas water re-use standards | Q131: ='Quality Standards'!C51 -> 0 | R131: ='Quality Standards'!D51 -> 0 | S131: ='Quality Standards'!E51 -> 0 | T131: ='Quality Standards'!F51 -> 0 | U131: ='Quality Standards'!G51 -> 0 | V131: ='Quality Standards'!H51 -> 0 | W131: ='Quality Standards'!I51 -> 0 | X131: ='Quality Standards'!J51 -> 0 | Y131: ='Quality Standards'!K51 -> 0 | Z131: ='Quality Standards'!L51 -> 0 | AA131: ='Quality Standards'!M51 -> 0 | AB131: ='Quality Standards'!N51 -> 0
P132: ='Quality Standards'!B52 -> Texas EPA: Urban Reuse- unrestricted | Q132: ='Quality Standards'!C52 -> 3 | R132: ='Quality Standards'!D52 -> -1 | S132: ='Quality Standards'!E52 -> 5 | T132: ='Quality Standards'!F52 -> -1 | U132: ='Quality Standards'!G52 -> -1 | V132: ='Quality Standards'!H52 -> -1 | W132: ='Quality Standards'!I52 -> 20 | X132: ='Quality Standards'!J52 -> -1 | Y132: ='Quality Standards'!K52 -> -1 | Z132: ='Quality Standards'!L52 -> -1 | AA132: ='Quality Standards'!M52 -> -1 | AB132: ='Quality Standards'!N52 -> -1
P133: ='Quality Standards'!B53 -> Texas EPA: Urban Reuse-restricted | Q133: ='Quality Standards'!C53 -> -1 | R133: ='Quality Standards'!D53 -> -1 | S133: ='Quality Standards'!E53 -> 20 | T133: ='Quality Standards'!F53 -> -1 | U133: ='Quality Standards'!G53 -> -1 | V133: ='Quality Standards'!H53 -> -1 | W133: ='Quality Standards'!I53 -> 200 | X133: ='Quality Standards'!J53 -> -1 | Y133: ='Quality Standards'!K53 -> -1 | Z133: ='Quality Standards'!L53 -> -1 | AA133: ='Quality Standards'!M53 -> -1 | AB133: ='Quality Standards'!N53 -> -1
P134: ='Quality Standards'!B54 -> Texas EPA: Agricultural Reuse-Food Crops | Q134: ='Quality Standards'!C54 -> 3 | R134: ='Quality Standards'!D54 -> -1 | S134: ='Quality Standards'!E54 -> 5 | T134: ='Quality Standards'!F54 -> -1 | U134: ='Quality Standards'!G54 -> -1 | V134: ='Quality Standards'!H54 -> -1 | W134: ='Quality Standards'!I54 -> 20 | X134: ='Quality Standards'!J54 -> -1 | Y134: ='Quality Standards'!K54 -> -1 | Z134: ='Quality Standards'!L54 -> -1 | AA134: ='Quality Standards'!M54 -> -1 | AB134: ='Quality Standards'!N54 -> -1
P135: ='Quality Standards'!B55 -> Texas EPA: Agricultural Reuse-Processed food crops and Non-food crops | Q135: ='Quality Standards'!C55 -> -1 | R135: ='Quality Standards'!D55 -> -1 | S135: ='Quality Standards'!E55 -> 20 | T135: ='Quality Standards'!F55 -> -1 | U135: ='Quality Standards'!G55 -> -1 | V135: ='Quality Standards'!H55 -> -1 | W135: ='Quality Standards'!I55 -> 200 | X135: ='Quality Standards'!J55 -> -1 | Y135: ='Quality Standards'!K55 -> -1 | Z135: ='Quality Standards'!L55 -> -1 | AA135: ='Quality Standards'!M55 -> -1 | AB135: ='Quality Standards'!N55 -> -1
P136: ='Quality Standards'!B56 -> Texas EPA: Impoundments-unrestricted | Q136: ='Quality Standards'!C56 -> 3 | R136: ='Quality Standards'!D56 -> -1 | S136: ='Quality Standards'!E56 -> 5 | T136: ='Quality Standards'!F56 -> -1 | U136: ='Quality Standards'!G56 -> -1 | V136: ='Quality Standards'!H56 -> -1 | W136: ='Quality Standards'!I56 -> 20 | X136: ='Quality Standards'!J56 -> -1 | Y136: ='Quality Standards'!K56 -> -1 | Z136: ='Quality Standards'!L56 -> -1 | AA136: ='Quality Standards'!M56 -> -1 | AB136: ='Quality Standards'!N56 -> -1
P137: ='Quality Standards'!B57 -> Texas EPA: Impoundments-restricted | Q137: ='Quality Standards'!C57 -> -1 | R137: ='Quality Standards'!D57 -> -1 | S137: ='Quality Standards'!E57 -> 20 | T137: ='Quality Standards'!F57 -> -1 | U137: ='Quality Standards'!G57 -> -1 | V137: ='Quality Standards'!H57 -> -1 | W137: ='Quality Standards'!I57 -> 200 | X137: ='Quality Standards'!J57 -> -1 | Y137: ='Quality Standards'!K57 -> -1 | Z137: ='Quality Standards'!L57 -> -1 | AA137: ='Quality Standards'!M57 -> -1 | AB137: ='Quality Standards'!N57 -> -1
P138: ='Quality Standards'!B58 -> Texas EPA: Environmental Reuse | Q138: ='Quality Standards'!C58 -> -1 | R138: ='Quality Standards'!D58 -> -1 | S138: ='Quality Standards'!E58 -> -1 | T138: ='Quality Standards'!F58 -> -1 | U138: ='Quality Standards'!G58 -> -1 | V138: ='Quality Standards'!H58 -> -1 | W138: ='Quality Standards'!I58 -> -1 | X138: ='Quality Standards'!J58 -> -1 | Y138: ='Quality Standards'!K58 -> -1 | Z138: ='Quality Standards'!L58 -> -1 | AA138: ='Quality Standards'!M58 -> -1 | AB138: ='Quality Standards'!N58 -> -1
P139: ='Quality Standards'!B59 -> Texas EPA: Industrial Reuse- Recirculating Cooling Towers | Q139: ='Quality Standards'!C59 -> -1 | R139: ='Quality Standards'!D59 -> -1 | S139: ='Quality Standards'!E59 -> 20 | T139: ='Quality Standards'!F59 -> -1 | U139: ='Quality Standards'!G59 -> -1 | V139: ='Quality Standards'!H59 -> -1 | W139: ='Quality Standards'!I59 -> 200 | X139: ='Quality Standards'!J59 -> -1 | Y139: ='Quality Standards'!K59 -> -1 | Z139: ='Quality Standards'!L59 -> -1 | AA139: ='Quality Standards'!M59 -> -1 | AB139: ='Quality Standards'!N59 -> -1
P140: ='Quality Standards'!B60 -> Texas EPA: Groundwater Recharge-Indirect potable re-use | Q140: ='Quality Standards'!C60 -> 3 | R140: ='Quality Standards'!D60 -> -1 | S140: ='Quality Standards'!E60 -> 5 | T140: ='Quality Standards'!F60 -> -1 | U140: ='Quality Standards'!G60 -> -1 | V140: ='Quality Standards'!H60 -> -1 | W140: ='Quality Standards'!I60 -> 20 | X140: ='Quality Standards'!J60 -> -1 | Y140: ='Quality Standards'!K60 -> -1 | Z140: ='Quality Standards'!L60 -> -1 | AA140: ='Quality Standards'!M60 -> -1 | AB140: ='Quality Standards'!N60 -> -1
P141: ='Quality Standards'!B61 -> California water re-use standards | Q141: ='Quality Standards'!C61 -> 0 | R141: ='Quality Standards'!D61 -> 0 | S141: ='Quality Standards'!E61 -> 0 | T141: ='Quality Standards'!F61 -> 0 | U141: ='Quality Standards'!G61 -> 0 | V141: ='Quality Standards'!H61 -> 0 | W141: ='Quality Standards'!I61 -> 0 | X141: ='Quality Standards'!J61 -> 0 | Y141: ='Quality Standards'!K61 -> 0 | Z141: ='Quality Standards'!L61 -> 0 | AA141: ='Quality Standards'!M61 -> 0 | AB141: ='Quality Standards'!N61 -> 0
P142: ='Quality Standards'!B62 -> California EPA: Urban Reuse- unrestricted | Q142: ='Quality Standards'!C62 -> 2 | R142: ='Quality Standards'!D62 -> -1 | S142: ='Quality Standards'!E62 -> -1 | T142: ='Quality Standards'!F62 -> -1 | U142: ='Quality Standards'!G62 -> -1 | V142: ='Quality Standards'!H62 -> -1 | W142: ='Quality Standards'!I62 -> -1 | X142: ='Quality Standards'!J62 -> 2.2 | Y142: ='Quality Standards'!K62 -> -1 | Z142: ='Quality Standards'!L62 -> -1 | AA142: ='Quality Standards'!M62 -> -1 | AB142: ='Quality Standards'!N62 -> -1
P143: ='Quality Standards'!B63 -> California EPA: Urban Reuse-restricted | Q143: ='Quality Standards'!C63 -> -1 | R143: ='Quality Standards'!D63 -> -1 | S143: ='Quality Standards'!E63 -> -1 | T143: ='Quality Standards'!F63 -> -1 | U143: ='Quality Standards'!G63 -> -1 | V143: ='Quality Standards'!H63 -> -1 | W143: ='Quality Standards'!I63 -> -1 | X143: ='Quality Standards'!J63 -> 23 | Y143: ='Quality Standards'!K63 -> -1 | Z143: ='Quality Standards'!L63 -> -1 | AA143: ='Quality Standards'!M63 -> -1 | AB143: ='Quality Standards'!N63 -> -1
P144: ='Quality Standards'!B64 -> California EPA: Agricultural Reuse-Food Crops | Q144: ='Quality Standards'!C64 -> 2 | R144: ='Quality Standards'!D64 -> -1 | S144: ='Quality Standards'!E64 -> -1 | T144: ='Quality Standards'!F64 -> -1 | U144: ='Quality Standards'!G64 -> -1 | V144: ='Quality Standards'!H64 -> -1 | W144: ='Quality Standards'!I64 -> -1 | X144: ='Quality Standards'!J64 -> 2.2 | Y144: ='Quality Standards'!K64 -> -1 | Z144: ='Quality Standards'!L64 -> -1 | AA144: ='Quality Standards'!M64 -> -1 | AB144: ='Quality Standards'!N64 -> -1
P145: ='Quality Standards'!B65 -> California EPA: Agricultural Reuse-Processed food crops and Non-food crops | Q145: ='Quality Standards'!C65 -> -1 | R145: ='Quality Standards'!D65 -> -1 | S145: ='Quality Standards'!E65 -> -1 | T145: ='Quality Standards'!F65 -> -1 | U145: ='Quality Standards'!G65 -> 10 | V145: ='Quality Standards'!H65 -> -1 | W145: ='Quality Standards'!I65 -> -1 | X145: ='Quality Standards'!J65 -> -1 | Y145: ='Quality Standards'!K65 -> -1 | Z145: ='Quality Standards'!L65 -> -1 | AA145: ='Quality Standards'!M65 -> -1 | AB145: ='Quality Standards'!N65 -> -1
P146: ='Quality Standards'!B66 -> California EPA: Impoundments-unrestricted | Q146: ='Quality Standards'!C66 -> 2 | R146: ='Quality Standards'!D66 -> -1 | S146: ='Quality Standards'!E66 -> -1 | T146: ='Quality Standards'!F66 -> -1 | U146: ='Quality Standards'!G66 -> -1 | V146: ='Quality Standards'!H66 -> -1 | W146: ='Quality Standards'!I66 -> -1 | X146: ='Quality Standards'!J66 -> 2.2 | Y146: ='Quality Standards'!K66 -> -1 | Z146: ='Quality Standards'!L66 -> -1 | AA146: ='Quality Standards'!M66 -> -1 | AB146: ='Quality Standards'!N66 -> -1
P147: ='Quality Standards'!B67 -> California EPA: Impoundments-restricted | Q147: ='Quality Standards'!C67 -> -1 | R147: ='Quality Standards'!D67 -> -1 | S147: ='Quality Standards'!E67 -> -1 | T147: ='Quality Standards'!F67 -> -1 | U147: ='Quality Standards'!G67 -> -1 | V147: ='Quality Standards'!H67 -> -1 | W147: ='Quality Standards'!I67 -> -1 | X147: ='Quality Standards'!J67 -> 2.2 | Y147: ='Quality Standards'!K67 -> -1 | Z147: ='Quality Standards'!L67 -> -1 | AA147: ='Quality Standards'!M67 -> -1 | AB147: ='Quality Standards'!N67 -> -1
P148: ='Quality Standards'!B68 -> California EPA: Environmental Reuse | Q148: ='Quality Standards'!C68 -> -1 | R148: ='Quality Standards'!D68 -> -1 | S148: ='Quality Standards'!E68 -> -1 | T148: ='Quality Standards'!F68 -> -1 | U148: ='Quality Standards'!G68 -> -1 | V148: ='Quality Standards'!H68 -> -1 | W148: ='Quality Standards'!I68 -> -1 | X148: ='Quality Standards'!J68 -> -1 | Y148: ='Quality Standards'!K68 -> -1 | Z148: ='Quality Standards'!L68 -> -1 | AA148: ='Quality Standards'!M68 -> -1 | AB148: ='Quality Standards'!N68 -> -1
P149: ='Quality Standards'!B69 -> California EPA: Industrial Reuse- Once-through cooling | Q149: ='Quality Standards'!C69 -> 2 | R149: ='Quality Standards'!D69 -> -1 | S149: ='Quality Standards'!E69 -> -1 | T149: ='Quality Standards'!F69 -> -1 | U149: ='Quality Standards'!G69 -> -1 | V149: ='Quality Standards'!H69 -> -1 | W149: ='Quality Standards'!I69 -> -1 | X149: ='Quality Standards'!J69 -> 2.2 | Y149: ='Quality Standards'!K69 -> -1 | Z149: ='Quality Standards'!L69 -> -1 | AA149: ='Quality Standards'!M69 -> -1 | AB149: ='Quality Standards'!N69 -> -1
P150: ='Quality Standards'!B70 -> California EPA: Groundwater Recharge-Indirect potable re-use | Q150: ='Quality Standards'!C70 -> 2 | R150: ='Quality Standards'!D70 -> -1 | S150: ='Quality Standards'!E70 -> -1 | T150: ='Quality Standards'!F70 -> -1 | U150: ='Quality Standards'!G70 -> 10 | V150: ='Quality Standards'!H70 -> -1 | W150: ='Quality Standards'!I70 -> -1 | X150: ='Quality Standards'!J70 -> 2.2 | Y150: ='Quality Standards'!K70 -> -1 | Z150: ='Quality Standards'!L70 -> -1 | AA150: ='Quality Standards'!M70 -> 0.5 | AB150: ='Quality Standards'!N70 -> -1
P151: ='Quality Standards'!B71 -> WHO guidelines, 2006; Vol. 2-4 | Q151: ='Quality Standards'!C71 -> 0 | R151: ='Quality Standards'!D71 -> 0 | S151: ='Quality Standards'!E71 -> 0 | T151: ='Quality Standards'!F71 -> 0 | U151: ='Quality Standards'!G71 -> 0 | V151: ='Quality Standards'!H71 -> 0 | W151: ='Quality Standards'!I71 -> 0 | X151: ='Quality Standards'!J71 -> 0 | Y151: ='Quality Standards'!K71 -> 0 | Z151: ='Quality Standards'!L71 -> 0 | AA151: ='Quality Standards'!M71 -> 0 | AB151: ='Quality Standards'!N71 -> 0
P152: ='Quality Standards'!B72 -> WHO: Use of wastewater in agriculture-unrestricted | Q152: ='Quality Standards'!C72 -> -1 | R152: ='Quality Standards'!D72 -> -1 | S152: ='Quality Standards'!E72 -> -1 | T152: ='Quality Standards'!F72 -> -1 | U152: ='Quality Standards'!G72 -> -1 | V152: ='Quality Standards'!H72 -> -1 | W152: ='Quality Standards'!I72 -> 1000 | X152: ='Quality Standards'!J72 -> -1 | Y152: ='Quality Standards'!K72 -> -1 | Z152: ='Quality Standards'!L72 -> -1 | AA152: ='Quality Standards'!M72 -> -1 | AB152: ='Quality Standards'!N72 -> -1
P153: ='Quality Standards'!B73 -> WHO: Use of wastewater in agriculture-restricted-highly mechanized irrigation | Q153: ='Quality Standards'!C73 -> -1 | R153: ='Quality Standards'!D73 -> -1 | S153: ='Quality Standards'!E73 -> -1 | T153: ='Quality Standards'!F73 -> -1 | U153: ='Quality Standards'!G73 -> -1 | V153: ='Quality Standards'!H73 -> -1 | W153: ='Quality Standards'!I73 -> 100000 | X153: ='Quality Standards'!J73 -> -1 | Y153: ='Quality Standards'!K73 -> -1 | Z153: ='Quality Standards'!L73 -> -1 | AA153: ='Quality Standards'!M73 -> -1 | AB153: ='Quality Standards'!N73 -> -1
P154: ='Quality Standards'!B74 -> WHO: Use of wastewater in agriculture- restricted-labour intensive irrigation | Q154: ='Quality Standards'!C74 -> -1 | R154: ='Quality Standards'!D74 -> -1 | S154: ='Quality Standards'!E74 -> -1 | T154: ='Quality Standards'!F74 -> -1 | U154: ='Quality Standards'!G74 -> -1 | V154: ='Quality Standards'!H74 -> -1 | W154: ='Quality Standards'!I74 -> 1000 | X154: ='Quality Standards'!J74 -> -1 | Y154: ='Quality Standards'!K74 -> -1 | Z154: ='Quality Standards'!L74 -> -1 | AA154: ='Quality Standards'!M74 -> -1 | AB154: ='Quality Standards'!N74 -> -1
P155: ='Quality Standards'!B75 -> WHO: Use of wastewater in aquaculture | Q155: ='Quality Standards'!C75 -> -1 | R155: ='Quality Standards'!D75 -> -1 | S155: ='Quality Standards'!E75 -> -1 | T155: ='Quality Standards'!F75 -> -1 | U155: ='Quality Standards'!G75 -> -1 | V155: ='Quality Standards'!H75 -> -1 | W155: ='Quality Standards'!I75 -> 10000 | X155: ='Quality Standards'!J75 -> -1 | Y155: ='Quality Standards'!K75 -> -1 | Z155: ='Quality Standards'!L75 -> -1 | AA155: ='Quality Standards'!M75 -> -1 | AB155: ='Quality Standards'!N75 -> -1
P156: ='Quality Standards'!B76 -> WHO: Use of grey water in agriculture-unrestricted | Q156: ='Quality Standards'!C76 -> -1 | R156: ='Quality Standards'!D76 -> -1 | S156: ='Quality Standards'!E76 -> -1 | T156: ='Quality Standards'!F76 -> -1 | U156: ='Quality Standards'!G76 -> -1 | V156: ='Quality Standards'!H76 -> -1 | W156: ='Quality Standards'!I76 -> 1000 | X156: ='Quality Standards'!J76 -> -1 | Y156: ='Quality Standards'!K76 -> -1 | Z156: ='Quality Standards'!L76 -> -1 | AA156: ='Quality Standards'!M76 -> -1 | AB156: ='Quality Standards'!N76 -> -1
P157: ='Quality Standards'!B77 -> WHO: Use of grey water in agriculture-restricted | Q157: ='Quality Standards'!C77 -> -1 | R157: ='Quality Standards'!D77 -> -1 | S157: ='Quality Standards'!E77 -> -1 | T157: ='Quality Standards'!F77 -> -1 | U157: ='Quality Standards'!G77 -> -1 | V157: ='Quality Standards'!H77 -> -1 | W157: ='Quality Standards'!I77 -> 100000 | X157: ='Quality Standards'!J77 -> -1 | Y157: ='Quality Standards'!K77 -> -1 | Z157: ='Quality Standards'!L77 -> -1 | AA157: ='Quality Standards'!M77 -> -1 | AB157: ='Quality Standards'!N77 -> -1
P158: ='Quality Standards'!B78 -> Standards for Water Re-use in Eastern Mediterranean Region (EMR), based on WHO guidelines 1989 | Q158: ='Quality Standards'!C78 -> 0 | R158: ='Quality Standards'!D78 -> 0 | S158: ='Quality Standards'!E78 -> 0 | T158: ='Quality Standards'!F78 -> 0 | U158: ='Quality Standards'!G78 -> 0 | V158: ='Quality Standards'!H78 -> 0 | W158: ='Quality Standards'!I78 -> 0 | X158: ='Quality Standards'!J78 -> 0 | Y158: ='Quality Standards'!K78 -> 0 | Z158: ='Quality Standards'!L78 -> 0 | AA158: ='Quality Standards'!M78 -> 0 | AB158: ='Quality Standards'!N78 -> 0
P159: ='Quality Standards'!B79 -> Wastewater: Category A Untrestricted irrigation | Q159: ='Quality Standards'!C79 -> -1 | R159: ='Quality Standards'!D79 -> -1 | S159: ='Quality Standards'!E79 -> -1 | T159: ='Quality Standards'!F79 -> -1 | U159: ='Quality Standards'!G79 -> -1 | V159: ='Quality Standards'!H79 -> -1 | W159: ='Quality Standards'!I79 -> 1000 | X159: ='Quality Standards'!J79 -> -1 | Y159: ='Quality Standards'!K79 -> -1 | Z159: ='Quality Standards'!L79 -> -1 | AA159: ='Quality Standards'!M79 -> -1 | AB159: ='Quality Standards'!N79 -> -1
P160: ='Quality Standards'!B80 -> Wastewater: Category B Restricted irrigation | Q160: ='Quality Standards'!C80 -> -1 | R160: ='Quality Standards'!D80 -> -1 | S160: ='Quality Standards'!E80 -> -1 | T160: ='Quality Standards'!F80 -> -1 | U160: ='Quality Standards'!G80 -> -1 | V160: ='Quality Standards'!H80 -> -1 | W160: ='Quality Standards'!I80 -> 1000 | X160: ='Quality Standards'!J80 -> -1 | Y160: ='Quality Standards'!K80 -> -1 | Z160: ='Quality Standards'!L80 -> -1 | AA160: ='Quality Standards'!M80 -> -1 | AB160: ='Quality Standards'!N80 -> -1
P161: ='Quality Standards'!B81 -> Wastewater: Category C | Q161: ='Quality Standards'!C81 -> -1 | R161: ='Quality Standards'!D81 -> -1 | S161: ='Quality Standards'!E81 -> -1 | T161: ='Quality Standards'!F81 -> -1 | U161: ='Quality Standards'!G81 -> -1 | V161: ='Quality Standards'!H81 -> -1 | W161: ='Quality Standards'!I81 -> -1 | X161: ='Quality Standards'!J81 -> -1 | Y161: ='Quality Standards'!K81 -> -1 | Z161: ='Quality Standards'!L81 -> -1 | AA161: ='Quality Standards'!M81 -> -1 | AB161: ='Quality Standards'!N81 -> -1
P162: ='Quality Standards'!B82 -> Greywater: Category A | Q162: ='Quality Standards'!C82 -> -1 | R162: ='Quality Standards'!D82 -> 140 | S162: ='Quality Standards'!E82 -> 240 | T162: ='Quality Standards'!F82 -> -1 | U162: ='Quality Standards'!G82 -> -1 | V162: ='Quality Standards'!H82 -> -1 | W162: ='Quality Standards'!I82 -> 1000 | X162: ='Quality Standards'!J82 -> -1 | Y162: ='Quality Standards'!K82 -> -1 | Z162: ='Quality Standards'!L82 -> -1 | AA162: ='Quality Standards'!M82 -> -1 | AB162: ='Quality Standards'!N82 -> -1
P163: ='Quality Standards'!B83 -> Greywater: Category B | Q163: ='Quality Standards'!C83 -> -1 | R163: ='Quality Standards'!D83 -> 20 | S163: ='Quality Standards'!E83 -> 20 | T163: ='Quality Standards'!F83 -> -1 | U163: ='Quality Standards'!G83 -> -1 | V163: ='Quality Standards'!H83 -> -1 | W163: ='Quality Standards'!I83 -> 200 | X163: ='Quality Standards'!J83 -> -1 | Y163: ='Quality Standards'!K83 -> -1 | Z163: ='Quality Standards'!L83 -> -1 | AA163: ='Quality Standards'!M83 -> -1 | AB163: ='Quality Standards'!N83 -> -1
P164: ='Quality Standards'!B84 -> Greywater: Category C | Q164: ='Quality Standards'!C84 -> -1 | R164: ='Quality Standards'!D84 -> 10 | S164: ='Quality Standards'!E84 -> 10 | T164: ='Quality Standards'!F84 -> -1 | U164: ='Quality Standards'!G84 -> -1 | V164: ='Quality Standards'!H84 -> -1 | W164: ='Quality Standards'!I84 -> 10 | X164: ='Quality Standards'!J84 -> -1 | Y164: ='Quality Standards'!K84 -> -1 | Z164: ='Quality Standards'!L84 -> -1 | AA164: ='Quality Standards'!M84 -> -1 | AB164: ='Quality Standards'!N84 -> -1
P165: ='Quality Standards'!B85 -> Jordanian Standards for wastewater reuse | Q165: ='Quality Standards'!C85 -> 0 | R165: ='Quality Standards'!D85 -> 0 | S165: ='Quality Standards'!E85 -> 0 | T165: ='Quality Standards'!F85 -> 0 | U165: ='Quality Standards'!G85 -> 0 | V165: ='Quality Standards'!H85 -> 0 | W165: ='Quality Standards'!I85 -> 0 | X165: ='Quality Standards'!J85 -> 0 | Y165: ='Quality Standards'!K85 -> 0 | Z165: ='Quality Standards'!L85 -> 0 | AA165: ='Quality Standards'!M85 -> 0 | AB165: ='Quality Standards'!N85 -> 0
P166: ='Quality Standards'!B86 -> Discharge to streams | Q166: ='Quality Standards'!C86 -> -1 | R166: ='Quality Standards'!D86 -> 60 | S166: ='Quality Standards'!E86 -> 60 | T166: ='Quality Standards'!F86 -> 150 | U166: ='Quality Standards'!G86 -> 70 | V166: ='Quality Standards'!H86 -> -1 | W166: ='Quality Standards'!I86 -> 1000 | X166: ='Quality Standards'!J86 -> -1 | Y166: ='Quality Standards'!K86 -> 1500 | Z166: ='Quality Standards'!L86 -> 45 | AA166: ='Quality Standards'!M86 -> -1 | AB166: ='Quality Standards'!N86 -> -1
P167: ='Quality Standards'!B87 -> Groundwater recharge | Q167: ='Quality Standards'!C87 -> 2 | R167: ='Quality Standards'!D87 -> 50 | S167: ='Quality Standards'!E87 -> 15 | T167: ='Quality Standards'!F87 -> 50 | U167: ='Quality Standards'!G87 -> 45 | V167: ='Quality Standards'!H87 -> -1 | W167: ='Quality Standards'!I87 -> 2.2 | X167: ='Quality Standards'!J87 -> -1 | Y167: ='Quality Standards'!K87 -> 1500 | Z167: ='Quality Standards'!L87 -> 30 | AA167: ='Quality Standards'!M87 -> -1 | AB167: ='Quality Standards'!N87 -> -1
P168: ='Quality Standards'!B88 -> Agricultural irrigation Group A | Q168: ='Quality Standards'!C88 -> 10 | R168: ='Quality Standards'!D88 -> 50 | S168: ='Quality Standards'!E88 -> 30 | T168: ='Quality Standards'!F88 -> 100 | U168: ='Quality Standards'!G88 -> 45 | V168: ='Quality Standards'!H88 -> -1 | W168: ='Quality Standards'!I88 -> 100 | X168: ='Quality Standards'!J88 -> -1 | Y168: ='Quality Standards'!K88 -> -1 | Z168: ='Quality Standards'!L88 -> 30 | AA168: ='Quality Standards'!M88 -> -1 | AB168: ='Quality Standards'!N88 -> -1
P169: ='Quality Standards'!B89 -> Agricultural irrigation Group B | Q169: ='Quality Standards'!C89 -> -1 | R169: ='Quality Standards'!D89 -> 150 | S169: ='Quality Standards'!E89 -> 200 | T169: ='Quality Standards'!F89 -> 500 | U169: ='Quality Standards'!G89 -> 70 | V169: ='Quality Standards'!H89 -> -1 | W169: ='Quality Standards'!I89 -> 1000 | X169: ='Quality Standards'!J89 -> -1 | Y169: ='Quality Standards'!K89 -> -1 | Z169: ='Quality Standards'!L89 -> 45 | AA169: ='Quality Standards'!M89 -> -1 | AB169: ='Quality Standards'!N89 -> -1
P170: ='Quality Standards'!B90 -> Agricultural irrigation Group C | Q170: ='Quality Standards'!C90 -> -1 | R170: ='Quality Standards'!D90 -> 150 | S170: ='Quality Standards'!E90 -> 300 | T170: ='Quality Standards'!F90 -> 500 | U170: ='Quality Standards'!G90 -> 70 | V170: ='Quality Standards'!H90 -> -1 | W170: ='Quality Standards'!I90 -> -1 | X170: ='Quality Standards'!J90 -> -1 | Y170: ='Quality Standards'!K90 -> -1 | Z170: ='Quality Standards'!L90 -> 45 | AA170: ='Quality Standards'!M90 -> -1 | AB170: ='Quality Standards'!N90 -> -1
P171: ='Quality Standards'!B91 -> AQUAREC Water quality criteria, 2006 | Q171: ='Quality Standards'!C91 -> 0 | R171: ='Quality Standards'!D91 -> 0 | S171: ='Quality Standards'!E91 -> 0 | T171: ='Quality Standards'!F91 -> 0 | U171: ='Quality Standards'!G91 -> 0 | V171: ='Quality Standards'!H91 -> 0 | W171: ='Quality Standards'!I91 -> 0 | X171: ='Quality Standards'!J91 -> 0 | Y171: ='Quality Standards'!K91 -> 0 | Z171: ='Quality Standards'!L91 -> 0 | AA171: ='Quality Standards'!M91 -> 0 | AB171: ='Quality Standards'!N91 -> 0
P172: ='Quality Standards'!B92 -> AQUAREC: Private, urban irrigation Category 1 | Q172: ='Quality Standards'!C92 -> -1 | R172: ='Quality Standards'!D92 -> 10 | S172: ='Quality Standards'!E92 -> 10 | T172: ='Quality Standards'!F92 -> 100 | U172: ='Quality Standards'!G92 -> -1 | V172: ='Quality Standards'!H92 -> 2 | W172: ='Quality Standards'!I92 -> 0 | X172: ='Quality Standards'!J92 -> -1 | Y172: ='Quality Standards'!K92 -> 1650 | Z172: ='Quality Standards'!L92 -> -1 | AA172: ='Quality Standards'!M92 -> 100 | AB172: ='Quality Standards'!N92 -> 0
P173: ='Quality Standards'!B93 -> AQUAREC: Environmental and aquaculture Category 2 | Q173: ='Quality Standards'!C93 -> -1 | R173: ='Quality Standards'!D93 -> 10 | S173: ='Quality Standards'!E93 -> 10 | T173: ='Quality Standards'!F93 -> 70 | U173: ='Quality Standards'!G93 -> -1 | V173: ='Quality Standards'!H93 -> 0.2 | W173: ='Quality Standards'!I93 -> 0 | X173: ='Quality Standards'!J93 -> -1 | Y173: ='Quality Standards'!K93 -> 1650 | Z173: ='Quality Standards'!L93 -> -1 | AA173: ='Quality Standards'!M93 -> 70 | AB173: ='Quality Standards'!N93 -> 99
P174: ='Quality Standards'!B94 -> AQUAREC: Indirect aquifer recharge Category 3 | Q174: ='Quality Standards'!C94 -> -1 | R174: ='Quality Standards'!D94 -> -1 | S174: ='Quality Standards'!E94 -> -1 | T174: ='Quality Standards'!F94 -> 70 | U174: ='Quality Standards'!G94 -> -1 | V174: ='Quality Standards'!H94 -> -1 | W174: ='Quality Standards'!I94 -> 0 | X174: ='Quality Standards'!J94 -> -1 | Y174: ='Quality Standards'!K94 -> 385 | Z174: ='Quality Standards'!L94 -> 25 | AA174: ='Quality Standards'!M94 -> 70 | AB174: ='Quality Standards'!N94 -> -1
P175: ='Quality Standards'!B95 -> AQUAREC: Industrial cooling Category 4 | Q175: ='Quality Standards'!C95 -> -1 | R175: ='Quality Standards'!D95 -> 10 | S175: ='Quality Standards'!E95 -> -1 | T175: ='Quality Standards'!F95 -> 70 | U175: ='Quality Standards'!G95 -> -1 | V175: ='Quality Standards'!H95 -> 0.2 | W175: ='Quality Standards'!I95 -> 0 | X175: ='Quality Standards'!J95 -> -1 | Y175: ='Quality Standards'!K95 -> -1 | Z175: ='Quality Standards'!L95 -> -1 | AA175: ='Quality Standards'!M95 -> 70 | AB175: ='Quality Standards'!N95 -> 1
P176: ='Quality Standards'!B96 -> Brazil | Q176: ='Quality Standards'!C96 -> 0 | R176: ='Quality Standards'!D96 -> 0 | S176: ='Quality Standards'!E96 -> 0 | T176: ='Quality Standards'!F96 -> 0 | U176: ='Quality Standards'!G96 -> 0 | V176: ='Quality Standards'!H96 -> 0 | W176: ='Quality Standards'!I96 -> 0 | X176: ='Quality Standards'!J96 -> 0 | Y176: ='Quality Standards'!K96 -> 0 | Z176: ='Quality Standards'!L96 -> 0 | AA176: ='Quality Standards'!M96 -> 0 | AB176: ='Quality Standards'!N96 -> 0
P177: ='Quality Standards'!B97 -> BRA - Freshwater Class I | Q177: ='Quality Standards'!C97 -> 40 | R177: ='Quality Standards'!D97 -> 500 | S177: ='Quality Standards'!E97 -> 3 | T177: ='Quality Standards'!F97 -> -1 | U177: ='Quality Standards'!G97 -> -1 | V177: ='Quality Standards'!H97 -> 0.02 | W177: ='Quality Standards'!I97 -> -1 | X177: ='Quality Standards'!J97 -> -1 | Y177: ='Quality Standards'!K97 -> -1 | Z177: ='Quality Standards'!L97 -> 10 | AA177: ='Quality Standards'!M97 -> -1 | AB177: ='Quality Standards'!N97 -> -1
P178: ='Quality Standards'!B98 -> BRA - Freshwater Class II | Q178: ='Quality Standards'!C98 -> 100 | R178: ='Quality Standards'!D98 -> 500 | S178: ='Quality Standards'!E98 -> 5 | T178: ='Quality Standards'!F98 -> -1 | U178: ='Quality Standards'!G98 -> -1 | V178: ='Quality Standards'!H98 -> 0.03 | W178: ='Quality Standards'!I98 -> -1 | X178: ='Quality Standards'!J98 -> -1 | Y178: ='Quality Standards'!K98 -> -1 | Z178: ='Quality Standards'!L98 -> 10 | AA178: ='Quality Standards'!M98 -> -1 | AB178: ='Quality Standards'!N98 -> -1
P179: ='Quality Standards'!B99 -> BRA - Freshwater Class III | Q179: ='Quality Standards'!C99 -> 100 | R179: ='Quality Standards'!D99 -> 500 | S179: ='Quality Standards'!E99 -> 10 | T179: ='Quality Standards'!F99 -> -1 | U179: ='Quality Standards'!G99 -> -1 | V179: ='Quality Standards'!H99 -> 0.05 | W179: ='Quality Standards'!I99 -> -1 | X179: ='Quality Standards'!J99 -> -1 | Y179: ='Quality Standards'!K99 -> -1 | Z179: ='Quality Standards'!L99 -> 10 | AA179: ='Quality Standards'!M99 -> -1 | AB179: ='Quality Standards'!N99 -> -1
P180: ='Quality Standards'!B100 -> BRA - Reuse Water Class 1 | Q180: ='Quality Standards'!C100 -> 5 | R180: ='Quality Standards'!D100 -> -1 | S180: ='Quality Standards'!E100 -> 200 | T180: ='Quality Standards'!F100 -> -1 | U180: ='Quality Standards'!G100 -> -1 | V180: ='Quality Standards'!H100 -> -1 | W180: ='Quality Standards'!I100 -> -1 | X180: ='Quality Standards'!J100 -> 200 | Y180: ='Quality Standards'!K100 -> 200 | Z180: ='Quality Standards'!L100 -> -1 | AA180: ='Quality Standards'!M100 -> -1 | AB180: ='Quality Standards'!N100 -> -1
P181: ='Quality Standards'!B101 -> BRA - Reuse Water Class 2 | Q181: ='Quality Standards'!C101 -> 5 | R181: ='Quality Standards'!D101 -> -1 | S181: ='Quality Standards'!E101 -> 500 | T181: ='Quality Standards'!F101 -> -1 | U181: ='Quality Standards'!G101 -> -1 | V181: ='Quality Standards'!H101 -> -1 | W181: ='Quality Standards'!I101 -> -1 | X181: ='Quality Standards'!J101 -> 500 | Y181: ='Quality Standards'!K101 -> -1 | Z181: ='Quality Standards'!L101 -> -1 | AA181: ='Quality Standards'!M101 -> -1 | AB181: ='Quality Standards'!N101 -> -1
P182: ='Quality Standards'!B102 -> BRA - Reuse Water Class 3 | Q182: ='Quality Standards'!C102 -> 10 | R182: ='Quality Standards'!D102 -> -1 | S182: ='Quality Standards'!E102 -> 500 | T182: ='Quality Standards'!F102 -> -1 | U182: ='Quality Standards'!G102 -> -1 | V182: ='Quality Standards'!H102 -> -1 | W182: ='Quality Standards'!I102 -> -1 | X182: ='Quality Standards'!J102 -> 500 | Y182: ='Quality Standards'!K102 -> -1 | Z182: ='Quality Standards'!L102 -> -1 | AA182: ='Quality Standards'!M102 -> -1 | AB182: ='Quality Standards'!N102 -> -1
P183: ='Quality Standards'!B103 -> BRA - Reuse Water Class 4 | Q183: ='Quality Standards'!C103 -> -1 | R183: ='Quality Standards'!D103 -> -1 | S183: ='Quality Standards'!E103 -> 5000 | T183: ='Quality Standards'!F103 -> -1 | U183: ='Quality Standards'!G103 -> -1 | V183: ='Quality Standards'!H103 -> -1 | W183: ='Quality Standards'!I103 -> -1 | X183: ='Quality Standards'!J103 -> 5000 | Y183: ='Quality Standards'!K103 -> -1 | Z183: ='Quality Standards'!L103 -> -1 | AA183: ='Quality Standards'!M103 -> -1 | AB183: ='Quality Standards'!N103 -> -1
P184: ='Quality Standards'!B104 -> Chile | Q184: ='Quality Standards'!C104 -> 0 | R184: ='Quality Standards'!D104 -> 0 | S184: ='Quality Standards'!E104 -> 0 | T184: ='Quality Standards'!F104 -> 0 | U184: ='Quality Standards'!G104 -> 0 | V184: ='Quality Standards'!H104 -> 0 | W184: ='Quality Standards'!I104 -> 0 | X184: ='Quality Standards'!J104 -> 0 | Y184: ='Quality Standards'!K104 -> 0 | Z184: ='Quality Standards'!L104 -> 0 | AA184: ='Quality Standards'!M104 -> 0 | AB184: ='Quality Standards'!N104 -> 0
P185: ='Quality Standards'!B105 -> CHL - Drinking water for human consumption | Q185: ='Quality Standards'!C105 -> 5 | R185: ='Quality Standards'!D105 -> -1 | S185: ='Quality Standards'!E105 -> -1 | T185: ='Quality Standards'!F105 -> -1 | U185: ='Quality Standards'!G105 -> -1 | V185: ='Quality Standards'!H105 -> -1 | W185: ='Quality Standards'!I105 -> -1 | X185: ='Quality Standards'!J105 -> -1 | Y185: ='Quality Standards'!K105 -> -1 | Z185: ='Quality Standards'!L105 -> 10 | AA185: ='Quality Standards'!M105 -> -1 | AB185: ='Quality Standards'!N105 -> -1
P186: ='Quality Standards'!B106 -> CHL - Water for agricultural Irrigation | Q186: ='Quality Standards'!C106 -> -1 | R186: ='Quality Standards'!D106 -> -1 | S186: ='Quality Standards'!E106 -> -1 | T186: ='Quality Standards'!F106 -> -1 | U186: ='Quality Standards'!G106 -> -1 | V186: ='Quality Standards'!H106 -> -1 | W186: ='Quality Standards'!I106 -> -1 | X186: ='Quality Standards'!J106 -> 1000 | Y186: ='Quality Standards'!K106 -> 5000 | Z186: ='Quality Standards'!L106 -> -1 | AA186: ='Quality Standards'!M106 -> -1 | AB186: ='Quality Standards'!N106 -> -1
P187: ='Quality Standards'!B107 -> CHL - Water for surface water or groundwater recharge | Q187: ='Quality Standards'!C107 -> 30 | R187: ='Quality Standards'!D107 -> -1 | S187: ='Quality Standards'!E107 -> -1 | T187: ='Quality Standards'!F107 -> -1 | U187: ='Quality Standards'!G107 -> -1 | V187: ='Quality Standards'!H107 -> -1 | W187: ='Quality Standards'!I107 -> -1 | X187: ='Quality Standards'!J107 -> -1 | Y187: ='Quality Standards'!K107 -> -1 | Z187: ='Quality Standards'!L107 -> -1 | AA187: ='Quality Standards'!M107 -> -1 | AB187: ='Quality Standards'!N107 -> -1
P188: ='Quality Standards'!B108 -> Argentina | Q188: ='Quality Standards'!C108 -> 0 | R188: ='Quality Standards'!D108 -> 0 | S188: ='Quality Standards'!E108 -> 0 | T188: ='Quality Standards'!F108 -> 0 | U188: ='Quality Standards'!G108 -> 0 | V188: ='Quality Standards'!H108 -> 0 | W188: ='Quality Standards'!I108 -> 0 | X188: ='Quality Standards'!J108 -> 0 | Y188: ='Quality Standards'!K108 -> 0 | Z188: ='Quality Standards'!L108 -> 0 | AA188: ='Quality Standards'!M108 -> 0 | AB188: ='Quality Standards'!N108 -> 0
P189: ='Quality Standards'!B109 -> ARG - Drinking water for human consumption | Q189: ='Quality Standards'!C109 -> 5 | R189: ='Quality Standards'!D109 -> -1 | S189: ='Quality Standards'!E109 -> -1 | T189: ='Quality Standards'!F109 -> -1 | U189: ='Quality Standards'!G109 -> -1 | V189: ='Quality Standards'!H109 -> -1 | W189: ='Quality Standards'!I109 -> 0 | X189: ='Quality Standards'!J109 -> -1 | Y189: ='Quality Standards'!K109 -> 1000 | Z189: ='Quality Standards'!L109 -> -1 | AA189: ='Quality Standards'!M109 -> -1 | AB189: ='Quality Standards'!N109 -> -1
P190: ='Quality Standards'!B110 -> ARG - Water for agricultural Irrigation(non-food crops) | Q190: ='Quality Standards'!C110 -> -1 | R190: ='Quality Standards'!D110 -> 50 | S190: ='Quality Standards'!E110 -> 30 | T190: ='Quality Standards'!F110 -> -1 | U190: ='Quality Standards'!G110 -> 30 | V190: ='Quality Standards'!H110 -> 5 | W190: ='Quality Standards'!I110 -> -1 | X190: ='Quality Standards'!J110 -> -1 | Y190: ='Quality Standards'!K110 -> 500 | Z190: ='Quality Standards'!L110 -> 30 | AA190: ='Quality Standards'!M110 -> -1 | AB190: ='Quality Standards'!N110 -> -1
P191: ='Quality Standards'!B111 -> Mexico | Q191: ='Quality Standards'!C111 -> 0 | R191: ='Quality Standards'!D111 -> 0 | S191: ='Quality Standards'!E111 -> 0 | T191: ='Quality Standards'!F111 -> 0 | U191: ='Quality Standards'!G111 -> 0 | V191: ='Quality Standards'!H111 -> 0 | W191: ='Quality Standards'!I111 -> 0 | X191: ='Quality Standards'!J111 -> 0 | Y191: ='Quality Standards'!K111 -> 0 | Z191: ='Quality Standards'!L111 -> 0 | AA191: ='Quality Standards'!M111 -> 0 | AB191: ='Quality Standards'!N111 -> 0
P192: ='Quality Standards'!B112 -> MEX - Drinking water for human consumption | Q192: ='Quality Standards'!C112 -> 5 | R192: ='Quality Standards'!D112 -> -1 | S192: ='Quality Standards'!E112 -> -1 | T192: ='Quality Standards'!F112 -> -1 | U192: ='Quality Standards'!G112 -> -1 | V192: ='Quality Standards'!H112 -> -1 | W192: ='Quality Standards'!I112 -> -1 | X192: ='Quality Standards'!J112 -> 2 | Y192: ='Quality Standards'!K112 -> 1000 | Z192: ='Quality Standards'!L112 -> 10 | AA192: ='Quality Standards'!M112 -> -1 | AB192: ='Quality Standards'!N112 -> -1
P193: ='Quality Standards'!B113 -> MEX - Water for public service with direct contact | Q193: ='Quality Standards'!C113 -> 20 | R193: ='Quality Standards'!D113 -> -1 | S193: ='Quality Standards'!E113 -> 20 | T193: ='Quality Standards'!F113 -> -1 | U193: ='Quality Standards'!G113 -> -1 | V193: ='Quality Standards'!H113 -> -1 | W193: ='Quality Standards'!I113 -> 240 | X193: ='Quality Standards'!J113 -> -1 | Y193: ='Quality Standards'!K113 -> -1 | Z193: ='Quality Standards'!L113 -> -1 | AA193: ='Quality Standards'!M113 -> -1 | AB193: ='Quality Standards'!N113 -> -1
P194: ='Quality Standards'!B114 -> MEX - Water for public service without direct contact | Q194: ='Quality Standards'!C114 -> 30 | R194: ='Quality Standards'!D114 -> -1 | S194: ='Quality Standards'!E114 -> 30 | T194: ='Quality Standards'!F114 -> -1 | U194: ='Quality Standards'!G114 -> -1 | V194: ='Quality Standards'!H114 -> -1 | W194: ='Quality Standards'!I114 -> 1000 | X194: ='Quality Standards'!J114 -> -1 | Y194: ='Quality Standards'!K114 -> -1 | Z194: ='Quality Standards'!L114 -> -1 | AA194: ='Quality Standards'!M114 -> -1 | AB194: ='Quality Standards'!N114 -> -1
P195: ='Quality Standards'!B115 -> Classes draft Lena | Q195: ='Quality Standards'!C115 -> 0 | R195: ='Quality Standards'!D115 -> 0 | S195: ='Quality Standards'!E115 -> 0 | T195: ='Quality Standards'!F115 -> 0 | U195: ='Quality Standards'!G115 -> 0 | V195: ='Quality Standards'!H115 -> 0 | W195: ='Quality Standards'!I115 -> 0 | X195: ='Quality Standards'!J115 -> 0 | Y195: ='Quality Standards'!K115 -> 0 | Z195: ='Quality Standards'!L115 -> 0 | AA195: ='Quality Standards'!M115 -> 0 | AB195: ='Quality Standards'!N115 -> 0
P196: ='Quality Standards'!B116 -> Class A | Q196: ='Quality Standards'!C116 -> 5 | R196: ='Quality Standards'!D116 -> 10 | S196: ='Quality Standards'!E116 -> 10 | T196: ='Quality Standards'!F116 -> 100 | U196: ='Quality Standards'!G116 -> -1 | V196: ='Quality Standards'!H116 -> 2-5 | W196: ='Quality Standards'!I116 -> 0 | X196: ='Quality Standards'!J116 -> 1000 | Y196: ='Quality Standards'!K116 -> 200 | Z196: ='Quality Standards'!L116 -> 10 | AA196: ='Quality Standards'!M116 -> 100 | AB196: ='Quality Standards'!N116 -> 10
P197: ='Quality Standards'!B117 -> Class B | Q197: ='Quality Standards'!C117 -> 10 | R197: ='Quality Standards'!D117 -> 10 | S197: ='Quality Standards'!E117 -> 20 | T197: ='Quality Standards'!F117 -> 100 | U197: ='Quality Standards'!G117 -> -1 | V197: ='Quality Standards'!H117 -> 2-5 | W197: ='Quality Standards'!I117 -> 1000 | X197: ='Quality Standards'!J117 -> 10000 | Y197: ='Quality Standards'!K117 -> 1650 | Z197: ='Quality Standards'!L117 -> 30 | AA197: ='Quality Standards'!M117 -> 100 | AB197: ='Quality Standards'!N117 -> 10
P198: ='Quality Standards'!B118 -> Class C | Q198: ='Quality Standards'!C118 -> 10 | R198: ='Quality Standards'!D118 -> 50 | S198: ='Quality Standards'!E118 -> 30 | T198: ='Quality Standards'!F118 -> 70 | U198: ='Quality Standards'!G118 -> 30 | V198: ='Quality Standards'!H118 -> 0.2 | W198: ='Quality Standards'!I118 -> 10000 | X198: ='Quality Standards'!J118 -> 100000 | Y198: ='Quality Standards'!K118 -> 1650 | Z198: ='Quality Standards'!L118 -> 45 | AA198: ='Quality Standards'!M118 -> 70 | AB198: ='Quality Standards'!N118 -> 100
P199: ='Quality Standards'!B119 -> Class D | Q199: ='Quality Standards'!C119 -> -1 | R199: ='Quality Standards'!D119 -> 10 | S199: ='Quality Standards'!E119 -> 30 | T199: ='Quality Standards'!F119 -> 70 | U199: ='Quality Standards'!G119 -> -1 | V199: ='Quality Standards'!H119 -> 0.2 | W199: ='Quality Standards'!I119 -> 10000 | X199: ='Quality Standards'!J119 -> 10000 | Y199: ='Quality Standards'!K119 -> -1 | Z199: ='Quality Standards'!L119 -> -1 | AA199: ='Quality Standards'!M119 -> 70 | AB199: ='Quality Standards'!N119 -> 1
P200: ='Quality Standards'!B120 -> Class E | Q200: ='Quality Standards'!C120 -> 2 | R200: ='Quality Standards'!D120 -> 50 | S200: ='Quality Standards'!E120 -> 15 | T200: ='Quality Standards'!F120 -> 70 | U200: ='Quality Standards'!G120 -> 10 | V200: ='Quality Standards'!H120 -> -1 | W200: ='Quality Standards'!I120 -> 10000 | X200: ='Quality Standards'!J120 -> 100000 | Y200: ='Quality Standards'!K120 -> 385 | Z200: ='Quality Standards'!L120 -> 25 | AA200: ='Quality Standards'!M120 -> 70 | AB200: ='Quality Standards'!N120 -> -1
P201: ='Quality Standards'!B121 -> Poseidon Classes | Q201: ='Quality Standards'!C121 -> 0 | R201: ='Quality Standards'!D121 -> 0 | S201: ='Quality Standards'!E121 -> 0 | T201: ='Quality Standards'!F121 -> 0 | U201: ='Quality Standards'!G121 -> 0 | V201: ='Quality Standards'!H121 -> 0 | W201: ='Quality Standards'!I121 -> 0 | X201: ='Quality Standards'!J121 -> 0 | Y201: ='Quality Standards'!K121 -> 0 | Z201: ='Quality Standards'!L121 -> 0 | AA201: ='Quality Standards'!M121 -> 0 | AB201: ='Quality Standards'!N121 -> 0
P202: ='Quality Standards'!B122 -> Pos-Class A - very low | Q202: ='Quality Standards'!C122 -> 2 | R202: ='Quality Standards'!D122 -> 10 | S202: ='Quality Standards'!E122 -> 10 | T202: ='Quality Standards'!F122 -> -1 | U202: ='Quality Standards'!G122 -> 10 | V202: ='Quality Standards'!H122 -> -1 | W202: ='Quality Standards'!I122 -> 0 | X202: ='Quality Standards'!J122 -> -1 | Y202: ='Quality Standards'!K122 -> -1 | Z202: ='Quality Standards'!L122 -> -1 | AA202: ='Quality Standards'!M122 -> -1 | AB202: ='Quality Standards'!N122 -> 25
P203: ='Quality Standards'!B123 -> Pos-Class B - low | Q203: ='Quality Standards'!C123 -> -1 | R203: ='Quality Standards'!D123 -> 20 | S203: ='Quality Standards'!E123 -> 20 | T203: ='Quality Standards'!F123 -> 150 | U203: ='Quality Standards'!G123 -> -1 | V203: ='Quality Standards'!H123 -> -1 | W203: ='Quality Standards'!I123 -> -1 | X203: ='Quality Standards'!J123 -> 1000 | Y203: ='Quality Standards'!K123 -> 30 | Z203: ='Quality Standards'!L123 -> 50 | AA203: ='Quality Standards'!M123 -> -1 | AB203: ='Quality Standards'!N123 -> -1
P204: ='Quality Standards'!B124 -> Pos-Class C - medium | Q204: ='Quality Standards'!C124 -> 10 | R204: ='Quality Standards'!D124 -> 30 | S204: ='Quality Standards'!E124 -> 30 | T204: ='Quality Standards'!F124 -> -1 | U204: ='Quality Standards'!G124 -> 10 | V204: ='Quality Standards'!H124 -> -1 | W204: ='Quality Standards'!I124 -> 200 | X204: ='Quality Standards'!J124 -> 23 | Y204: ='Quality Standards'!K124 -> -1 | Z204: ='Quality Standards'!L124 -> -1 | AA204: ='Quality Standards'!M124 -> -1 | AB204: ='Quality Standards'!N124 -> -1
P205: ='Quality Standards'!B125 -> Pos-Class D - good | Q205: ='Quality Standards'!C125 -> -1 | R205: ='Quality Standards'!D125 -> 150 | S205: ='Quality Standards'!E125 -> 300 | T205: ='Quality Standards'!F125 -> 500 | U205: ='Quality Standards'!G125 -> 70 | V205: ='Quality Standards'!H125 -> -1 | W205: ='Quality Standards'!I125 -> -1 | X205: ='Quality Standards'!J125 -> -1 | Y205: ='Quality Standards'!K125 -> -1 | Z205: ='Quality Standards'!L125 -> 45 | AA205: ='Quality Standards'!M125 -> -1 | AB205: ='Quality Standards'!N125 -> -1
P206: ='Quality Standards'!B126 -> Pos-Class E - excellent | Q206: ='Quality Standards'!C126 -> -1 | R206: ='Quality Standards'!D126 -> 30 | S206: ='Quality Standards'!E126 -> 30 | T206: ='Quality Standards'!F126 -> -1 | U206: ='Quality Standards'!G126 -> -1 | V206: ='Quality Standards'!H126 -> -1 | W206: ='Quality Standards'!I126 -> 200 | X206: ='Quality Standards'!J126 -> -1 | Y206: ='Quality Standards'!K126 -> -1 | Z206: ='Quality Standards'!L126 -> -1 | AA206: ='Quality Standards'!M126 -> -1 | AB206: ='Quality Standards'!N126 -> -1
P207: ='Quality Standards'!B127 -> User-defined | Q207: ='Quality Standards'!C127 -> 0 | R207: ='Quality Standards'!D127 -> 0 | S207: ='Quality Standards'!E127 -> 0 | T207: ='Quality Standards'!F127 -> 0 | U207: ='Quality Standards'!G127 -> 0 | V207: ='Quality Standards'!H127 -> 0 | W207: ='Quality Standards'!I127 -> 0 | X207: ='Quality Standards'!J127 -> 0 | Y207: ='Quality Standards'!K127 -> 0 | Z207: ='Quality Standards'!L127 -> 0 | AA207: ='Quality Standards'!M127 -> 0 | AB207: ='Quality Standards'!N127 -> 0
P208: ='Quality Standards'!B128 -> Class A - very low | Q208: ='Quality Standards'!C128 -> -1 | R208: ='Quality Standards'!D128 -> -1 | S208: ='Quality Standards'!E128 -> -1 | T208: ='Quality Standards'!F128 -> -1 | U208: ='Quality Standards'!G128 -> -1 | V208: ='Quality Standards'!H128 -> -1 | W208: ='Quality Standards'!I128 -> -1 | X208: ='Quality Standards'!J128 -> -1 | Y208: ='Quality Standards'!K128 -> -1 | Z208: ='Quality Standards'!L128 -> -1 | AA208: ='Quality Standards'!M128 -> -1 | AB208: ='Quality Standards'!N128 -> -1
P209: ='Quality Standards'!B129 -> Class B - low | Q209: ='Quality Standards'!C129 -> -1 | R209: ='Quality Standards'!D129 -> -1 | S209: ='Quality Standards'!E129 -> -1 | T209: ='Quality Standards'!F129 -> -1 | U209: ='Quality Standards'!G129 -> -1 | V209: ='Quality Standards'!H129 -> -1 | W209: ='Quality Standards'!I129 -> -1 | X209: ='Quality Standards'!J129 -> -1 | Y209: ='Quality Standards'!K129 -> -1 | Z209: ='Quality Standards'!L129 -> -1 | AA209: ='Quality Standards'!M129 -> -1 | AB209: ='Quality Standards'!N129 -> -1
P210: ='Quality Standards'!B130 -> Class C - medium | Q210: ='Quality Standards'!C130 -> -1 | R210: ='Quality Standards'!D130 -> -1 | S210: ='Quality Standards'!E130 -> -1 | T210: ='Quality Standards'!F130 -> -1 | U210: ='Quality Standards'!G130 -> -1 | V210: ='Quality Standards'!H130 -> -1 | W210: ='Quality Standards'!I130 -> -1 | X210: ='Quality Standards'!J130 -> -1 | Y210: ='Quality Standards'!K130 -> -1 | Z210: ='Quality Standards'!L130 -> -1 | AA210: ='Quality Standards'!M130 -> -1 | AB210: ='Quality Standards'!N130 -> -1
P211: ='Quality Standards'!B131 -> Class D - good | Q211: ='Quality Standards'!C131 -> -1 | R211: ='Quality Standards'!D131 -> -1 | S211: ='Quality Standards'!E131 -> -1 | T211: ='Quality Standards'!F131 -> -1 | U211: ='Quality Standards'!G131 -> -1 | V211: ='Quality Standards'!H131 -> -1 | W211: ='Quality Standards'!I131 -> -1 | X211: ='Quality Standards'!J131 -> -1 | Y211: ='Quality Standards'!K131 -> -1 | Z211: ='Quality Standards'!L131 -> -1 | AA211: ='Quality Standards'!M131 -> -1 | AB211: ='Quality Standards'!N131 -> -1
P212: ='Quality Standards'!B132 -> Class E - excellent | Q212: ='Quality Standards'!C132 -> -1 | R212: ='Quality Standards'!D132 -> -1 | S212: ='Quality Standards'!E132 -> -1 | T212: ='Quality Standards'!F132 -> -1 | U212: ='Quality Standards'!G132 -> -1 | V212: ='Quality Standards'!H132 -> -1 | W212: ='Quality Standards'!I132 -> -1 | X212: ='Quality Standards'!J132 -> -1 | Y212: ='Quality Standards'!K132 -> -1 | Z212: ='Quality Standards'!L132 -> -1 | AA212: ='Quality Standards'!M132 -> -1 | AB212: ='Quality Standards'!N132 -> -1
P213: ='Quality Standards'!B133 -> VietnamWQS | Q213: ='Quality Standards'!C133 -> 0 | R213: ='Quality Standards'!D133 -> 0 | S213: ='Quality Standards'!E133 -> 0 | T213: ='Quality Standards'!F133 -> 0 | U213: ='Quality Standards'!G133 -> 0 | V213: ='Quality Standards'!H133 -> 0 | W213: ='Quality Standards'!I133 -> 0 | X213: ='Quality Standards'!J133 -> 0 | Y213: ='Quality Standards'!K133 -> 0 | Z213: ='Quality Standards'!L133 -> 0 | AA213: ='Quality Standards'!M133 -> 0 | AB213: ='Quality Standards'!N133 -> 0
P214: ='Quality Standards'!B134 -> Class A - discharge with drinking water function | Q214: ='Quality Standards'!C134 -> -1 | R214: ='Quality Standards'!D134 -> 50 | S214: ='Quality Standards'!E134 -> 30 | T214: ='Quality Standards'!F134 -> 75 | U214: ='Quality Standards'!G134 -> 20 | V214: ='Quality Standards'!H134 -> 4 | W214: ='Quality Standards'!I134 -> -1 | X214: ='Quality Standards'!J134 -> -1 | Y214: ='Quality Standards'!K134 -> -1 | Z214: ='Quality Standards'!L134 -> 5 | AA214: ='Quality Standards'!M134 -> 3000 | AB214: ='Quality Standards'!N134 -> -1
P215: ='Quality Standards'!B135 -> Class B - discharge without drinking water function | Q215: ='Quality Standards'!C135 -> -1 | R215: ='Quality Standards'!D135 -> 100 | S215: ='Quality Standards'!E135 -> 50 | T215: ='Quality Standards'!F135 -> 150 | U215: ='Quality Standards'!G135 -> 40 | V215: ='Quality Standards'!H135 -> 6 | W215: ='Quality Standards'!I135 -> -1 | X215: ='Quality Standards'!J135 -> -1 | Y215: ='Quality Standards'!K135 -> -1 | Z215: ='Quality Standards'!L135 -> 10 | AA215: ='Quality Standards'!M135 -> 5000 | AB215: ='Quality Standards'!N135 -> -1
P216: ='Quality Standards'!B136 -> Irrigation | Q216: ='Quality Standards'!C136 -> -1 | R216: ='Quality Standards'!D136 -> -1 | S216: ='Quality Standards'!E136 -> -1 | T216: ='Quality Standards'!F136 -> -1 | U216: ='Quality Standards'!G136 -> -1 | V216: ='Quality Standards'!H136 -> -1 | W216: ='Quality Standards'!I136 -> 200 | X216: ='Quality Standards'!J136 -> -1 | Y216: ='Quality Standards'!K136 -> 2000 | Z216: ='Quality Standards'!L136 -> -1 | AA216: ='Quality Standards'!M136 -> -1 | AB216: ='Quality Standards'!N136 -> -1
P217: ='Quality Standards'!B137 -> VietnamWW | Q217: ='Quality Standards'!C137 -> 0 | R217: ='Quality Standards'!D137 -> 0 | S217: ='Quality Standards'!E137 -> 0 | T217: ='Quality Standards'!F137 -> 0 | U217: ='Quality Standards'!G137 -> 0 | V217: ='Quality Standards'!H137 -> 0 | W217: ='Quality Standards'!I137 -> 0 | X217: ='Quality Standards'!J137 -> 0 | Y217: ='Quality Standards'!K137 -> 0 | Z217: ='Quality Standards'!L137 -> 0 | AA217: ='Quality Standards'!M137 -> 0 | AB217: ='Quality Standards'!N137 -> 0
P218: ='Quality Standards'!B142 -> Hanoi, Influent (Best quality) | Q218: ='Quality Standards'!C142 -> -1 | R218: ='Quality Standards'!D142 -> 51 | S218: ='Quality Standards'!E142 -> 45 | T218: ='Quality Standards'!F142 -> 115 | U218: ='Quality Standards'!G142 -> 34 | V218: ='Quality Standards'!H142 -> -1 | W218: ='Quality Standards'!I142 -> -1 | X218: ='Quality Standards'!J142 -> -1 | Y218: ='Quality Standards'!K142 -> -1 | Z218: ='Quality Standards'!L142 -> 18 | AA218: ='Quality Standards'!M142 -> -1 | AB218: ='Quality Standards'!N142 -> -1
P219: ='Quality Standards'!B143 -> Hanoi, Effluent (Best quality) | Q219: ='Quality Standards'!C143 -> -1 | R219: ='Quality Standards'!D143 -> 5 | S219: ='Quality Standards'!E143 -> 9 | T219: ='Quality Standards'!F143 -> 17 | U219: ='Quality Standards'!G143 -> 8 | V219: ='Quality Standards'!H143 -> -1 | W219: ='Quality Standards'!I143 -> -1 | X219: ='Quality Standards'!J143 -> -1 | Y219: ='Quality Standards'!K143 -> -1 | Z219: ='Quality Standards'!L143 -> 0.5 | AA219: ='Quality Standards'!M143 -> -1 | AB219: ='Quality Standards'!N143 -> -1
P220: ='Quality Standards'!B144 -> Ho Chi Minh City, Influent (Best quality) | Q220: ='Quality Standards'!C144 -> -1 | R220: ='Quality Standards'!D144 -> 49 | S220: ='Quality Standards'!E144 -> 42 | T220: ='Quality Standards'!F144 -> 135 | U220: ='Quality Standards'!G144 -> 11 | V220: ='Quality Standards'!H144 -> -1 | W220: ='Quality Standards'!I144 -> -1 | X220: ='Quality Standards'!J144 -> -1 | Y220: ='Quality Standards'!K144 -> -1 | Z220: ='Quality Standards'!L144 -> 18 | AA220: ='Quality Standards'!M144 -> -1 | AB220: ='Quality Standards'!N144 -> -1
P221: ='Quality Standards'!B145 -> Ho Chi Minh City, Effluent(Best quality) | Q221: ='Quality Standards'!C145 -> -1 | R221: ='Quality Standards'!D145 -> 7 | S221: ='Quality Standards'!E145 -> 3 | T221: ='Quality Standards'!F145 -> 30 | U221: ='Quality Standards'!G145 -> 7 | V221: ='Quality Standards'!H145 -> -1 | W221: ='Quality Standards'!I145 -> -1 | X221: ='Quality Standards'!J145 -> -1 | Y221: ='Quality Standards'!K145 -> -1 | Z221: ='Quality Standards'!L145 -> 3.3 | AA221: ='Quality Standards'!M145 -> -1 | AB221: ='Quality Standards'!N145 -> -1
P222: ='Quality Standards'!B146 -> Da Nang, Influent (Best quality) | Q222: ='Quality Standards'!C146 -> -1 | R222: ='Quality Standards'!D146 -> 28 | S222: ='Quality Standards'!E146 -> 34 | T222: ='Quality Standards'!F146 -> 64 | U222: ='Quality Standards'!G146 -> 16 | V222: ='Quality Standards'!H146 -> -1 | W222: ='Quality Standards'!I146 -> -1 | X222: ='Quality Standards'!J146 -> -1 | Y222: ='Quality Standards'!K146 -> -1 | Z222: ='Quality Standards'!L146 -> -1 | AA222: ='Quality Standards'!M146 -> -1 | AB222: ='Quality Standards'!N146 -> -1
P223: ='Quality Standards'!B147 -> Da Nang, Effluent (Best quality) | Q223: ='Quality Standards'!C147 -> -1 | R223: ='Quality Standards'!D147 -> 16 | S223: ='Quality Standards'!E147 -> 26 | T223: ='Quality Standards'!F147 -> 47 | U223: ='Quality Standards'!G147 -> 13 | V223: ='Quality Standards'!H147 -> -1 | W223: ='Quality Standards'!I147 -> -1 | X223: ='Quality Standards'!J147 -> -1 | Y223: ='Quality Standards'!K147 -> -1 | Z223: ='Quality Standards'!L147 -> -1 | AA223: ='Quality Standards'!M147 -> -1 | AB223: ='Quality Standards'!N147 -> -1
P224: ='Quality Standards'!B148 -> Quang Ninh, Influent (Best quality) | Q224: ='Quality Standards'!C148 -> -1 | R224: ='Quality Standards'!D148 -> 41 | S224: ='Quality Standards'!E148 -> 36 | T224: ='Quality Standards'!F148 -> 68 | U224: ='Quality Standards'!G148 -> 0.1 | V224: ='Quality Standards'!H148 -> -1 | W224: ='Quality Standards'!I148 -> -1 | X224: ='Quality Standards'!J148 -> -1 | Y224: ='Quality Standards'!K148 -> -1 | Z224: ='Quality Standards'!L148 -> 1.1 | AA224: ='Quality Standards'!M148 -> -1 | AB224: ='Quality Standards'!N148 -> -1
P225: ='Quality Standards'!B149 -> Quang Ninh, Effluent (Best quality) | Q225: ='Quality Standards'!C149 -> -1 | R225: ='Quality Standards'!D149 -> 11 | S225: ='Quality Standards'!E149 -> 20 | T225: ='Quality Standards'!F149 -> 32 | U225: ='Quality Standards'!G149 -> 0.2 | V225: ='Quality Standards'!H149 -> -1 | W225: ='Quality Standards'!I149 -> -1 | X225: ='Quality Standards'!J149 -> -1 | Y225: ='Quality Standards'!K149 -> -1 | Z225: ='Quality Standards'!L149 -> 1 | AA225: ='Quality Standards'!M149 -> -1 | AB225: ='Quality Standards'!N149 -> -1
... 284 more rows

Sheet EU1-A2 (hidden)
A1: Back to start | F1: Results - Comparision of possible options
B2: Select the treatment train here: --------------> | F2: =F72 -> Lagooning: Australia I | P2: Data for the charts
H3: Min | I3: Average | J3: Max | Q3: Min 1 | R3: POS | S3: =F2 -> Lagooning: Australia I | T3: NEG | U3: Max 1 | V3: Min 2 | W3: POS | X3: =F16 -> Lagooning: Australia II | Y3: NEG | Z3: Max 2 | AA3: Min 3 | AB3: POS | AC3: =F30 -> Only disinfection: Brazil | AD3: NEG | AE3: Max 3 | AF3: Limit | AG3: XMin 1 | AH3: POS | AI3: =F2 -> Lagooning: Australia I | AJ3: NEG | AK3: XMax 1 | AL3: XMin 2 | AM3: POS | AN3: =F16 -> Lagooning: Australia II | AO3: NEG | AP3: XMax 2 | AQ3: XMin 3 | AR3: POS | AS3: =F30 -> Only disinfection: Brazil | AT3: NEG | AU3: XMax 3 | AV3: XLimit
B4: =OFFSET(Results!$B$5,MATCH(F2,Results!$B$5:$B$21,0)-1,1) ->  | G4: Turb | H4: =OFFSET(Results!$B$5,MATCH(F2,Results!$B$5:$B$70,0)-1,2) -> 11.2 | I4: =OFFSET(Results!$B$5,MATCH(F2,Results!$B$5:$B$70,0)-1,3) -> 3.85 | J4: =OFFSET(Results!$B$5,MATCH(F2,Results!$B$5:$B$70,0)-1,4) -> 1 | K4: Reliability | L4: =OFFSET(Results!$B$5,MATCH(F2,Results!$B$5:$B$35,0)-1,39) -> 2.75 | M4: Power demand | N4: =OFFSET(Results!$B$5,MATCH(F2,Results!$B$5:$B$35,0)-1,46) -> 0.2144266597 | P4: =IF(Q20=-1,"",Q19) ->  | Q4: =OFFSET($G$4,MATCH(P4,$G$4:$G$15,0)-1,1) ->  | R4: =Q4-S4 ->  | S4: =OFFSET($G$4,MATCH(P4,$G$4:$G$15,0)-1,2) ->  | T4: =S4-U4 ->  | U4: =OFFSET($G$4,MATCH(P4,$G$4:$G$15,0)-1,3) ->  | V4: =OFFSET($G$18,MATCH(P4,$G$18:$G$29,0)-1,1) ->  | W4: =V4-X4 ->  | X4: =OFFSET($G$18,MATCH(P4,$G$18:$G$29,0)-1,2) ->  | Y4: =X4-Z4 ->  | Z4: =OFFSET($G$18,MATCH(P4,$G$18:$G$29,0)-1,3) ->  | AA4: =OFFSET($G$32,MATCH(P4,$G$32:$G$43,0)-1,1) ->  | AB4: =AA4-AC4 ->  | AC4: =OFFSET($G$32,MATCH(P4,$G$32:$G$43,0)-1,2) ->  | AD4: =AC4-AE4 ->  | AE4: =OFFSET($G$32,MATCH(P4,$G$32:$G$43,0)-1,3) ->  | AF4: =H45 -> -1
G5: TSS | H5: =OFFSET(Results!$B$5,MATCH(F2,Results!$B$5:$B$70,0)-1,5) -> 21.42 | I5: =OFFSET(Results!$B$5,MATCH(F2,Results!$B$5:$B$70,0)-1,6) -> 6.3 | J5: =OFFSET(Results!$B$5,MATCH(F2,Results!$B$5:$B$70,0)-1,7) -> 1.26 | K5: Ease to upgrade | L5: =OFFSET(Results!$B$5,MATCH(F2,Results!$B$5:$B$35,0)-1,40) -> 2.25 | M5: Chemical demand | N5: =OFFSET(Results!$B$5,MATCH(F2,Results!$B$5:$B$35,0)-1,47) -> 6 | P5: =IF($R$20=-1,"",$R$19) -> TSS | Q5: =OFFSET($G$4,MATCH(P5,$G$4:$G$15,0)-1,1) -> 21.42 | R5: =Q5-S5 -> 15.12 | S5: =OFFSET($G$4,MATCH(P5,$G$4:$G$15,0)-1,2) -> 6.3 | T5: =S5-U5 -> 5.04 | U5: =OFFSET($G$4,MATCH(P5,$G$4:$G$15,0)-1,3) -> 1.26 | V5: =OFFSET($G$18,MATCH(P5,$G$18:$G$29,0)-1,1) -> 30.345 | W5: =V5-X5 -> 18.5325 | X5: =OFFSET($G$18,MATCH(P5,$G$18:$G$29,0)-1,2) -> 11.8125 | Y5: =X5-Z5 -> 8.0325 | Z5: =OFFSET($G$18,MATCH(P5,$G$18:$G$29,0)-1,3) -> 3.78 | AA5: =OFFSET($G$32,MATCH(P5,$G$32:$G$43,0)-1,1) -> 29.4 | AB5: =AA5-AC5 -> 18.9 | AC5: =OFFSET($G$32,MATCH(P5,$G$32:$G$43,0)-1,2) -> 10.5 | AD5: =AC5-AE5 -> 6.3 | AE5: =OFFSET($G$32,MATCH(P5,$G$32:$G$43,0)-1,3) -> 4.2 | AF5: 30
G6: BOD | H6: =OFFSET(Results!$B$5,MATCH(F2,Results!$B$5:$B$70,0)-1,8) -> 48.944 | I6: =OFFSET(Results!$B$5,MATCH(F2,Results!$B$5:$B$70,0)-1,9) -> 28.9275 | J6: =OFFSET(Results!$B$5,MATCH(F2,Results!$B$5:$B$70,0)-1,10) -> 18.24 | K6: Adaptability to varying flow | L6: =OFFSET(Results!$B$5,MATCH(F2,Results!$B$5:$B$35,0)-1,41) -> 2.25 | M6: Odor generation | N6: =OFFSET(Results!$B$5,MATCH(F2,Results!$B$5:$B$35,0)-1,48) -> 2 | P6: =IF($S$20=-1,"",$S$19) -> BOD | Q6: 48.944 | R6: 20.0165 | S6: 28.9275 | T6: 10.6875 | U6: 18.24 | V6: 56.2856 | W6: 20.33285 | X6: 35.95275 | Y6: 11.63275 | Z6: 24.32 | AA6: 51.072 | AB6: 19.722 | AC6: 31.35 | AD6: 8.74 | AE6: 22.61 | AF6: 30
G7: COD | H7: =OFFSET(Results!$B$5,MATCH(F2,Results!$B$5:$B$70,0)-1,11) -> 131.58 | I7: =OFFSET(Results!$B$5,MATCH(F2,Results!$B$5:$B$70,0)-1,12) -> 67.08 | J7: =OFFSET(Results!$B$5,MATCH(F2,Results!$B$5:$B$70,0)-1,13) -> 37.625 | K7: Adaptability to varying quality | L7: =OFFSET(Results!$B$5,MATCH(F2,Results!$B$5:$B$35,0)-1,42) -> 2.25 | M7: Impact on ground water | N7: =OFFSET(Results!$B$5,MATCH(F2,Results!$B$5:$B$35,0)-1,49) -> 1 | P7: =IF($T$20=-1,"",$T$19) -> COD | Q7: 131.58 | R7: 64.5 | S7: 67.08 | T7: 29.455 | U7: 37.625 | V7: 139.32 | W7: 56.76 | X7: 82.56 | Y7: 29.885 | Z7: 52.675 | AA7: 132.096 | AB7: 46.956 | AC7: 85.14 | AD7: 21.1775 | AE7: 63.9625 | AF7: 90
G8: TN | H8: =OFFSET(Results!$B$5,MATCH(F2,Results!$B$5:$B$70,0)-1,14) -> 25.27 | I8: =OFFSET(Results!$B$5,MATCH(F2,Results!$B$5:$B$70,0)-1,15) -> 19.872 | J8: =OFFSET(Results!$B$5,MATCH(F2,Results!$B$5:$B$70,0)-1,16) -> 16.8432 | K8: Ease of O & M | L8: =OFFSET(Results!$B$5,MATCH(F2,Results!$B$5:$B$35,0)-1,43) -> 2.25 | M8: Land requirment | N8: =OFFSET(Results!$B$5,MATCH(F2,Results!$B$5:$B$35,0)-1,50) -> 4.572698248e-06 | P8: =IF($U$20=-1,"",$U$19) ->  | AF8: -1
G9: TP | H9: =OFFSET(Results!$B$5,MATCH(F2,Results!$B$5:$B$70,0)-1,17) -> 4.7376 | I9: =OFFSET(Results!$B$5,MATCH(F2,Results!$B$5:$B$70,0)-1,18) -> 3.7485 | J9: =OFFSET(Results!$B$5,MATCH(F2,Results!$B$5:$B$70,0)-1,19) -> 2.5872 | K9: Ease of construction | L9: =OFFSET(Results!$B$5,MATCH(F2,Results!$B$5:$B$35,0)-1,44) -> 2.25 | M9: Cost of treatment | N9: =OFFSET(Results!$B$5,MATCH(F2,Results!$B$5:$B$35,0)-1,51) -> 7 | P9: =IF($V$20=-1,"",$V$19) ->  | AF9: -1
G10: FC | H10: =OFFSET(Results!$B$5,MATCH(F2,Results!$B$5:$B$70,0)-1,20) -> 126 | I10: =OFFSET(Results!$B$5,MATCH(F2,Results!$B$5:$B$70,0)-1,35) -> 1e-06 | J10: =OFFSET(Results!$B$5,MATCH(F2,Results!$B$5:$B$70,0)-1,22) -> 0 | K10: Ease of demonstration | L10: =OFFSET(Results!$B$5,MATCH(F2,Results!$B$5:$B$35,0)-1,45) -> 2.25 | M10: Quantity of sludge production | N10: =OFFSET(Results!$B$5,MATCH(F2,Results!$B$5:$B$35,0)-1,52) -> 0.2873265277 | P10: =IF($W$20=-1,"",$W$19) ->  | AG10: =OFFSET($G$4,MATCH(P10,$G$4:$G$15,0)-1,1) ->  | AH10: =AG10-AI10 ->  | AI10: =OFFSET($G$4,MATCH(P10,$G$4:$G$15,0)-1,2) ->  | AJ10: =AI10-AK10 ->  | AK10: =OFFSET($G$4,MATCH(P10,$G$4:$G$15,0)-1,3) ->  | AL10: =OFFSET($G$18,MATCH(P10,$G$18:$G$29,0)-1,1) ->  | AM10: =AL10-AN10 ->  | AN10: =OFFSET($G$18,MATCH(P10,$G$18:$G$29,0)-1,2) ->  | AO10: =AN10-AP10 ->  | AP10: =OFFSET($G$18,MATCH(P10,$G$18:$G$29,0)-1,3) ->  | AQ10: =OFFSET($G$32,MATCH(P10,$G$32:$G$43,0)-1,1) ->  | AR10: =AQ10-AS10 ->  | AS10: =OFFSET($G$32,MATCH(P10,$G$32:$G$43,0)-1,2) ->  | AT10: =AS10-AU10 ->  | AU10: =OFFSET($G$32,MATCH(P10,$G$32:$G$43,0)-1,3) ->  | AV10: =H51 -> -1
G11: TC | H11: =OFFSET(Results!$B$5,MATCH(F2,Results!$B$5:$B$70,0)-1,23) -> 0 | I11: =OFFSET(Results!$B$5,MATCH(F2,Results!$B$5:$B$70,0)-1,24) -> 0 | J11: =OFFSET(Results!$B$5,MATCH(F2,Results!$B$5:$B$70,0)-1,25) -> 0 | P11: =IF($X$20=-1,"",$X$19) ->  | AV11: =H52 -> -1
G12: TDS | H12: =OFFSET(Results!$B$5,MATCH(F2,Results!$B$5:$B$70,0)-1,26) -> 720 | I12: =OFFSET(Results!$B$5,MATCH(F2,Results!$B$5:$B$70,0)-1,27) -> 720 | J12: =OFFSET(Results!$B$5,MATCH(F2,Results!$B$5:$B$70,0)-1,28) -> 720 | P12: =IF($Y$20=-1,"",$Y$19) ->  | AF12: =H53 -> -1
G13: Nitrate | H13: =OFFSET(Results!$B$5,MATCH(F2,Results!$B$5:$B$70,0)-1,29) -> 0 | I13: =OFFSET(Results!$B$5,MATCH(F2,Results!$B$5:$B$70,0)-1,30) -> 0 | J13: =OFFSET(Results!$B$5,MATCH(F2,Results!$B$5:$B$70,0)-1,31) -> 0 | P13: =IF($Z$20=-1,"",$Z$19) -> Nitrate | Q13: 0 | R13: 0 | S13: 0 | T13: 0 | U13: 0 | V13: 0 | W13: 0 | X13: 0 | Y13: 0 | Z13: 0 | AA13: 0 | AB13: 0 | AC13: 0 | AD13: 0 | AE13: 0 | AF13: =H54 -> 1
G14: TOC | H14: =OFFSET(Results!$B$5,MATCH(F2,Results!$B$5:$B$70,0)-1,32) -> 42.84 | I14: =OFFSET(Results!$B$5,MATCH(F2,Results!$B$5:$B$70,0)-1,33) -> 21.84 | J14: =OFFSET(Results!$B$5,MATCH(F2,Results!$B$5:$B$70,0)-1,34) -> 12.25 | P14: =IF($AA$20=-1,"",$AA$19) ->  | AF14: =H55 -> -1
G15: Virus | H15: =OFFSET(Results!$B$5,MATCH(F2,Results!$B$5:$B$70,0)-1,35) -> 1e-06 | I15: =OFFSET(Results!$B$5,MATCH(F2,Results!$B$5:$B$70,0)-1,36) -> 3.16227766e-10 | J15: =OFFSET(Results!$B$5,MATCH(F2,Results!$B$5:$B$70,0)-1,37) -> 1e-15 | P15: =IF($AB$20=-1,"",$AB$19) ->  | AV15: =H56 -> -1
B16: Select the treatment train here: --------------> | F16: =L72 -> Lagooning: Australia II
H17: Min | I17: Average | J17: Max
B18: =OFFSET(Results!$B$5,MATCH(F16,Results!$B$5:$B$21,0)-1,1) ->  | G18: Turb | H18: =OFFSET(Results!$B$5,MATCH(F16,Results!$B$5:$B$70,0)-1,2) -> 9.8 | I18: =OFFSET(Results!$B$5,MATCH(F16,Results!$B$5:$B$70,0)-1,3) -> 3.025 | J18: =OFFSET(Results!$B$5,MATCH(F16,Results!$B$5:$B$70,0)-1,4) -> 0.8 | K18: Reliability | L18: =OFFSET(Results!$B$5,MATCH(F16,Results!$B$5:$B$35,0)-1,39) -> 2.5 | M18: Power demand | N18: =OFFSET(Results!$B$5,MATCH(F16,Results!$B$5:$B$35,0)-1,46) -> 0.4841260082
G19: TSS | H19: =OFFSET(Results!$B$5,MATCH(F16,Results!$B$5:$B$70,0)-1,5) -> 30.345 | I19: =OFFSET(Results!$B$5,MATCH(F16,Results!$B$5:$B$70,0)-1,6) -> 11.8125 | J19: =OFFSET(Results!$B$5,MATCH(F16,Results!$B$5:$B$70,0)-1,7) -> 3.78 | K19: Ease to upgrade | L19: =OFFSET(Results!$B$5,MATCH(F16,Results!$B$5:$B$35,0)-1,40) -> 1.75 | M19: Chemical demand | N19: =OFFSET(Results!$B$5,MATCH(F16,Results!$B$5:$B$35,0)-1,47) -> 1 | Q19: Turb | R19: TSS | S19: BOD | T19: COD | U19: TN | V19: TP | W19: FC | X19: TC | Y19: TDS | Z19: Nitrate | AA19: TOC | AB19: Virus
G20: BOD | H20: =OFFSET(Results!$B$5,MATCH(F16,Results!$B$5:$B$70,0)-1,8) -> 56.2856 | I20: =OFFSET(Results!$B$5,MATCH(F16,Results!$B$5:$B$70,0)-1,9) -> 35.95275 | J20: =OFFSET(Results!$B$5,MATCH(F16,Results!$B$5:$B$70,0)-1,10) -> 24.32 | K20: Adaptability to varying flow | L20: =OFFSET(Results!$B$5,MATCH(F16,Results!$B$5:$B$35,0)-1,41) -> 2 | M20: Odor generation | N20: =OFFSET(Results!$B$5,MATCH(F16,Results!$B$5:$B$35,0)-1,48) -> 2 | P20: ='A3.1'!D4 -> NT 106.03 standard: irrigation | Q20: =OFFSET($P$86,MATCH($P$20,$P$86:$P$400,0)-1,1) -> -1 | R20: =OFFSET($P$86,MATCH($P$20,$P$86:$P$400,0)-1,2) -> 30 | S20: =OFFSET($P$86,MATCH($P$20,$P$86:$P$400,0)-1,3) -> 30 | T20: =OFFSET($P$86,MATCH($P$20,$P$86:$P$400,0)-1,4) -> 90 | U20: =OFFSET($P$86,MATCH($P$20,$P$86:$P$400,0)-1,5) -> -1 | V20: =OFFSET($P$86,MATCH($P$20,$P$86:$P$400,0)-1,6) -> -1 | W20: =OFFSET($P$86,MATCH($P$20,$P$86:$P$400,0)-1,7) -> -1 | X20: =OFFSET($P$86,MATCH($P$20,$P$86:$P$400,0)-1,8) -> -1 | Y20: =OFFSET($P$86,MATCH($P$20,$P$86:$P$400,0)-1,9) -> -1 | Z20: =OFFSET($P$86,MATCH($P$20,$P$86:$P$400,0)-1,10) -> 1 | AA20: =OFFSET($P$86,MATCH($P$20,$P$86:$P$400,0)-1,11) -> -1 | AB20: =OFFSET($P$86,MATCH($P$20,$P$86:$P$400,0)-1,12) -> -1
G21: COD | H21: =OFFSET(Results!$B$5,MATCH(F16,Results!$B$5:$B$70,0)-1,11) -> 139.32 | I21: =OFFSET(Results!$B$5,MATCH(F16,Results!$B$5:$B$70,0)-1,12) -> 82.56 | J21: =OFFSET(Results!$B$5,MATCH(F16,Results!$B$5:$B$70,0)-1,13) -> 52.675 | K21: Adaptability to varying quality | L21: =OFFSET(Results!$B$5,MATCH(F16,Results!$B$5:$B$35,0)-1,42) -> 1.75 | M21: Impact on ground water | N21: =OFFSET(Results!$B$5,MATCH(F16,Results!$B$5:$B$35,0)-1,49) -> 0
G22: TN | H22: =OFFSET(Results!$B$5,MATCH(F16,Results!$B$5:$B$70,0)-1,14) -> 18.62 | I22: =OFFSET(Results!$B$5,MATCH(F16,Results!$B$5:$B$70,0)-1,15) -> 12.96 | J22: =OFFSET(Results!$B$5,MATCH(F16,Results!$B$5:$B$70,0)-1,16) -> 10.648 | K22: Ease of O & M | L22: =OFFSET(Results!$B$5,MATCH(F16,Results!$B$5:$B$35,0)-1,43) -> 2 | M22: Land requirment | N22: =OFFSET(Results!$B$5,MATCH(F16,Results!$B$5:$B$35,0)-1,50) -> 8.93093673e-06
G23: TP | H23: =OFFSET(Results!$B$5,MATCH(F16,Results!$B$5:$B$70,0)-1,17) -> 4.2112 | I23: =OFFSET(Results!$B$5,MATCH(F16,Results!$B$5:$B$70,0)-1,18) -> 3.087 | J23: =OFFSET(Results!$B$5,MATCH(F16,Results!$B$5:$B$70,0)-1,19) -> 2.2176 | K23: Ease of construction | L23: =OFFSET(Results!$B$5,MATCH(F16,Results!$B$5:$B$35,0)-1,44) -> 2.25 | M23: Cost of treatment | N23: =OFFSET(Results!$B$5,MATCH(F16,Results!$B$5:$B$35,0)-1,51) -> 7
G24: FC | H24: =OFFSET(Results!$B$5,MATCH(F16,Results!$B$5:$B$70,0)-1,20) -> 98 | I24: =OFFSET(Results!$B$5,MATCH(F16,Results!$B$5:$B$70,0)-1,35) -> 1e-08 | J24: =OFFSET(Results!$B$5,MATCH(F16,Results!$B$5:$B$70,0)-1,22) -> 0 | K24: Ease of demonstration | L24: =OFFSET(Results!$B$5,MATCH(F16,Results!$B$5:$B$35,0)-1,45) -> 1.75 | M24: Quantity of sludge production | N24: =OFFSET(Results!$B$5,MATCH(F16,Results!$B$5:$B$35,0)-1,52) -> 0.2868960352
G25: TC | H25: =OFFSET(Results!$B$5,MATCH(F16,Results!$B$5:$B$70,0)-1,23) -> 576000 | I25: =OFFSET(Results!$B$5,MATCH(F16,Results!$B$5:$B$70,0)-1,24) -> 221812.5 | J25: =OFFSET(Results!$B$5,MATCH(F16,Results!$B$5:$B$70,0)-1,25) -> 50000
G26: TDS | H26: =OFFSET(Results!$B$5,MATCH(F16,Results!$B$5:$B$70,0)-1,26) -> 720 | I26: =OFFSET(Results!$B$5,MATCH(F16,Results!$B$5:$B$70,0)-1,27) -> 720 | J26: =OFFSET(Results!$B$5,MATCH(F16,Results!$B$5:$B$70,0)-1,28) -> 720
G27: Nitrate | H27: =OFFSET(Results!$B$5,MATCH(F16,Results!$B$5:$B$70,0)-1,29) -> 0 | I27: =OFFSET(Results!$B$5,MATCH(F16,Results!$B$5:$B$70,0)-1,30) -> 0 | J27: =OFFSET(Results!$B$5,MATCH(F16,Results!$B$5:$B$70,0)-1,31) -> 0
G28: TOC | H28: =OFFSET(Results!$B$5,MATCH(F16,Results!$B$5:$B$70,0)-1,32) -> 45.36 | I28: =OFFSET(Results!$B$5,MATCH(F16,Results!$B$5:$B$70,0)-1,33) -> 26.88 | J28: =OFFSET(Results!$B$5,MATCH(F16,Results!$B$5:$B$70,0)-1,34) -> 17.15
G29: Virus | H29: =OFFSET(Results!$B$5,MATCH(F16,Results!$B$5:$B$70,0)-1,35) -> 1e-08 | I29: =OFFSET(Results!$B$5,MATCH(F16,Results!$B$5:$B$70,0)-1,36) -> 1e-11 | J29: =OFFSET(Results!$B$5,MATCH(F16,Results!$B$5:$B$70,0)-1,37) -> 1e-16
B30: Select the treatment train here: --------------> | F30: =S72 -> Only disinfection: Brazil
H31: Min | I31: Average | J31: Max
B32: =OFFSET(Results!$B$5,MATCH(F30,Results!$B$5:$B$21,0)-1,1) ->  | G32: Turb | H32: =OFFSET(Results!$B$5,MATCH(F30,Results!$B$5:$B$70,0)-1,2) -> 20 | I32: =OFFSET(Results!$B$5,MATCH(F30,Results!$B$5:$B$70,0)-1,3) -> 10 | J32: =OFFSET(Results!$B$5,MATCH(F30,Results!$B$5:$B$70,0)-1,4) -> 5 | K32: Reliability | L32: =OFFSET(Results!$B$5,MATCH(F30,Results!$B$5:$B$35,0)-1,39) ->  | M32: Power demand | N32: =OFFSET(Results!$B$5,MATCH(F30,Results!$B$5:$B$35,0)-1,46) -> 
G33: TSS | H33: =OFFSET(Results!$B$5,MATCH(F30,Results!$B$5:$B$70,0)-1,5) -> 29.4 | I33: =OFFSET(Results!$B$5,MATCH(F30,Results!$B$5:$B$70,0)-1,6) -> 10.5 | J33: =OFFSET(Results!$B$5,MATCH(F30,Results!$B$5:$B$70,0)-1,7) -> 4.2 | K33: Ease to upgrade | L33: =OFFSET(Results!$B$5,MATCH(F30,Results!$B$5:$B$35,0)-1,40) ->  | M33: Chemical demand | N33: =OFFSET(Results!$B$5,MATCH(F30,Results!$B$5:$B$35,0)-1,47) -> 
G34: BOD | H34: =OFFSET(Results!$B$5,MATCH(F30,Results!$B$5:$B$70,0)-1,8) -> 51.072 | I34: =OFFSET(Results!$B$5,MATCH(F30,Results!$B$5:$B$70,0)-1,9) -> 31.35 | J34: =OFFSET(Results!$B$5,MATCH(F30,Results!$B$5:$B$70,0)-1,10) -> 22.61 | K34: Adaptability to varying flow | L34: =OFFSET(Results!$B$5,MATCH(F30,Results!$B$5:$B$35,0)-1,41) ->  | M34: Odor generation | N34: =OFFSET(Results!$B$5,MATCH(F30,Results!$B$5:$B$35,0)-1,48) -> 
G35: COD | H35: =OFFSET(Results!$B$5,MATCH(F30,Results!$B$5:$B$70,0)-1,11) -> 132.096 | I35: =OFFSET(Results!$B$5,MATCH(F30,Results!$B$5:$B$70,0)-1,12) -> 85.14 | J35: =OFFSET(Results!$B$5,MATCH(F30,Results!$B$5:$B$70,0)-1,13) -> 63.9625 | K35: Adaptability to varying quality | L35: =OFFSET(Results!$B$5,MATCH(F30,Results!$B$5:$B$35,0)-1,42) ->  | M35: Impact on ground water | N35: =OFFSET(Results!$B$5,MATCH(F30,Results!$B$5:$B$35,0)-1,49) -> 
G36: TN | H36: =OFFSET(Results!$B$5,MATCH(F30,Results!$B$5:$B$70,0)-1,14) -> 36.1 | I36: =OFFSET(Results!$B$5,MATCH(F30,Results!$B$5:$B$70,0)-1,15) -> 33.48 | J36: =OFFSET(Results!$B$5,MATCH(F30,Results!$B$5:$B$70,0)-1,16) -> 32.032 | K36: Ease of O & M | L36: =OFFSET(Results!$B$5,MATCH(F30,Results!$B$5:$B$35,0)-1,43) ->  | M36: Land requirment | N36: =OFFSET(Results!$B$5,MATCH(F30,Results!$B$5:$B$35,0)-1,50) -> 
G37: TP | H37: =OFFSET(Results!$B$5,MATCH(F30,Results!$B$5:$B$70,0)-1,17) -> 6.251 | I37: =OFFSET(Results!$B$5,MATCH(F30,Results!$B$5:$B$70,0)-1,18) -> 5.859 | J37: =OFFSET(Results!$B$5,MATCH(F30,Results!$B$5:$B$70,0)-1,19) -> 5.6056 | K37: Ease of construction | L37: =OFFSET(Results!$B$5,MATCH(F30,Results!$B$5:$B$35,0)-1,44) ->  | M37: Cost of treatment | N37: =OFFSET(Results!$B$5,MATCH(F30,Results!$B$5:$B$35,0)-1,51) -> 
G38: FC | H38: =OFFSET(Results!$B$5,MATCH(F30,Results!$B$5:$B$70,0)-1,20) -> 200 | I38: =OFFSET(Results!$B$5,MATCH(F30,Results!$B$5:$B$70,0)-1,35) -> 0.01 | J38: =OFFSET(Results!$B$5,MATCH(F30,Results!$B$5:$B$70,0)-1,22) -> 0 | K38: Ease of demonstration | L38: =OFFSET(Results!$B$5,MATCH(F30,Results!$B$5:$B$35,0)-1,45) ->  | M38: Quantity of sludge production | N38: =OFFSET(Results!$B$5,MATCH(F30,Results!$B$5:$B$35,0)-1,52) -> 
G39: TC | H39: =OFFSET(Results!$B$5,MATCH(F30,Results!$B$5:$B$70,0)-1,23) -> 0 | I39: =OFFSET(Results!$B$5,MATCH(F30,Results!$B$5:$B$70,0)-1,24) -> 0 | J39: =OFFSET(Results!$B$5,MATCH(F30,Results!$B$5:$B$70,0)-1,25) -> 0
G40: TDS | H40: =OFFSET(Results!$B$5,MATCH(F30,Results!$B$5:$B$70,0)-1,26) -> 720 | I40: =OFFSET(Results!$B$5,MATCH(F30,Results!$B$5:$B$70,0)-1,27) -> 720 | J40: =OFFSET(Results!$B$5,MATCH(F30,Results!$B$5:$B$70,0)-1,28) -> 720
G41: Nitrate | H41: =OFFSET(Results!$B$5,MATCH(F30,Results!$B$5:$B$70,0)-1,29) -> 0 | I41: =OFFSET(Results!$B$5,MATCH(F30,Results!$B$5:$B$70,0)-1,30) -> 0 | J41: =OFFSET(Results!$B$5,MATCH(F30,Results!$B$5:$B$70,0)-1,31) -> 0
G42: TOC | H42: =OFFSET(Results!$B$5,MATCH(F30,Results!$B$5:$B$70,0)-1,32) -> 43.008 | I42: =OFFSET(Results!$B$5,MATCH(F30,Results!$B$5:$B$70,0)-1,33) -> 27.72 | J42: =OFFSET(Results!$B$5,MATCH(F30,Results!$B$5:$B$70,0)-1,34) -> 20.825
G43: Virus | H43: =OFFSET(Results!$B$5,MATCH(F30,Results!$B$5:$B$70,0)-1,35) -> 0.01 | I43: =OFFSET(Results!$B$5,MATCH(F30,Results!$B$5:$B$70,0)-1,36) -> 3.16227766e-05 | J43: =OFFSET(Results!$B$5,MATCH(F30,Results!$B$5:$B$70,0)-1,37) -> 1e-09
F44: ='A3.1'!D4 -> NT 106.03 standard: irrigation
F45: Limit from End-Use | G45: Turb | H45: ='A3.1'!D14 -> -1
G46: TSS | H46: ='A3.1'!E14 -> 30
G47: BOD | H47: ='A3.1'!F14 -> 30
G48: COD | H48: ='A3.1'!G14 -> 90
G49: TN | H49: ='A3.1'!H14 -> -1
G50: TP | H50: ='A3.1'!I14 -> -1
G51: FC | H51: ='A3.1'!J14 -> -1
G52: TC | H52: ='A3.1'!K14 -> -1
G53: TDS | H53: ='A3.1'!L14 -> -1
G54: Nitrate | H54: ='A3.1'!M14 -> 1
G55: TOC | H55: ='A3.1'!N14 -> -1
G56: Virus | H56: ='A3.1'!O14 -> -1
B70: Treatment train option 1 | H70: Treatment train option 2 | O70: Treatment train option 3
B72: Select the treatment train here: --------------> | F72: ='A2'!A12 -> Lagooning: Australia I | H72: Select the treatment train here: --------------> | L72: ='A2'!A17 -> Lagooning: Australia II | O72: Select the treatment train here: --------------> | S72: ='A2'!A22 -> Only disinfection: Brazil
P84: ='Quality Standards'!B7 -> 0 | Q84: ='Quality Standards'!C7 -> Turb | R84: ='Quality Standards'!D7 -> TSS | S84: ='Quality Standards'!E7 -> BOD | T84: ='Quality Standards'!F7 -> COD | U84: ='Quality Standards'!G7 -> TN | V84: ='Quality Standards'!H7 -> TP | W84: ='Quality Standards'!I7 -> FC | X84: ='Quality Standards'!J7 -> TC | Y84: ='Quality Standards'!K7 -> TDS | Z84: ='Quality Standards'!L7 -> Nitrate | AA84: ='Quality Standards'!M7 -> TOC | AB84: ='Quality Standards'!N7 -> Virus
P85: ='Quality Standards'!B8 -> End-use: | Q85: ='Quality Standards'!C8 -> NTU | R85: ='Quality Standards'!D8 -> mg/L | S85: ='Quality Standards'!E8 -> mg/L | T85: ='Quality Standards'!F8 -> mg/L | U85: ='Quality Standards'!G8 -> mg/L | V85: ='Quality Standards'!H8 -> mg/L | W85: ='Quality Standards'!I8 -> CFU/100ml | X85: ='Quality Standards'!J8 -> CFU/100ml | Y85: ='Quality Standards'!K8 -> mg/L | Z85: ='Quality Standards'!L8 -> mg N/L | AA85: ='Quality Standards'!M8 -> mg/L | AB85: ='Quality Standards'!N8 -> PFU/100ml
P86: ='Quality Standards'!B9 -> Manual Entry | Q86: ='Quality Standards'!C9 -> 0 | R86: ='Quality Standards'!D9 -> 0 | S86: ='Quality Standards'!E9 -> 0 | T86: ='Quality Standards'!F9 -> 0 | U86: ='Quality Standards'!G9 -> 0 | V86: ='Quality Standards'!H9 -> 0 | W86: ='Quality Standards'!I9 -> 0 | X86: ='Quality Standards'!J9 -> 0 | Y86: ='Quality Standards'!K9 -> 0 | Z86: ='Quality Standards'!L9 -> 0 | AA86: ='Quality Standards'!M9 -> 0 | AB86: ='Quality Standards'!N9 -> 0 | AD86: Turb | AE86: TSS | AF86: BOD | AG86: COD | AH86: TN | AI86: TP | AJ86: FC | AK86: TC | AL86: TDS | AM86: Nitrate | AN86: TOC | AO86: Virus
P87: ='Quality Standards'!B10 -> Manual Entry A | Q87: ='Quality Standards'!C10 -> -1 | R87: ='Quality Standards'!D10 -> -1 | S87: ='Quality Standards'!E10 -> -1 | T87: ='Quality Standards'!F10 -> -1 | U87: ='Quality Standards'!G10 -> -1 | V87: ='Quality Standards'!H10 -> -1 | W87: ='Quality Standards'!I10 -> -1 | X87: ='Quality Standards'!J10 -> -1 | Y87: ='Quality Standards'!K10 -> -1 | Z87: ='Quality Standards'!L10 -> -1 | AA87: ='Quality Standards'!M10 -> -1 | AB87: ='Quality Standards'!N10 -> -1
P88: ='Quality Standards'!B11 -> Manual Entry B | Q88: ='Quality Standards'!C11 -> -1 | R88: ='Quality Standards'!D11 -> -1 | S88: ='Quality Standards'!E11 -> -1 | T88: ='Quality Standards'!F11 -> -1 | U88: ='Quality Standards'!G11 -> -1 | V88: ='Quality Standards'!H11 -> -1 | W88: ='Quality Standards'!I11 -> -1 | X88: ='Quality Standards'!J11 -> -1 | Y88: ='Quality Standards'!K11 -> -1 | Z88: ='Quality Standards'!L11 -> -1 | AA88: ='Quality Standards'!M11 -> -1 | AB88: ='Quality Standards'!N11 -> -1
P89: ='Quality Standards'!B12 -> Manual Entry C | Q89: ='Quality Standards'!C12 -> -1 | R89: ='Quality Standards'!D12 -> -1 | S89: ='Quality Standards'!E12 -> -1 | T89: ='Quality Standards'!F12 -> -1 | U89: ='Quality Standards'!G12 -> -1 | V89: ='Quality Standards'!H12 -> -1 | W89: ='Quality Standards'!I12 -> -1 | X89: ='Quality Standards'!J12 -> -1 | Y89: ='Quality Standards'!K12 -> -1 | Z89: ='Quality Standards'!L12 -> -1 | AA89: ='Quality Standards'!M12 -> -1 | AB89: ='Quality Standards'!N12 -> -1
P90: ='Quality Standards'!B13 -> Municipal wastewater - typical input for reuse | Q90: ='Quality Standards'!C13 -> 0 | R90: ='Quality Standards'!D13 -> 0 | S90: ='Quality Standards'!E13 -> 0 | T90: ='Quality Standards'!F13 -> 0 | U90: ='Quality Standards'!G13 -> 0 | V90: ='Quality Standards'!H13 -> 0 | W90: ='Quality Standards'!I13 -> 0 | X90: ='Quality Standards'!J13 -> 0 | Y90: ='Quality Standards'!K13 -> 0 | Z90: ='Quality Standards'!L13 -> 0 | AA90: ='Quality Standards'!M13 -> 0 | AB90: ='Quality Standards'!N13 -> 0
P91: ='Quality Standards'!B14 -> Typical untreated domestic wastewater | Q91: ='Quality Standards'!C14 -> 100 | R91: ='Quality Standards'!D14 -> 210 | S91: ='Quality Standards'!E14 -> 190 | T91: ='Quality Standards'!F14 -> 430 | U91: ='Quality Standards'!G14 -> 40 | V91: ='Quality Standards'!H14 -> 7 | W91: ='Quality Standards'!I14 -> 10000 | X91: ='Quality Standards'!J14 -> 10000000 | Y91: ='Quality Standards'!K14 -> 720 | Z91: ='Quality Standards'!L14 -> 0 | AA91: ='Quality Standards'!M14 -> 140 | AB91: ='Quality Standards'!N14 -> 10
P92: ='Quality Standards'!B15 -> Untreated domestic wastewater (ranges) | Q92: ='Quality Standards'!C15 -> -1 | R92: ='Quality Standards'!D15 -> 120 | S92: ='Quality Standards'!E15 -> 110 | T92: ='Quality Standards'!F15 -> 250 | U92: ='Quality Standards'!G15 -> 20 | V92: ='Quality Standards'!H15 -> 4 | W92: ='Quality Standards'!I15 -> 1000 | X92: ='Quality Standards'!J15 -> 1000000 | Y92: ='Quality Standards'!K15 -> 270 | Z92: ='Quality Standards'!L15 -> 0 | AA92: ='Quality Standards'!M15 -> 80 | AB92: ='Quality Standards'!N15 -> -1
P93: ='Quality Standards'!B16 -> Primary effluent | Q93: ='Quality Standards'!C16 -> 88 | R93: ='Quality Standards'!D16 -> 131 | S93: ='Quality Standards'!E16 -> 149 | T93: ='Quality Standards'!F16 -> -1 | U93: ='Quality Standards'!G16 -> -1 | V93: ='Quality Standards'!H16 -> 5.1 | W93: ='Quality Standards'!I16 -> -1 | X93: ='Quality Standards'!J16 -> -1 | Y93: ='Quality Standards'!K16 -> -1 | Z93: ='Quality Standards'!L16 -> 0.1 | AA93: ='Quality Standards'!M16 -> 72 | AB93: ='Quality Standards'!N16 -> -1
P94: ='Quality Standards'!B17 -> Secondary effluent- water hyacinths | Q94: ='Quality Standards'!C17 -> 14 | R94: ='Quality Standards'!D17 -> 9.8 | S94: ='Quality Standards'!E17 -> 13 | T94: ='Quality Standards'!F17 -> -1 | U94: ='Quality Standards'!G17 -> -1 | V94: ='Quality Standards'!H17 -> 3.4 | W94: ='Quality Standards'!I17 -> -1 | X94: ='Quality Standards'!J17 -> -1 | Y94: ='Quality Standards'!K17 -> -1 | Z94: ='Quality Standards'!L17 -> 1.4 | AA94: ='Quality Standards'!M17 -> 14 | AB94: ='Quality Standards'!N17 -> -1
P95: ='Quality Standards'!#REF! ->  | Q95: ='Quality Standards'!#REF! ->  | R95: ='Quality Standards'!#REF! ->  | S95: ='Quality Standards'!#REF! ->  | T95: ='Quality Standards'!#REF! ->  | U95: ='Quality Standards'!#REF! ->  | V95: ='Quality Standards'!#REF! ->  | W95: ='Quality Standards'!#REF! ->  | X95: ='Quality Standards'!#REF! ->  | Y95: ='Quality Standards'!#REF! ->  | Z95: ='Quality Standards'!#REF! ->  | AA95: ='Quality Standards'!#REF! ->  | AB95: ='Quality Standards'!#REF! -> 
P96: ='Quality Standards'!B18 -> Secondary effluent- CAS | Q96: ='Quality Standards'!C18 -> 2 | R96: ='Quality Standards'!D18 -> 5 | S96: ='Quality Standards'!E18 -> 5.25 | T96: ='Quality Standards'!F18 -> 40 | U96: ='Quality Standards'!G18 -> 15 | V96: ='Quality Standards'!H18 -> 4 | W96: ='Quality Standards'!I18 -> -1 | X96: ='Quality Standards'!J18 -> 10000 | Y96: ='Quality Standards'!K18 -> 500 | Z96: ='Quality Standards'!L18 -> 10 | AA96: ='Quality Standards'!M18 -> 10 | AB96: ='Quality Standards'!N18 -> 10
P97: ='Quality Standards'!B19 -> Secondary effluent- CAS + filtration | Q97: ='Quality Standards'!C19 -> 0.5 | R97: ='Quality Standards'!D19 -> 2 | S97: ='Quality Standards'!E19 -> 5 | T97: ='Quality Standards'!F19 -> 30 | U97: ='Quality Standards'!G19 -> 15 | V97: ='Quality Standards'!H19 -> 4 | W97: ='Quality Standards'!I19 -> -1 | X97: ='Quality Standards'!J19 -> 1000 | Y97: ='Quality Standards'!K19 -> 500 | Z97: ='Quality Standards'!L19 -> 10 | AA97: ='Quality Standards'!M19 -> 8 | AB97: ='Quality Standards'!N19 -> 10
P98: ='Quality Standards'!B20 -> Secondary effluent- activated sludge + BNR | Q98: ='Quality Standards'!C20 -> 2 | R98: ='Quality Standards'!D20 -> 5 | S98: ='Quality Standards'!E20 -> 5 | T98: ='Quality Standards'!F20 -> 20 | U98: ='Quality Standards'!G20 -> 3 | V98: ='Quality Standards'!H20 -> 1 | W98: ='Quality Standards'!I20 -> -1 | X98: ='Quality Standards'!J20 -> 10000 | Y98: ='Quality Standards'!K20 -> 500 | Z98: ='Quality Standards'!L20 -> 2 | AA98: ='Quality Standards'!M20 -> 8 | AB98: ='Quality Standards'!N20 -> 10
P99: ='Quality Standards'!B21 -> Secondary effluent- activated sludge + BR+ filtration | Q99: ='Quality Standards'!C21 -> 0.3 | R99: ='Quality Standards'!D21 -> 1-4 | S99: ='Quality Standards'!E21 -> 1 | T99: ='Quality Standards'!F21 -> 20 | U99: ='Quality Standards'!G21 -> 2 | V99: ='Quality Standards'!H21 -> 2 | W99: ='Quality Standards'!I21 -> -1 | X99: ='Quality Standards'!J21 -> 10000 | Y99: ='Quality Standards'!K21 -> 500 | Z99: ='Quality Standards'!L21 -> 1 | AA99: ='Quality Standards'!M21 -> 1 | AB99: ='Quality Standards'!N21 -> 10
P100: ='Quality Standards'!B22 -> Secondary effluent- membrane bioreactor | Q100: ='Quality Standards'!C22 -> 1 | R100: ='Quality Standards'!D22 -> 2 | S100: ='Quality Standards'!E22 -> 1 | T100: ='Quality Standards'!F22 -> 10 | U100: ='Quality Standards'!G22 -> 10 | V100: ='Quality Standards'!H22 -> 0.3 | W100: ='Quality Standards'!I22 -> -1 | X100: ='Quality Standards'!J22 -> 100 | Y100: ='Quality Standards'!K22 -> 500 | Z100: ='Quality Standards'!L22 -> 10 | AA100: ='Quality Standards'!M22 -> 0.5 | AB100: ='Quality Standards'!N22 -> 1
P101: ='Quality Standards'!B23 -> Secondary effluent- activated sludge + MF + RO | Q101: ='Quality Standards'!C23 -> 0.01 | R101: ='Quality Standards'!D23 -> 1 | S101: ='Quality Standards'!E23 -> 1 | T101: ='Quality Standards'!F23 -> 2 | U101: ='Quality Standards'!G23 -> 1 | V101: ='Quality Standards'!H23 -> 0.5 | W101: ='Quality Standards'!I23 -> -1 | X101: ='Quality Standards'!J23 -> 0 | Y101: ='Quality Standards'!K23 -> 5 | Z101: ='Quality Standards'!L23 -> 1 | AA101: ='Quality Standards'!M23 -> 0.1 | AB101: ='Quality Standards'!N23 -> 0
P102: ='Quality Standards'!B24 -> Tertiary effluent | Q102: ='Quality Standards'!C24 -> 0.5 | R102: ='Quality Standards'!D24 -> 1.3 | S102: ='Quality Standards'!E24 -> 4.3 | T102: ='Quality Standards'!F24 -> -1 | U102: ='Quality Standards'!G24 -> -1 | V102: ='Quality Standards'!H24 -> 0.1 | W102: ='Quality Standards'!I24 -> -1 | X102: ='Quality Standards'!J24 -> -1 | Y102: ='Quality Standards'!K24 -> -1 | Z102: ='Quality Standards'!L24 -> 1.7 | AA102: ='Quality Standards'!M24 -> 7.1 | AB102: ='Quality Standards'!N24 -> -1
P103: ='Quality Standards'!B25 -> AWT effluent | Q103: ='Quality Standards'!C25 -> 0.27 | R103: ='Quality Standards'!D25 -> -1 | S103: ='Quality Standards'!E25 -> -1 | T103: ='Quality Standards'!F25 -> -1 | U103: ='Quality Standards'!G25 -> -1 | V103: ='Quality Standards'!H25 -> 0.1 | W103: ='Quality Standards'!I25 -> -1 | X103: ='Quality Standards'!J25 -> -1 | Y103: ='Quality Standards'!K25 -> -1 | Z103: ='Quality Standards'!L25 -> 0.7 | AA103: ='Quality Standards'!M25 -> 0.6 | AB103: ='Quality Standards'!N25 -> -1
P104: ='Quality Standards'!B26 -> Textile industry | Q104: ='Quality Standards'!C26 -> 0 | R104: ='Quality Standards'!D26 -> 0 | S104: ='Quality Standards'!E26 -> 0 | T104: ='Quality Standards'!F26 -> 0 | U104: ='Quality Standards'!G26 -> 0 | V104: ='Quality Standards'!H26 -> 0 | W104: ='Quality Standards'!I26 -> 0 | X104: ='Quality Standards'!J26 -> 0 | Y104: ='Quality Standards'!K26 -> 0 | Z104: ='Quality Standards'!L26 -> 0 | AA104: ='Quality Standards'!M26 -> 0 | AB104: ='Quality Standards'!N26 -> 0
P105: ='Quality Standards'!B27 -> Textile Industry-India | Q105: ='Quality Standards'!C27 -> -1 | R105: ='Quality Standards'!D27 -> -1 | S105: ='Quality Standards'!E27 -> 713 | T105: ='Quality Standards'!F27 -> 2125 | U105: ='Quality Standards'!G27 -> -1 | V105: ='Quality Standards'!H27 -> -1 | W105: ='Quality Standards'!I27 -> -1 | X105: ='Quality Standards'!J27 -> -1 | Y105: ='Quality Standards'!K27 -> 5738 | Z105: ='Quality Standards'!L27 -> 354 | AA105: ='Quality Standards'!M27 -> -1 | AB105: ='Quality Standards'!N27 -> -1
P106: ='Quality Standards'!B28 -> Textile Industry- Nigeria | Q106: ='Quality Standards'!C28 -> -1 | R106: ='Quality Standards'!D28 -> 400 | S106: ='Quality Standards'!E28 -> 332 | T106: ='Quality Standards'!F28 -> 1891 | U106: ='Quality Standards'!G28 -> -1 | V106: ='Quality Standards'!H28 -> -1 | W106: ='Quality Standards'!I28 -> -1 | X106: ='Quality Standards'!J28 -> -1 | Y106: ='Quality Standards'!K28 -> 1181 | Z106: ='Quality Standards'!L28 -> 4.4 | AA106: ='Quality Standards'!M28 -> -1 | AB106: ='Quality Standards'!N28 -> -1
P107: ='Quality Standards'!B29 -> Dairy industry | Q107: ='Quality Standards'!C29 -> 0 | R107: ='Quality Standards'!D29 -> 0 | S107: ='Quality Standards'!E29 -> 0 | T107: ='Quality Standards'!F29 -> 0 | U107: ='Quality Standards'!G29 -> 0 | V107: ='Quality Standards'!H29 -> 0 | W107: ='Quality Standards'!I29 -> 0 | X107: ='Quality Standards'!J29 -> 0 | Y107: ='Quality Standards'!K29 -> 0 | Z107: ='Quality Standards'!L29 -> 0 | AA107: ='Quality Standards'!M29 -> 0 | AB107: ='Quality Standards'!N29 -> 0
P108: ='Quality Standards'!B30 -> Dairy- Industry India | Q108: ='Quality Standards'!C30 -> 15 | R108: ='Quality Standards'!D30 -> 250 | S108: ='Quality Standards'!E30 -> 350 | T108: ='Quality Standards'!F30 -> 1500 | U108: ='Quality Standards'!G30 -> -1 | V108: ='Quality Standards'!H30 -> -1 | W108: ='Quality Standards'!I30 -> -1 | X108: ='Quality Standards'!J30 -> -1 | Y108: ='Quality Standards'!K30 -> 800 | Z108: ='Quality Standards'!L30 -> -1 | AA108: ='Quality Standards'!M30 -> -1 | AB108: ='Quality Standards'!N30 -> -1
P109: ='Quality Standards'!B31 -> Dairy Industry- Cheese | Q109: ='Quality Standards'!C31 -> -1 | R109: ='Quality Standards'!D31 -> 500 | S109: ='Quality Standards'!E31 -> 588 | T109: ='Quality Standards'!F31 -> 1000 | U109: ='Quality Standards'!G31 -> 830 | V109: ='Quality Standards'!H31 -> 280 | W109: ='Quality Standards'!I31 -> -1 | X109: ='Quality Standards'!J31 -> -1 | Y109: ='Quality Standards'!K31 -> -1 | Z109: ='Quality Standards'!L31 -> -1 | AA109: ='Quality Standards'!M31 -> -1 | AB109: ='Quality Standards'!N31 -> -1
P110: ='Quality Standards'!B32 -> Dairy Industry- Cheese whey | Q110: ='Quality Standards'!C32 -> -1 | R110: ='Quality Standards'!D32 -> 1780 | S110: ='Quality Standards'!E32 -> -1 | T110: ='Quality Standards'!F32 -> 61000 | U110: ='Quality Standards'!G32 -> 980 | V110: ='Quality Standards'!H32 -> 510 | W110: ='Quality Standards'!I32 -> -1 | X110: ='Quality Standards'!J32 -> -1 | Y110: ='Quality Standards'!K32 -> -1 | Z110: ='Quality Standards'!L32 -> -1 | AA110: ='Quality Standards'!M32 -> -1 | AB110: ='Quality Standards'!N32 -> -1
P111: ='Quality Standards'!B33 -> Dairy Industry- Mixed processing | Q111: ='Quality Standards'!C33 -> -1 | R111: ='Quality Standards'!D33 -> 340 | S111: ='Quality Standards'!E33 -> -1 | T111: ='Quality Standards'!F33 -> 1150 | U111: ='Quality Standards'!G33 -> 14 | V111: ='Quality Standards'!H33 -> 25051 | W111: ='Quality Standards'!I33 -> -1 | X111: ='Quality Standards'!J33 -> -1 | Y111: ='Quality Standards'!K33 -> -1 | Z111: ='Quality Standards'!L33 -> -1 | AA111: ='Quality Standards'!M33 -> -1 | AB111: ='Quality Standards'!N33 -> -1
P112: ='Quality Standards'!B34 -> Pulp & paper industry | Q112: ='Quality Standards'!C34 -> 0 | R112: ='Quality Standards'!D34 -> 0 | S112: ='Quality Standards'!E34 -> 0 | T112: ='Quality Standards'!F34 -> 0 | U112: ='Quality Standards'!G34 -> 0 | V112: ='Quality Standards'!H34 -> 0 | W112: ='Quality Standards'!I34 -> 0 | X112: ='Quality Standards'!J34 -> 0 | Y112: ='Quality Standards'!K34 -> 0 | Z112: ='Quality Standards'!L34 -> 0 | AA112: ='Quality Standards'!M34 -> 0 | AB112: ='Quality Standards'!N34 -> 0
P113: ='Quality Standards'!B35 -> Paper mill | Q113: ='Quality Standards'!C35 -> -1 | R113: ='Quality Standards'!D35 -> 800 | S113: ='Quality Standards'!E35 -> 1600 | T113: ='Quality Standards'!F35 -> 5020 | U113: ='Quality Standards'!G35 -> 11 | V113: ='Quality Standards'!H35 -> 0.6 | W113: ='Quality Standards'!I35 -> -1 | X113: ='Quality Standards'!J35 -> -1 | Y113: ='Quality Standards'!K35 -> -1 | Z113: ='Quality Standards'!L35 -> -1 | AA113: ='Quality Standards'!M35 -> -1 | AB113: ='Quality Standards'!N35 -> -1
P114: ='Quality Standards'!B36 -> Beverage industry | Q114: ='Quality Standards'!C36 -> 0 | R114: ='Quality Standards'!D36 -> 0 | S114: ='Quality Standards'!E36 -> 0 | T114: ='Quality Standards'!F36 -> 0 | U114: ='Quality Standards'!G36 -> 0 | V114: ='Quality Standards'!H36 -> 0 | W114: ='Quality Standards'!I36 -> 0 | X114: ='Quality Standards'!J36 -> 0 | Y114: ='Quality Standards'!K36 -> 0 | Z114: ='Quality Standards'!L36 -> 0 | AA114: ='Quality Standards'!M36 -> 0 | AB114: ='Quality Standards'!N36 -> 0
P115: ='Quality Standards'!B37 -> Brewery (Beer), Typical ranges | Q115: ='Quality Standards'!C37 -> -1 | R115: ='Quality Standards'!D37 -> 200 | S115: ='Quality Standards'!E37 -> 1200 | T115: ='Quality Standards'!F37 -> 2000 | U115: ='Quality Standards'!G37 -> 25 | V115: ='Quality Standards'!H37 -> 18537 | W115: ='Quality Standards'!I37 -> -1 | X115: ='Quality Standards'!J37 -> -1 | Y115: ='Quality Standards'!K37 -> -1 | Z115: ='Quality Standards'!L37 -> -1 | AA115: ='Quality Standards'!M37 -> -1 | AB115: ='Quality Standards'!N37 -> -1
P116: ='Quality Standards'!#REF! ->  | Q116: ='Quality Standards'!#REF! ->  | R116: ='Quality Standards'!#REF! ->  | S116: ='Quality Standards'!#REF! ->  | T116: ='Quality Standards'!#REF! ->  | U116: ='Quality Standards'!#REF! ->  | V116: ='Quality Standards'!#REF! ->  | W116: ='Quality Standards'!#REF! ->  | X116: ='Quality Standards'!#REF! ->  | Y116: ='Quality Standards'!#REF! ->  | Z116: ='Quality Standards'!#REF! ->  | AA116: ='Quality Standards'!#REF! ->  | AB116: ='Quality Standards'!#REF! -> 
P117: ='Quality Standards'!B38 -> Winery (Production: 3000 m3/year) | Q117: ='Quality Standards'!C38 -> -1 | R117: ='Quality Standards'!D38 -> 1060 | S117: ='Quality Standards'!E38 -> 8100 | T117: ='Quality Standards'!F38 -> 14150 | U117: ='Quality Standards'!G38 -> 48.2 | V117: ='Quality Standards'!H38 -> 5.5 | W117: ='Quality Standards'!I38 -> -1 | X117: ='Quality Standards'!J38 -> -1 | Y117: ='Quality Standards'!K38 -> -1 | Z117: ='Quality Standards'!L38 -> -1 | AA117: ='Quality Standards'!M38 -> -1 | AB117: ='Quality Standards'!N38 -> -1
P118: ='Quality Standards'!#REF! ->  | Q118: ='Quality Standards'!#REF! ->  | R118: ='Quality Standards'!#REF! ->  | S118: ='Quality Standards'!#REF! ->  | T118: ='Quality Standards'!#REF! ->  | U118: ='Quality Standards'!#REF! ->  | V118: ='Quality Standards'!#REF! ->  | W118: ='Quality Standards'!#REF! ->  | X118: ='Quality Standards'!#REF! ->  | Y118: ='Quality Standards'!#REF! ->  | Z118: ='Quality Standards'!#REF! ->  | AA118: ='Quality Standards'!#REF! ->  | AB118: ='Quality Standards'!#REF! -> 
P119: ='Quality Standards'!B39 -> Winery (Production: 6000 m3/year) | Q119: ='Quality Standards'!C39 -> -1 | R119: ='Quality Standards'!D39 -> 1960 | S119: ='Quality Standards'!E39 -> 5540 | T119: ='Quality Standards'!F39 -> 9240 | U119: ='Quality Standards'!G39 -> 74 | V119: ='Quality Standards'!H39 -> 16 | W119: ='Quality Standards'!I39 -> -1 | X119: ='Quality Standards'!J39 -> -1 | Y119: ='Quality Standards'!K39 -> -1 | Z119: ='Quality Standards'!L39 -> -1 | AA119: ='Quality Standards'!M39 -> -1 | AB119: ='Quality Standards'!N39 -> -1
P120: ='Quality Standards'!B40 -> US EPA guidelines, 2012 | Q120: ='Quality Standards'!C40 -> 0 | R120: ='Quality Standards'!D40 -> 0 | S120: ='Quality Standards'!E40 -> 0 | T120: ='Quality Standards'!F40 -> 0 | U120: ='Quality Standards'!G40 -> 0 | V120: ='Quality Standards'!H40 -> 0 | W120: ='Quality Standards'!I40 -> 0 | X120: ='Quality Standards'!J40 -> 0 | Y120: ='Quality Standards'!K40 -> 0 | Z120: ='Quality Standards'!L40 -> 0 | AA120: ='Quality Standards'!M40 -> 0 | AB120: ='Quality Standards'!N40 -> 0
P121: ='Quality Standards'!B41 -> EPA: Urban Reuse- unrestricted | Q121: ='Quality Standards'!C41 -> 2 | R121: ='Quality Standards'!D41 -> -1 | S121: ='Quality Standards'!E41 -> 10 | T121: ='Quality Standards'!F41 -> -1 | U121: ='Quality Standards'!G41 -> -1 | V121: ='Quality Standards'!H41 -> -1 | W121: ='Quality Standards'!I41 -> 0 | X121: ='Quality Standards'!J41 -> -1 | Y121: ='Quality Standards'!K41 -> -1 | Z121: ='Quality Standards'!L41 -> -1 | AA121: ='Quality Standards'!M41 -> -1 | AB121: ='Quality Standards'!N41 -> -1
P122: ='Quality Standards'!B42 -> EPA: Urban Reuse-restricted | Q122: ='Quality Standards'!C42 -> -1 | R122: ='Quality Standards'!D42 -> 30 | S122: ='Quality Standards'!E42 -> 30 | T122: ='Quality Standards'!F42 -> -1 | U122: ='Quality Standards'!G42 -> -1 | V122: ='Quality Standards'!H42 -> -1 | W122: ='Quality Standards'!I42 -> 200 | X122: ='Quality Standards'!J42 -> -1 | Y122: ='Quality Standards'!K42 -> -1 | Z122: ='Quality Standards'!L42 -> -1 | AA122: ='Quality Standards'!M42 -> -1 | AB122: ='Quality Standards'!N42 -> -1
P123: ='Quality Standards'!B43 -> EPA: Agricultural Reuse-Food Crops | Q123: ='Quality Standards'!C43 -> 2 | R123: ='Quality Standards'!D43 -> -1 | S123: ='Quality Standards'!E43 -> 10 | T123: ='Quality Standards'!F43 -> -1 | U123: ='Quality Standards'!G43 -> -1 | V123: ='Quality Standards'!H43 -> -1 | W123: ='Quality Standards'!I43 -> 0 | X123: ='Quality Standards'!J43 -> -1 | Y123: ='Quality Standards'!K43 -> -1 | Z123: ='Quality Standards'!L43 -> -1 | AA123: ='Quality Standards'!M43 -> -1 | AB123: ='Quality Standards'!N43 -> -1
P124: ='Quality Standards'!B44 -> EPA: Agricultural Reuse-Processed food crops and Non-food crops | Q124: ='Quality Standards'!C44 -> -1 | R124: ='Quality Standards'!D44 -> 30 | S124: ='Quality Standards'!E44 -> 30 | T124: ='Quality Standards'!F44 -> -1 | U124: ='Quality Standards'!G44 -> -1 | V124: ='Quality Standards'!H44 -> -1 | W124: ='Quality Standards'!I44 -> 200 | X124: ='Quality Standards'!J44 -> -1 | Y124: ='Quality Standards'!K44 -> -1 | Z124: ='Quality Standards'!L44 -> -1 | AA124: ='Quality Standards'!M44 -> -1 | AB124: ='Quality Standards'!N44 -> -1
P125: ='Quality Standards'!B45 -> EPA: Impoundments-unrestricted | Q125: ='Quality Standards'!C45 -> 2 | R125: ='Quality Standards'!D45 -> -1 | S125: ='Quality Standards'!E45 -> 10 | T125: ='Quality Standards'!F45 -> -1 | U125: ='Quality Standards'!G45 -> -1 | V125: ='Quality Standards'!H45 -> -1 | W125: ='Quality Standards'!I45 -> 0 | X125: ='Quality Standards'!J45 -> -1 | Y125: ='Quality Standards'!K45 -> -1 | Z125: ='Quality Standards'!L45 -> -1 | AA125: ='Quality Standards'!M45 -> -1 | AB125: ='Quality Standards'!N45 -> -1
P126: ='Quality Standards'!B46 -> EPA: Impoundments-restricted | Q126: ='Quality Standards'!C46 -> -1 | R126: ='Quality Standards'!D46 -> 30 | S126: ='Quality Standards'!E46 -> 30 | T126: ='Quality Standards'!F46 -> -1 | U126: ='Quality Standards'!G46 -> -1 | V126: ='Quality Standards'!H46 -> -1 | W126: ='Quality Standards'!I46 -> 200 | X126: ='Quality Standards'!J46 -> -1 | Y126: ='Quality Standards'!K46 -> -1 | Z126: ='Quality Standards'!L46 -> -1 | AA126: ='Quality Standards'!M46 -> -1 | AB126: ='Quality Standards'!N46 -> -1
P127: ='Quality Standards'!B47 -> EPA: Environmental Reuse | Q127: ='Quality Standards'!C47 -> -1 | R127: ='Quality Standards'!D47 -> 30 | S127: ='Quality Standards'!E47 -> 30 | T127: ='Quality Standards'!F47 -> -1 | U127: ='Quality Standards'!G47 -> -1 | V127: ='Quality Standards'!H47 -> -1 | W127: ='Quality Standards'!I47 -> 200 | X127: ='Quality Standards'!J47 -> -1 | Y127: ='Quality Standards'!K47 -> -1 | Z127: ='Quality Standards'!L47 -> -1 | AA127: ='Quality Standards'!M47 -> -1 | AB127: ='Quality Standards'!N47 -> -1
P128: ='Quality Standards'!B48 -> EPA: Industrial Reuse- Once-through cooling | Q128: ='Quality Standards'!C48 -> -1 | R128: ='Quality Standards'!D48 -> 30 | S128: ='Quality Standards'!E48 -> 30 | T128: ='Quality Standards'!F48 -> -1 | U128: ='Quality Standards'!G48 -> -1 | V128: ='Quality Standards'!H48 -> -1 | W128: ='Quality Standards'!I48 -> 200 | X128: ='Quality Standards'!J48 -> -1 | Y128: ='Quality Standards'!K48 -> -1 | Z128: ='Quality Standards'!L48 -> -1 | AA128: ='Quality Standards'!M48 -> -1 | AB128: ='Quality Standards'!N48 -> -1
P129: ='Quality Standards'!B49 -> EPA: Industrial Reuse- Recirculating Cooling Towers | Q129: ='Quality Standards'!C49 -> -1 | R129: ='Quality Standards'!D49 -> 30 | S129: ='Quality Standards'!E49 -> 30 | T129: ='Quality Standards'!F49 -> -1 | U129: ='Quality Standards'!G49 -> -1 | V129: ='Quality Standards'!H49 -> -1 | W129: ='Quality Standards'!I49 -> 200 | X129: ='Quality Standards'!J49 -> -1 | Y129: ='Quality Standards'!K49 -> -1 | Z129: ='Quality Standards'!L49 -> -1 | AA129: ='Quality Standards'!M49 -> -1 | AB129: ='Quality Standards'!N49 -> -1
P130: ='Quality Standards'!B50 -> EPA: Groundwater Recharge-Indirect potable re-use | Q130: ='Quality Standards'!C50 -> 2 | R130: ='Quality Standards'!D50 -> -1 | S130: ='Quality Standards'!E50 -> -1 | T130: ='Quality Standards'!F50 -> -1 | U130: ='Quality Standards'!G50 -> -1 | V130: ='Quality Standards'!H50 -> -1 | W130: ='Quality Standards'!I50 -> 0 | X130: ='Quality Standards'!J50 -> -1 | Y130: ='Quality Standards'!K50 -> -1 | Z130: ='Quality Standards'!L50 -> -1 | AA130: ='Quality Standards'!M50 -> 2 | AB130: ='Quality Standards'!N50 -> -1
P131: ='Quality Standards'!B51 -> Texas water re-use standards | Q131: ='Quality Standards'!C51 -> 0 | R131: ='Quality Standards'!D51 -> 0 | S131: ='Quality Standards'!E51 -> 0 | T131: ='Quality Standards'!F51 -> 0 | U131: ='Quality Standards'!G51 -> 0 | V131: ='Quality Standards'!H51 -> 0 | W131: ='Quality Standards'!I51 -> 0 | X131: ='Quality Standards'!J51 -> 0 | Y131: ='Quality Standards'!K51 -> 0 | Z131: ='Quality Standards'!L51 -> 0 | AA131: ='Quality Standards'!M51 -> 0 | AB131: ='Quality Standards'!N51 -> 0
P132: ='Quality Standards'!B52 -> Texas EPA: Urban Reuse- unrestricted | Q132: ='Quality Standards'!C52 -> 3 | R132: ='Quality Standards'!D52 -> -1 | S132: ='Quality Standards'!E52 -> 5 | T132: ='Quality Standards'!F52 -> -1 | U132: ='Quality Standards'!G52 -> -1 | V132: ='Quality Standards'!H52 -> -1 | W132: ='Quality Standards'!I52 -> 20 | X132: ='Quality Standards'!J52 -> -1 | Y132: ='Quality Standards'!K52 -> -1 | Z132: ='Quality Standards'!L52 -> -1 | AA132: ='Quality Standards'!M52 -> -1 | AB132: ='Quality Standards'!N52 -> -1
P133: ='Quality Standards'!B53 -> Texas EPA: Urban Reuse-restricted | Q133: ='Quality Standards'!C53 -> -1 | R133: ='Quality Standards'!D53 -> -1 | S133: ='Quality Standards'!E53 -> 20 | T133: ='Quality Standards'!F53 -> -1 | U133: ='Quality Standards'!G53 -> -1 | V133: ='Quality Standards'!H53 -> -1 | W133: ='Quality Standards'!I53 -> 200 | X133: ='Quality Standards'!J53 -> -1 | Y133: ='Quality Standards'!K53 -> -1 | Z133: ='Quality Standards'!L53 -> -1 | AA133: ='Quality Standards'!M53 -> -1 | AB133: ='Quality Standards'!N53 -> -1
P134: ='Quality Standards'!B54 -> Texas EPA: Agricultural Reuse-Food Crops | Q134: ='Quality Standards'!C54 -> 3 | R134: ='Quality Standards'!D54 -> -1 | S134: ='Quality Standards'!E54 -> 5 | T134: ='Quality Standards'!F54 -> -1 | U134: ='Quality Standards'!G54 -> -1 | V134: ='Quality Standards'!H54 -> -1 | W134: ='Quality Standards'!I54 -> 20 | X134: ='Quality Standards'!J54 -> -1 | Y134: ='Quality Standards'!K54 -> -1 | Z134: ='Quality Standards'!L54 -> -1 | AA134: ='Quality Standards'!M54 -> -1 | AB134: ='Quality Standards'!N54 -> -1
P135: ='Quality Standards'!B55 -> Texas EPA: Agricultural Reuse-Processed food crops and Non-food crops | Q135: ='Quality Standards'!C55 -> -1 | R135: ='Quality Standards'!D55 -> -1 | S135: ='Quality Standards'!E55 -> 20 | T135: ='Quality Standards'!F55 -> -1 | U135: ='Quality Standards'!G55 -> -1 | V135: ='Quality Standards'!H55 -> -1 | W135: ='Quality Standards'!I55 -> 200 | X135: ='Quality Standards'!J55 -> -1 | Y135: ='Quality Standards'!K55 -> -1 | Z135: ='Quality Standards'!L55 -> -1 | AA135: ='Quality Standards'!M55 -> -1 | AB135: ='Quality Standards'!N55 -> -1
P136: ='Quality Standards'!B56 -> Texas EPA: Impoundments-unrestricted | Q136: ='Quality Standards'!C56 -> 3 | R136: ='Quality Standards'!D56 -> -1 | S136: ='Quality Standards'!E56 -> 5 | T136: ='Quality Standards'!F56 -> -1 | U136: ='Quality Standards'!G56 -> -1 | V136: ='Quality Standards'!H56 -> -1 | W136: ='Quality Standards'!I56 -> 20 | X136: ='Quality Standards'!J56 -> -1 | Y136: ='Quality Standards'!K56 -> -1 | Z136: ='Quality Standards'!L56 -> -1 | AA136: ='Quality Standards'!M56 -> -1 | AB136: ='Quality Standards'!N56 -> -1
P137: ='Quality Standards'!B57 -> Texas EPA: Impoundments-restricted | Q137: ='Quality Standards'!C57 -> -1 | R137: ='Quality Standards'!D57 -> -1 | S137: ='Quality Standards'!E57 -> 20 | T137: ='Quality Standards'!F57 -> -1 | U137: ='Quality Standards'!G57 -> -1 | V137: ='Quality Standards'!H57 -> -1 | W137: ='Quality Standards'!I57 -> 200 | X137: ='Quality Standards'!J57 -> -1 | Y137: ='Quality Standards'!K57 -> -1 | Z137: ='Quality Standards'!L57 -> -1 | AA137: ='Quality Standards'!M57 -> -1 | AB137: ='Quality Standards'!N57 -> -1
P138: ='Quality Standards'!B58 -> Texas EPA: Environmental Reuse | Q138: ='Quality Standards'!C58 -> -1 | R138: ='Quality Standards'!D58 -> -1 | S138: ='Quality Standards'!E58 -> -1 | T138: ='Quality Standards'!F58 -> -1 | U138: ='Quality Standards'!G58 -> -1 | V138: ='Quality Standards'!H58 -> -1 | W138: ='Quality Standards'!I58 -> -1 | X138: ='Quality Standards'!J58 -> -1 | Y138: ='Quality Standards'!K58 -> -1 | Z138: ='Quality Standards'!L58 -> -1 | AA138: ='Quality Standards'!M58 -> -1 | AB138: ='Quality Standards'!N58 -> -1
P139: ='Quality Standards'!B59 -> Texas EPA: Industrial Reuse- Recirculating Cooling Towers | Q139: ='Quality Standards'!C59 -> -1 | R139: ='Quality Standards'!D59 -> -1 | S139: ='Quality Standards'!E59 -> 20 | T139: ='Quality Standards'!F59 -> -1 | U139: ='Quality Standards'!G59 -> -1 | V139: ='Quality Standards'!H59 -> -1 | W139: ='Quality Standards'!I59 -> 200 | X139: ='Quality Standards'!J59 -> -1 | Y139: ='Quality Standards'!K59 -> -1 | Z139: ='Quality Standards'!L59 -> -1 | AA139: ='Quality Standards'!M59 -> -1 | AB139: ='Quality Standards'!N59 -> -1
P140: ='Quality Standards'!B60 -> Texas EPA: Groundwater Recharge-Indirect potable re-use | Q140: ='Quality Standards'!C60 -> 3 | R140: ='Quality Standards'!D60 -> -1 | S140: ='Quality Standards'!E60 -> 5 | T140: ='Quality Standards'!F60 -> -1 | U140: ='Quality Standards'!G60 -> -1 | V140: ='Quality Standards'!H60 -> -1 | W140: ='Quality Standards'!I60 -> 20 | X140: ='Quality Standards'!J60 -> -1 | Y140: ='Quality Standards'!K60 -> -1 | Z140: ='Quality Standards'!L60 -> -1 | AA140: ='Quality Standards'!M60 -> -1 | AB140: ='Quality Standards'!N60 -> -1
P141: ='Quality Standards'!B61 -> California water re-use standards | Q141: ='Quality Standards'!C61 -> 0 | R141: ='Quality Standards'!D61 -> 0 | S141: ='Quality Standards'!E61 -> 0 | T141: ='Quality Standards'!F61 -> 0 | U141: ='Quality Standards'!G61 -> 0 | V141: ='Quality Standards'!H61 -> 0 | W141: ='Quality Standards'!I61 -> 0 | X141: ='Quality Standards'!J61 -> 0 | Y141: ='Quality Standards'!K61 -> 0 | Z141: ='Quality Standards'!L61 -> 0 | AA141: ='Quality Standards'!M61 -> 0 | AB141: ='Quality Standards'!N61 -> 0
P142: ='Quality Standards'!B62 -> California EPA: Urban Reuse- unrestricted | Q142: ='Quality Standards'!C62 -> 2 | R142: ='Quality Standards'!D62 -> -1 | S142: ='Quality Standards'!E62 -> -1 | T142: ='Quality Standards'!F62 -> -1 | U142: ='Quality Standards'!G62 -> -1 | V142: ='Quality Standards'!H62 -> -1 | W142: ='Quality Standards'!I62 -> -1 | X142: ='Quality Standards'!J62 -> 2.2 | Y142: ='Quality Standards'!K62 -> -1 | Z142: ='Quality Standards'!L62 -> -1 | AA142: ='Quality Standards'!M62 -> -1 | AB142: ='Quality Standards'!N62 -> -1
P143: ='Quality Standards'!B63 -> California EPA: Urban Reuse-restricted | Q143: ='Quality Standards'!C63 -> -1 | R143: ='Quality Standards'!D63 -> -1 | S143: ='Quality Standards'!E63 -> -1 | T143: ='Quality Standards'!F63 -> -1 | U143: ='Quality Standards'!G63 -> -1 | V143: ='Quality Standards'!H63 -> -1 | W143: ='Quality Standards'!I63 -> -1 | X143: ='Quality Standards'!J63 -> 23 | Y143: ='Quality Standards'!K63 -> -1 | Z143: ='Quality Standards'!L63 -> -1 | AA143: ='Quality Standards'!M63 -> -1 | AB143: ='Quality Standards'!N63 -> -1
P144: ='Quality Standards'!B64 -> California EPA: Agricultural Reuse-Food Crops | Q144: ='Quality Standards'!C64 -> 2 | R144: ='Quality Standards'!D64 -> -1 | S144: ='Quality Standards'!E64 -> -1 | T144: ='Quality Standards'!F64 -> -1 | U144: ='Quality Standards'!G64 -> -1 | V144: ='Quality Standards'!H64 -> -1 | W144: ='Quality Standards'!I64 -> -1 | X144: ='Quality Standards'!J64 -> 2.2 | Y144: ='Quality Standards'!K64 -> -1 | Z144: ='Quality Standards'!L64 -> -1 | AA144: ='Quality Standards'!M64 -> -1 | AB144: ='Quality Standards'!N64 -> -1
P145: ='Quality Standards'!B65 -> California EPA: Agricultural Reuse-Processed food crops and Non-food crops | Q145: ='Quality Standards'!C65 -> -1 | R145: ='Quality Standards'!D65 -> -1 | S145: ='Quality Standards'!E65 -> -1 | T145: ='Quality Standards'!F65 -> -1 | U145: ='Quality Standards'!G65 -> 10 | V145: ='Quality Standards'!H65 -> -1 | W145: ='Quality Standards'!I65 -> -1 | X145: ='Quality Standards'!J65 -> -1 | Y145: ='Quality Standards'!K65 -> -1 | Z145: ='Quality Standards'!L65 -> -1 | AA145: ='Quality Standards'!M65 -> -1 | AB145: ='Quality Standards'!N65 -> -1
P146: ='Quality Standards'!B66 -> California EPA: Impoundments-unrestricted | Q146: ='Quality Standards'!C66 -> 2 | R146: ='Quality Standards'!D66 -> -1 | S146: ='Quality Standards'!E66 -> -1 | T146: ='Quality Standards'!F66 -> -1 | U146: ='Quality Standards'!G66 -> -1 | V146: ='Quality Standards'!H66 -> -1 | W146: ='Quality Standards'!I66 -> -1 | X146: ='Quality Standards'!J66 -> 2.2 | Y146: ='Quality Standards'!K66 -> -1 | Z146: ='Quality Standards'!L66 -> -1 | AA146: ='Quality Standards'!M66 -> -1 | AB146: ='Quality Standards'!N66 -> -1
P147: ='Quality Standards'!B67 -> California EPA: Impoundments-restricted | Q147: ='Quality Standards'!C67 -> -1 | R147: ='Quality Standards'!D67 -> -1 | S147: ='Quality Standards'!E67 -> -1 | T147: ='Quality Standards'!F67 -> -1 | U147: ='Quality Standards'!G67 -> -1 | V147: ='Quality Standards'!H67 -> -1 | W147: ='Quality Standards'!I67 -> -1 | X147: ='Quality Standards'!J67 -> 2.2 | Y147: ='Quality Standards'!K67 -> -1 | Z147: ='Quality Standards'!L67 -> -1 | AA147: ='Quality Standards'!M67 -> -1 | AB147: ='Quality Standards'!N67 -> -1
P148: ='Quality Standards'!B68 -> California EPA: Environmental Reuse | Q148: ='Quality Standards'!C68 -> -1 | R148: ='Quality Standards'!D68 -> -1 | S148: ='Quality Standards'!E68 -> -1 | T148: ='Quality Standards'!F68 -> -1 | U148: ='Quality Standards'!G68 -> -1 | V148: ='Quality Standards'!H68 -> -1 | W148: ='Quality Standards'!I68 -> -1 | X148: ='Quality Standards'!J68 -> -1 | Y148: ='Quality Standards'!K68 -> -1 | Z148: ='Quality Standards'!L68 -> -1 | AA148: ='Quality Standards'!M68 -> -1 | AB148: ='Quality Standards'!N68 -> -1
P149: ='Quality Standards'!B69 -> California EPA: Industrial Reuse- Once-through cooling | Q149: ='Quality Standards'!C69 -> 2 | R149: ='Quality Standards'!D69 -> -1 | S149: ='Quality Standards'!E69 -> -1 | T149: ='Quality Standards'!F69 -> -1 | U149: ='Quality Standards'!G69 -> -1 | V149: ='Quality Standards'!H69 -> -1 | W149: ='Quality Standards'!I69 -> -1 | X149: ='Quality Standards'!J69 -> 2.2 | Y149: ='Quality Standards'!K69 -> -1 | Z149: ='Quality Standards'!L69 -> -1 | AA149: ='Quality Standards'!M69 -> -1 | AB149: ='Quality Standards'!N69 -> -1
P150: ='Quality Standards'!B70 -> California EPA: Groundwater Recharge-Indirect potable re-use | Q150: ='Quality Standards'!C70 -> 2 | R150: ='Quality Standards'!D70 -> -1 | S150: ='Quality Standards'!E70 -> -1 | T150: ='Quality Standards'!F70 -> -1 | U150: ='Quality Standards'!G70 -> 10 | V150: ='Quality Standards'!H70 -> -1 | W150: ='Quality Standards'!I70 -> -1 | X150: ='Quality Standards'!J70 -> 2.2 | Y150: ='Quality Standards'!K70 -> -1 | Z150: ='Quality Standards'!L70 -> -1 | AA150: ='Quality Standards'!M70 -> 0.5 | AB150: ='Quality Standards'!N70 -> -1
P151: ='Quality Standards'!B71 -> WHO guidelines, 2006; Vol. 2-4 | Q151: ='Quality Standards'!C71 -> 0 | R151: ='Quality Standards'!D71 -> 0 | S151: ='Quality Standards'!E71 -> 0 | T151: ='Quality Standards'!F71 -> 0 | U151: ='Quality Standards'!G71 -> 0 | V151: ='Quality Standards'!H71 -> 0 | W151: ='Quality Standards'!I71 -> 0 | X151: ='Quality Standards'!J71 -> 0 | Y151: ='Quality Standards'!K71 -> 0 | Z151: ='Quality Standards'!L71 -> 0 | AA151: ='Quality Standards'!M71 -> 0 | AB151: ='Quality Standards'!N71 -> 0
P152: ='Quality Standards'!B72 -> WHO: Use of wastewater in agriculture-unrestricted | Q152: ='Quality Standards'!C72 -> -1 | R152: ='Quality Standards'!D72 -> -1 | S152: ='Quality Standards'!E72 -> -1 | T152: ='Quality Standards'!F72 -> -1 | U152: ='Quality Standards'!G72 -> -1 | V152: ='Quality Standards'!H72 -> -1 | W152: ='Quality Standards'!I72 -> 1000 | X152: ='Quality Standards'!J72 -> -1 | Y152: ='Quality Standards'!K72 -> -1 | Z152: ='Quality Standards'!L72 -> -1 | AA152: ='Quality Standards'!M72 -> -1 | AB152: ='Quality Standards'!N72 -> -1
P153: ='Quality Standards'!B73 -> WHO: Use of wastewater in agriculture-restricted-highly mechanized irrigation | Q153: ='Quality Standards'!C73 -> -1 | R153: ='Quality Standards'!D73 -> -1 | S153: ='Quality Standards'!E73 -> -1 | T153: ='Quality Standards'!F73 -> -1 | U153: ='Quality Standards'!G73 -> -1 | V153: ='Quality Standards'!H73 -> -1 | W153: ='Quality Standards'!I73 -> 100000 | X153: ='Quality Standards'!J73 -> -1 | Y153: ='Quality Standards'!K73 -> -1 | Z153: ='Quality Standards'!L73 -> -1 | AA153: ='Quality Standards'!M73 -> -1 | AB153: ='Quality Standards'!N73 -> -1
P154: ='Quality Standards'!B74 -> WHO: Use of wastewater in agriculture- restricted-labour intensive irrigation | Q154: ='Quality Standards'!C74 -> -1 | R154: ='Quality Standards'!D74 -> -1 | S154: ='Quality Standards'!E74 -> -1 | T154: ='Quality Standards'!F74 -> -1 | U154: ='Quality Standards'!G74 -> -1 | V154: ='Quality Standards'!H74 -> -1 | W154: ='Quality Standards'!I74 -> 1000 | X154: ='Quality Standards'!J74 -> -1 | Y154: ='Quality Standards'!K74 -> -1 | Z154: ='Quality Standards'!L74 -> -1 | AA154: ='Quality Standards'!M74 -> -1 | AB154: ='Quality Standards'!N74 -> -1
P155: ='Quality Standards'!B75 -> WHO: Use of wastewater in aquaculture | Q155: ='Quality Standards'!C75 -> -1 | R155: ='Quality Standards'!D75 -> -1 | S155: ='Quality Standards'!E75 -> -1 | T155: ='Quality Standards'!F75 -> -1 | U155: ='Quality Standards'!G75 -> -1 | V155: ='Quality Standards'!H75 -> -1 | W155: ='Quality Standards'!I75 -> 10000 | X155: ='Quality Standards'!J75 -> -1 | Y155: ='Quality Standards'!K75 -> -1 | Z155: ='Quality Standards'!L75 -> -1 | AA155: ='Quality Standards'!M75 -> -1 | AB155: ='Quality Standards'!N75 -> -1
P156: ='Quality Standards'!B76 -> WHO: Use of grey water in agriculture-unrestricted | Q156: ='Quality Standards'!C76 -> -1 | R156: ='Quality Standards'!D76 -> -1 | S156: ='Quality Standards'!E76 -> -1 | T156: ='Quality Standards'!F76 -> -1 | U156: ='Quality Standards'!G76 -> -1 | V156: ='Quality Standards'!H76 -> -1 | W156: ='Quality Standards'!I76 -> 1000 | X156: ='Quality Standards'!J76 -> -1 | Y156: ='Quality Standards'!K76 -> -1 | Z156: ='Quality Standards'!L76 -> -1 | AA156: ='Quality Standards'!M76 -> -1 | AB156: ='Quality Standards'!N76 -> -1
P157: ='Quality Standards'!B77 -> WHO: Use of grey water in agriculture-restricted | Q157: ='Quality Standards'!C77 -> -1 | R157: ='Quality Standards'!D77 -> -1 | S157: ='Quality Standards'!E77 -> -1 | T157: ='Quality Standards'!F77 -> -1 | U157: ='Quality Standards'!G77 -> -1 | V157: ='Quality Standards'!H77 -> -1 | W157: ='Quality Standards'!I77 -> 100000 | X157: ='Quality Standards'!J77 -> -1 | Y157: ='Quality Standards'!K77 -> -1 | Z157: ='Quality Standards'!L77 -> -1 | AA157: ='Quality Standards'!M77 -> -1 | AB157: ='Quality Standards'!N77 -> -1
P158: ='Quality Standards'!B78 -> Standards for Water Re-use in Eastern Mediterranean Region (EMR), based on WHO guidelines 1989 | Q158: ='Quality Standards'!C78 -> 0 | R158: ='Quality Standards'!D78 -> 0 | S158: ='Quality Standards'!E78 -> 0 | T158: ='Quality Standards'!F78 -> 0 | U158: ='Quality Standards'!G78 -> 0 | V158: ='Quality Standards'!H78 -> 0 | W158: ='Quality Standards'!I78 -> 0 | X158: ='Quality Standards'!J78 -> 0 | Y158: ='Quality Standards'!K78 -> 0 | Z158: ='Quality Standards'!L78 -> 0 | AA158: ='Quality Standards'!M78 -> 0 | AB158: ='Quality Standards'!N78 -> 0
P159: ='Quality Standards'!B79 -> Wastewater: Category A Untrestricted irrigation | Q159: ='Quality Standards'!C79 -> -1 | R159: ='Quality Standards'!D79 -> -1 | S159: ='Quality Standards'!E79 -> -1 | T159: ='Quality Standards'!F79 -> -1 | U159: ='Quality Standards'!G79 -> -1 | V159: ='Quality Standards'!H79 -> -1 | W159: ='Quality Standards'!I79 -> 1000 | X159: ='Quality Standards'!J79 -> -1 | Y159: ='Quality Standards'!K79 -> -1 | Z159: ='Quality Standards'!L79 -> -1 | AA159: ='Quality Standards'!M79 -> -1 | AB159: ='Quality Standards'!N79 -> -1
P160: ='Quality Standards'!B80 -> Wastewater: Category B Restricted irrigation | Q160: ='Quality Standards'!C80 -> -1 | R160: ='Quality Standards'!D80 -> -1 | S160: ='Quality Standards'!E80 -> -1 | T160: ='Quality Standards'!F80 -> -1 | U160: ='Quality Standards'!G80 -> -1 | V160: ='Quality Standards'!H80 -> -1 | W160: ='Quality Standards'!I80 -> 1000 | X160: ='Quality Standards'!J80 -> -1 | Y160: ='Quality Standards'!K80 -> -1 | Z160: ='Quality Standards'!L80 -> -1 | AA160: ='Quality Standards'!M80 -> -1 | AB160: ='Quality Standards'!N80 -> -1
P161: ='Quality Standards'!B81 -> Wastewater: Category C | Q161: ='Quality Standards'!C81 -> -1 | R161: ='Quality Standards'!D81 -> -1 | S161: ='Quality Standards'!E81 -> -1 | T161: ='Quality Standards'!F81 -> -1 | U161: ='Quality Standards'!G81 -> -1 | V161: ='Quality Standards'!H81 -> -1 | W161: ='Quality Standards'!I81 -> -1 | X161: ='Quality Standards'!J81 -> -1 | Y161: ='Quality Standards'!K81 -> -1 | Z161: ='Quality Standards'!L81 -> -1 | AA161: ='Quality Standards'!M81 -> -1 | AB161: ='Quality Standards'!N81 -> -1
P162: ='Quality Standards'!B82 -> Greywater: Category A | Q162: ='Quality Standards'!C82 -> -1 | R162: ='Quality Standards'!D82 -> 140 | S162: ='Quality Standards'!E82 -> 240 | T162: ='Quality Standards'!F82 -> -1 | U162: ='Quality Standards'!G82 -> -1 | V162: ='Quality Standards'!H82 -> -1 | W162: ='Quality Standards'!I82 -> 1000 | X162: ='Quality Standards'!J82 -> -1 | Y162: ='Quality Standards'!K82 -> -1 | Z162: ='Quality Standards'!L82 -> -1 | AA162: ='Quality Standards'!M82 -> -1 | AB162: ='Quality Standards'!N82 -> -1
P163: ='Quality Standards'!B83 -> Greywater: Category B | Q163: ='Quality Standards'!C83 -> -1 | R163: ='Quality Standards'!D83 -> 20 | S163: ='Quality Standards'!E83 -> 20 | T163: ='Quality Standards'!F83 -> -1 | U163: ='Quality Standards'!G83 -> -1 | V163: ='Quality Standards'!H83 -> -1 | W163: ='Quality Standards'!I83 -> 200 | X163: ='Quality Standards'!J83 -> -1 | Y163: ='Quality Standards'!K83 -> -1 | Z163: ='Quality Standards'!L83 -> -1 | AA163: ='Quality Standards'!M83 -> -1 | AB163: ='Quality Standards'!N83 -> -1
P164: ='Quality Standards'!B84 -> Greywater: Category C | Q164: ='Quality Standards'!C84 -> -1 | R164: ='Quality Standards'!D84 -> 10 | S164: ='Quality Standards'!E84 -> 10 | T164: ='Quality Standards'!F84 -> -1 | U164: ='Quality Standards'!G84 -> -1 | V164: ='Quality Standards'!H84 -> -1 | W164: ='Quality Standards'!I84 -> 10 | X164: ='Quality Standards'!J84 -> -1 | Y164: ='Quality Standards'!K84 -> -1 | Z164: ='Quality Standards'!L84 -> -1 | AA164: ='Quality Standards'!M84 -> -1 | AB164: ='Quality Standards'!N84 -> -1
P165: ='Quality Standards'!B85 -> Jordanian Standards for wastewater reuse | Q165: ='Quality Standards'!C85 -> 0 | R165: ='Quality Standards'!D85 -> 0 | S165: ='Quality Standards'!E85 -> 0 | T165: ='Quality Standards'!F85 -> 0 | U165: ='Quality Standards'!G85 -> 0 | V165: ='Quality Standards'!H85 -> 0 | W165: ='Quality Standards'!I85 -> 0 | X165: ='Quality Standards'!J85 -> 0 | Y165: ='Quality Standards'!K85 -> 0 | Z165: ='Quality Standards'!L85 -> 0 | AA165: ='Quality Standards'!M85 -> 0 | AB165: ='Quality Standards'!N85 -> 0
P166: ='Quality Standards'!B86 -> Discharge to streams | Q166: ='Quality Standards'!C86 -> -1 | R166: ='Quality Standards'!D86 -> 60 | S166: ='Quality Standards'!E86 -> 60 | T166: ='Quality Standards'!F86 -> 150 | U166: ='Quality Standards'!G86 -> 70 | V166: ='Quality Standards'!H86 -> -1 | W166: ='Quality Standards'!I86 -> 1000 | X166: ='Quality Standards'!J86 -> -1 | Y166: ='Quality Standards'!K86 -> 1500 | Z166: ='Quality Standards'!L86 -> 45 | AA166: ='Quality Standards'!M86 -> -1 | AB166: ='Quality Standards'!N86 -> -1
P167: ='Quality Standards'!B87 -> Groundwater recharge | Q167: ='Quality Standards'!C87 -> 2 | R167: ='Quality Standards'!D87 -> 50 | S167: ='Quality Standards'!E87 -> 15 | T167: ='Quality Standards'!F87 -> 50 | U167: ='Quality Standards'!G87 -> 45 | V167: ='Quality Standards'!H87 -> -1 | W167: ='Quality Standards'!I87 -> 2.2 | X167: ='Quality Standards'!J87 -> -1 | Y167: ='Quality Standards'!K87 -> 1500 | Z167: ='Quality Standards'!L87 -> 30 | AA167: ='Quality Standards'!M87 -> -1 | AB167: ='Quality Standards'!N87 -> -1
P168: ='Quality Standards'!B88 -> Agricultural irrigation Group A | Q168: ='Quality Standards'!C88 -> 10 | R168: ='Quality Standards'!D88 -> 50 | S168: ='Quality Standards'!E88 -> 30 | T168: ='Quality Standards'!F88 -> 100 | U168: ='Quality Standards'!G88 -> 45 | V168: ='Quality Standards'!H88 -> -1 | W168: ='Quality Standards'!I88 -> 100 | X168: ='Quality Standards'!J88 -> -1 | Y168: ='Quality Standards'!K88 -> -1 | Z168: ='Quality Standards'!L88 -> 30 | AA168: ='Quality Standards'!M88 -> -1 | AB168: ='Quality Standards'!N88 -> -1
P169: ='Quality Standards'!B89 -> Agricultural irrigation Group B | Q169: ='Quality Standards'!C89 -> -1 | R169: ='Quality Standards'!D89 -> 150 | S169: ='Quality Standards'!E89 -> 200 | T169: ='Quality Standards'!F89 -> 500 | U169: ='Quality Standards'!G89 -> 70 | V169: ='Quality Standards'!H89 -> -1 | W169: ='Quality Standards'!I89 -> 1000 | X169: ='Quality Standards'!J89 -> -1 | Y169: ='Quality Standards'!K89 -> -1 | Z169: ='Quality Standards'!L89 -> 45 | AA169: ='Quality Standards'!M89 -> -1 | AB169: ='Quality Standards'!N89 -> -1
P170: ='Quality Standards'!B90 -> Agricultural irrigation Group C | Q170: ='Quality Standards'!C90 -> -1 | R170: ='Quality Standards'!D90 -> 150 | S170: ='Quality Standards'!E90 -> 300 | T170: ='Quality Standards'!F90 -> 500 | U170: ='Quality Standards'!G90 -> 70 | V170: ='Quality Standards'!H90 -> -1 | W170: ='Quality Standards'!I90 -> -1 | X170: ='Quality Standards'!J90 -> -1 | Y170: ='Quality Standards'!K90 -> -1 | Z170: ='Quality Standards'!L90 -> 45 | AA170: ='Quality Standards'!M90 -> -1 | AB170: ='Quality Standards'!N90 -> -1
P171: ='Quality Standards'!B91 -> AQUAREC Water quality criteria, 2006 | Q171: ='Quality Standards'!C91 -> 0 | R171: ='Quality Standards'!D91 -> 0 | S171: ='Quality Standards'!E91 -> 0 | T171: ='Quality Standards'!F91 -> 0 | U171: ='Quality Standards'!G91 -> 0 | V171: ='Quality Standards'!H91 -> 0 | W171: ='Quality Standards'!I91 -> 0 | X171: ='Quality Standards'!J91 -> 0 | Y171: ='Quality Standards'!K91 -> 0 | Z171: ='Quality Standards'!L91 -> 0 | AA171: ='Quality Standards'!M91 -> 0 | AB171: ='Quality Standards'!N91 -> 0
P172: ='Quality Standards'!B92 -> AQUAREC: Private, urban irrigation Category 1 | Q172: ='Quality Standards'!C92 -> -1 | R172: ='Quality Standards'!D92 -> 10 | S172: ='Quality Standards'!E92 -> 10 | T172: ='Quality Standards'!F92 -> 100 | U172: ='Quality Standards'!G92 -> -1 | V172: ='Quality Standards'!H92 -> 2 | W172: ='Quality Standards'!I92 -> 0 | X172: ='Quality Standards'!J92 -> -1 | Y172: ='Quality Standards'!K92 -> 1650 | Z172: ='Quality Standards'!L92 -> -1 | AA172: ='Quality Standards'!M92 -> 100 | AB172: ='Quality Standards'!N92 -> 0
P173: ='Quality Standards'!B93 -> AQUAREC: Environmental and aquaculture Category 2 | Q173: ='Quality Standards'!C93 -> -1 | R173: ='Quality Standards'!D93 -> 10 | S173: ='Quality Standards'!E93 -> 10 | T173: ='Quality Standards'!F93 -> 70 | U173: ='Quality Standards'!G93 -> -1 | V173: ='Quality Standards'!H93 -> 0.2 | W173: ='Quality Standards'!I93 -> 0 | X173: ='Quality Standards'!J93 -> -1 | Y173: ='Quality Standards'!K93 -> 1650 | Z173: ='Quality Standards'!L93 -> -1 | AA173: ='Quality Standards'!M93 -> 70 | AB173: ='Quality Standards'!N93 -> 99
P174: ='Quality Standards'!B94 -> AQUAREC: Indirect aquifer recharge Category 3 | Q174: ='Quality Standards'!C94 -> -1 | R174: ='Quality Standards'!D94 -> -1 | S174: ='Quality Standards'!E94 -> -1 | T174: ='Quality Standards'!F94 -> 70 | U174: ='Quality Standards'!G94 -> -1 | V174: ='Quality Standards'!H94 -> -1 | W174: ='Quality Standards'!I94 -> 0 | X174: ='Quality Standards'!J94 -> -1 | Y174: ='Quality Standards'!K94 -> 385 | Z174: ='Quality Standards'!L94 -> 25 | AA174: ='Quality Standards'!M94 -> 70 | AB174: ='Quality Standards'!N94 -> -1
P175: ='Quality Standards'!B95 -> AQUAREC: Industrial cooling Category 4 | Q175: ='Quality Standards'!C95 -> -1 | R175: ='Quality Standards'!D95 -> 10 | S175: ='Quality Standards'!E95 -> -1 | T175: ='Quality Standards'!F95 -> 70 | U175: ='Quality Standards'!G95 -> -1 | V175: ='Quality Standards'!H95 -> 0.2 | W175: ='Quality Standards'!I95 -> 0 | X175: ='Quality Standards'!J95 -> -1 | Y175: ='Quality Standards'!K95 -> -1 | Z175: ='Quality Standards'!L95 -> -1 | AA175: ='Quality Standards'!M95 -> 70 | AB175: ='Quality Standards'!N95 -> 1
P176: ='Quality Standards'!B96 -> Brazil | Q176: ='Quality Standards'!C96 -> 0 | R176: ='Quality Standards'!D96 -> 0 | S176: ='Quality Standards'!E96 -> 0 | T176: ='Quality Standards'!F96 -> 0 | U176: ='Quality Standards'!G96 -> 0 | V176: ='Quality Standards'!H96 -> 0 | W176: ='Quality Standards'!I96 -> 0 | X176: ='Quality Standards'!J96 -> 0 | Y176: ='Quality Standards'!K96 -> 0 | Z176: ='Quality Standards'!L96 -> 0 | AA176: ='Quality Standards'!M96 -> 0 | AB176: ='Quality Standards'!N96 -> 0
P177: ='Quality Standards'!B97 -> BRA - Freshwater Class I | Q177: ='Quality Standards'!C97 -> 40 | R177: ='Quality Standards'!D97 -> 500 | S177: ='Quality Standards'!E97 -> 3 | T177: ='Quality Standards'!F97 -> -1 | U177: ='Quality Standards'!G97 -> -1 | V177: ='Quality Standards'!H97 -> 0.02 | W177: ='Quality Standards'!I97 -> -1 | X177: ='Quality Standards'!J97 -> -1 | Y177: ='Quality Standards'!K97 -> -1 | Z177: ='Quality Standards'!L97 -> 10 | AA177: ='Quality Standards'!M97 -> -1 | AB177: ='Quality Standards'!N97 -> -1
P178: ='Quality Standards'!B98 -> BRA - Freshwater Class II | Q178: ='Quality Standards'!C98 -> 100 | R178: ='Quality Standards'!D98 -> 500 | S178: ='Quality Standards'!E98 -> 5 | T178: ='Quality Standards'!F98 -> -1 | U178: ='Quality Standards'!G98 -> -1 | V178: ='Quality Standards'!H98 -> 0.03 | W178: ='Quality Standards'!I98 -> -1 | X178: ='Quality Standards'!J98 -> -1 | Y178: ='Quality Standards'!K98 -> -1 | Z178: ='Quality Standards'!L98 -> 10 | AA178: ='Quality Standards'!M98 -> -1 | AB178: ='Quality Standards'!N98 -> -1
P179: ='Quality Standards'!B99 -> BRA - Freshwater Class III | Q179: ='Quality Standards'!C99 -> 100 | R179: ='Quality Standards'!D99 -> 500 | S179: ='Quality Standards'!E99 -> 10 | T179: ='Quality Standards'!F99 -> -1 | U179: ='Quality Standards'!G99 -> -1 | V179: ='Quality Standards'!H99 -> 0.05 | W179: ='Quality Standards'!I99 -> -1 | X179: ='Quality Standards'!J99 -> -1 | Y179: ='Quality Standards'!K99 -> -1 | Z179: ='Quality Standards'!L99 -> 10 | AA179: ='Quality Standards'!M99 -> -1 | AB179: ='Quality Standards'!N99 -> -1
P180: ='Quality Standards'!B100 -> BRA - Reuse Water Class 1 | Q180: ='Quality Standards'!C100 -> 5 | R180: ='Quality Standards'!D100 -> -1 | S180: ='Quality Standards'!E100 -> 200 | T180: ='Quality Standards'!F100 -> -1 | U180: ='Quality Standards'!G100 -> -1 | V180: ='Quality Standards'!H100 -> -1 | W180: ='Quality Standards'!I100 -> -1 | X180: ='Quality Standards'!J100 -> 200 | Y180: ='Quality Standards'!K100 -> 200 | Z180: ='Quality Standards'!L100 -> -1 | AA180: ='Quality Standards'!M100 -> -1 | AB180: ='Quality Standards'!N100 -> -1
P181: ='Quality Standards'!B101 -> BRA - Reuse Water Class 2 | Q181: ='Quality Standards'!C101 -> 5 | R181: ='Quality Standards'!D101 -> -1 | S181: ='Quality Standards'!E101 -> 500 | T181: ='Quality Standards'!F101 -> -1 | U181: ='Quality Standards'!G101 -> -1 | V181: ='Quality Standards'!H101 -> -1 | W181: ='Quality Standards'!I101 -> -1 | X181: ='Quality Standards'!J101 -> 500 | Y181: ='Quality Standards'!K101 -> -1 | Z181: ='Quality Standards'!L101 -> -1 | AA181: ='Quality Standards'!M101 -> -1 | AB181: ='Quality Standards'!N101 -> -1
P182: ='Quality Standards'!B102 -> BRA - Reuse Water Class 3 | Q182: ='Quality Standards'!C102 -> 10 | R182: ='Quality Standards'!D102 -> -1 | S182: ='Quality Standards'!E102 -> 500 | T182: ='Quality Standards'!F102 -> -1 | U182: ='Quality Standards'!G102 -> -1 | V182: ='Quality Standards'!H102 -> -1 | W182: ='Quality Standards'!I102 -> -1 | X182: ='Quality Standards'!J102 -> 500 | Y182: ='Quality Standards'!K102 -> -1 | Z182: ='Quality Standards'!L102 -> -1 | AA182: ='Quality Standards'!M102 -> -1 | AB182: ='Quality Standards'!N102 -> -1
P183: ='Quality Standards'!B103 -> BRA - Reuse Water Class 4 | Q183: ='Quality Standards'!C103 -> -1 | R183: ='Quality Standards'!D103 -> -1 | S183: ='Quality Standards'!E103 -> 5000 | T183: ='Quality Standards'!F103 -> -1 | U183: ='Quality Standards'!G103 -> -1 | V183: ='Quality Standards'!H103 -> -1 | W183: ='Quality Standards'!I103 -> -1 | X183: ='Quality Standards'!J103 -> 5000 | Y183: ='Quality Standards'!K103 -> -1 | Z183: ='Quality Standards'!L103 -> -1 | AA183: ='Quality Standards'!M103 -> -1 | AB183: ='Quality Standards'!N103 -> -1
P184: ='Quality Standards'!B104 -> Chile | Q184: ='Quality Standards'!C104 -> 0 | R184: ='Quality Standards'!D104 -> 0 | S184: ='Quality Standards'!E104 -> 0 | T184: ='Quality Standards'!F104 -> 0 | U184: ='Quality Standards'!G104 -> 0 | V184: ='Quality Standards'!H104 -> 0 | W184: ='Quality Standards'!I104 -> 0 | X184: ='Quality Standards'!J104 -> 0 | Y184: ='Quality Standards'!K104 -> 0 | Z184: ='Quality Standards'!L104 -> 0 | AA184: ='Quality Standards'!M104 -> 0 | AB184: ='Quality Standards'!N104 -> 0
P185: ='Quality Standards'!B105 -> CHL - Drinking water for human consumption | Q185: ='Quality Standards'!C105 -> 5 | R185: ='Quality Standards'!D105 -> -1 | S185: ='Quality Standards'!E105 -> -1 | T185: ='Quality Standards'!F105 -> -1 | U185: ='Quality Standards'!G105 -> -1 | V185: ='Quality Standards'!H105 -> -1 | W185: ='Quality Standards'!I105 -> -1 | X185: ='Quality Standards'!J105 -> -1 | Y185: ='Quality Standards'!K105 -> -1 | Z185: ='Quality Standards'!L105 -> 10 | AA185: ='Quality Standards'!M105 -> -1 | AB185: ='Quality Standards'!N105 -> -1
P186: ='Quality Standards'!B106 -> CHL - Water for agricultural Irrigation | Q186: ='Quality Standards'!C106 -> -1 | R186: ='Quality Standards'!D106 -> -1 | S186: ='Quality Standards'!E106 -> -1 | T186: ='Quality Standards'!F106 -> -1 | U186: ='Quality Standards'!G106 -> -1 | V186: ='Quality Standards'!H106 -> -1 | W186: ='Quality Standards'!I106 -> -1 | X186: ='Quality Standards'!J106 -> 1000 | Y186: ='Quality Standards'!K106 -> 5000 | Z186: ='Quality Standards'!L106 -> -1 | AA186: ='Quality Standards'!M106 -> -1 | AB186: ='Quality Standards'!N106 -> -1
P187: ='Quality Standards'!B107 -> CHL - Water for surface water or groundwater recharge | Q187: ='Quality Standards'!C107 -> 30 | R187: ='Quality Standards'!D107 -> -1 | S187: ='Quality Standards'!E107 -> -1 | T187: ='Quality Standards'!F107 -> -1 | U187: ='Quality Standards'!G107 -> -1 | V187: ='Quality Standards'!H107 -> -1 | W187: ='Quality Standards'!I107 -> -1 | X187: ='Quality Standards'!J107 -> -1 | Y187: ='Quality Standards'!K107 -> -1 | Z187: ='Quality Standards'!L107 -> -1 | AA187: ='Quality Standards'!M107 -> -1 | AB187: ='Quality Standards'!N107 -> -1
P188: ='Quality Standards'!B108 -> Argentina | Q188: ='Quality Standards'!C108 -> 0 | R188: ='Quality Standards'!D108 -> 0 | S188: ='Quality Standards'!E108 -> 0 | T188: ='Quality Standards'!F108 -> 0 | U188: ='Quality Standards'!G108 -> 0 | V188: ='Quality Standards'!H108 -> 0 | W188: ='Quality Standards'!I108 -> 0 | X188: ='Quality Standards'!J108 -> 0 | Y188: ='Quality Standards'!K108 -> 0 | Z188: ='Quality Standards'!L108 -> 0 | AA188: ='Quality Standards'!M108 -> 0 | AB188: ='Quality Standards'!N108 -> 0
P189: ='Quality Standards'!B109 -> ARG - Drinking water for human consumption | Q189: ='Quality Standards'!C109 -> 5 | R189: ='Quality Standards'!D109 -> -1 | S189: ='Quality Standards'!E109 -> -1 | T189: ='Quality Standards'!F109 -> -1 | U189: ='Quality Standards'!G109 -> -1 | V189: ='Quality Standards'!H109 -> -1 | W189: ='Quality Standards'!I109 -> 0 | X189: ='Quality Standards'!J109 -> -1 | Y189: ='Quality Standards'!K109 -> 1000 | Z189: ='Quality Standards'!L109 -> -1 | AA189: ='Quality Standards'!M109 -> -1 | AB189: ='Quality Standards'!N109 -> -1
P190: ='Quality Standards'!B110 -> ARG - Water for agricultural Irrigation(non-food crops) | Q190: ='Quality Standards'!C110 -> -1 | R190: ='Quality Standards'!D110 -> 50 | S190: ='Quality Standards'!E110 -> 30 | T190: ='Quality Standards'!F110 -> -1 | U190: ='Quality Standards'!G110 -> 30 | V190: ='Quality Standards'!H110 -> 5 | W190: ='Quality Standards'!I110 -> -1 | X190: ='Quality Standards'!J110 -> -1 | Y190: ='Quality Standards'!K110 -> 500 | Z190: ='Quality Standards'!L110 -> 30 | AA190: ='Quality Standards'!M110 -> -1 | AB190: ='Quality Standards'!N110 -> -1
P191: ='Quality Standards'!B111 -> Mexico | Q191: ='Quality Standards'!C111 -> 0 | R191: ='Quality Standards'!D111 -> 0 | S191: ='Quality Standards'!E111 -> 0 | T191: ='Quality Standards'!F111 -> 0 | U191: ='Quality Standards'!G111 -> 0 | V191: ='Quality Standards'!H111 -> 0 | W191: ='Quality Standards'!I111 -> 0 | X191: ='Quality Standards'!J111 -> 0 | Y191: ='Quality Standards'!K111 -> 0 | Z191: ='Quality Standards'!L111 -> 0 | AA191: ='Quality Standards'!M111 -> 0 | AB191: ='Quality Standards'!N111 -> 0
P192: ='Quality Standards'!B112 -> MEX - Drinking water for human consumption | Q192: ='Quality Standards'!C112 -> 5 | R192: ='Quality Standards'!D112 -> -1 | S192: ='Quality Standards'!E112 -> -1 | T192: ='Quality Standards'!F112 -> -1 | U192: ='Quality Standards'!G112 -> -1 | V192: ='Quality Standards'!H112 -> -1 | W192: ='Quality Standards'!I112 -> -1 | X192: ='Quality Standards'!J112 -> 2 | Y192: ='Quality Standards'!K112 -> 1000 | Z192: ='Quality Standards'!L112 -> 10 | AA192: ='Quality Standards'!M112 -> -1 | AB192: ='Quality Standards'!N112 -> -1
P193: ='Quality Standards'!B113 -> MEX - Water for public service with direct contact | Q193: ='Quality Standards'!C113 -> 20 | R193: ='Quality Standards'!D113 -> -1 | S193: ='Quality Standards'!E113 -> 20 | T193: ='Quality Standards'!F113 -> -1 | U193: ='Quality Standards'!G113 -> -1 | V193: ='Quality Standards'!H113 -> -1 | W193: ='Quality Standards'!I113 -> 240 | X193: ='Quality Standards'!J113 -> -1 | Y193: ='Quality Standards'!K113 -> -1 | Z193: ='Quality Standards'!L113 -> -1 | AA193: ='Quality Standards'!M113 -> -1 | AB193: ='Quality Standards'!N113 -> -1
P194: ='Quality Standards'!B114 -> MEX - Water for public service without direct contact | Q194: ='Quality Standards'!C114 -> 30 | R194: ='Quality Standards'!D114 -> -1 | S194: ='Quality Standards'!E114 -> 30 | T194: ='Quality Standards'!F114 -> -1 | U194: ='Quality Standards'!G114 -> -1 | V194: ='Quality Standards'!H114 -> -1 | W194: ='Quality Standards'!I114 -> 1000 | X194: ='Quality Standards'!J114 -> -1 | Y194: ='Quality Standards'!K114 -> -1 | Z194: ='Quality Standards'!L114 -> -1 | AA194: ='Quality Standards'!M114 -> -1 | AB194: ='Quality Standards'!N114 -> -1
P195: ='Quality Standards'!B115 -> Classes draft Lena | Q195: ='Quality Standards'!C115 -> 0 | R195: ='Quality Standards'!D115 -> 0 | S195: ='Quality Standards'!E115 -> 0 | T195: ='Quality Standards'!F115 -> 0 | U195: ='Quality Standards'!G115 -> 0 | V195: ='Quality Standards'!H115 -> 0 | W195: ='Quality Standards'!I115 -> 0 | X195: ='Quality Standards'!J115 -> 0 | Y195: ='Quality Standards'!K115 -> 0 | Z195: ='Quality Standards'!L115 -> 0 | AA195: ='Quality Standards'!M115 -> 0 | AB195: ='Quality Standards'!N115 -> 0
P196: ='Quality Standards'!B116 -> Class A | Q196: ='Quality Standards'!C116 -> 5 | R196: ='Quality Standards'!D116 -> 10 | S196: ='Quality Standards'!E116 -> 10 | T196: ='Quality Standards'!F116 -> 100 | U196: ='Quality Standards'!G116 -> -1 | V196: ='Quality Standards'!H116 -> 2-5 | W196: ='Quality Standards'!I116 -> 0 | X196: ='Quality Standards'!J116 -> 1000 | Y196: ='Quality Standards'!K116 -> 200 | Z196: ='Quality Standards'!L116 -> 10 | AA196: ='Quality Standards'!M116 -> 100 | AB196: ='Quality Standards'!N116 -> 10
P197: ='Quality Standards'!B117 -> Class B | Q197: ='Quality Standards'!C117 -> 10 | R197: ='Quality Standards'!D117 -> 10 | S197: ='Quality Standards'!E117 -> 20 | T197: ='Quality Standards'!F117 -> 100 | U197: ='Quality Standards'!G117 -> -1 | V197: ='Quality Standards'!H117 -> 2-5 | W197: ='Quality Standards'!I117 -> 1000 | X197: ='Quality Standards'!J117 -> 10000 | Y197: ='Quality Standards'!K117 -> 1650 | Z197: ='Quality Standards'!L117 -> 30 | AA197: ='Quality Standards'!M117 -> 100 | AB197: ='Quality Standards'!N117 -> 10
P198: ='Quality Standards'!B118 -> Class C | Q198: ='Quality Standards'!C118 -> 10 | R198: ='Quality Standards'!D118 -> 50 | S198: ='Quality Standards'!E118 -> 30 | T198: ='Quality Standards'!F118 -> 70 | U198: ='Quality Standards'!G118 -> 30 | V198: ='Quality Standards'!H118 -> 0.2 | W198: ='Quality Standards'!I118 -> 10000 | X198: ='Quality Standards'!J118 -> 100000 | Y198: ='Quality Standards'!K118 -> 1650 | Z198: ='Quality Standards'!L118 -> 45 | AA198: ='Quality Standards'!M118 -> 70 | AB198: ='Quality Standards'!N118 -> 100
P199: ='Quality Standards'!B119 -> Class D | Q199: ='Quality Standards'!C119 -> -1 | R199: ='Quality Standards'!D119 -> 10 | S199: ='Quality Standards'!E119 -> 30 | T199: ='Quality Standards'!F119 -> 70 | U199: ='Quality Standards'!G119 -> -1 | V199: ='Quality Standards'!H119 -> 0.2 | W199: ='Quality Standards'!I119 -> 10000 | X199: ='Quality Standards'!J119 -> 10000 | Y199: ='Quality Standards'!K119 -> -1 | Z199: ='Quality Standards'!L119 -> -1 | AA199: ='Quality Standards'!M119 -> 70 | AB199: ='Quality Standards'!N119 -> 1
P200: ='Quality Standards'!B120 -> Class E | Q200: ='Quality Standards'!C120 -> 2 | R200: ='Quality Standards'!D120 -> 50 | S200: ='Quality Standards'!E120 -> 15 | T200: ='Quality Standards'!F120 -> 70 | U200: ='Quality Standards'!G120 -> 10 | V200: ='Quality Standards'!H120 -> -1 | W200: ='Quality Standards'!I120 -> 10000 | X200: ='Quality Standards'!J120 -> 100000 | Y200: ='Quality Standards'!K120 -> 385 | Z200: ='Quality Standards'!L120 -> 25 | AA200: ='Quality Standards'!M120 -> 70 | AB200: ='Quality Standards'!N120 -> -1
P201: ='Quality Standards'!B121 -> Poseidon Classes | Q201: ='Quality Standards'!C121 -> 0 | R201: ='Quality Standards'!D121 -> 0 | S201: ='Quality Standards'!E121 -> 0 | T201: ='Quality Standards'!F121 -> 0 | U201: ='Quality Standards'!G121 -> 0 | V201: ='Quality Standards'!H121 -> 0 | W201: ='Quality Standards'!I121 -> 0 | X201: ='Quality Standards'!J121 -> 0 | Y201: ='Quality Standards'!K121 -> 0 | Z201: ='Quality Standards'!L121 -> 0 | AA201: ='Quality Standards'!M121 -> 0 | AB201: ='Quality Standards'!N121 -> 0
P202: ='Quality Standards'!B122 -> Pos-Class A - very low | Q202: ='Quality Standards'!C122 -> 2 | R202: ='Quality Standards'!D122 -> 10 | S202: ='Quality Standards'!E122 -> 10 | T202: ='Quality Standards'!F122 -> -1 | U202: ='Quality Standards'!G122 -> 10 | V202: ='Quality Standards'!H122 -> -1 | W202: ='Quality Standards'!I122 -> 0 | X202: ='Quality Standards'!J122 -> -1 | Y202: ='Quality Standards'!K122 -> -1 | Z202: ='Quality Standards'!L122 -> -1 | AA202: ='Quality Standards'!M122 -> -1 | AB202: ='Quality Standards'!N122 -> 25
P203: ='Quality Standards'!B123 -> Pos-Class B - low | Q203: ='Quality Standards'!C123 -> -1 | R203: ='Quality Standards'!D123 -> 20 | S203: ='Quality Standards'!E123 -> 20 | T203: ='Quality Standards'!F123 -> 150 | U203: ='Quality Standards'!G123 -> -1 | V203: ='Quality Standards'!H123 -> -1 | W203: ='Quality Standards'!I123 -> -1 | X203: ='Quality Standards'!J123 -> 1000 | Y203: ='Quality Standards'!K123 -> 30 | Z203: ='Quality Standards'!L123 -> 50 | AA203: ='Quality Standards'!M123 -> -1 | AB203: ='Quality Standards'!N123 -> -1
P204: ='Quality Standards'!B124 -> Pos-Class C - medium | Q204: ='Quality Standards'!C124 -> 10 | R204: ='Quality Standards'!D124 -> 30 | S204: ='Quality Standards'!E124 -> 30 | T204: ='Quality Standards'!F124 -> -1 | U204: ='Quality Standards'!G124 -> 10 | V204: ='Quality Standards'!H124 -> -1 | W204: ='Quality Standards'!I124 -> 200 | X204: ='Quality Standards'!J124 -> 23 | Y204: ='Quality Standards'!K124 -> -1 | Z204: ='Quality Standards'!L124 -> -1 | AA204: ='Quality Standards'!M124 -> -1 | AB204: ='Quality Standards'!N124 -> -1
P205: ='Quality Standards'!B125 -> Pos-Class D - good | Q205: ='Quality Standards'!C125 -> -1 | R205: ='Quality Standards'!D125 -> 150 | S205: ='Quality Standards'!E125 -> 300 | T205: ='Quality Standards'!F125 -> 500 | U205: ='Quality Standards'!G125 -> 70 | V205: ='Quality Standards'!H125 -> -1 | W205: ='Quality Standards'!I125 -> -1 | X205: ='Quality Standards'!J125 -> -1 | Y205: ='Quality Standards'!K125 -> -1 | Z205: ='Quality Standards'!L125 -> 45 | AA205: ='Quality Standards'!M125 -> -1 | AB205: ='Quality Standards'!N125 -> -1
P206: ='Quality Standards'!B126 -> Pos-Class E - excellent | Q206: ='Quality Standards'!C126 -> -1 | R206: ='Quality Standards'!D126 -> 30 | S206: ='Quality Standards'!E126 -> 30 | T206: ='Quality Standards'!F126 -> -1 | U206: ='Quality Standards'!G126 -> -1 | V206: ='Quality Standards'!H126 -> -1 | W206: ='Quality Standards'!I126 -> 200 | X206: ='Quality Standards'!J126 -> -1 | Y206: ='Quality Standards'!K126 -> -1 | Z206: ='Quality Standards'!L126 -> -1 | AA206: ='Quality Standards'!M126 -> -1 | AB206: ='Quality Standards'!N126 -> -1
P207: ='Quality Standards'!B127 -> User-defined | Q207: ='Quality Standards'!C127 -> 0 | R207: ='Quality Standards'!D127 -> 0 | S207: ='Quality Standards'!E127 -> 0 | T207: ='Quality Standards'!F127 -> 0 | U207: ='Quality Standards'!G127 -> 0 | V207: ='Quality Standards'!H127 -> 0 | W207: ='Quality Standards'!I127 -> 0 | X207: ='Quality Standards'!J127 -> 0 | Y207: ='Quality Standards'!K127 -> 0 | Z207: ='Quality Standards'!L127 -> 0 | AA207: ='Quality Standards'!M127 -> 0 | AB207: ='Quality Standards'!N127 -> 0
P208: ='Quality Standards'!B128 -> Class A - very low | Q208: ='Quality Standards'!C128 -> -1 | R208: ='Quality Standards'!D128 -> -1 | S208: ='Quality Standards'!E128 -> -1 | T208: ='Quality Standards'!F128 -> -1 | U208: ='Quality Standards'!G128 -> -1 | V208: ='Quality Standards'!H128 -> -1 | W208: ='Quality Standards'!I128 -> -1 | X208: ='Quality Standards'!J128 -> -1 | Y208: ='Quality Standards'!K128 -> -1 | Z208: ='Quality Standards'!L128 -> -1 | AA208: ='Quality Standards'!M128 -> -1 | AB208: ='Quality Standards'!N128 -> -1
P209: ='Quality Standards'!B129 -> Class B - low | Q209: ='Quality Standards'!C129 -> -1 | R209: ='Quality Standards'!D129 -> -1 | S209: ='Quality Standards'!E129 -> -1 | T209: ='Quality Standards'!F129 -> -1 | U209: ='Quality Standards'!G129 -> -1 | V209: ='Quality Standards'!H129 -> -1 | W209: ='Quality Standards'!I129 -> -1 | X209: ='Quality Standards'!J129 -> -1 | Y209: ='Quality Standards'!K129 -> -1 | Z209: ='Quality Standards'!L129 -> -1 | AA209: ='Quality Standards'!M129 -> -1 | AB209: ='Quality Standards'!N129 -> -1
P210: ='Quality Standards'!B130 -> Class C - medium | Q210: ='Quality Standards'!C130 -> -1 | R210: ='Quality Standards'!D130 -> -1 | S210: ='Quality Standards'!E130 -> -1 | T210: ='Quality Standards'!F130 -> -1 | U210: ='Quality Standards'!G130 -> -1 | V210: ='Quality Standards'!H130 -> -1 | W210: ='Quality Standards'!I130 -> -1 | X210: ='Quality Standards'!J130 -> -1 | Y210: ='Quality Standards'!K130 -> -1 | Z210: ='Quality Standards'!L130 -> -1 | AA210: ='Quality Standards'!M130 -> -1 | AB210: ='Quality Standards'!N130 -> -1
P211: ='Quality Standards'!B131 -> Class D - good | Q211: ='Quality Standards'!C131 -> -1 | R211: ='Quality Standards'!D131 -> -1 | S211: ='Quality Standards'!E131 -> -1 | T211: ='Quality Standards'!F131 -> -1 | U211: ='Quality Standards'!G131 -> -1 | V211: ='Quality Standards'!H131 -> -1 | W211: ='Quality Standards'!I131 -> -1 | X211: ='Quality Standards'!J131 -> -1 | Y211: ='Quality Standards'!K131 -> -1 | Z211: ='Quality Standards'!L131 -> -1 | AA211: ='Quality Standards'!M131 -> -1 | AB211: ='Quality Standards'!N131 -> -1
P212: ='Quality Standards'!B132 -> Class E - excellent | Q212: ='Quality Standards'!C132 -> -1 | R212: ='Quality Standards'!D132 -> -1 | S212: ='Quality Standards'!E132 -> -1 | T212: ='Quality Standards'!F132 -> -1 | U212: ='Quality Standards'!G132 -> -1 | V212: ='Quality Standards'!H132 -> -1 | W212: ='Quality Standards'!I132 -> -1 | X212: ='Quality Standards'!J132 -> -1 | Y212: ='Quality Standards'!K132 -> -1 | Z212: ='Quality Standards'!L132 -> -1 | AA212: ='Quality Standards'!M132 -> -1 | AB212: ='Quality Standards'!N132 -> -1
P213: ='Quality Standards'!B133 -> VietnamWQS | Q213: ='Quality Standards'!C133 -> 0 | R213: ='Quality Standards'!D133 -> 0 | S213: ='Quality Standards'!E133 -> 0 | T213: ='Quality Standards'!F133 -> 0 | U213: ='Quality Standards'!G133 -> 0 | V213: ='Quality Standards'!H133 -> 0 | W213: ='Quality Standards'!I133 -> 0 | X213: ='Quality Standards'!J133 -> 0 | Y213: ='Quality Standards'!K133 -> 0 | Z213: ='Quality Standards'!L133 -> 0 | AA213: ='Quality Standards'!M133 -> 0 | AB213: ='Quality Standards'!N133 -> 0
P214: ='Quality Standards'!B134 -> Class A - discharge with drinking water function | Q214: ='Quality Standards'!C134 -> -1 | R214: ='Quality Standards'!D134 -> 50 | S214: ='Quality Standards'!E134 -> 30 | T214: ='Quality Standards'!F134 -> 75 | U214: ='Quality Standards'!G134 -> 20 | V214: ='Quality Standards'!H134 -> 4 | W214: ='Quality Standards'!I134 -> -1 | X214: ='Quality Standards'!J134 -> -1 | Y214: ='Quality Standards'!K134 -> -1 | Z214: ='Quality Standards'!L134 -> 5 | AA214: ='Quality Standards'!M134 -> 3000 | AB214: ='Quality Standards'!N134 -> -1
P215: ='Quality Standards'!B135 -> Class B - discharge without drinking water function | Q215: ='Quality Standards'!C135 -> -1 | R215: ='Quality Standards'!D135 -> 100 | S215: ='Quality Standards'!E135 -> 50 | T215: ='Quality Standards'!F135 -> 150 | U215: ='Quality Standards'!G135 -> 40 | V215: ='Quality Standards'!H135 -> 6 | W215: ='Quality Standards'!I135 -> -1 | X215: ='Quality Standards'!J135 -> -1 | Y215: ='Quality Standards'!K135 -> -1 | Z215: ='Quality Standards'!L135 -> 10 | AA215: ='Quality Standards'!M135 -> 5000 | AB215: ='Quality Standards'!N135 -> -1
P216: ='Quality Standards'!B136 -> Irrigation | Q216: ='Quality Standards'!C136 -> -1 | R216: ='Quality Standards'!D136 -> -1 | S216: ='Quality Standards'!E136 -> -1 | T216: ='Quality Standards'!F136 -> -1 | U216: ='Quality Standards'!G136 -> -1 | V216: ='Quality Standards'!H136 -> -1 | W216: ='Quality Standards'!I136 -> 200 | X216: ='Quality Standards'!J136 -> -1 | Y216: ='Quality Standards'!K136 -> 2000 | Z216: ='Quality Standards'!L136 -> -1 | AA216: ='Quality Standards'!M136 -> -1 | AB216: ='Quality Standards'!N136 -> -1
P217: ='Quality Standards'!B137 -> VietnamWW | Q217: ='Quality Standards'!C137 -> 0 | R217: ='Quality Standards'!D137 -> 0 | S217: ='Quality Standards'!E137 -> 0 | T217: ='Quality Standards'!F137 -> 0 | U217: ='Quality Standards'!G137 -> 0 | V217: ='Quality Standards'!H137 -> 0 | W217: ='Quality Standards'!I137 -> 0 | X217: ='Quality Standards'!J137 -> 0 | Y217: ='Quality Standards'!K137 -> 0 | Z217: ='Quality Standards'!L137 -> 0 | AA217: ='Quality Standards'!M137 -> 0 | AB217: ='Quality Standards'!N137 -> 0
P218: ='Quality Standards'!B142 -> Hanoi, Influent (Best quality) | Q218: ='Quality Standards'!C142 -> -1 | R218: ='Quality Standards'!D142 -> 51 | S218: ='Quality Standards'!E142 -> 45 | T218: ='Quality Standards'!F142 -> 115 | U218: ='Quality Standards'!G142 -> 34 | V218: ='Quality Standards'!H142 -> -1 | W218: ='Quality Standards'!I142 -> -1 | X218: ='Quality Standards'!J142 -> -1 | Y218: ='Quality Standards'!K142 -> -1 | Z218: ='Quality Standards'!L142 -> 18 | AA218: ='Quality Standards'!M142 -> -1 | AB218: ='Quality Standards'!N142 -> -1
P219: ='Quality Standards'!B143 -> Hanoi, Effluent (Best quality) | Q219: ='Quality Standards'!C143 -> -1 | R219: ='Quality Standards'!D143 -> 5 | S219: ='Quality Standards'!E143 -> 9 | T219: ='Quality Standards'!F143 -> 17 | U219: ='Quality Standards'!G143 -> 8 | V219: ='Quality Standards'!H143 -> -1 | W219: ='Quality Standards'!I143 -> -1 | X219: ='Quality Standards'!J143 -> -1 | Y219: ='Quality Standards'!K143 -> -1 | Z219: ='Quality Standards'!L143 -> 0.5 | AA219: ='Quality Standards'!M143 -> -1 | AB219: ='Quality Standards'!N143 -> -1
P220: ='Quality Standards'!B144 -> Ho Chi Minh City, Influent (Best quality) | Q220: ='Quality Standards'!C144 -> -1 | R220: ='Quality Standards'!D144 -> 49 | S220: ='Quality Standards'!E144 -> 42 | T220: ='Quality Standards'!F144 -> 135 | U220: ='Quality Standards'!G144 -> 11 | V220: ='Quality Standards'!H144 -> -1 | W220: ='Quality Standards'!I144 -> -1 | X220: ='Quality Standards'!J144 -> -1 | Y220: ='Quality Standards'!K144 -> -1 | Z220: ='Quality Standards'!L144 -> 18 | AA220: ='Quality Standards'!M144 -> -1 | AB220: ='Quality Standards'!N144 -> -1
P221: ='Quality Standards'!B145 -> Ho Chi Minh City, Effluent(Best quality) | Q221: ='Quality Standards'!C145 -> -1 | R221: ='Quality Standards'!D145 -> 7 | S221: ='Quality Standards'!E145 -> 3 | T221: ='Quality Standards'!F145 -> 30 | U221: ='Quality Standards'!G145 -> 7 | V221: ='Quality Standards'!H145 -> -1 | W221: ='Quality Standards'!I145 -> -1 | X221: ='Quality Standards'!J145 -> -1 | Y221: ='Quality Standards'!K145 -> -1 | Z221: ='Quality Standards'!L145 -> 3.3 | AA221: ='Quality Standards'!M145 -> -1 | AB221: ='Quality Standards'!N145 -> -1
P222: ='Quality Standards'!B146 -> Da Nang, Influent (Best quality) | Q222: ='Quality Standards'!C146 -> -1 | R222: ='Quality Standards'!D146 -> 28 | S222: ='Quality Standards'!E146 -> 34 | T222: ='Quality Standards'!F146 -> 64 | U222: ='Quality Standards'!G146 -> 16 | V222: ='Quality Standards'!H146 -> -1 | W222: ='Quality Standards'!I146 -> -1 | X222: ='Quality Standards'!J146 -> -1 | Y222: ='Quality Standards'!K146 -> -1 | Z222: ='Quality Standards'!L146 -> -1 | AA222: ='Quality Standards'!M146 -> -1 | AB222: ='Quality Standards'!N146 -> -1
P223: ='Quality Standards'!B147 -> Da Nang, Effluent (Best quality) | Q223: ='Quality Standards'!C147 -> -1 | R223: ='Quality Standards'!D147 -> 16 | S223: ='Quality Standards'!E147 -> 26 | T223: ='Quality Standards'!F147 -> 47 | U223: ='Quality Standards'!G147 -> 13 | V223: ='Quality Standards'!H147 -> -1 | W223: ='Quality Standards'!I147 -> -1 | X223: ='Quality Standards'!J147 -> -1 | Y223: ='Quality Standards'!K147 -> -1 | Z223: ='Quality Standards'!L147 -> -1 | AA223: ='Quality Standards'!M147 -> -1 | AB223: ='Quality Standards'!N147 -> -1
P224: ='Quality Standards'!B148 -> Quang Ninh, Influent (Best quality) | Q224: ='Quality Standards'!C148 -> -1 | R224: ='Quality Standards'!D148 -> 41 | S224: ='Quality Standards'!E148 -> 36 | T224: ='Quality Standards'!F148 -> 68 | U224: ='Quality Standards'!G148 -> 0.1 | V224: ='Quality Standards'!H148 -> -1 | W224: ='Quality Standards'!I148 -> -1 | X224: ='Quality Standards'!J148 -> -1 | Y224: ='Quality Standards'!K148 -> -1 | Z224: ='Quality Standards'!L148 -> 1.1 | AA224: ='Quality Standards'!M148 -> -1 | AB224: ='Quality Standards'!N148 -> -1
P225: ='Quality Standards'!B149 -> Quang Ninh, Effluent (Best quality) | Q225: ='Quality Standards'!C149 -> -1 | R225: ='Quality Standards'!D149 -> 11 | S225: ='Quality Standards'!E149 -> 20 | T225: ='Quality Standards'!F149 -> 32 | U225: ='Quality Standards'!G149 -> 0.2 | V225: ='Quality Standards'!H149 -> -1 | W225: ='Quality Standards'!I149 -> -1 | X225: ='Quality Standards'!J149 -> -1 | Y225: ='Quality Standards'!K149 -> -1 | Z225: ='Quality Standards'!L149 -> 1 | AA225: ='Quality Standards'!M149 -> -1 | AB225: ='Quality Standards'!N149 -> -1
... 185 more rows

Sheet EU1-A3 (hidden)
A1: Back to start | F1: Results - Comparision of possible options
B2: Select the treatment train here: --------------> | F2: =F72 -> No treatment | P2: Data for the charts
H3: Min | I3: Average | J3: Max | Q3: Min 1 | R3: POS | S3: =F2 -> No treatment | T3: NEG | U3: Max 1 | V3: Min 2 | W3: POS | X3: =F16 -> Wetlands: Brazil | Y3: NEG | Z3: Max 2 | AA3: Min 3 | AB3: POS | AC3: =F30 -> High quality: Singapore | AD3: NEG | AE3: Max 3 | AF3: Limit | AG3: XMin 1 | AH3: POS | AI3: =F2 -> No treatment | AJ3: NEG | AK3: XMax 1 | AL3: XMin 2 | AM3: POS | AN3: =F16 -> Wetlands: Brazil | AO3: NEG | AP3: XMax 2 | AQ3: XMin 3 | AR3: POS | AS3: =F30 -> High quality: Singapore | AT3: NEG | AU3: XMax 3 | AV3: XLimit
B4: =OFFSET(Results!$B$5,MATCH(F2,Results!$B$5:$B$21,0)-1,1) -> Description of own treatment train 1 | G4: Turb | H4: =OFFSET(Results!$B$5,MATCH(F2,Results!$B$5:$B$70,0)-1,2) -> 100 | I4: =OFFSET(Results!$B$5,MATCH(F2,Results!$B$5:$B$70,0)-1,3) -> 100 | J4: =OFFSET(Results!$B$5,MATCH(F2,Results!$B$5:$B$70,0)-1,4) -> 100 | K4: Reliability | L4: =OFFSET(Results!$B$5,MATCH(F2,Results!$B$5:$B$35,0)-1,39) -> 3 | M4: Power demand | N4: =OFFSET(Results!$B$5,MATCH(F2,Results!$B$5:$B$35,0)-1,46) -> 0 | P4: =IF(Q20=-1,"",Q19) ->  | Q4: =OFFSET($G$4,MATCH(P4,$G$4:$G$15,0)-1,1) ->  | R4: =Q4-S4 ->  | S4: =OFFSET($G$4,MATCH(P4,$G$4:$G$15,0)-1,2) ->  | T4: =S4-U4 ->  | U4: =OFFSET($G$4,MATCH(P4,$G$4:$G$15,0)-1,3) ->  | V4: =OFFSET($G$18,MATCH(P4,$G$18:$G$29,0)-1,1) ->  | W4: =V4-X4 ->  | X4: =OFFSET($G$18,MATCH(P4,$G$18:$G$29,0)-1,2) ->  | Y4: =X4-Z4 ->  | Z4: =OFFSET($G$18,MATCH(P4,$G$18:$G$29,0)-1,3) ->  | AA4: =OFFSET($G$32,MATCH(P4,$G$32:$G$43,0)-1,1) ->  | AB4: =AA4-AC4 ->  | AC4: =OFFSET($G$32,MATCH(P4,$G$32:$G$43,0)-1,2) ->  | AD4: =AC4-AE4 ->  | AE4: =OFFSET($G$32,MATCH(P4,$G$32:$G$43,0)-1,3) ->  | AF4: =H45 -> -1
G5: TSS | H5: =OFFSET(Results!$B$5,MATCH(F2,Results!$B$5:$B$70,0)-1,5) -> 210 | I5: =OFFSET(Results!$B$5,MATCH(F2,Results!$B$5:$B$70,0)-1,6) -> 210 | J5: =OFFSET(Results!$B$5,MATCH(F2,Results!$B$5:$B$70,0)-1,7) -> 210 | K5: Ease to upgrade | L5: =OFFSET(Results!$B$5,MATCH(F2,Results!$B$5:$B$35,0)-1,40) -> 3 | M5: Chemical demand | N5: =OFFSET(Results!$B$5,MATCH(F2,Results!$B$5:$B$35,0)-1,47) -> 0 | P5: =IF($R$20=-1,"",$R$19) -> TSS | Q5: =OFFSET($G$4,MATCH(P5,$G$4:$G$15,0)-1,1) -> 210 | R5: =Q5-S5 -> 0 | S5: =OFFSET($G$4,MATCH(P5,$G$4:$G$15,0)-1,2) -> 210 | T5: =S5-U5 -> 0 | U5: =OFFSET($G$4,MATCH(P5,$G$4:$G$15,0)-1,3) -> 210 | V5: =OFFSET($G$18,MATCH(P5,$G$18:$G$29,0)-1,1) -> 58.8 | W5: =V5-X5 -> 32.55 | X5: =OFFSET($G$18,MATCH(P5,$G$18:$G$29,0)-1,2) -> 26.25 | Y5: =X5-Z5 -> 13.65 | Z5: =OFFSET($G$18,MATCH(P5,$G$18:$G$29,0)-1,3) -> 12.6 | AA5: =OFFSET($G$32,MATCH(P5,$G$32:$G$43,0)-1,1) -> 8.4 | AB5: =AA5-AC5 -> 6.3 | AC5: =OFFSET($G$32,MATCH(P5,$G$32:$G$43,0)-1,2) -> 2.1 | AD5: =AC5-AE5 -> 1.575 | AE5: =OFFSET($G$32,MATCH(P5,$G$32:$G$43,0)-1,3) -> 0.525 | AF5: 30
G6: BOD | H6: =OFFSET(Results!$B$5,MATCH(F2,Results!$B$5:$B$70,0)-1,8) -> 190 | I6: =OFFSET(Results!$B$5,MATCH(F2,Results!$B$5:$B$70,0)-1,9) -> 190 | J6: =OFFSET(Results!$B$5,MATCH(F2,Results!$B$5:$B$70,0)-1,10) -> 190 | K6: Adaptability to varying flow | L6: =OFFSET(Results!$B$5,MATCH(F2,Results!$B$5:$B$35,0)-1,41) -> 3 | M6: Odor generation | N6: =OFFSET(Results!$B$5,MATCH(F2,Results!$B$5:$B$35,0)-1,48) -> 0 | P6: =IF($S$20=-1,"",$S$19) -> BOD | Q6: 190 | R6: 0 | S6: 190 | T6: 0 | U6: 190 | V6: 114 | W6: 21.375 | X6: 92.625 | Y6: 26.125 | Z6: 66.5 | AA6: 53.2 | AB6: 22.325 | AC6: 30.875 | AD6: 11.875 | AE6: 19 | AF6: 30
G7: COD | H7: =OFFSET(Results!$B$5,MATCH(F2,Results!$B$5:$B$70,0)-1,11) -> 430 | I7: =OFFSET(Results!$B$5,MATCH(F2,Results!$B$5:$B$70,0)-1,12) -> 430 | J7: =OFFSET(Results!$B$5,MATCH(F2,Results!$B$5:$B$70,0)-1,13) -> 430 | K7: Adaptability to varying quality | L7: =OFFSET(Results!$B$5,MATCH(F2,Results!$B$5:$B$35,0)-1,42) -> 3 | M7: Impact on ground water | N7: =OFFSET(Results!$B$5,MATCH(F2,Results!$B$5:$B$35,0)-1,49) -> 0 | P7: =IF($T$20=-1,"",$T$19) -> COD | Q7: 430 | R7: 0 | S7: 430 | T7: 0 | U7: 430 | V7: 309.6 | W7: 35.475 | X7: 274.125 | Y7: 33.325 | Z7: 240.8 | AA7: 68.8 | AB7: 30.1 | AC7: 38.7 | AD7: 11.825 | AE7: 26.875 | AF7: 90
G8: TN | H8: =OFFSET(Results!$B$5,MATCH(F2,Results!$B$5:$B$70,0)-1,14) -> 40 | I8: =OFFSET(Results!$B$5,MATCH(F2,Results!$B$5:$B$70,0)-1,15) -> 40 | J8: =OFFSET(Results!$B$5,MATCH(F2,Results!$B$5:$B$70,0)-1,16) -> 40 | K8: Ease of O & M | L8: =OFFSET(Results!$B$5,MATCH(F2,Results!$B$5:$B$35,0)-1,43) -> 3 | M8: Land requirment | N8: =OFFSET(Results!$B$5,MATCH(F2,Results!$B$5:$B$35,0)-1,50) -> 0 | P8: =IF($U$20=-1,"",$U$19) ->  | AF8: -1
G9: TP | H9: =OFFSET(Results!$B$5,MATCH(F2,Results!$B$5:$B$70,0)-1,17) -> 7 | I9: =OFFSET(Results!$B$5,MATCH(F2,Results!$B$5:$B$70,0)-1,18) -> 7 | J9: =OFFSET(Results!$B$5,MATCH(F2,Results!$B$5:$B$70,0)-1,19) -> 7 | K9: Ease of construction | L9: =OFFSET(Results!$B$5,MATCH(F2,Results!$B$5:$B$35,0)-1,44) -> 3 | M9: Cost of treatment | N9: =OFFSET(Results!$B$5,MATCH(F2,Results!$B$5:$B$35,0)-1,51) -> 0 | P9: =IF($V$20=-1,"",$V$19) ->  | AF9: -1
G10: FC | H10: =OFFSET(Results!$B$5,MATCH(F2,Results!$B$5:$B$70,0)-1,20) -> 10000 | I10: =OFFSET(Results!$B$5,MATCH(F2,Results!$B$5:$B$70,0)-1,35) -> 10 | J10: =OFFSET(Results!$B$5,MATCH(F2,Results!$B$5:$B$70,0)-1,22) -> 10000 | K10: Ease of demonstration | L10: =OFFSET(Results!$B$5,MATCH(F2,Results!$B$5:$B$35,0)-1,45) -> 3 | M10: Quantity of sludge production | N10: =OFFSET(Results!$B$5,MATCH(F2,Results!$B$5:$B$35,0)-1,52) -> 0 | P10: =IF($W$20=-1,"",$W$19) ->  | AG10: =OFFSET($G$4,MATCH(P10,$G$4:$G$15,0)-1,1) ->  | AH10: =AG10-AI10 ->  | AI10: =OFFSET($G$4,MATCH(P10,$G$4:$G$15,0)-1,2) ->  | AJ10: =AI10-AK10 ->  | AK10: =OFFSET($G$4,MATCH(P10,$G$4:$G$15,0)-1,3) ->  | AL10: =OFFSET($G$18,MATCH(P10,$G$18:$G$29,0)-1,1) ->  | AM10: =AL10-AN10 ->  | AN10: =OFFSET($G$18,MATCH(P10,$G$18:$G$29,0)-1,2) ->  | AO10: =AN10-AP10 ->  | AP10: =OFFSET($G$18,MATCH(P10,$G$18:$G$29,0)-1,3) ->  | AQ10: =OFFSET($G$32,MATCH(P10,$G$32:$G$43,0)-1,1) ->  | AR10: =AQ10-AS10 ->  | AS10: =OFFSET($G$32,MATCH(P10,$G$32:$G$43,0)-1,2) ->  | AT10: =AS10-AU10 ->  | AU10: =OFFSET($G$32,MATCH(P10,$G$32:$G$43,0)-1,3) ->  | AV10: =H51 -> -1
G11: TC | H11: =OFFSET(Results!$B$5,MATCH(F2,Results!$B$5:$B$70,0)-1,23) -> 10000000 | I11: =OFFSET(Results!$B$5,MATCH(F2,Results!$B$5:$B$70,0)-1,24) -> 10000000 | J11: =OFFSET(Results!$B$5,MATCH(F2,Results!$B$5:$B$70,0)-1,25) -> 10000000 | P11: =IF($X$20=-1,"",$X$19) ->  | AV11: =H52 -> -1
G12: TDS | H12: =OFFSET(Results!$B$5,MATCH(F2,Results!$B$5:$B$70,0)-1,26) -> 720 | I12: =OFFSET(Results!$B$5,MATCH(F2,Results!$B$5:$B$70,0)-1,27) -> 720 | J12: =OFFSET(Results!$B$5,MATCH(F2,Results!$B$5:$B$70,0)-1,28) -> 720 | P12: =IF($Y$20=-1,"",$Y$19) ->  | AF12: =H53 -> -1
G13: Nitrate | H13: =OFFSET(Results!$B$5,MATCH(F2,Results!$B$5:$B$70,0)-1,29) -> 0 | I13: =OFFSET(Results!$B$5,MATCH(F2,Results!$B$5:$B$70,0)-1,30) -> 0 | J13: =OFFSET(Results!$B$5,MATCH(F2,Results!$B$5:$B$70,0)-1,31) -> 0 | P13: =IF($Z$20=-1,"",$Z$19) -> Nitrate | Q13: 0 | R13: 0 | S13: 0 | T13: 0 | U13: 0 | V13: 0 | W13: 0 | X13: 0 | Y13: 0 | Z13: 0 | AA13: 0 | AB13: 0 | AC13: 0 | AD13: 0 | AE13: 0 | AF13: =H54 -> 1
G14: TOC | H14: =OFFSET(Results!$B$5,MATCH(F2,Results!$B$5:$B$70,0)-1,32) -> 140 | I14: =OFFSET(Results!$B$5,MATCH(F2,Results!$B$5:$B$70,0)-1,33) -> 140 | J14: =OFFSET(Results!$B$5,MATCH(F2,Results!$B$5:$B$70,0)-1,34) -> 140 | P14: =IF($AA$20=-1,"",$AA$19) ->  | AF14: =H55 -> -1
G15: Virus | H15: =OFFSET(Results!$B$5,MATCH(F2,Results!$B$5:$B$70,0)-1,35) -> 10 | I15: =OFFSET(Results!$B$5,MATCH(F2,Results!$B$5:$B$70,0)-1,36) -> 10 | J15: =OFFSET(Results!$B$5,MATCH(F2,Results!$B$5:$B$70,0)-1,37) -> 10 | P15: =IF($AB$20=-1,"",$AB$19) ->  | AV15: =H56 -> -1
B16: Select the treatment train here: --------------> | F16: =L72 -> Wetlands: Brazil
H17: Min | I17: Average | J17: Max
B18: =OFFSET(Results!$B$5,MATCH(F16,Results!$B$5:$B$21,0)-1,1) ->  | G18: Turb | H18: =OFFSET(Results!$B$5,MATCH(F16,Results!$B$5:$B$70,0)-1,2) -> 90 | I18: =OFFSET(Results!$B$5,MATCH(F16,Results!$B$5:$B$70,0)-1,3) -> 85 | J18: =OFFSET(Results!$B$5,MATCH(F16,Results!$B$5:$B$70,0)-1,4) -> 60 | K18: Reliability | L18: =OFFSET(Results!$B$5,MATCH(F16,Results!$B$5:$B$35,0)-1,39) -> 2.5 | M18: Power demand | N18: =OFFSET(Results!$B$5,MATCH(F16,Results!$B$5:$B$35,0)-1,46) -> 0.1597914573
G19: TSS | H19: =OFFSET(Results!$B$5,MATCH(F16,Results!$B$5:$B$70,0)-1,5) -> 58.8 | I19: =OFFSET(Results!$B$5,MATCH(F16,Results!$B$5:$B$70,0)-1,6) -> 26.25 | J19: =OFFSET(Results!$B$5,MATCH(F16,Results!$B$5:$B$70,0)-1,7) -> 12.6 | K19: Ease to upgrade | L19: =OFFSET(Results!$B$5,MATCH(F16,Results!$B$5:$B$35,0)-1,40) -> 1 | M19: Chemical demand | N19: =OFFSET(Results!$B$5,MATCH(F16,Results!$B$5:$B$35,0)-1,47) -> 0 | Q19: Turb | R19: TSS | S19: BOD | T19: COD | U19: TN | V19: TP | W19: FC | X19: TC | Y19: TDS | Z19: Nitrate | AA19: TOC | AB19: Virus
G20: BOD | H20: =OFFSET(Results!$B$5,MATCH(F16,Results!$B$5:$B$70,0)-1,8) -> 114 | I20: =OFFSET(Results!$B$5,MATCH(F16,Results!$B$5:$B$70,0)-1,9) -> 92.625 | J20: =OFFSET(Results!$B$5,MATCH(F16,Results!$B$5:$B$70,0)-1,10) -> 66.5 | K20: Adaptability to varying flow | L20: =OFFSET(Results!$B$5,MATCH(F16,Results!$B$5:$B$35,0)-1,41) -> 2 | M20: Odor generation | N20: =OFFSET(Results!$B$5,MATCH(F16,Results!$B$5:$B$35,0)-1,48) -> 3 | P20: ='A3.1'!D4 -> NT 106.03 standard: irrigation | Q20: =OFFSET($P$86,MATCH($P$20,$P$86:$P$400,0)-1,1) -> -1 | R20: =OFFSET($P$86,MATCH($P$20,$P$86:$P$400,0)-1,2) -> 30 | S20: =OFFSET($P$86,MATCH($P$20,$P$86:$P$400,0)-1,3) -> 30 | T20: =OFFSET($P$86,MATCH($P$20,$P$86:$P$400,0)-1,4) -> 90 | U20: =OFFSET($P$86,MATCH($P$20,$P$86:$P$400,0)-1,5) -> -1 | V20: =OFFSET($P$86,MATCH($P$20,$P$86:$P$400,0)-1,6) -> -1 | W20: =OFFSET($P$86,MATCH($P$20,$P$86:$P$400,0)-1,7) -> -1 | X20: =OFFSET($P$86,MATCH($P$20,$P$86:$P$400,0)-1,8) -> -1 | Y20: =OFFSET($P$86,MATCH($P$20,$P$86:$P$400,0)-1,9) -> -1 | Z20: =OFFSET($P$86,MATCH($P$20,$P$86:$P$400,0)-1,10) -> 1 | AA20: =OFFSET($P$86,MATCH($P$20,$P$86:$P$400,0)-1,11) -> -1 | AB20: =OFFSET($P$86,MATCH($P$20,$P$86:$P$400,0)-1,12) -> -1
G21: COD | H21: =OFFSET(Results!$B$5,MATCH(F16,Results!$B$5:$B$70,0)-1,11) -> 309.6 | I21: =OFFSET(Results!$B$5,MATCH(F16,Results!$B$5:$B$70,0)-1,12) -> 274.125 | J21: =OFFSET(Results!$B$5,MATCH(F16,Results!$B$5:$B$70,0)-1,13) -> 240.8 | K21: Adaptability to varying quality | L21: =OFFSET(Results!$B$5,MATCH(F16,Results!$B$5:$B$35,0)-1,42) -> 1.5 | M21: Impact on ground water | N21: =OFFSET(Results!$B$5,MATCH(F16,Results!$B$5:$B$35,0)-1,49) -> 0
G22: TN | H22: =OFFSET(Results!$B$5,MATCH(F16,Results!$B$5:$B$70,0)-1,14) -> 19 | I22: =OFFSET(Results!$B$5,MATCH(F16,Results!$B$5:$B$70,0)-1,15) -> 14.88 | J22: =OFFSET(Results!$B$5,MATCH(F16,Results!$B$5:$B$70,0)-1,16) -> 7.28 | K22: Ease of O & M | L22: =OFFSET(Results!$B$5,MATCH(F16,Results!$B$5:$B$35,0)-1,43) -> 2.5 | M22: Land requirment | N22: =OFFSET(Results!$B$5,MATCH(F16,Results!$B$5:$B$35,0)-1,50) -> 1.937429024e-05
G23: TP | H23: =OFFSET(Results!$B$5,MATCH(F16,Results!$B$5:$B$70,0)-1,17) -> 3.325 | I23: =OFFSET(Results!$B$5,MATCH(F16,Results!$B$5:$B$70,0)-1,18) -> 2.604 | J23: =OFFSET(Results!$B$5,MATCH(F16,Results!$B$5:$B$70,0)-1,19) -> 1.274 | K23: Ease of construction | L23: =OFFSET(Results!$B$5,MATCH(F16,Results!$B$5:$B$35,0)-1,44) -> 2.5 | M23: Cost of treatment | N23: =OFFSET(Results!$B$5,MATCH(F16,Results!$B$5:$B$35,0)-1,51) -> 3
G24: FC | H24: =OFFSET(Results!$B$5,MATCH(F16,Results!$B$5:$B$70,0)-1,20) -> 10000 | I24: =OFFSET(Results!$B$5,MATCH(F16,Results!$B$5:$B$70,0)-1,35) -> 1 | J24: =OFFSET(Results!$B$5,MATCH(F16,Results!$B$5:$B$70,0)-1,22) -> 100 | K24: Ease of demonstration | L24: =OFFSET(Results!$B$5,MATCH(F16,Results!$B$5:$B$35,0)-1,45) -> 2.5 | M24: Quantity of sludge production | N24: =OFFSET(Results!$B$5,MATCH(F16,Results!$B$5:$B$35,0)-1,52) -> 0.0002105436775
G25: TC | H25: =OFFSET(Results!$B$5,MATCH(F16,Results!$B$5:$B$70,0)-1,23) -> 10000000 | I25: =OFFSET(Results!$B$5,MATCH(F16,Results!$B$5:$B$70,0)-1,24) -> 10000000 | J25: =OFFSET(Results!$B$5,MATCH(F16,Results!$B$5:$B$70,0)-1,25) -> 10000000
G26: TDS | H26: =OFFSET(Results!$B$5,MATCH(F16,Results!$B$5:$B$70,0)-1,26) -> 720 | I26: =OFFSET(Results!$B$5,MATCH(F16,Results!$B$5:$B$70,0)-1,27) -> 720 | J26: =OFFSET(Results!$B$5,MATCH(F16,Results!$B$5:$B$70,0)-1,28) -> 720
G27: Nitrate | H27: =OFFSET(Results!$B$5,MATCH(F16,Results!$B$5:$B$70,0)-1,29) -> 0 | I27: =OFFSET(Results!$B$5,MATCH(F16,Results!$B$5:$B$70,0)-1,30) -> 0 | J27: =OFFSET(Results!$B$5,MATCH(F16,Results!$B$5:$B$70,0)-1,31) -> 0
G28: TOC | H28: =OFFSET(Results!$B$5,MATCH(F16,Results!$B$5:$B$70,0)-1,32) -> 100.8 | I28: =OFFSET(Results!$B$5,MATCH(F16,Results!$B$5:$B$70,0)-1,33) -> 89.25 | J28: =OFFSET(Results!$B$5,MATCH(F16,Results!$B$5:$B$70,0)-1,34) -> 78.4
G29: Virus | H29: =OFFSET(Results!$B$5,MATCH(F16,Results!$B$5:$B$70,0)-1,35) -> 1 | I29: =OFFSET(Results!$B$5,MATCH(F16,Results!$B$5:$B$70,0)-1,36) -> 0.1 | J29: =OFFSET(Results!$B$5,MATCH(F16,Results!$B$5:$B$70,0)-1,37) -> 0.01
B30: Select the treatment train here: --------------> | F30: =S72 -> High quality: Singapore
H31: Min | I31: Average | J31: Max
B32: =OFFSET(Results!$B$5,MATCH(F30,Results!$B$5:$B$21,0)-1,1) ->  | G32: Turb | H32: =OFFSET(Results!$B$5,MATCH(F30,Results!$B$5:$B$70,0)-1,2) -> 14 | I32: =OFFSET(Results!$B$5,MATCH(F30,Results!$B$5:$B$70,0)-1,3) -> 5 | J32: =OFFSET(Results!$B$5,MATCH(F30,Results!$B$5:$B$70,0)-1,4) -> 1.5 | K32: Reliability | L32: =OFFSET(Results!$B$5,MATCH(F30,Results!$B$5:$B$35,0)-1,39) ->  | M32: Power demand | N32: =OFFSET(Results!$B$5,MATCH(F30,Results!$B$5:$B$35,0)-1,46) -> 
G33: TSS | H33: =OFFSET(Results!$B$5,MATCH(F30,Results!$B$5:$B$70,0)-1,5) -> 8.4 | I33: =OFFSET(Results!$B$5,MATCH(F30,Results!$B$5:$B$70,0)-1,6) -> 2.1 | J33: =OFFSET(Results!$B$5,MATCH(F30,Results!$B$5:$B$70,0)-1,7) -> 0.525 | K33: Ease to upgrade | L33: =OFFSET(Results!$B$5,MATCH(F30,Results!$B$5:$B$35,0)-1,40) ->  | M33: Chemical demand | N33: =OFFSET(Results!$B$5,MATCH(F30,Results!$B$5:$B$35,0)-1,47) -> 
G34: BOD | H34: =OFFSET(Results!$B$5,MATCH(F30,Results!$B$5:$B$70,0)-1,8) -> 53.2 | I34: =OFFSET(Results!$B$5,MATCH(F30,Results!$B$5:$B$70,0)-1,9) -> 30.875 | J34: =OFFSET(Results!$B$5,MATCH(F30,Results!$B$5:$B$70,0)-1,10) -> 19 | K34: Adaptability to varying flow | L34: =OFFSET(Results!$B$5,MATCH(F30,Results!$B$5:$B$35,0)-1,41) ->  | M34: Odor generation | N34: =OFFSET(Results!$B$5,MATCH(F30,Results!$B$5:$B$35,0)-1,48) -> 
G35: COD | H35: =OFFSET(Results!$B$5,MATCH(F30,Results!$B$5:$B$70,0)-1,11) -> 68.8 | I35: =OFFSET(Results!$B$5,MATCH(F30,Results!$B$5:$B$70,0)-1,12) -> 38.7 | J35: =OFFSET(Results!$B$5,MATCH(F30,Results!$B$5:$B$70,0)-1,13) -> 26.875 | K35: Adaptability to varying quality | L35: =OFFSET(Results!$B$5,MATCH(F30,Results!$B$5:$B$35,0)-1,42) ->  | M35: Impact on ground water | N35: =OFFSET(Results!$B$5,MATCH(F30,Results!$B$5:$B$35,0)-1,49) -> 
G36: TN | H36: =OFFSET(Results!$B$5,MATCH(F30,Results!$B$5:$B$70,0)-1,14) -> 22.8 | I36: =OFFSET(Results!$B$5,MATCH(F30,Results!$B$5:$B$70,0)-1,15) -> 21.6 | J36: =OFFSET(Results!$B$5,MATCH(F30,Results!$B$5:$B$70,0)-1,16) -> 21.12 | K36: Ease of O & M | L36: =OFFSET(Results!$B$5,MATCH(F30,Results!$B$5:$B$35,0)-1,43) ->  | M36: Land requirment | N36: =OFFSET(Results!$B$5,MATCH(F30,Results!$B$5:$B$35,0)-1,50) -> 
G37: TP | H37: =OFFSET(Results!$B$5,MATCH(F30,Results!$B$5:$B$70,0)-1,17) -> 1.316 | I37: =OFFSET(Results!$B$5,MATCH(F30,Results!$B$5:$B$70,0)-1,18) -> 0.63 | J37: =OFFSET(Results!$B$5,MATCH(F30,Results!$B$5:$B$70,0)-1,19) -> 0.308 | K37: Ease of construction | L37: =OFFSET(Results!$B$5,MATCH(F30,Results!$B$5:$B$35,0)-1,44) ->  | M37: Cost of treatment | N37: =OFFSET(Results!$B$5,MATCH(F30,Results!$B$5:$B$35,0)-1,51) -> 
G38: FC | H38: =OFFSET(Results!$B$5,MATCH(F30,Results!$B$5:$B$70,0)-1,20) -> 0.1 | I38: =OFFSET(Results!$B$5,MATCH(F30,Results!$B$5:$B$70,0)-1,35) -> 1e-09 | J38: =OFFSET(Results!$B$5,MATCH(F30,Results!$B$5:$B$70,0)-1,22) -> 0 | K38: Ease of demonstration | L38: =OFFSET(Results!$B$5,MATCH(F30,Results!$B$5:$B$35,0)-1,45) ->  | M38: Quantity of sludge production | N38: =OFFSET(Results!$B$5,MATCH(F30,Results!$B$5:$B$35,0)-1,52) -> 
G39: TC | H39: =OFFSET(Results!$B$5,MATCH(F30,Results!$B$5:$B$70,0)-1,23) -> 0 | I39: =OFFSET(Results!$B$5,MATCH(F30,Results!$B$5:$B$70,0)-1,24) -> 0 | J39: =OFFSET(Results!$B$5,MATCH(F30,Results!$B$5:$B$70,0)-1,25) -> 0
G40: TDS | H40: =OFFSET(Results!$B$5,MATCH(F30,Results!$B$5:$B$70,0)-1,26) -> 144 | I40: =OFFSET(Results!$B$5,MATCH(F30,Results!$B$5:$B$70,0)-1,27) -> 72 | J40: =OFFSET(Results!$B$5,MATCH(F30,Results!$B$5:$B$70,0)-1,28) -> 7.2
G41: Nitrate | H41: =OFFSET(Results!$B$5,MATCH(F30,Results!$B$5:$B$70,0)-1,29) -> 0 | I41: =OFFSET(Results!$B$5,MATCH(F30,Results!$B$5:$B$70,0)-1,30) -> 0 | J41: =OFFSET(Results!$B$5,MATCH(F30,Results!$B$5:$B$70,0)-1,31) -> 0
G42: TOC | H42: =OFFSET(Results!$B$5,MATCH(F30,Results!$B$5:$B$70,0)-1,32) -> 22.4 | I42: =OFFSET(Results!$B$5,MATCH(F30,Results!$B$5:$B$70,0)-1,33) -> 12.6 | J42: =OFFSET(Results!$B$5,MATCH(F30,Results!$B$5:$B$70,0)-1,34) -> 8.75
G43: Virus | H43: =OFFSET(Results!$B$5,MATCH(F30,Results!$B$5:$B$70,0)-1,35) -> 1e-09 | I43: =OFFSET(Results!$B$5,MATCH(F30,Results!$B$5:$B$70,0)-1,36) -> 1e-15 | J43: =OFFSET(Results!$B$5,MATCH(F30,Results!$B$5:$B$70,0)-1,37) -> 1.000000001e-25
F44: ='A3.1'!D4 -> NT 106.03 standard: irrigation
F45: Limit from End-Use | G45: Turb | H45: ='A3.1'!D14 -> -1
G46: TSS | H46: ='A3.1'!E14 -> 30
G47: BOD | H47: ='A3.1'!F14 -> 30
G48: COD | H48: ='A3.1'!G14 -> 90
G49: TN | H49: ='A3.1'!H14 -> -1
G50: TP | H50: ='A3.1'!I14 -> -1
G51: FC | H51: ='A3.1'!J14 -> -1
G52: TC | H52: ='A3.1'!K14 -> -1
G53: TDS | H53: ='A3.1'!L14 -> -1
G54: Nitrate | H54: ='A3.1'!M14 -> 1
G55: TOC | H55: ='A3.1'!N14 -> -1
G56: Virus | H56: ='A3.1'!O14 -> -1
B70: Treatment train option 1 | H70: Treatment train option 2 | O70: Treatment train option 3
B72: Select the treatment train here: --------------> | F72: ='A3'!A12 -> No treatment | H72: Select the treatment train here: --------------> | L72: ='A3'!A17 -> Wetlands: Brazil | O72: Select the treatment train here: --------------> | S72: ='A3'!A22 -> High quality: Singapore
P84: ='Quality Standards'!B7 -> 0 | Q84: ='Quality Standards'!C7 -> Turb | R84: ='Quality Standards'!D7 -> TSS | S84: ='Quality Standards'!E7 -> BOD | T84: ='Quality Standards'!F7 -> COD | U84: ='Quality Standards'!G7 -> TN | V84: ='Quality Standards'!H7 -> TP | W84: ='Quality Standards'!I7 -> FC | X84: ='Quality Standards'!J7 -> TC | Y84: ='Quality Standards'!K7 -> TDS | Z84: ='Quality Standards'!L7 -> Nitrate | AA84: ='Quality Standards'!M7 -> TOC | AB84: ='Quality Standards'!N7 -> Virus
P85: ='Quality Standards'!B8 -> End-use: | Q85: ='Quality Standards'!C8 -> NTU | R85: ='Quality Standards'!D8 -> mg/L | S85: ='Quality Standards'!E8 -> mg/L | T85: ='Quality Standards'!F8 -> mg/L | U85: ='Quality Standards'!G8 -> mg/L | V85: ='Quality Standards'!H8 -> mg/L | W85: ='Quality Standards'!I8 -> CFU/100ml | X85: ='Quality Standards'!J8 -> CFU/100ml | Y85: ='Quality Standards'!K8 -> mg/L | Z85: ='Quality Standards'!L8 -> mg N/L | AA85: ='Quality Standards'!M8 -> mg/L | AB85: ='Quality Standards'!N8 -> PFU/100ml
P86: ='Quality Standards'!B9 -> Manual Entry | Q86: ='Quality Standards'!C9 -> 0 | R86: ='Quality Standards'!D9 -> 0 | S86: ='Quality Standards'!E9 -> 0 | T86: ='Quality Standards'!F9 -> 0 | U86: ='Quality Standards'!G9 -> 0 | V86: ='Quality Standards'!H9 -> 0 | W86: ='Quality Standards'!I9 -> 0 | X86: ='Quality Standards'!J9 -> 0 | Y86: ='Quality Standards'!K9 -> 0 | Z86: ='Quality Standards'!L9 -> 0 | AA86: ='Quality Standards'!M9 -> 0 | AB86: ='Quality Standards'!N9 -> 0 | AD86: Turb | AE86: TSS | AF86: BOD | AG86: COD | AH86: TN | AI86: TP | AJ86: FC | AK86: TC | AL86: TDS | AM86: Nitrate | AN86: TOC | AO86: Virus
P87: ='Quality Standards'!B10 -> Manual Entry A | Q87: ='Quality Standards'!C10 -> -1 | R87: ='Quality Standards'!D10 -> -1 | S87: ='Quality Standards'!E10 -> -1 | T87: ='Quality Standards'!F10 -> -1 | U87: ='Quality Standards'!G10 -> -1 | V87: ='Quality Standards'!H10 -> -1 | W87: ='Quality Standards'!I10 -> -1 | X87: ='Quality Standards'!J10 -> -1 | Y87: ='Quality Standards'!K10 -> -1 | Z87: ='Quality Standards'!L10 -> -1 | AA87: ='Quality Standards'!M10 -> -1 | AB87: ='Quality Standards'!N10 -> -1
P88: ='Quality Standards'!B11 -> Manual Entry B | Q88: ='Quality Standards'!C11 -> -1 | R88: ='Quality Standards'!D11 -> -1 | S88: ='Quality Standards'!E11 -> -1 | T88: ='Quality Standards'!F11 -> -1 | U88: ='Quality Standards'!G11 -> -1 | V88: ='Quality Standards'!H11 -> -1 | W88: ='Quality Standards'!I11 -> -1 | X88: ='Quality Standards'!J11 -> -1 | Y88: ='Quality Standards'!K11 -> -1 | Z88: ='Quality Standards'!L11 -> -1 | AA88: ='Quality Standards'!M11 -> -1 | AB88: ='Quality Standards'!N11 -> -1
P89: ='Quality Standards'!B12 -> Manual Entry C | Q89: ='Quality Standards'!C12 -> -1 | R89: ='Quality Standards'!D12 -> -1 | S89: ='Quality Standards'!E12 -> -1 | T89: ='Quality Standards'!F12 -> -1 | U89: ='Quality Standards'!G12 -> -1 | V89: ='Quality Standards'!H12 -> -1 | W89: ='Quality Standards'!I12 -> -1 | X89: ='Quality Standards'!J12 -> -1 | Y89: ='Quality Standards'!K12 -> -1 | Z89: ='Quality Standards'!L12 -> -1 | AA89: ='Quality Standards'!M12 -> -1 | AB89: ='Quality Standards'!N12 -> -1
P90: ='Quality Standards'!B13 -> Municipal wastewater - typical input for reuse | Q90: ='Quality Standards'!C13 -> 0 | R90: ='Quality Standards'!D13 -> 0 | S90: ='Quality Standards'!E13 -> 0 | T90: ='Quality Standards'!F13 -> 0 | U90: ='Quality Standards'!G13 -> 0 | V90: ='Quality Standards'!H13 -> 0 | W90: ='Quality Standards'!I13 -> 0 | X90: ='Quality Standards'!J13 -> 0 | Y90: ='Quality Standards'!K13 -> 0 | Z90: ='Quality Standards'!L13 -> 0 | AA90: ='Quality Standards'!M13 -> 0 | AB90: ='Quality Standards'!N13 -> 0
P91: ='Quality Standards'!B14 -> Typical untreated domestic wastewater | Q91: ='Quality Standards'!C14 -> 100 | R91: ='Quality Standards'!D14 -> 210 | S91: ='Quality Standards'!E14 -> 190 | T91: ='Quality Standards'!F14 -> 430 | U91: ='Quality Standards'!G14 -> 40 | V91: ='Quality Standards'!H14 -> 7 | W91: ='Quality Standards'!I14 -> 10000 | X91: ='Quality Standards'!J14 -> 10000000 | Y91: ='Quality Standards'!K14 -> 720 | Z91: ='Quality Standards'!L14 -> 0 | AA91: ='Quality Standards'!M14 -> 140 | AB91: ='Quality Standards'!N14 -> 10
P92: ='Quality Standards'!B15 -> Untreated domestic wastewater (ranges) | Q92: ='Quality Standards'!C15 -> -1 | R92: ='Quality Standards'!D15 -> 120 | S92: ='Quality Standards'!E15 -> 110 | T92: ='Quality Standards'!F15 -> 250 | U92: ='Quality Standards'!G15 -> 20 | V92: ='Quality Standards'!H15 -> 4 | W92: ='Quality Standards'!I15 -> 1000 | X92: ='Quality Standards'!J15 -> 1000000 | Y92: ='Quality Standards'!K15 -> 270 | Z92: ='Quality Standards'!L15 -> 0 | AA92: ='Quality Standards'!M15 -> 80 | AB92: ='Quality Standards'!N15 -> -1
P93: ='Quality Standards'!B16 -> Primary effluent | Q93: ='Quality Standards'!C16 -> 88 | R93: ='Quality Standards'!D16 -> 131 | S93: ='Quality Standards'!E16 -> 149 | T93: ='Quality Standards'!F16 -> -1 | U93: ='Quality Standards'!G16 -> -1 | V93: ='Quality Standards'!H16 -> 5.1 | W93: ='Quality Standards'!I16 -> -1 | X93: ='Quality Standards'!J16 -> -1 | Y93: ='Quality Standards'!K16 -> -1 | Z93: ='Quality Standards'!L16 -> 0.1 | AA93: ='Quality Standards'!M16 -> 72 | AB93: ='Quality Standards'!N16 -> -1
P94: ='Quality Standards'!B17 -> Secondary effluent- water hyacinths | Q94: ='Quality Standards'!C17 -> 14 | R94: ='Quality Standards'!D17 -> 9.8 | S94: ='Quality Standards'!E17 -> 13 | T94: ='Quality Standards'!F17 -> -1 | U94: ='Quality Standards'!G17 -> -1 | V94: ='Quality Standards'!H17 -> 3.4 | W94: ='Quality Standards'!I17 -> -1 | X94: ='Quality Standards'!J17 -> -1 | Y94: ='Quality Standards'!K17 -> -1 | Z94: ='Quality Standards'!L17 -> 1.4 | AA94: ='Quality Standards'!M17 -> 14 | AB94: ='Quality Standards'!N17 -> -1
P95: ='Quality Standards'!#REF! ->  | Q95: ='Quality Standards'!#REF! ->  | R95: ='Quality Standards'!#REF! ->  | S95: ='Quality Standards'!#REF! ->  | T95: ='Quality Standards'!#REF! ->  | U95: ='Quality Standards'!#REF! ->  | V95: ='Quality Standards'!#REF! ->  | W95: ='Quality Standards'!#REF! ->  | X95: ='Quality Standards'!#REF! ->  | Y95: ='Quality Standards'!#REF! ->  | Z95: ='Quality Standards'!#REF! ->  | AA95: ='Quality Standards'!#REF! ->  | AB95: ='Quality Standards'!#REF! -> 
P96: ='Quality Standards'!B18 -> Secondary effluent- CAS | Q96: ='Quality Standards'!C18 -> 2 | R96: ='Quality Standards'!D18 -> 5 | S96: ='Quality Standards'!E18 -> 5.25 | T96: ='Quality Standards'!F18 -> 40 | U96: ='Quality Standards'!G18 -> 15 | V96: ='Quality Standards'!H18 -> 4 | W96: ='Quality Standards'!I18 -> -1 | X96: ='Quality Standards'!J18 -> 10000 | Y96: ='Quality Standards'!K18 -> 500 | Z96: ='Quality Standards'!L18 -> 10 | AA96: ='Quality Standards'!M18 -> 10 | AB96: ='Quality Standards'!N18 -> 10
P97: ='Quality Standards'!B19 -> Secondary effluent- CAS + filtration | Q97: ='Quality Standards'!C19 -> 0.5 | R97: ='Quality Standards'!D19 -> 2 | S97: ='Quality Standards'!E19 -> 5 | T97: ='Quality Standards'!F19 -> 30 | U97: ='Quality Standards'!G19 -> 15 | V97: ='Quality Standards'!H19 -> 4 | W97: ='Quality Standards'!I19 -> -1 | X97: ='Quality Standards'!J19 -> 1000 | Y97: ='Quality Standards'!K19 -> 500 | Z97: ='Quality Standards'!L19 -> 10 | AA97: ='Quality Standards'!M19 -> 8 | AB97: ='Quality Standards'!N19 -> 10
P98: ='Quality Standards'!B20 -> Secondary effluent- activated sludge + BNR | Q98: ='Quality Standards'!C20 -> 2 | R98: ='Quality Standards'!D20 -> 5 | S98: ='Quality Standards'!E20 -> 5 | T98: ='Quality Standards'!F20 -> 20 | U98: ='Quality Standards'!G20 -> 3 | V98: ='Quality Standards'!H20 -> 1 | W98: ='Quality Standards'!I20 -> -1 | X98: ='Quality Standards'!J20 -> 10000 | Y98: ='Quality Standards'!K20 -> 500 | Z98: ='Quality Standards'!L20 -> 2 | AA98: ='Quality Standards'!M20 -> 8 | AB98: ='Quality Standards'!N20 -> 10
P99: ='Quality Standards'!B21 -> Secondary effluent- activated sludge + BR+ filtration | Q99: ='Quality Standards'!C21 -> 0.3 | R99: ='Quality Standards'!D21 -> 1-4 | S99: ='Quality Standards'!E21 -> 1 | T99: ='Quality Standards'!F21 -> 20 | U99: ='Quality Standards'!G21 -> 2 | V99: ='Quality Standards'!H21 -> 2 | W99: ='Quality Standards'!I21 -> -1 | X99: ='Quality Standards'!J21 -> 10000 | Y99: ='Quality Standards'!K21 -> 500 | Z99: ='Quality Standards'!L21 -> 1 | AA99: ='Quality Standards'!M21 -> 1 | AB99: ='Quality Standards'!N21 -> 10
P100: ='Quality Standards'!B22 -> Secondary effluent- membrane bioreactor | Q100: ='Quality Standards'!C22 -> 1 | R100: ='Quality Standards'!D22 -> 2 | S100: ='Quality Standards'!E22 -> 1 | T100: ='Quality Standards'!F22 -> 10 | U100: ='Quality Standards'!G22 -> 10 | V100: ='Quality Standards'!H22 -> 0.3 | W100: ='Quality Standards'!I22 -> -1 | X100: ='Quality Standards'!J22 -> 100 | Y100: ='Quality Standards'!K22 -> 500 | Z100: ='Quality Standards'!L22 -> 10 | AA100: ='Quality Standards'!M22 -> 0.5 | AB100: ='Quality Standards'!N22 -> 1
P101: ='Quality Standards'!B23 -> Secondary effluent- activated sludge + MF + RO | Q101: ='Quality Standards'!C23 -> 0.01 | R101: ='Quality Standards'!D23 -> 1 | S101: ='Quality Standards'!E23 -> 1 | T101: ='Quality Standards'!F23 -> 2 | U101: ='Quality Standards'!G23 -> 1 | V101: ='Quality Standards'!H23 -> 0.5 | W101: ='Quality Standards'!I23 -> -1 | X101: ='Quality Standards'!J23 -> 0 | Y101: ='Quality Standards'!K23 -> 5 | Z101: ='Quality Standards'!L23 -> 1 | AA101: ='Quality Standards'!M23 -> 0.1 | AB101: ='Quality Standards'!N23 -> 0
P102: ='Quality Standards'!B24 -> Tertiary effluent | Q102: ='Quality Standards'!C24 -> 0.5 | R102: ='Quality Standards'!D24 -> 1.3 | S102: ='Quality Standards'!E24 -> 4.3 | T102: ='Quality Standards'!F24 -> -1 | U102: ='Quality Standards'!G24 -> -1 | V102: ='Quality Standards'!H24 -> 0.1 | W102: ='Quality Standards'!I24 -> -1 | X102: ='Quality Standards'!J24 -> -1 | Y102: ='Quality Standards'!K24 -> -1 | Z102: ='Quality Standards'!L24 -> 1.7 | AA102: ='Quality Standards'!M24 -> 7.1 | AB102: ='Quality Standards'!N24 -> -1
P103: ='Quality Standards'!B25 -> AWT effluent | Q103: ='Quality Standards'!C25 -> 0.27 | R103: ='Quality Standards'!D25 -> -1 | S103: ='Quality Standards'!E25 -> -1 | T103: ='Quality Standards'!F25 -> -1 | U103: ='Quality Standards'!G25 -> -1 | V103: ='Quality Standards'!H25 -> 0.1 | W103: ='Quality Standards'!I25 -> -1 | X103: ='Quality Standards'!J25 -> -1 | Y103: ='Quality Standards'!K25 -> -1 | Z103: ='Quality Standards'!L25 -> 0.7 | AA103: ='Quality Standards'!M25 -> 0.6 | AB103: ='Quality Standards'!N25 -> -1
P104: ='Quality Standards'!B26 -> Textile industry | Q104: ='Quality Standards'!C26 -> 0 | R104: ='Quality Standards'!D26 -> 0 | S104: ='Quality Standards'!E26 -> 0 | T104: ='Quality Standards'!F26 -> 0 | U104: ='Quality Standards'!G26 -> 0 | V104: ='Quality Standards'!H26 -> 0 | W104: ='Quality Standards'!I26 -> 0 | X104: ='Quality Standards'!J26 -> 0 | Y104: ='Quality Standards'!K26 -> 0 | Z104: ='Quality Standards'!L26 -> 0 | AA104: ='Quality Standards'!M26 -> 0 | AB104: ='Quality Standards'!N26 -> 0
P105: ='Quality Standards'!B27 -> Textile Industry-India | Q105: ='Quality Standards'!C27 -> -1 | R105: ='Quality Standards'!D27 -> -1 | S105: ='Quality Standards'!E27 -> 713 | T105: ='Quality Standards'!F27 -> 2125 | U105: ='Quality Standards'!G27 -> -1 | V105: ='Quality Standards'!H27 -> -1 | W105: ='Quality Standards'!I27 -> -1 | X105: ='Quality Standards'!J27 -> -1 | Y105: ='Quality Standards'!K27 -> 5738 | Z105: ='Quality Standards'!L27 -> 354 | AA105: ='Quality Standards'!M27 -> -1 | AB105: ='Quality Standards'!N27 -> -1
P106: ='Quality Standards'!B28 -> Textile Industry- Nigeria | Q106: ='Quality Standards'!C28 -> -1 | R106: ='Quality Standards'!D28 -> 400 | S106: ='Quality Standards'!E28 -> 332 | T106: ='Quality Standards'!F28 -> 1891 | U106: ='Quality Standards'!G28 -> -1 | V106: ='Quality Standards'!H28 -> -1 | W106: ='Quality Standards'!I28 -> -1 | X106: ='Quality Standards'!J28 -> -1 | Y106: ='Quality Standards'!K28 -> 1181 | Z106: ='Quality Standards'!L28 -> 4.4 | AA106: ='Quality Standards'!M28 -> -1 | AB106: ='Quality Standards'!N28 -> -1
P107: ='Quality Standards'!B29 -> Dairy industry | Q107: ='Quality Standards'!C29 -> 0 | R107: ='Quality Standards'!D29 -> 0 | S107: ='Quality Standards'!E29 -> 0 | T107: ='Quality Standards'!F29 -> 0 | U107: ='Quality Standards'!G29 -> 0 | V107: ='Quality Standards'!H29 -> 0 | W107: ='Quality Standards'!I29 -> 0 | X107: ='Quality Standards'!J29 -> 0 | Y107: ='Quality Standards'!K29 -> 0 | Z107: ='Quality Standards'!L29 -> 0 | AA107: ='Quality Standards'!M29 -> 0 | AB107: ='Quality Standards'!N29 -> 0
P108: ='Quality Standards'!B30 -> Dairy- Industry India | Q108: ='Quality Standards'!C30 -> 15 | R108: ='Quality Standards'!D30 -> 250 | S108: ='Quality Standards'!E30 -> 350 | T108: ='Quality Standards'!F30 -> 1500 | U108: ='Quality Standards'!G30 -> -1 | V108: ='Quality Standards'!H30 -> -1 | W108: ='Quality Standards'!I30 -> -1 | X108: ='Quality Standards'!J30 -> -1 | Y108: ='Quality Standards'!K30 -> 800 | Z108: ='Quality Standards'!L30 -> -1 | AA108: ='Quality Standards'!M30 -> -1 | AB108: ='Quality Standards'!N30 -> -1
P109: ='Quality Standards'!B31 -> Dairy Industry- Cheese | Q109: ='Quality Standards'!C31 -> -1 | R109: ='Quality Standards'!D31 -> 500 | S109: ='Quality Standards'!E31 -> 588 | T109: ='Quality Standards'!F31 -> 1000 | U109: ='Quality Standards'!G31 -> 830 | V109: ='Quality Standards'!H31 -> 280 | W109: ='Quality Standards'!I31 -> -1 | X109: ='Quality Standards'!J31 -> -1 | Y109: ='Quality Standards'!K31 -> -1 | Z109: ='Quality Standards'!L31 -> -1 | AA109: ='Quality Standards'!M31 -> -1 | AB109: ='Quality Standards'!N31 -> -1
P110: ='Quality Standards'!B32 -> Dairy Industry- Cheese whey | Q110: ='Quality Standards'!C32 -> -1 | R110: ='Quality Standards'!D32 -> 1780 | S110: ='Quality Standards'!E32 -> -1 | T110: ='Quality Standards'!F32 -> 61000 | U110: ='Quality Standards'!G32 -> 980 | V110: ='Quality Standards'!H32 -> 510 | W110: ='Quality Standards'!I32 -> -1 | X110: ='Quality Standards'!J32 -> -1 | Y110: ='Quality Standards'!K32 -> -1 | Z110: ='Quality Standards'!L32 -> -1 | AA110: ='Quality Standards'!M32 -> -1 | AB110: ='Quality Standards'!N32 -> -1
P111: ='Quality Standards'!B33 -> Dairy Industry- Mixed processing | Q111: ='Quality Standards'!C33 -> -1 | R111: ='Quality Standards'!D33 -> 340 | S111: ='Quality Standards'!E33 -> -1 | T111: ='Quality Standards'!F33 -> 1150 | U111: ='Quality Standards'!G33 -> 14 | V111: ='Quality Standards'!H33 -> 25051 | W111: ='Quality Standards'!I33 -> -1 | X111: ='Quality Standards'!J33 -> -1 | Y111: ='Quality Standards'!K33 -> -1 | Z111: ='Quality Standards'!L33 -> -1 | AA111: ='Quality Standards'!M33 -> -1 | AB111: ='Quality Standards'!N33 -> -1
P112: ='Quality Standards'!B34 -> Pulp & paper industry | Q112: ='Quality Standards'!C34 -> 0 | R112: ='Quality Standards'!D34 -> 0 | S112: ='Quality Standards'!E34 -> 0 | T112: ='Quality Standards'!F34 -> 0 | U112: ='Quality Standards'!G34 -> 0 | V112: ='Quality Standards'!H34 -> 0 | W112: ='Quality Standards'!I34 -> 0 | X112: ='Quality Standards'!J34 -> 0 | Y112: ='Quality Standards'!K34 -> 0 | Z112: ='Quality Standards'!L34 -> 0 | AA112: ='Quality Standards'!M34 -> 0 | AB112: ='Quality Standards'!N34 -> 0
P113: ='Quality Standards'!B35 -> Paper mill | Q113: ='Quality Standards'!C35 -> -1 | R113: ='Quality Standards'!D35 -> 800 | S113: ='Quality Standards'!E35 -> 1600 | T113: ='Quality Standards'!F35 -> 5020 | U113: ='Quality Standards'!G35 -> 11 | V113: ='Quality Standards'!H35 -> 0.6 | W113: ='Quality Standards'!I35 -> -1 | X113: ='Quality Standards'!J35 -> -1 | Y113: ='Quality Standards'!K35 -> -1 | Z113: ='Quality Standards'!L35 -> -1 | AA113: ='Quality Standards'!M35 -> -1 | AB113: ='Quality Standards'!N35 -> -1
P114: ='Quality Standards'!B36 -> Beverage industry | Q114: ='Quality Standards'!C36 -> 0 | R114: ='Quality Standards'!D36 -> 0 | S114: ='Quality Standards'!E36 -> 0 | T114: ='Quality Standards'!F36 -> 0 | U114: ='Quality Standards'!G36 -> 0 | V114: ='Quality Standards'!H36 -> 0 | W114: ='Quality Standards'!I36 -> 0 | X114: ='Quality Standards'!J36 -> 0 | Y114: ='Quality Standards'!K36 -> 0 | Z114: ='Quality Standards'!L36 -> 0 | AA114: ='Quality Standards'!M36 -> 0 | AB114: ='Quality Standards'!N36 -> 0
P115: ='Quality Standards'!B37 -> Brewery (Beer), Typical ranges | Q115: ='Quality Standards'!C37 -> -1 | R115: ='Quality Standards'!D37 -> 200 | S115: ='Quality Standards'!E37 -> 1200 | T115: ='Quality Standards'!F37 -> 2000 | U115: ='Quality Standards'!G37 -> 25 | V115: ='Quality Standards'!H37 -> 18537 | W115: ='Quality Standards'!I37 -> -1 | X115: ='Quality Standards'!J37 -> -1 | Y115: ='Quality Standards'!K37 -> -1 | Z115: ='Quality Standards'!L37 -> -1 | AA115: ='Quality Standards'!M37 -> -1 | AB115: ='Quality Standards'!N37 -> -1
P116: ='Quality Standards'!#REF! ->  | Q116: ='Quality Standards'!#REF! ->  | R116: ='Quality Standards'!#REF! ->  | S116: ='Quality Standards'!#REF! ->  | T116: ='Quality Standards'!#REF! ->  | U116: ='Quality Standards'!#REF! ->  | V116: ='Quality Standards'!#REF! ->  | W116: ='Quality Standards'!#REF! ->  | X116: ='Quality Standards'!#REF! ->  | Y116: ='Quality Standards'!#REF! ->  | Z116: ='Quality Standards'!#REF! ->  | AA116: ='Quality Standards'!#REF! ->  | AB116: ='Quality Standards'!#REF! -> 
P117: ='Quality Standards'!B38 -> Winery (Production: 3000 m3/year) | Q117: ='Quality Standards'!C38 -> -1 | R117: ='Quality Standards'!D38 -> 1060 | S117: ='Quality Standards'!E38 -> 8100 | T117: ='Quality Standards'!F38 -> 14150 | U117: ='Quality Standards'!G38 -> 48.2 | V117: ='Quality Standards'!H38 -> 5.5 | W117: ='Quality Standards'!I38 -> -1 | X117: ='Quality Standards'!J38 -> -1 | Y117: ='Quality Standards'!K38 -> -1 | Z117: ='Quality Standards'!L38 -> -1 | AA117: ='Quality Standards'!M38 -> -1 | AB117: ='Quality Standards'!N38 -> -1
P118: ='Quality Standards'!#REF! ->  | Q118: ='Quality Standards'!#REF! ->  | R118: ='Quality Standards'!#REF! ->  | S118: ='Quality Standards'!#REF! ->  | T118: ='Quality Standards'!#REF! ->  | U118: ='Quality Standards'!#REF! ->  | V118: ='Quality Standards'!#REF! ->  | W118: ='Quality Standards'!#REF! ->  | X118: ='Quality Standards'!#REF! ->  | Y118: ='Quality Standards'!#REF! ->  | Z118: ='Quality Standards'!#REF! ->  | AA118: ='Quality Standards'!#REF! ->  | AB118: ='Quality Standards'!#REF! -> 
P119: ='Quality Standards'!B39 -> Winery (Production: 6000 m3/year) | Q119: ='Quality Standards'!C39 -> -1 | R119: ='Quality Standards'!D39 -> 1960 | S119: ='Quality Standards'!E39 -> 5540 | T119: ='Quality Standards'!F39 -> 9240 | U119: ='Quality Standards'!G39 -> 74 | V119: ='Quality Standards'!H39 -> 16 | W119: ='Quality Standards'!I39 -> -1 | X119: ='Quality Standards'!J39 -> -1 | Y119: ='Quality Standards'!K39 -> -1 | Z119: ='Quality Standards'!L39 -> -1 | AA119: ='Quality Standards'!M39 -> -1 | AB119: ='Quality Standards'!N39 -> -1
P120: ='Quality Standards'!B40 -> US EPA guidelines, 2012 | Q120: ='Quality Standards'!C40 -> 0 | R120: ='Quality Standards'!D40 -> 0 | S120: ='Quality Standards'!E40 -> 0 | T120: ='Quality Standards'!F40 -> 0 | U120: ='Quality Standards'!G40 -> 0 | V120: ='Quality Standards'!H40 -> 0 | W120: ='Quality Standards'!I40 -> 0 | X120: ='Quality Standards'!J40 -> 0 | Y120: ='Quality Standards'!K40 -> 0 | Z120: ='Quality Standards'!L40 -> 0 | AA120: ='Quality Standards'!M40 -> 0 | AB120: ='Quality Standards'!N40 -> 0
P121: ='Quality Standards'!B41 -> EPA: Urban Reuse- unrestricted | Q121: ='Quality Standards'!C41 -> 2 | R121: ='Quality Standards'!D41 -> -1 | S121: ='Quality Standards'!E41 -> 10 | T121: ='Quality Standards'!F41 -> -1 | U121: ='Quality Standards'!G41 -> -1 | V121: ='Quality Standards'!H41 -> -1 | W121: ='Quality Standards'!I41 -> 0 | X121: ='Quality Standards'!J41 -> -1 | Y121: ='Quality Standards'!K41 -> -1 | Z121: ='Quality Standards'!L41 -> -1 | AA121: ='Quality Standards'!M41 -> -1 | AB121: ='Quality Standards'!N41 -> -1
P122: ='Quality Standards'!B42 -> EPA: Urban Reuse-restricted | Q122: ='Quality Standards'!C42 -> -1 | R122: ='Quality Standards'!D42 -> 30 | S122: ='Quality Standards'!E42 -> 30 | T122: ='Quality Standards'!F42 -> -1 | U122: ='Quality Standards'!G42 -> -1 | V122: ='Quality Standards'!H42 -> -1 | W122: ='Quality Standards'!I42 -> 200 | X122: ='Quality Standards'!J42 -> -1 | Y122: ='Quality Standards'!K42 -> -1 | Z122: ='Quality Standards'!L42 -> -1 | AA122: ='Quality Standards'!M42 -> -1 | AB122: ='Quality Standards'!N42 -> -1
P123: ='Quality Standards'!B43 -> EPA: Agricultural Reuse-Food Crops | Q123: ='Quality Standards'!C43 -> 2 | R123: ='Quality Standards'!D43 -> -1 | S123: ='Quality Standards'!E43 -> 10 | T123: ='Quality Standards'!F43 -> -1 | U123: ='Quality Standards'!G43 -> -1 | V123: ='Quality Standards'!H43 -> -1 | W123: ='Quality Standards'!I43 -> 0 | X123: ='Quality Standards'!J43 -> -1 | Y123: ='Quality Standards'!K43 -> -1 | Z123: ='Quality Standards'!L43 -> -1 | AA123: ='Quality Standards'!M43 -> -1 | AB123: ='Quality Standards'!N43 -> -1
P124: ='Quality Standards'!B44 -> EPA: Agricultural Reuse-Processed food crops and Non-food crops | Q124: ='Quality Standards'!C44 -> -1 | R124: ='Quality Standards'!D44 -> 30 | S124: ='Quality Standards'!E44 -> 30 | T124: ='Quality Standards'!F44 -> -1 | U124: ='Quality Standards'!G44 -> -1 | V124: ='Quality Standards'!H44 -> -1 | W124: ='Quality Standards'!I44 -> 200 | X124: ='Quality Standards'!J44 -> -1 | Y124: ='Quality Standards'!K44 -> -1 | Z124: ='Quality Standards'!L44 -> -1 | AA124: ='Quality Standards'!M44 -> -1 | AB124: ='Quality Standards'!N44 -> -1
P125: ='Quality Standards'!B45 -> EPA: Impoundments-unrestricted | Q125: ='Quality Standards'!C45 -> 2 | R125: ='Quality Standards'!D45 -> -1 | S125: ='Quality Standards'!E45 -> 10 | T125: ='Quality Standards'!F45 -> -1 | U125: ='Quality Standards'!G45 -> -1 | V125: ='Quality Standards'!H45 -> -1 | W125: ='Quality Standards'!I45 -> 0 | X125: ='Quality Standards'!J45 -> -1 | Y125: ='Quality Standards'!K45 -> -1 | Z125: ='Quality Standards'!L45 -> -1 | AA125: ='Quality Standards'!M45 -> -1 | AB125: ='Quality Standards'!N45 -> -1
P126: ='Quality Standards'!B46 -> EPA: Impoundments-restricted | Q126: ='Quality Standards'!C46 -> -1 | R126: ='Quality Standards'!D46 -> 30 | S126: ='Quality Standards'!E46 -> 30 | T126: ='Quality Standards'!F46 -> -1 | U126: ='Quality Standards'!G46 -> -1 | V126: ='Quality Standards'!H46 -> -1 | W126: ='Quality Standards'!I46 -> 200 | X126: ='Quality Standards'!J46 -> -1 | Y126: ='Quality Standards'!K46 -> -1 | Z126: ='Quality Standards'!L46 -> -1 | AA126: ='Quality Standards'!M46 -> -1 | AB126: ='Quality Standards'!N46 -> -1
P127: ='Quality Standards'!B47 -> EPA: Environmental Reuse | Q127: ='Quality Standards'!C47 -> -1 | R127: ='Quality Standards'!D47 -> 30 | S127: ='Quality Standards'!E47 -> 30 | T127: ='Quality Standards'!F47 -> -1 | U127: ='Quality Standards'!G47 -> -1 | V127: ='Quality Standards'!H47 -> -1 | W127: ='Quality Standards'!I47 -> 200 | X127: ='Quality Standards'!J47 -> -1 | Y127: ='Quality Standards'!K47 -> -1 | Z127: ='Quality Standards'!L47 -> -1 | AA127: ='Quality Standards'!M47 -> -1 | AB127: ='Quality Standards'!N47 -> -1
P128: ='Quality Standards'!B48 -> EPA: Industrial Reuse- Once-through cooling | Q128: ='Quality Standards'!C48 -> -1 | R128: ='Quality Standards'!D48 -> 30 | S128: ='Quality Standards'!E48 -> 30 | T128: ='Quality Standards'!F48 -> -1 | U128: ='Quality Standards'!G48 -> -1 | V128: ='Quality Standards'!H48 -> -1 | W128: ='Quality Standards'!I48 -> 200 | X128: ='Quality Standards'!J48 -> -1 | Y128: ='Quality Standards'!K48 -> -1 | Z128: ='Quality Standards'!L48 -> -1 | AA128: ='Quality Standards'!M48 -> -1 | AB128: ='Quality Standards'!N48 -> -1
P129: ='Quality Standards'!B49 -> EPA: Industrial Reuse- Recirculating Cooling Towers | Q129: ='Quality Standards'!C49 -> -1 | R129: ='Quality Standards'!D49 -> 30 | S129: ='Quality Standards'!E49 -> 30 | T129: ='Quality Standards'!F49 -> -1 | U129: ='Quality Standards'!G49 -> -1 | V129: ='Quality Standards'!H49 -> -1 | W129: ='Quality Standards'!I49 -> 200 | X129: ='Quality Standards'!J49 -> -1 | Y129: ='Quality Standards'!K49 -> -1 | Z129: ='Quality Standards'!L49 -> -1 | AA129: ='Quality Standards'!M49 -> -1 | AB129: ='Quality Standards'!N49 -> -1
P130: ='Quality Standards'!B50 -> EPA: Groundwater Recharge-Indirect potable re-use | Q130: ='Quality Standards'!C50 -> 2 | R130: ='Quality Standards'!D50 -> -1 | S130: ='Quality Standards'!E50 -> -1 | T130: ='Quality Standards'!F50 -> -1 | U130: ='Quality Standards'!G50 -> -1 | V130: ='Quality Standards'!H50 -> -1 | W130: ='Quality Standards'!I50 -> 0 | X130: ='Quality Standards'!J50 -> -1 | Y130: ='Quality Standards'!K50 -> -1 | Z130: ='Quality Standards'!L50 -> -1 | AA130: ='Quality Standards'!M50 -> 2 | AB130: ='Quality Standards'!N50 -> -1
P131: ='Quality Standards'!B51 -> Texas water re-use standards | Q131: ='Quality Standards'!C51 -> 0 | R131: ='Quality Standards'!D51 -> 0 | S131: ='Quality Standards'!E51 -> 0 | T131: ='Quality Standards'!F51 -> 0 | U131: ='Quality Standards'!G51 -> 0 | V131: ='Quality Standards'!H51 -> 0 | W131: ='Quality Standards'!I51 -> 0 | X131: ='Quality Standards'!J51 -> 0 | Y131: ='Quality Standards'!K51 -> 0 | Z131: ='Quality Standards'!L51 -> 0 | AA131: ='Quality Standards'!M51 -> 0 | AB131: ='Quality Standards'!N51 -> 0
P132: ='Quality Standards'!B52 -> Texas EPA: Urban Reuse- unrestricted | Q132: ='Quality Standards'!C52 -> 3 | R132: ='Quality Standards'!D52 -> -1 | S132: ='Quality Standards'!E52 -> 5 | T132: ='Quality Standards'!F52 -> -1 | U132: ='Quality Standards'!G52 -> -1 | V132: ='Quality Standards'!H52 -> -1 | W132: ='Quality Standards'!I52 -> 20 | X132: ='Quality Standards'!J52 -> -1 | Y132: ='Quality Standards'!K52 -> -1 | Z132: ='Quality Standards'!L52 -> -1 | AA132: ='Quality Standards'!M52 -> -1 | AB132: ='Quality Standards'!N52 -> -1
P133: ='Quality Standards'!B53 -> Texas EPA: Urban Reuse-restricted | Q133: ='Quality Standards'!C53 -> -1 | R133: ='Quality Standards'!D53 -> -1 | S133: ='Quality Standards'!E53 -> 20 | T133: ='Quality Standards'!F53 -> -1 | U133: ='Quality Standards'!G53 -> -1 | V133: ='Quality Standards'!H53 -> -1 | W133: ='Quality Standards'!I53 -> 200 | X133: ='Quality Standards'!J53 -> -1 | Y133: ='Quality Standards'!K53 -> -1 | Z133: ='Quality Standards'!L53 -> -1 | AA133: ='Quality Standards'!M53 -> -1 | AB133: ='Quality Standards'!N53 -> -1
P134: ='Quality Standards'!B54 -> Texas EPA: Agricultural Reuse-Food Crops | Q134: ='Quality Standards'!C54 -> 3 | R134: ='Quality Standards'!D54 -> -1 | S134: ='Quality Standards'!E54 -> 5 | T134: ='Quality Standards'!F54 -> -1 | U134: ='Quality Standards'!G54 -> -1 | V134: ='Quality Standards'!H54 -> -1 | W134: ='Quality Standards'!I54 -> 20 | X134: ='Quality Standards'!J54 -> -1 | Y134: ='Quality Standards'!K54 -> -1 | Z134: ='Quality Standards'!L54 -> -1 | AA134: ='Quality Standards'!M54 -> -1 | AB134: ='Quality Standards'!N54 -> -1
P135: ='Quality Standards'!B55 -> Texas EPA: Agricultural Reuse-Processed food crops and Non-food crops | Q135: ='Quality Standards'!C55 -> -1 | R135: ='Quality Standards'!D55 -> -1 | S135: ='Quality Standards'!E55 -> 20 | T135: ='Quality Standards'!F55 -> -1 | U135: ='Quality Standards'!G55 -> -1 | V135: ='Quality Standards'!H55 -> -1 | W135: ='Quality Standards'!I55 -> 200 | X135: ='Quality Standards'!J55 -> -1 | Y135: ='Quality Standards'!K55 -> -1 | Z135: ='Quality Standards'!L55 -> -1 | AA135: ='Quality Standards'!M55 -> -1 | AB135: ='Quality Standards'!N55 -> -1
P136: ='Quality Standards'!B56 -> Texas EPA: Impoundments-unrestricted | Q136: ='Quality Standards'!C56 -> 3 | R136: ='Quality Standards'!D56 -> -1 | S136: ='Quality Standards'!E56 -> 5 | T136: ='Quality Standards'!F56 -> -1 | U136: ='Quality Standards'!G56 -> -1 | V136: ='Quality Standards'!H56 -> -1 | W136: ='Quality Standards'!I56 -> 20 | X136: ='Quality Standards'!J56 -> -1 | Y136: ='Quality Standards'!K56 -> -1 | Z136: ='Quality Standards'!L56 -> -1 | AA136: ='Quality Standards'!M56 -> -1 | AB136: ='Quality Standards'!N56 -> -1
P137: ='Quality Standards'!B57 -> Texas EPA: Impoundments-restricted | Q137: ='Quality Standards'!C57 -> -1 | R137: ='Quality Standards'!D57 -> -1 | S137: ='Quality Standards'!E57 -> 20 | T137: ='Quality Standards'!F57 -> -1 | U137: ='Quality Standards'!G57 -> -1 | V137: ='Quality Standards'!H57 -> -1 | W137: ='Quality Standards'!I57 -> 200 | X137: ='Quality Standards'!J57 -> -1 | Y137: ='Quality Standards'!K57 -> -1 | Z137: ='Quality Standards'!L57 -> -1 | AA137: ='Quality Standards'!M57 -> -1 | AB137: ='Quality Standards'!N57 -> -1
P138: ='Quality Standards'!B58 -> Texas EPA: Environmental Reuse | Q138: ='Quality Standards'!C58 -> -1 | R138: ='Quality Standards'!D58 -> -1 | S138: ='Quality Standards'!E58 -> -1 | T138: ='Quality Standards'!F58 -> -1 | U138: ='Quality Standards'!G58 -> -1 | V138: ='Quality Standards'!H58 -> -1 | W138: ='Quality Standards'!I58 -> -1 | X138: ='Quality Standards'!J58 -> -1 | Y138: ='Quality Standards'!K58 -> -1 | Z138: ='Quality Standards'!L58 -> -1 | AA138: ='Quality Standards'!M58 -> -1 | AB138: ='Quality Standards'!N58 -> -1
P139: ='Quality Standards'!B59 -> Texas EPA: Industrial Reuse- Recirculating Cooling Towers | Q139: ='Quality Standards'!C59 -> -1 | R139: ='Quality Standards'!D59 -> -1 | S139: ='Quality Standards'!E59 -> 20 | T139: ='Quality Standards'!F59 -> -1 | U139: ='Quality Standards'!G59 -> -1 | V139: ='Quality Standards'!H59 -> -1 | W139: ='Quality Standards'!I59 -> 200 | X139: ='Quality Standards'!J59 -> -1 | Y139: ='Quality Standards'!K59 -> -1 | Z139: ='Quality Standards'!L59 -> -1 | AA139: ='Quality Standards'!M59 -> -1 | AB139: ='Quality Standards'!N59 -> -1
P140: ='Quality Standards'!B60 -> Texas EPA: Groundwater Recharge-Indirect potable re-use | Q140: ='Quality Standards'!C60 -> 3 | R140: ='Quality Standards'!D60 -> -1 | S140: ='Quality Standards'!E60 -> 5 | T140: ='Quality Standards'!F60 -> -1 | U140: ='Quality Standards'!G60 -> -1 | V140: ='Quality Standards'!H60 -> -1 | W140: ='Quality Standards'!I60 -> 20 | X140: ='Quality Standards'!J60 -> -1 | Y140: ='Quality Standards'!K60 -> -1 | Z140: ='Quality Standards'!L60 -> -1 | AA140: ='Quality Standards'!M60 -> -1 | AB140: ='Quality Standards'!N60 -> -1
P141: ='Quality Standards'!B61 -> California water re-use standards | Q141: ='Quality Standards'!C61 -> 0 | R141: ='Quality Standards'!D61 -> 0 | S141: ='Quality Standards'!E61 -> 0 | T141: ='Quality Standards'!F61 -> 0 | U141: ='Quality Standards'!G61 -> 0 | V141: ='Quality Standards'!H61 -> 0 | W141: ='Quality Standards'!I61 -> 0 | X141: ='Quality Standards'!J61 -> 0 | Y141: ='Quality Standards'!K61 -> 0 | Z141: ='Quality Standards'!L61 -> 0 | AA141: ='Quality Standards'!M61 -> 0 | AB141: ='Quality Standards'!N61 -> 0
P142: ='Quality Standards'!B62 -> California EPA: Urban Reuse- unrestricted | Q142: ='Quality Standards'!C62 -> 2 | R142: ='Quality Standards'!D62 -> -1 | S142: ='Quality Standards'!E62 -> -1 | T142: ='Quality Standards'!F62 -> -1 | U142: ='Quality Standards'!G62 -> -1 | V142: ='Quality Standards'!H62 -> -1 | W142: ='Quality Standards'!I62 -> -1 | X142: ='Quality Standards'!J62 -> 2.2 | Y142: ='Quality Standards'!K62 -> -1 | Z142: ='Quality Standards'!L62 -> -1 | AA142: ='Quality Standards'!M62 -> -1 | AB142: ='Quality Standards'!N62 -> -1
P143: ='Quality Standards'!B63 -> California EPA: Urban Reuse-restricted | Q143: ='Quality Standards'!C63 -> -1 | R143: ='Quality Standards'!D63 -> -1 | S143: ='Quality Standards'!E63 -> -1 | T143: ='Quality Standards'!F63 -> -1 | U143: ='Quality Standards'!G63 -> -1 | V143: ='Quality Standards'!H63 -> -1 | W143: ='Quality Standards'!I63 -> -1 | X143: ='Quality Standards'!J63 -> 23 | Y143: ='Quality Standards'!K63 -> -1 | Z143: ='Quality Standards'!L63 -> -1 | AA143: ='Quality Standards'!M63 -> -1 | AB143: ='Quality Standards'!N63 -> -1
P144: ='Quality Standards'!B64 -> California EPA: Agricultural Reuse-Food Crops | Q144: ='Quality Standards'!C64 -> 2 | R144: ='Quality Standards'!D64 -> -1 | S144: ='Quality Standards'!E64 -> -1 | T144: ='Quality Standards'!F64 -> -1 | U144: ='Quality Standards'!G64 -> -1 | V144: ='Quality Standards'!H64 -> -1 | W144: ='Quality Standards'!I64 -> -1 | X144: ='Quality Standards'!J64 -> 2.2 | Y144: ='Quality Standards'!K64 -> -1 | Z144: ='Quality Standards'!L64 -> -1 | AA144: ='Quality Standards'!M64 -> -1 | AB144: ='Quality Standards'!N64 -> -1
P145: ='Quality Standards'!B65 -> California EPA: Agricultural Reuse-Processed food crops and Non-food crops | Q145: ='Quality Standards'!C65 -> -1 | R145: ='Quality Standards'!D65 -> -1 | S145: ='Quality Standards'!E65 -> -1 | T145: ='Quality Standards'!F65 -> -1 | U145: ='Quality Standards'!G65 -> 10 | V145: ='Quality Standards'!H65 -> -1 | W145: ='Quality Standards'!I65 -> -1 | X145: ='Quality Standards'!J65 -> -1 | Y145: ='Quality Standards'!K65 -> -1 | Z145: ='Quality Standards'!L65 -> -1 | AA145: ='Quality Standards'!M65 -> -1 | AB145: ='Quality Standards'!N65 -> -1
P146: ='Quality Standards'!B66 -> California EPA: Impoundments-unrestricted | Q146: ='Quality Standards'!C66 -> 2 | R146: ='Quality Standards'!D66 -> -1 | S146: ='Quality Standards'!E66 -> -1 | T146: ='Quality Standards'!F66 -> -1 | U146: ='Quality Standards'!G66 -> -1 | V146: ='Quality Standards'!H66 -> -1 | W146: ='Quality Standards'!I66 -> -1 | X146: ='Quality Standards'!J66 -> 2.2 | Y146: ='Quality Standards'!K66 -> -1 | Z146: ='Quality Standards'!L66 -> -1 | AA146: ='Quality Standards'!M66 -> -1 | AB146: ='Quality Standards'!N66 -> -1
P147: ='Quality Standards'!B67 -> California EPA: Impoundments-restricted | Q147: ='Quality Standards'!C67 -> -1 | R147: ='Quality Standards'!D67 -> -1 | S147: ='Quality Standards'!E67 -> -1 | T147: ='Quality Standards'!F67 -> -1 | U147: ='Quality Standards'!G67 -> -1 | V147: ='Quality Standards'!H67 -> -1 | W147: ='Quality Standards'!I67 -> -1 | X147: ='Quality Standards'!J67 -> 2.2 | Y147: ='Quality Standards'!K67 -> -1 | Z147: ='Quality Standards'!L67 -> -1 | AA147: ='Quality Standards'!M67 -> -1 | AB147: ='Quality Standards'!N67 -> -1
P148: ='Quality Standards'!B68 -> California EPA: Environmental Reuse | Q148: ='Quality Standards'!C68 -> -1 | R148: ='Quality Standards'!D68 -> -1 | S148: ='Quality Standards'!E68 -> -1 | T148: ='Quality Standards'!F68 -> -1 | U148: ='Quality Standards'!G68 -> -1 | V148: ='Quality Standards'!H68 -> -1 | W148: ='Quality Standards'!I68 -> -1 | X148: ='Quality Standards'!J68 -> -1 | Y148: ='Quality Standards'!K68 -> -1 | Z148: ='Quality Standards'!L68 -> -1 | AA148: ='Quality Standards'!M68 -> -1 | AB148: ='Quality Standards'!N68 -> -1
P149: ='Quality Standards'!B69 -> California EPA: Industrial Reuse- Once-through cooling | Q149: ='Quality Standards'!C69 -> 2 | R149: ='Quality Standards'!D69 -> -1 | S149: ='Quality Standards'!E69 -> -1 | T149: ='Quality Standards'!F69 -> -1 | U149: ='Quality Standards'!G69 -> -1 | V149: ='Quality Standards'!H69 -> -1 | W149: ='Quality Standards'!I69 -> -1 | X149: ='Quality Standards'!J69 -> 2.2 | Y149: ='Quality Standards'!K69 -> -1 | Z149: ='Quality Standards'!L69 -> -1 | AA149: ='Quality Standards'!M69 -> -1 | AB149: ='Quality Standards'!N69 -> -1
P150: ='Quality Standards'!B70 -> California EPA: Groundwater Recharge-Indirect potable re-use | Q150: ='Quality Standards'!C70 -> 2 | R150: ='Quality Standards'!D70 -> -1 | S150: ='Quality Standards'!E70 -> -1 | T150: ='Quality Standards'!F70 -> -1 | U150: ='Quality Standards'!G70 -> 10 | V150: ='Quality Standards'!H70 -> -1 | W150: ='Quality Standards'!I70 -> -1 | X150: ='Quality Standards'!J70 -> 2.2 | Y150: ='Quality Standards'!K70 -> -1 | Z150: ='Quality Standards'!L70 -> -1 | AA150: ='Quality Standards'!M70 -> 0.5 | AB150: ='Quality Standards'!N70 -> -1
P151: ='Quality Standards'!B71 -> WHO guidelines, 2006; Vol. 2-4 | Q151: ='Quality Standards'!C71 -> 0 | R151: ='Quality Standards'!D71 -> 0 | S151: ='Quality Standards'!E71 -> 0 | T151: ='Quality Standards'!F71 -> 0 | U151: ='Quality Standards'!G71 -> 0 | V151: ='Quality Standards'!H71 -> 0 | W151: ='Quality Standards'!I71 -> 0 | X151: ='Quality Standards'!J71 -> 0 | Y151: ='Quality Standards'!K71 -> 0 | Z151: ='Quality Standards'!L71 -> 0 | AA151: ='Quality Standards'!M71 -> 0 | AB151: ='Quality Standards'!N71 -> 0
P152: ='Quality Standards'!B72 -> WHO: Use of wastewater in agriculture-unrestricted | Q152: ='Quality Standards'!C72 -> -1 | R152: ='Quality Standards'!D72 -> -1 | S152: ='Quality Standards'!E72 -> -1 | T152: ='Quality Standards'!F72 -> -1 | U152: ='Quality Standards'!G72 -> -1 | V152: ='Quality Standards'!H72 -> -1 | W152: ='Quality Standards'!I72 -> 1000 | X152: ='Quality Standards'!J72 -> -1 | Y152: ='Quality Standards'!K72 -> -1 | Z152: ='Quality Standards'!L72 -> -1 | AA152: ='Quality Standards'!M72 -> -1 | AB152: ='Quality Standards'!N72 -> -1
P153: ='Quality Standards'!B73 -> WHO: Use of wastewater in agriculture-restricted-highly mechanized irrigation | Q153: ='Quality Standards'!C73 -> -1 | R153: ='Quality Standards'!D73 -> -1 | S153: ='Quality Standards'!E73 -> -1 | T153: ='Quality Standards'!F73 -> -1 | U153: ='Quality Standards'!G73 -> -1 | V153: ='Quality Standards'!H73 -> -1 | W153: ='Quality Standards'!I73 -> 100000 | X153: ='Quality Standards'!J73 -> -1 | Y153: ='Quality Standards'!K73 -> -1 | Z153: ='Quality Standards'!L73 -> -1 | AA153: ='Quality Standards'!M73 -> -1 | AB153: ='Quality Standards'!N73 -> -1
P154: ='Quality Standards'!B74 -> WHO: Use of wastewater in agriculture- restricted-labour intensive irrigation | Q154: ='Quality Standards'!C74 -> -1 | R154: ='Quality Standards'!D74 -> -1 | S154: ='Quality Standards'!E74 -> -1 | T154: ='Quality Standards'!F74 -> -1 | U154: ='Quality Standards'!G74 -> -1 | V154: ='Quality Standards'!H74 -> -1 | W154: ='Quality Standards'!I74 -> 1000 | X154: ='Quality Standards'!J74 -> -1 | Y154: ='Quality Standards'!K74 -> -1 | Z154: ='Quality Standards'!L74 -> -1 | AA154: ='Quality Standards'!M74 -> -1 | AB154: ='Quality Standards'!N74 -> -1
P155: ='Quality Standards'!B75 -> WHO: Use of wastewater in aquaculture | Q155: ='Quality Standards'!C75 -> -1 | R155: ='Quality Standards'!D75 -> -1 | S155: ='Quality Standards'!E75 -> -1 | T155: ='Quality Standards'!F75 -> -1 | U155: ='Quality Standards'!G75 -> -1 | V155: ='Quality Standards'!H75 -> -1 | W155: ='Quality Standards'!I75 -> 10000 | X155: ='Quality Standards'!J75 -> -1 | Y155: ='Quality Standards'!K75 -> -1 | Z155: ='Quality Standards'!L75 -> -1 | AA155: ='Quality Standards'!M75 -> -1 | AB155: ='Quality Standards'!N75 -> -1
P156: ='Quality Standards'!B76 -> WHO: Use of grey water in agriculture-unrestricted | Q156: ='Quality Standards'!C76 -> -1 | R156: ='Quality Standards'!D76 -> -1 | S156: ='Quality Standards'!E76 -> -1 | T156: ='Quality Standards'!F76 -> -1 | U156: ='Quality Standards'!G76 -> -1 | V156: ='Quality Standards'!H76 -> -1 | W156: ='Quality Standards'!I76 -> 1000 | X156: ='Quality Standards'!J76 -> -1 | Y156: ='Quality Standards'!K76 -> -1 | Z156: ='Quality Standards'!L76 -> -1 | AA156: ='Quality Standards'!M76 -> -1 | AB156: ='Quality Standards'!N76 -> -1
P157: ='Quality Standards'!B77 -> WHO: Use of grey water in agriculture-restricted | Q157: ='Quality Standards'!C77 -> -1 | R157: ='Quality Standards'!D77 -> -1 | S157: ='Quality Standards'!E77 -> -1 | T157: ='Quality Standards'!F77 -> -1 | U157: ='Quality Standards'!G77 -> -1 | V157: ='Quality Standards'!H77 -> -1 | W157: ='Quality Standards'!I77 -> 100000 | X157: ='Quality Standards'!J77 -> -1 | Y157: ='Quality Standards'!K77 -> -1 | Z157: ='Quality Standards'!L77 -> -1 | AA157: ='Quality Standards'!M77 -> -1 | AB157: ='Quality Standards'!N77 -> -1
P158: ='Quality Standards'!B78 -> Standards for Water Re-use in Eastern Mediterranean Region (EMR), based on WHO guidelines 1989 | Q158: ='Quality Standards'!C78 -> 0 | R158: ='Quality Standards'!D78 -> 0 | S158: ='Quality Standards'!E78 -> 0 | T158: ='Quality Standards'!F78 -> 0 | U158: ='Quality Standards'!G78 -> 0 | V158: ='Quality Standards'!H78 -> 0 | W158: ='Quality Standards'!I78 -> 0 | X158: ='Quality Standards'!J78 -> 0 | Y158: ='Quality Standards'!K78 -> 0 | Z158: ='Quality Standards'!L78 -> 0 | AA158: ='Quality Standards'!M78 -> 0 | AB158: ='Quality Standards'!N78 -> 0
P159: ='Quality Standards'!B79 -> Wastewater: Category A Untrestricted irrigation | Q159: ='Quality Standards'!C79 -> -1 | R159: ='Quality Standards'!D79 -> -1 | S159: ='Quality Standards'!E79 -> -1 | T159: ='Quality Standards'!F79 -> -1 | U159: ='Quality Standards'!G79 -> -1 | V159: ='Quality Standards'!H79 -> -1 | W159: ='Quality Standards'!I79 -> 1000 | X159: ='Quality Standards'!J79 -> -1 | Y159: ='Quality Standards'!K79 -> -1 | Z159: ='Quality Standards'!L79 -> -1 | AA159: ='Quality Standards'!M79 -> -1 | AB159: ='Quality Standards'!N79 -> -1
P160: ='Quality Standards'!B80 -> Wastewater: Category B Restricted irrigation | Q160: ='Quality Standards'!C80 -> -1 | R160: ='Quality Standards'!D80 -> -1 | S160: ='Quality Standards'!E80 -> -1 | T160: ='Quality Standards'!F80 -> -1 | U160: ='Quality Standards'!G80 -> -1 | V160: ='Quality Standards'!H80 -> -1 | W160: ='Quality Standards'!I80 -> 1000 | X160: ='Quality Standards'!J80 -> -1 | Y160: ='Quality Standards'!K80 -> -1 | Z160: ='Quality Standards'!L80 -> -1 | AA160: ='Quality Standards'!M80 -> -1 | AB160: ='Quality Standards'!N80 -> -1
P161: ='Quality Standards'!B81 -> Wastewater: Category C | Q161: ='Quality Standards'!C81 -> -1 | R161: ='Quality Standards'!D81 -> -1 | S161: ='Quality Standards'!E81 -> -1 | T161: ='Quality Standards'!F81 -> -1 | U161: ='Quality Standards'!G81 -> -1 | V161: ='Quality Standards'!H81 -> -1 | W161: ='Quality Standards'!I81 -> -1 | X161: ='Quality Standards'!J81 -> -1 | Y161: ='Quality Standards'!K81 -> -1 | Z161: ='Quality Standards'!L81 -> -1 | AA161: ='Quality Standards'!M81 -> -1 | AB161: ='Quality Standards'!N81 -> -1
P162: ='Quality Standards'!B82 -> Greywater: Category A | Q162: ='Quality Standards'!C82 -> -1 | R162: ='Quality Standards'!D82 -> 140 | S162: ='Quality Standards'!E82 -> 240 | T162: ='Quality Standards'!F82 -> -1 | U162: ='Quality Standards'!G82 -> -1 | V162: ='Quality Standards'!H82 -> -1 | W162: ='Quality Standards'!I82 -> 1000 | X162: ='Quality Standards'!J82 -> -1 | Y162: ='Quality Standards'!K82 -> -1 | Z162: ='Quality Standards'!L82 -> -1 | AA162: ='Quality Standards'!M82 -> -1 | AB162: ='Quality Standards'!N82 -> -1
P163: ='Quality Standards'!B83 -> Greywater: Category B | Q163: ='Quality Standards'!C83 -> -1 | R163: ='Quality Standards'!D83 -> 20 | S163: ='Quality Standards'!E83 -> 20 | T163: ='Quality Standards'!F83 -> -1 | U163: ='Quality Standards'!G83 -> -1 | V163: ='Quality Standards'!H83 -> -1 | W163: ='Quality Standards'!I83 -> 200 | X163: ='Quality Standards'!J83 -> -1 | Y163: ='Quality Standards'!K83 -> -1 | Z163: ='Quality Standards'!L83 -> -1 | AA163: ='Quality Standards'!M83 -> -1 | AB163: ='Quality Standards'!N83 -> -1
P164: ='Quality Standards'!B84 -> Greywater: Category C | Q164: ='Quality Standards'!C84 -> -1 | R164: ='Quality Standards'!D84 -> 10 | S164: ='Quality Standards'!E84 -> 10 | T164: ='Quality Standards'!F84 -> -1 | U164: ='Quality Standards'!G84 -> -1 | V164: ='Quality Standards'!H84 -> -1 | W164: ='Quality Standards'!I84 -> 10 | X164: ='Quality Standards'!J84 -> -1 | Y164: ='Quality Standards'!K84 -> -1 | Z164: ='Quality Standards'!L84 -> -1 | AA164: ='Quality Standards'!M84 -> -1 | AB164: ='Quality Standards'!N84 -> -1
P165: ='Quality Standards'!B85 -> Jordanian Standards for wastewater reuse | Q165: ='Quality Standards'!C85 -> 0 | R165: ='Quality Standards'!D85 -> 0 | S165: ='Quality Standards'!E85 -> 0 | T165: ='Quality Standards'!F85 -> 0 | U165: ='Quality Standards'!G85 -> 0 | V165: ='Quality Standards'!H85 -> 0 | W165: ='Quality Standards'!I85 -> 0 | X165: ='Quality Standards'!J85 -> 0 | Y165: ='Quality Standards'!K85 -> 0 | Z165: ='Quality Standards'!L85 -> 0 | AA165: ='Quality Standards'!M85 -> 0 | AB165: ='Quality Standards'!N85 -> 0
P166: ='Quality Standards'!B86 -> Discharge to streams | Q166: ='Quality Standards'!C86 -> -1 | R166: ='Quality Standards'!D86 -> 60 | S166: ='Quality Standards'!E86 -> 60 | T166: ='Quality Standards'!F86 -> 150 | U166: ='Quality Standards'!G86 -> 70 | V166: ='Quality Standards'!H86 -> -1 | W166: ='Quality Standards'!I86 -> 1000 | X166: ='Quality Standards'!J86 -> -1 | Y166: ='Quality Standards'!K86 -> 1500 | Z166: ='Quality Standards'!L86 -> 45 | AA166: ='Quality Standards'!M86 -> -1 | AB166: ='Quality Standards'!N86 -> -1
P167: ='Quality Standards'!B87 -> Groundwater recharge | Q167: ='Quality Standards'!C87 -> 2 | R167: ='Quality Standards'!D87 -> 50 | S167: ='Quality Standards'!E87 -> 15 | T167: ='Quality Standards'!F87 -> 50 | U167: ='Quality Standards'!G87 -> 45 | V167: ='Quality Standards'!H87 -> -1 | W167: ='Quality Standards'!I87 -> 2.2 | X167: ='Quality Standards'!J87 -> -1 | Y167: ='Quality Standards'!K87 -> 1500 | Z167: ='Quality Standards'!L87 -> 30 | AA167: ='Quality Standards'!M87 -> -1 | AB167: ='Quality Standards'!N87 -> -1
P168: ='Quality Standards'!B88 -> Agricultural irrigation Group A | Q168: ='Quality Standards'!C88 -> 10 | R168: ='Quality Standards'!D88 -> 50 | S168: ='Quality Standards'!E88 -> 30 | T168: ='Quality Standards'!F88 -> 100 | U168: ='Quality Standards'!G88 -> 45 | V168: ='Quality Standards'!H88 -> -1 | W168: ='Quality Standards'!I88 -> 100 | X168: ='Quality Standards'!J88 -> -1 | Y168: ='Quality Standards'!K88 -> -1 | Z168: ='Quality Standards'!L88 -> 30 | AA168: ='Quality Standards'!M88 -> -1 | AB168: ='Quality Standards'!N88 -> -1
P169: ='Quality Standards'!B89 -> Agricultural irrigation Group B | Q169: ='Quality Standards'!C89 -> -1 | R169: ='Quality Standards'!D89 -> 150 | S169: ='Quality Standards'!E89 -> 200 | T169: ='Quality Standards'!F89 -> 500 | U169: ='Quality Standards'!G89 -> 70 | V169: ='Quality Standards'!H89 -> -1 | W169: ='Quality Standards'!I89 -> 1000 | X169: ='Quality Standards'!J89 -> -1 | Y169: ='Quality Standards'!K89 -> -1 | Z169: ='Quality Standards'!L89 -> 45 | AA169: ='Quality Standards'!M89 -> -1 | AB169: ='Quality Standards'!N89 -> -1
P170: ='Quality Standards'!B90 -> Agricultural irrigation Group C | Q170: ='Quality Standards'!C90 -> -1 | R170: ='Quality Standards'!D90 -> 150 | S170: ='Quality Standards'!E90 -> 300 | T170: ='Quality Standards'!F90 -> 500 | U170: ='Quality Standards'!G90 -> 70 | V170: ='Quality Standards'!H90 -> -1 | W170: ='Quality Standards'!I90 -> -1 | X170: ='Quality Standards'!J90 -> -1 | Y170: ='Quality Standards'!K90 -> -1 | Z170: ='Quality Standards'!L90 -> 45 | AA170: ='Quality Standards'!M90 -> -1 | AB170: ='Quality Standards'!N90 -> -1
P171: ='Quality Standards'!B91 -> AQUAREC Water quality criteria, 2006 | Q171: ='Quality Standards'!C91 -> 0 | R171: ='Quality Standards'!D91 -> 0 | S171: ='Quality Standards'!E91 -> 0 | T171: ='Quality Standards'!F91 -> 0 | U171: ='Quality Standards'!G91 -> 0 | V171: ='Quality Standards'!H91 -> 0 | W171: ='Quality Standards'!I91 -> 0 | X171: ='Quality Standards'!J91 -> 0 | Y171: ='Quality Standards'!K91 -> 0 | Z171: ='Quality Standards'!L91 -> 0 | AA171: ='Quality Standards'!M91 -> 0 | AB171: ='Quality Standards'!N91 -> 0
P172: ='Quality Standards'!B92 -> AQUAREC: Private, urban irrigation Category 1 | Q172: ='Quality Standards'!C92 -> -1 | R172: ='Quality Standards'!D92 -> 10 | S172: ='Quality Standards'!E92 -> 10 | T172: ='Quality Standards'!F92 -> 100 | U172: ='Quality Standards'!G92 -> -1 | V172: ='Quality Standards'!H92 -> 2 | W172: ='Quality Standards'!I92 -> 0 | X172: ='Quality Standards'!J92 -> -1 | Y172: ='Quality Standards'!K92 -> 1650 | Z172: ='Quality Standards'!L92 -> -1 | AA172: ='Quality Standards'!M92 -> 100 | AB172: ='Quality Standards'!N92 -> 0
P173: ='Quality Standards'!B93 -> AQUAREC: Environmental and aquaculture Category 2 | Q173: ='Quality Standards'!C93 -> -1 | R173: ='Quality Standards'!D93 -> 10 | S173: ='Quality Standards'!E93 -> 10 | T173: ='Quality Standards'!F93 -> 70 | U173: ='Quality Standards'!G93 -> -1 | V173: ='Quality Standards'!H93 -> 0.2 | W173: ='Quality Standards'!I93 -> 0 | X173: ='Quality Standards'!J93 -> -1 | Y173: ='Quality Standards'!K93 -> 1650 | Z173: ='Quality Standards'!L93 -> -1 | AA173: ='Quality Standards'!M93 -> 70 | AB173: ='Quality Standards'!N93 -> 99
P174: ='Quality Standards'!B94 -> AQUAREC: Indirect aquifer recharge Category 3 | Q174: ='Quality Standards'!C94 -> -1 | R174: ='Quality Standards'!D94 -> -1 | S174: ='Quality Standards'!E94 -> -1 | T174: ='Quality Standards'!F94 -> 70 | U174: ='Quality Standards'!G94 -> -1 | V174: ='Quality Standards'!H94 -> -1 | W174: ='Quality Standards'!I94 -> 0 | X174: ='Quality Standards'!J94 -> -1 | Y174: ='Quality Standards'!K94 -> 385 | Z174: ='Quality Standards'!L94 -> 25 | AA174: ='Quality Standards'!M94 -> 70 | AB174: ='Quality Standards'!N94 -> -1
P175: ='Quality Standards'!B95 -> AQUAREC: Industrial cooling Category 4 | Q175: ='Quality Standards'!C95 -> -1 | R175: ='Quality Standards'!D95 -> 10 | S175: ='Quality Standards'!E95 -> -1 | T175: ='Quality Standards'!F95 -> 70 | U175: ='Quality Standards'!G95 -> -1 | V175: ='Quality Standards'!H95 -> 0.2 | W175: ='Quality Standards'!I95 -> 0 | X175: ='Quality Standards'!J95 -> -1 | Y175: ='Quality Standards'!K95 -> -1 | Z175: ='Quality Standards'!L95 -> -1 | AA175: ='Quality Standards'!M95 -> 70 | AB175: ='Quality Standards'!N95 -> 1
P176: ='Quality Standards'!B96 -> Brazil | Q176: ='Quality Standards'!C96 -> 0 | R176: ='Quality Standards'!D96 -> 0 | S176: ='Quality Standards'!E96 -> 0 | T176: ='Quality Standards'!F96 -> 0 | U176: ='Quality Standards'!G96 -> 0 | V176: ='Quality Standards'!H96 -> 0 | W176: ='Quality Standards'!I96 -> 0 | X176: ='Quality Standards'!J96 -> 0 | Y176: ='Quality Standards'!K96 -> 0 | Z176: ='Quality Standards'!L96 -> 0 | AA176: ='Quality Standards'!M96 -> 0 | AB176: ='Quality Standards'!N96 -> 0
P177: ='Quality Standards'!B97 -> BRA - Freshwater Class I | Q177: ='Quality Standards'!C97 -> 40 | R177: ='Quality Standards'!D97 -> 500 | S177: ='Quality Standards'!E97 -> 3 | T177: ='Quality Standards'!F97 -> -1 | U177: ='Quality Standards'!G97 -> -1 | V177: ='Quality Standards'!H97 -> 0.02 | W177: ='Quality Standards'!I97 -> -1 | X177: ='Quality Standards'!J97 -> -1 | Y177: ='Quality Standards'!K97 -> -1 | Z177: ='Quality Standards'!L97 -> 10 | AA177: ='Quality Standards'!M97 -> -1 | AB177: ='Quality Standards'!N97 -> -1
P178: ='Quality Standards'!B98 -> BRA - Freshwater Class II | Q178: ='Quality Standards'!C98 -> 100 | R178: ='Quality Standards'!D98 -> 500 | S178: ='Quality Standards'!E98 -> 5 | T178: ='Quality Standards'!F98 -> -1 | U178: ='Quality Standards'!G98 -> -1 | V178: ='Quality Standards'!H98 -> 0.03 | W178: ='Quality Standards'!I98 -> -1 | X178: ='Quality Standards'!J98 -> -1 | Y178: ='Quality Standards'!K98 -> -1 | Z178: ='Quality Standards'!L98 -> 10 | AA178: ='Quality Standards'!M98 -> -1 | AB178: ='Quality Standards'!N98 -> -1
P179: ='Quality Standards'!B99 -> BRA - Freshwater Class III | Q179: ='Quality Standards'!C99 -> 100 | R179: ='Quality Standards'!D99 -> 500 | S179: ='Quality Standards'!E99 -> 10 | T179: ='Quality Standards'!F99 -> -1 | U179: ='Quality Standards'!G99 -> -1 | V179: ='Quality Standards'!H99 -> 0.05 | W179: ='Quality Standards'!I99 -> -1 | X179: ='Quality Standards'!J99 -> -1 | Y179: ='Quality Standards'!K99 -> -1 | Z179: ='Quality Standards'!L99 -> 10 | AA179: ='Quality Standards'!M99 -> -1 | AB179: ='Quality Standards'!N99 -> -1
P180: ='Quality Standards'!B100 -> BRA - Reuse Water Class 1 | Q180: ='Quality Standards'!C100 -> 5 | R180: ='Quality Standards'!D100 -> -1 | S180: ='Quality Standards'!E100 -> 200 | T180: ='Quality Standards'!F100 -> -1 | U180: ='Quality Standards'!G100 -> -1 | V180: ='Quality Standards'!H100 -> -1 | W180: ='Quality Standards'!I100 -> -1 | X180: ='Quality Standards'!J100 -> 200 | Y180: ='Quality Standards'!K100 -> 200 | Z180: ='Quality Standards'!L100 -> -1 | AA180: ='Quality Standards'!M100 -> -1 | AB180: ='Quality Standards'!N100 -> -1
P181: ='Quality Standards'!B101 -> BRA - Reuse Water Class 2 | Q181: ='Quality Standards'!C101 -> 5 | R181: ='Quality Standards'!D101 -> -1 | S181: ='Quality Standards'!E101 -> 500 | T181: ='Quality Standards'!F101 -> -1 | U181: ='Quality Standards'!G101 -> -1 | V181: ='Quality Standards'!H101 -> -1 | W181: ='Quality Standards'!I101 -> -1 | X181: ='Quality Standards'!J101 -> 500 | Y181: ='Quality Standards'!K101 -> -1 | Z181: ='Quality Standards'!L101 -> -1 | AA181: ='Quality Standards'!M101 -> -1 | AB181: ='Quality Standards'!N101 -> -1
P182: ='Quality Standards'!B102 -> BRA - Reuse Water Class 3 | Q182: ='Quality Standards'!C102 -> 10 | R182: ='Quality Standards'!D102 -> -1 | S182: ='Quality Standards'!E102 -> 500 | T182: ='Quality Standards'!F102 -> -1 | U182: ='Quality Standards'!G102 -> -1 | V182: ='Quality Standards'!H102 -> -1 | W182: ='Quality Standards'!I102 -> -1 | X182: ='Quality Standards'!J102 -> 500 | Y182: ='Quality Standards'!K102 -> -1 | Z182: ='Quality Standards'!L102 -> -1 | AA182: ='Quality Standards'!M102 -> -1 | AB182: ='Quality Standards'!N102 -> -1
P183: ='Quality Standards'!B103 -> BRA - Reuse Water Class 4 | Q183: ='Quality Standards'!C103 -> -1 | R183: ='Quality Standards'!D103 -> -1 | S183: ='Quality Standards'!E103 -> 5000 | T183: ='Quality Standards'!F103 -> -1 | U183: ='Quality Standards'!G103 -> -1 | V183: ='Quality Standards'!H103 -> -1 | W183: ='Quality Standards'!I103 -> -1 | X183: ='Quality Standards'!J103 -> 5000 | Y183: ='Quality Standards'!K103 -> -1 | Z183: ='Quality Standards'!L103 -> -1 | AA183: ='Quality Standards'!M103 -> -1 | AB183: ='Quality Standards'!N103 -> -1
P184: ='Quality Standards'!B104 -> Chile | Q184: ='Quality Standards'!C104 -> 0 | R184: ='Quality Standards'!D104 -> 0 | S184: ='Quality Standards'!E104 -> 0 | T184: ='Quality Standards'!F104 -> 0 | U184: ='Quality Standards'!G104 -> 0 | V184: ='Quality Standards'!H104 -> 0 | W184: ='Quality Standards'!I104 -> 0 | X184: ='Quality Standards'!J104 -> 0 | Y184: ='Quality Standards'!K104 -> 0 | Z184: ='Quality Standards'!L104 -> 0 | AA184: ='Quality Standards'!M104 -> 0 | AB184: ='Quality Standards'!N104 -> 0
P185: ='Quality Standards'!B105 -> CHL - Drinking water for human consumption | Q185: ='Quality Standards'!C105 -> 5 | R185: ='Quality Standards'!D105 -> -1 | S185: ='Quality Standards'!E105 -> -1 | T185: ='Quality Standards'!F105 -> -1 | U185: ='Quality Standards'!G105 -> -1 | V185: ='Quality Standards'!H105 -> -1 | W185: ='Quality Standards'!I105 -> -1 | X185: ='Quality Standards'!J105 -> -1 | Y185: ='Quality Standards'!K105 -> -1 | Z185: ='Quality Standards'!L105 -> 10 | AA185: ='Quality Standards'!M105 -> -1 | AB185: ='Quality Standards'!N105 -> -1
P186: ='Quality Standards'!B106 -> CHL - Water for agricultural Irrigation | Q186: ='Quality Standards'!C106 -> -1 | R186: ='Quality Standards'!D106 -> -1 | S186: ='Quality Standards'!E106 -> -1 | T186: ='Quality Standards'!F106 -> -1 | U186: ='Quality Standards'!G106 -> -1 | V186: ='Quality Standards'!H106 -> -1 | W186: ='Quality Standards'!I106 -> -1 | X186: ='Quality Standards'!J106 -> 1000 | Y186: ='Quality Standards'!K106 -> 5000 | Z186: ='Quality Standards'!L106 -> -1 | AA186: ='Quality Standards'!M106 -> -1 | AB186: ='Quality Standards'!N106 -> -1
P187: ='Quality Standards'!B107 -> CHL - Water for surface water or groundwater recharge | Q187: ='Quality Standards'!C107 -> 30 | R187: ='Quality Standards'!D107 -> -1 | S187: ='Quality Standards'!E107 -> -1 | T187: ='Quality Standards'!F107 -> -1 | U187: ='Quality Standards'!G107 -> -1 | V187: ='Quality Standards'!H107 -> -1 | W187: ='Quality Standards'!I107 -> -1 | X187: ='Quality Standards'!J107 -> -1 | Y187: ='Quality Standards'!K107 -> -1 | Z187: ='Quality Standards'!L107 -> -1 | AA187: ='Quality Standards'!M107 -> -1 | AB187: ='Quality Standards'!N107 -> -1
P188: ='Quality Standards'!B108 -> Argentina | Q188: ='Quality Standards'!C108 -> 0 | R188: ='Quality Standards'!D108 -> 0 | S188: ='Quality Standards'!E108 -> 0 | T188: ='Quality Standards'!F108 -> 0 | U188: ='Quality Standards'!G108 -> 0 | V188: ='Quality Standards'!H108 -> 0 | W188: ='Quality Standards'!I108 -> 0 | X188: ='Quality Standards'!J108 -> 0 | Y188: ='Quality Standards'!K108 -> 0 | Z188: ='Quality Standards'!L108 -> 0 | AA188: ='Quality Standards'!M108 -> 0 | AB188: ='Quality Standards'!N108 -> 0
P189: ='Quality Standards'!B109 -> ARG - Drinking water for human consumption | Q189: ='Quality Standards'!C109 -> 5 | R189: ='Quality Standards'!D109 -> -1 | S189: ='Quality Standards'!E109 -> -1 | T189: ='Quality Standards'!F109 -> -1 | U189: ='Quality Standards'!G109 -> -1 | V189: ='Quality Standards'!H109 -> -1 | W189: ='Quality Standards'!I109 -> 0 | X189: ='Quality Standards'!J109 -> -1 | Y189: ='Quality Standards'!K109 -> 1000 | Z189: ='Quality Standards'!L109 -> -1 | AA189: ='Quality Standards'!M109 -> -1 | AB189: ='Quality Standards'!N109 -> -1
P190: ='Quality Standards'!B110 -> ARG - Water for agricultural Irrigation(non-food crops) | Q190: ='Quality Standards'!C110 -> -1 | R190: ='Quality Standards'!D110 -> 50 | S190: ='Quality Standards'!E110 -> 30 | T190: ='Quality Standards'!F110 -> -1 | U190: ='Quality Standards'!G110 -> 30 | V190: ='Quality Standards'!H110 -> 5 | W190: ='Quality Standards'!I110 -> -1 | X190: ='Quality Standards'!J110 -> -1 | Y190: ='Quality Standards'!K110 -> 500 | Z190: ='Quality Standards'!L110 -> 30 | AA190: ='Quality Standards'!M110 -> -1 | AB190: ='Quality Standards'!N110 -> -1
P191: ='Quality Standards'!B111 -> Mexico | Q191: ='Quality Standards'!C111 -> 0 | R191: ='Quality Standards'!D111 -> 0 | S191: ='Quality Standards'!E111 -> 0 | T191: ='Quality Standards'!F111 -> 0 | U191: ='Quality Standards'!G111 -> 0 | V191: ='Quality Standards'!H111 -> 0 | W191: ='Quality Standards'!I111 -> 0 | X191: ='Quality Standards'!J111 -> 0 | Y191: ='Quality Standards'!K111 -> 0 | Z191: ='Quality Standards'!L111 -> 0 | AA191: ='Quality Standards'!M111 -> 0 | AB191: ='Quality Standards'!N111 -> 0
P192: ='Quality Standards'!B112 -> MEX - Drinking water for human consumption | Q192: ='Quality Standards'!C112 -> 5 | R192: ='Quality Standards'!D112 -> -1 | S192: ='Quality Standards'!E112 -> -1 | T192: ='Quality Standards'!F112 -> -1 | U192: ='Quality Standards'!G112 -> -1 | V192: ='Quality Standards'!H112 -> -1 | W192: ='Quality Standards'!I112 -> -1 | X192: ='Quality Standards'!J112 -> 2 | Y192: ='Quality Standards'!K112 -> 1000 | Z192: ='Quality Standards'!L112 -> 10 | AA192: ='Quality Standards'!M112 -> -1 | AB192: ='Quality Standards'!N112 -> -1
P193: ='Quality Standards'!B113 -> MEX - Water for public service with direct contact | Q193: ='Quality Standards'!C113 -> 20 | R193: ='Quality Standards'!D113 -> -1 | S193: ='Quality Standards'!E113 -> 20 | T193: ='Quality Standards'!F113 -> -1 | U193: ='Quality Standards'!G113 -> -1 | V193: ='Quality Standards'!H113 -> -1 | W193: ='Quality Standards'!I113 -> 240 | X193: ='Quality Standards'!J113 -> -1 | Y193: ='Quality Standards'!K113 -> -1 | Z193: ='Quality Standards'!L113 -> -1 | AA193: ='Quality Standards'!M113 -> -1 | AB193: ='Quality Standards'!N113 -> -1
P194: ='Quality Standards'!B114 -> MEX - Water for public service without direct contact | Q194: ='Quality Standards'!C114 -> 30 | R194: ='Quality Standards'!D114 -> -1 | S194: ='Quality Standards'!E114 -> 30 | T194: ='Quality Standards'!F114 -> -1 | U194: ='Quality Standards'!G114 -> -1 | V194: ='Quality Standards'!H114 -> -1 | W194: ='Quality Standards'!I114 -> 1000 | X194: ='Quality Standards'!J114 -> -1 | Y194: ='Quality Standards'!K114 -> -1 | Z194: ='Quality Standards'!L114 -> -1 | AA194: ='Quality Standards'!M114 -> -1 | AB194: ='Quality Standards'!N114 -> -1
P195: ='Quality Standards'!B115 -> Classes draft Lena | Q195: ='Quality Standards'!C115 -> 0 | R195: ='Quality Standards'!D115 -> 0 | S195: ='Quality Standards'!E115 -> 0 | T195: ='Quality Standards'!F115 -> 0 | U195: ='Quality Standards'!G115 -> 0 | V195: ='Quality Standards'!H115 -> 0 | W195: ='Quality Standards'!I115 -> 0 | X195: ='Quality Standards'!J115 -> 0 | Y195: ='Quality Standards'!K115 -> 0 | Z195: ='Quality Standards'!L115 -> 0 | AA195: ='Quality Standards'!M115 -> 0 | AB195: ='Quality Standards'!N115 -> 0
P196: ='Quality Standards'!B116 -> Class A | Q196: ='Quality Standards'!C116 -> 5 | R196: ='Quality Standards'!D116 -> 10 | S196: ='Quality Standards'!E116 -> 10 | T196: ='Quality Standards'!F116 -> 100 | U196: ='Quality Standards'!G116 -> -1 | V196: ='Quality Standards'!H116 -> 2-5 | W196: ='Quality Standards'!I116 -> 0 | X196: ='Quality Standards'!J116 -> 1000 | Y196: ='Quality Standards'!K116 -> 200 | Z196: ='Quality Standards'!L116 -> 10 | AA196: ='Quality Standards'!M116 -> 100 | AB196: ='Quality Standards'!N116 -> 10
P197: ='Quality Standards'!B117 -> Class B | Q197: ='Quality Standards'!C117 -> 10 | R197: ='Quality Standards'!D117 -> 10 | S197: ='Quality Standards'!E117 -> 20 | T197: ='Quality Standards'!F117 -> 100 | U197: ='Quality Standards'!G117 -> -1 | V197: ='Quality Standards'!H117 -> 2-5 | W197: ='Quality Standards'!I117 -> 1000 | X197: ='Quality Standards'!J117 -> 10000 | Y197: ='Quality Standards'!K117 -> 1650 | Z197: ='Quality Standards'!L117 -> 30 | AA197: ='Quality Standards'!M117 -> 100 | AB197: ='Quality Standards'!N117 -> 10
P198: ='Quality Standards'!B118 -> Class C | Q198: ='Quality Standards'!C118 -> 10 | R198: ='Quality Standards'!D118 -> 50 | S198: ='Quality Standards'!E118 -> 30 | T198: ='Quality Standards'!F118 -> 70 | U198: ='Quality Standards'!G118 -> 30 | V198: ='Quality Standards'!H118 -> 0.2 | W198: ='Quality Standards'!I118 -> 10000 | X198: ='Quality Standards'!J118 -> 100000 | Y198: ='Quality Standards'!K118 -> 1650 | Z198: ='Quality Standards'!L118 -> 45 | AA198: ='Quality Standards'!M118 -> 70 | AB198: ='Quality Standards'!N118 -> 100
P199: ='Quality Standards'!B119 -> Class D | Q199: ='Quality Standards'!C119 -> -1 | R199: ='Quality Standards'!D119 -> 10 | S199: ='Quality Standards'!E119 -> 30 | T199: ='Quality Standards'!F119 -> 70 | U199: ='Quality Standards'!G119 -> -1 | V199: ='Quality Standards'!H119 -> 0.2 | W199: ='Quality Standards'!I119 -> 10000 | X199: ='Quality Standards'!J119 -> 10000 | Y199: ='Quality Standards'!K119 -> -1 | Z199: ='Quality Standards'!L119 -> -1 | AA199: ='Quality Standards'!M119 -> 70 | AB199: ='Quality Standards'!N119 -> 1
P200: ='Quality Standards'!B120 -> Class E | Q200: ='Quality Standards'!C120 -> 2 | R200: ='Quality Standards'!D120 -> 50 | S200: ='Quality Standards'!E120 -> 15 | T200: ='Quality Standards'!F120 -> 70 | U200: ='Quality Standards'!G120 -> 10 | V200: ='Quality Standards'!H120 -> -1 | W200: ='Quality Standards'!I120 -> 10000 | X200: ='Quality Standards'!J120 -> 100000 | Y200: ='Quality Standards'!K120 -> 385 | Z200: ='Quality Standards'!L120 -> 25 | AA200: ='Quality Standards'!M120 -> 70 | AB200: ='Quality Standards'!N120 -> -1
P201: ='Quality Standards'!B121 -> Poseidon Classes | Q201: ='Quality Standards'!C121 -> 0 | R201: ='Quality Standards'!D121 -> 0 | S201: ='Quality Standards'!E121 -> 0 | T201: ='Quality Standards'!F121 -> 0 | U201: ='Quality Standards'!G121 -> 0 | V201: ='Quality Standards'!H121 -> 0 | W201: ='Quality Standards'!I121 -> 0 | X201: ='Quality Standards'!J121 -> 0 | Y201: ='Quality Standards'!K121 -> 0 | Z201: ='Quality Standards'!L121 -> 0 | AA201: ='Quality Standards'!M121 -> 0 | AB201: ='Quality Standards'!N121 -> 0
P202: ='Quality Standards'!B122 -> Pos-Class A - very low | Q202: ='Quality Standards'!C122 -> 2 | R202: ='Quality Standards'!D122 -> 10 | S202: ='Quality Standards'!E122 -> 10 | T202: ='Quality Standards'!F122 -> -1 | U202: ='Quality Standards'!G122 -> 10 | V202: ='Quality Standards'!H122 -> -1 | W202: ='Quality Standards'!I122 -> 0 | X202: ='Quality Standards'!J122 -> -1 | Y202: ='Quality Standards'!K122 -> -1 | Z202: ='Quality Standards'!L122 -> -1 | AA202: ='Quality Standards'!M122 -> -1 | AB202: ='Quality Standards'!N122 -> 25
P203: ='Quality Standards'!B123 -> Pos-Class B - low | Q203: ='Quality Standards'!C123 -> -1 | R203: ='Quality Standards'!D123 -> 20 | S203: ='Quality Standards'!E123 -> 20 | T203: ='Quality Standards'!F123 -> 150 | U203: ='Quality Standards'!G123 -> -1 | V203: ='Quality Standards'!H123 -> -1 | W203: ='Quality Standards'!I123 -> -1 | X203: ='Quality Standards'!J123 -> 1000 | Y203: ='Quality Standards'!K123 -> 30 | Z203: ='Quality Standards'!L123 -> 50 | AA203: ='Quality Standards'!M123 -> -1 | AB203: ='Quality Standards'!N123 -> -1
P204: ='Quality Standards'!B124 -> Pos-Class C - medium | Q204: ='Quality Standards'!C124 -> 10 | R204: ='Quality Standards'!D124 -> 30 | S204: ='Quality Standards'!E124 -> 30 | T204: ='Quality Standards'!F124 -> -1 | U204: ='Quality Standards'!G124 -> 10 | V204: ='Quality Standards'!H124 -> -1 | W204: ='Quality Standards'!I124 -> 200 | X204: ='Quality Standards'!J124 -> 23 | Y204: ='Quality Standards'!K124 -> -1 | Z204: ='Quality Standards'!L124 -> -1 | AA204: ='Quality Standards'!M124 -> -1 | AB204: ='Quality Standards'!N124 -> -1
P205: ='Quality Standards'!B125 -> Pos-Class D - good | Q205: ='Quality Standards'!C125 -> -1 | R205: ='Quality Standards'!D125 -> 150 | S205: ='Quality Standards'!E125 -> 300 | T205: ='Quality Standards'!F125 -> 500 | U205: ='Quality Standards'!G125 -> 70 | V205: ='Quality Standards'!H125 -> -1 | W205: ='Quality Standards'!I125 -> -1 | X205: ='Quality Standards'!J125 -> -1 | Y205: ='Quality Standards'!K125 -> -1 | Z205: ='Quality Standards'!L125 -> 45 | AA205: ='Quality Standards'!M125 -> -1 | AB205: ='Quality Standards'!N125 -> -1
P206: ='Quality Standards'!B126 -> Pos-Class E - excellent | Q206: ='Quality Standards'!C126 -> -1 | R206: ='Quality Standards'!D126 -> 30 | S206: ='Quality Standards'!E126 -> 30 | T206: ='Quality Standards'!F126 -> -1 | U206: ='Quality Standards'!G126 -> -1 | V206: ='Quality Standards'!H126 -> -1 | W206: ='Quality Standards'!I126 -> 200 | X206: ='Quality Standards'!J126 -> -1 | Y206: ='Quality Standards'!K126 -> -1 | Z206: ='Quality Standards'!L126 -> -1 | AA206: ='Quality Standards'!M126 -> -1 | AB206: ='Quality Standards'!N126 -> -1
P207: ='Quality Standards'!B127 -> User-defined | Q207: ='Quality Standards'!C127 -> 0 | R207: ='Quality Standards'!D127 -> 0 | S207: ='Quality Standards'!E127 -> 0 | T207: ='Quality Standards'!F127 -> 0 | U207: ='Quality Standards'!G127 -> 0 | V207: ='Quality Standards'!H127 -> 0 | W207: ='Quality Standards'!I127 -> 0 | X207: ='Quality Standards'!J127 -> 0 | Y207: ='Quality Standards'!K127 -> 0 | Z207: ='Quality Standards'!L127 -> 0 | AA207: ='Quality Standards'!M127 -> 0 | AB207: ='Quality Standards'!N127 -> 0
P208: ='Quality Standards'!B128 -> Class A - very low | Q208: ='Quality Standards'!C128 -> -1 | R208: ='Quality Standards'!D128 -> -1 | S208: ='Quality Standards'!E128 -> -1 | T208: ='Quality Standards'!F128 -> -1 | U208: ='Quality Standards'!G128 -> -1 | V208: ='Quality Standards'!H128 -> -1 | W208: ='Quality Standards'!I128 -> -1 | X208: ='Quality Standards'!J128 -> -1 | Y208: ='Quality Standards'!K128 -> -1 | Z208: ='Quality Standards'!L128 -> -1 | AA208: ='Quality Standards'!M128 -> -1 | AB208: ='Quality Standards'!N128 -> -1
